Workbook

Sheet Other Dept Approval (hidden)
A2: Below is an E-mail template to be used by PIs to communicate details of this project with other involved departments
A3: Please attach the CCW to the an email containing the text below and send it to your colaborators
B4: Project name: | E4: =Summary!$C$6 -> 0
B5: PI: | E5: =Summary!$C$3 -> 0 | F5: =Summary!$D$3 -> 0
B6: Host Department: | E6: =Summary!$C$4 -> 0
C7: Proposed time frame: | E7: =Summary!$C$7 -> 2024-07-01 | F7: to | G7: =Summary!$E$7 -> 00:00:00
A9: Hi [name of collaborating Staff member(s)]
A11: You are part of the team for this project and as such you are listed on the CCW for this application with [% FTE] FTEs allocated.
A13: If this application is funded we will arrange the return of the salary funded and any related overheads to your department.
A14: or [Delete one]
A15: For the purposes of the application there is no funding requested for salary recovery or overheads
A17: Would you please forward this email, and as necessary discuss your involvement in this project with your HOD, and seek their support which can be represented by return email. If you or your Head of Department require additional information please come back to me.

Sheet Printing
B1: PI | C1: =Summary!$D$3 -> 0
B2: Project | C2: =Summary!$C$6 -> 0
B3: Click Buttons to Select Pages to Print
B5: RED TAPE | F5: OUR PEOPLE | J5: RESOURCES
O7: Sheet | P7: Print?
O8: =MID(CELL("filename",Summary!A1),FIND("]",CELL("filename",Summary!A1))+1,255) -> Summary | P8: Yes
O9: =MID(CELL("filename",Finances!A1),FIND("]",CELL("filename",Summary!A1))+1,255) -> Finances | P9: Yes
O10: =MID(CELL("filename",'Ethics & Consents'!A1),FIND("]",CELL("filename",'Ethics & Consents'!A1))+1,255) -> Ethics & Consents | P10: Yes
O11: =MID(CELL("filename",'Indirect Staff'!B1),FIND("]",CELL("filename",'Indirect Staff'!B1))+1,255) -> Indirect Staff | P11: =IF(SUM('Indirect Staff'!K18+'Indirect Staff'!K33+'Indirect Staff'!K48+'Indirect Staff'!K63+'Indirect Staff'!K78+'Indirect Staff'!K93+'Indirect Staff'!K108+'Indirect Staff'!K123+'Indirect Staff'!K153+'Indirect Staff'!K168+'Indirect Staff'!K183+'Indirect Staff'!K198+'Indirect Staff'!K213+'Indirect Staff'!K228+'Indirect Staff'!K243)>0,"Yes","No") -> No
O12: =MID(CELL("filename",'Direct Staff'!B1),FIND("]",CELL("filename",'Direct Staff'!B1))+1,255) -> Direct Staff | P12: =IF(SUM('Direct Staff'!K18+'Direct Staff'!K33+'Direct Staff'!K48+'Direct Staff'!K63+'Direct Staff'!K78+'Direct Staff'!K93+'Direct Staff'!K108+'Direct Staff'!K123+'Direct Staff'!K138+'Direct Staff'!K153+'Direct Staff'!K168+'Direct Staff'!K183+'Direct Staff'!K198+'Direct Staff'!K213+'Direct Staff'!K228+'Direct Staff'!K243)>0,"Yes","No") -> No
O13: =MID(CELL("filename",'Op Expenses'!A1:I1),FIND("]",CELL("filename",'Op Expenses'!A1:I1))+1,255) -> Op Expenses | P13: =IF(SUM('Op Expenses'!D95:I95)>0,"Yes","No") -> No
O14: =MID(CELL("filename",'Subs-Students'!A1),FIND("]",CELL("filename",'Subs-Students'!A1))+1,255) -> Subs-Students | P14: =IF('Subs-Students'!R202>0,"Yes","No") -> No
O15: =MID(CELL("filename",'Equipment & Computers'!A1),FIND("]",CELL("filename",'Equipment & Computers'!A1))+1,255) -> Equipment & Computers | P15: =IF('Equipment & Computers'!R47>0,"Yes","No") -> No
O16: =MID(CELL("filename",ISR!A1),FIND("]",CELL("filename",ISR!A1))+1,255) -> ISR | P16: =IF(ISR!M22>2,"Yes","No") -> No
O17: =MID(CELL("filename",'Multi-Dept Split'!A1),FIND("]",CELL("filename",'Multi-Dept Split'!A1))+1,255) -> Multi-Dept Split | P17: =IF('Multi-Dept Split'!M13="Yes","Yes","No") -> Yes
O18: =MID(CELL("filename",'Foreign $'!A1),FIND("]",CELL("filename",'Foreign $'!A1))+1,255) -> Foreign $ | P18: =IF('Foreign $'!C12<>1,"Yes","No") -> No
O19: =MID(CELL("filename",'SUB Coversheet'!A1),FIND("]",CELL("filename",'SUB Coversheet'!A1))+1,255) -> SUB Coversheet | P19: =IF('SUB Coversheet'!H31>0,"Yes","No") -> No
O20: =MID(CELL("filename",'MOU info'!A1),FIND("]",CELL("filename",'MOU info'!A1))+1,255) -> MOU info | P20: =IF('MOU info'!G54>0,"Yes","No") -> No
O23: Subs | P23: Exists? | R23: MOUs | S23: Exists?
O24: SUB 1 | P24: =ISREF(INDIRECT(CONCATENATE("'",O24,"'!A1"))) -> FALSE | R24: MOU 1 | S24: =ISREF(INDIRECT(CONCATENATE("'",R24,"'!A1"))) -> FALSE
O25: SUB 2 | P25: FALSE | R25: MOU 2 | S25: FALSE
O26: SUB 3 | P26: FALSE | R26: MOU 3 | S26: FALSE
O27: SUB 4 | P27: FALSE | R27: MOU 4 | S27: FALSE
O28: SUB 5 | P28: FALSE | R28: MOU 5 | S28: FALSE
O29: SUB 6 | P29: FALSE | R29: MOU 6 | S29: FALSE
O30: SUB 7 | P30: FALSE | R30: MOU 7 | S30: FALSE
O31: SUB 8 | P31: FALSE | R31: MOU 8 | S31: FALSE
O32: SUB 9 | P32: FALSE | R32: MOU 9 | S32: FALSE
O33: SUB 10 | P33: FALSE | R33: MOU 10 | S33: FALSE
O34: SUB 11 | P34: FALSE | R34: MOU 11 | S34: FALSE
O35: SUB 12 | P35: FALSE | R35: MOU 12 | S35: FALSE
O36: SUB 13 | P36: FALSE

Sheet Summary
B1: University of Otago Costing and Consents Worksheet | I1: 2024-04-11 | N1: Max print height | O1: =MAX(N56:N72) -> 59
B2: Research Advisor or BDM | E2: Date of creation/change: | N2: Print area | O2: =CONCATENATE("$A$1:$L$",TEXT(O1,"@")) -> $A$1:$L$59
B3: PI: | N3: Start Year | O3: =YEAR(C7) -> 2024 | P3: =C7 -> 2024-07-01 | T3: Status
B4: Department: | F4: =IF(C4="","",VLOOKUP($C$4,DepartmentCodes,2,FALSE)) ->  | H4: Division: | I4: =IF(C4="","",VLOOKUP(C4,DepartmentsandDivisions,5,FALSE)) ->  | N4: End year | O4: =IF(E7="","",YEAR(E7)) ->  | P4: =E7 -> 00:00:00 | T4: Indirect Staff | V4: =IF(IndirectStaffDepartment>0,"There is a name without a department in the Indirect Staff sheet","") -> 
B5: Research Unit: | F5: NSC Link? | N5: Total years | O5: =IF(O4="",3,P5) -> 3 | P5: =ROUNDUP(YEARFRAC(P3,P4),0) -> 125 | T5: Direct Staff | V5: =IF(DirectStaffDepartment>0,"There is a name without a department in the Direct Staff sheet","") -> 
B6: Project title: | T6: Op Expenses | V6: =IF(OpExpensesCode>0,"There is an expense without a dissection code on the Op Expenses sheet","") -> 
B7: Budget Start: | C7: 2024-07-01 | D7: End Date: | H7: REDS Contract # | N7: 2024-07-01 | O7: 2025-07-01 | P7: 2026-07-01 | Q7: 2027-07-01 | R7: 2028-07-01 | T7: Indirect Print | V7: =IF(Indirect8Plus=TRUE,"There are more than 8 Indirect staff, manualy adjust the print area","") -> 
B8: Actual Start: | C8: =IF(C7="","",C7) -> 2024-07-01 | D8: Actual End: | E8: =IF(E7="","",E7) ->  | H8: Funder Contract # | T8: Direct Print | V8: =IF(Direct8Plus=TRUE,"There are more than 8 Direct staff, manualy adjust the print area","") -> 
B9: Funding Body: | H9: Finance 1 Acc # | N9: =IF(C7>=R7,2028,IF(C7>=Q7,2027,IF(C7>=P7,2026,IF(C7>=O7,2025,IF(C7>=N7,2024,2023))))) -> 2024 | S9: =IF(I11="",TRUE,FALSE) -> TRUE | T9: Unspent Funds | V9: =IF(UnspentFundsStatus=TRUE,"Unspent Funds hasn't been completed","") -> Unspent Funds hasn't been completed
B10: New project: | C10: =IF(E10="Yes","No","Yes") -> Yes | D10: Variation: | E10: No | H10: New Suffix required? | I10: No
B11: PBRF? | C11: Yes | D11: O/H Rate*: | E11: =IF(C11="Yes",111,124) -> 111 | H11: Unspent Funds (RA/BDM) | I11: =_xlfn.XLOOKUP(C9,Funding_Bodies_Table[Funding Body],Funding_Bodies_Table[Unspent Funds],"") ->  | M11: =IFERROR(IF(I11="","<- RA/BDM to complete",VLOOKUP(I11,UnspentFunds,2,FALSE)),"<- RA/BDM to complete") -> <- RA/BDM to complete
D13: * 111% Research, 124% Commercial | H13: Does this CCW apply to an: | I13: Application | K13: FALSE
B14: All Years | D14: Full Cost | E14: Price | I14: Contract | K14: FALSE
B15: Salaries Indirect | D15: =Finances!I7 -> 0 | E15: =IF(FunderPaysIndirects,D15,0) -> 0 | H15: FOR Codes (XXXXXX) | J15: %
B16: Salaries Direct | D16: =Finances!I13 -> 0 | E16: =D16 -> 0 | F16: =E15+E16 -> 0 | M16: FOR codes (six digit)
B17: Salary-Related - Indirect | D17: =Finances!I24 -> 0 | E17: =IF(FunderPaysIndirects,D17,0) -> 0 | M17: http://aria.stats.govt.nz/aria/#ClassificationView:uri=http://stats.govt.nz/cms/ClassificationVersion/d3TYSTsmz2uc8CY1
B18: Salary-Related - Direct | D18: =Finances!I25 -> 0 | E18: 0 | F18: =E17+E18 -> 0
B19: Postgraduate Students | D19: ='Subs-Students'!$N$201 -> 0 | E19: 0 | H19: SEO Codes (XXXXXX) | J19: % | M19: % of each code must add up to 100% and be multiples of 10
B20: Operating Expenses | D20: ='Op Expenses'!$K$91 -> 0 | E20: 0
B21: Equipment | D21: ='Equipment & Computers'!$N$13 -> 0 | E21: 0 | M21: SEO codes (six digit)
B22: Depreciation | D22: ='Equipment & Computers'!$N$46 -> 0 | E22: 0 | M22: http://aria.stats.govt.nz/aria/#ClassificationView:uri=http://stats.govt.nz/cms/ClassificationVersion/d1iJyaEzjWHJiRej
B23: Sub-Contracting | D23: =Finances!$I$32 -> 0 | E23: 0 | H23: Type of Activity (TOA)
B24: Overheads | D24: =Finances!I33 -> 0 | E24: ='Indirect Staff'!K396 -> 0
B25: Profit | G25: Keywords
B26: TOTAL ex GST | D26: =SUM(D15:D25) -> 0 | E26: =SUM(E15:E25) -> 0
B27: GST | D27: =D26*Calcs!C7 -> 0 | E27: =(E26)*Calcs!C7 -> 0
B28: GRAND TOTAL | D28: =D26+D27 -> 0 | E28: =E26+E27 -> 0
B29: Cost/Price Difference (ex GST) | E29: =E26-D26 -> 0 | F29: Sighted by Finance | M29: Ñ Initials of Finance Advisory staff checking the CCW where required by the Department and/or Division
I32: Actual O/H | J32: Full O/H
B33: Authorisation | I33: =IF((E24>0),(E24/$F$16)*100,0) -> 0 | J33: =IF(($D24+$D25>0),(D24/($D$15+$D$16))*100,0) -> 0
B34: ALL INFORMATION PROVIDED IS TRUE AND CORRECT and that each Investigator and relevant HOD has agreed to this application/contract
B35: =CONCATENATE(C3," ",D3) -> 
B36: Applicant | D36: Signature | I36: Date
B37: Recommendations: I hereby endorse this application/proposal to undertake this research/ activity on behalf of the University and guarantee the availability of facilities, equipment and any special support which may be required as detailed in the application/proposal.
B40: Agreed Overheads waived | E40: =D24-E24 -> 0 | H40: % Overheads waived | J40: =IF(D24>0,E40/D24,0)*100 -> 0
B43: HOD | D43: Signature | I43: Date
B46: Dean / PVC | D46: Signature | I46: Date
B49: =IF(C2="","",C2) -> 
B50: Research & Enterprise | D50: Signature | I50: Date
B52: APPROVED By
B55: =IF(E26>50000,"Prof Richard Blaikie", "Dr Martin Gagnon") -> Dr Martin Gagnon
B56: =IF(B55="Dr Martin Gagnon","Director (R&E)","DVC(R)") -> Director (R&E) | D56: Signature | I56: Date | N56: =CELL("row",L56) -> 56
B58: Date | C58: Comments (Please date any new comments)
B59: =IFERROR(VLOOKUP(C9,Funding_Body_Table,3,FALSE),"") ->  | C59: =IFERROR(VLOOKUP(C9,Funding_Body_Table,2,FALSE),"") ->  | N59: =CELL("row",B59) -> 59 | S59: Yes
N60: =IF(C60="","No",CELL("row",B60)) -> No | S60: =IF(OR(B60<>"",C60<>""),"Yes","No") -> No
N61: No | S61: No
N62: No | S62: No
N63: No | S63: No
N64: No | S64: No
N65: No | S65: No
N66: No | S66: No
N67: No | S67: No
N68: No | S68: No
N69: No | S69: No
N70: No | S70: No
N71: No | S71: No
N72: No | S72: No

Sheet F1 Details (hidden)
A1: Chart Account | D1: Empty: | E1: Empty
A3: Chart Name:
A4: Account Number:
A6: General
A7: Account Description: | B7: =IF(ISBLANK(Summary!C6),Empty,Summary!C6) -> Empty
A8: Department | B8: =IF(ISBLANK(Summary!C4),Empty,Summary!C4) -> Empty
A9: Short Description
A10: Data Entry Control
A11: Status
A12: Research Unit
A13: Allocation Overheads
A14: Research Type
A15: Funder Group
A16: Grant Type
A17: Sub-Contractor
A18: Year of Award
A19: Debtor Number
A20: Research Funding Met
A21: Principal Investigator | B21: =IF(ISBLANK(Summary!D3),Empty,_xlfn.CONCAT(Summary!C3," ", Summary!D3)) -> Empty
A22: Administrator
A23: Capital Group
A24: Asset Class
A25: Capital Project Type
A26: Surplus Funds
A27: Assistant Investigator
A28: Funder Body Name | B28: =IF(ISBLANK(Summary!C9),Empty,Summary!C9) -> Empty
A29: Total Amount Applied for
A30: Total Amount Awarded | B30: =IF(Summary!E28=0,Empty,Summary!E28) -> Empty
A31: Funder Contract Number
A32: Original Funder
A33: Start Date | B33: =IF(ISBLANK(Summary!C7),Empty,Summary!C7) -> 2024-07-01
A34: End Date | B34: =IF(ISBLANK(Summary!E7),Empty,Summary!E7) -> Empty
A35: Previous Project / Suffix
A36: PBRF Eligiblity % | B36: =IF(Summary!C11="Yes",1,Summary!C11) -> 1
A37: Research Office Reference
A38: Date Unavailable
A39: Old Counterbalance Number

Sheet Calcs (hidden)
A1: Calculations page | X1: 1.015 | AA1: 0.0275 | AB1: 1.0275 | AK1: Professional Staff
K2: Departments | L2: Code | M2: ISR Code | N2: Dept O/H | O2: Division | S2: 2017 | T2: =T4 -> 2018 | U2: =U4 -> 2019 | V2: 2020 | W2: 2021 | X2: 2022 | Y2: 2023 | Z2: 2024 | AA2: 2025 | AB2: 2026 | AC2: 2027 | AD2: 2028 | AE2: 2029 | AK2: 2022 | AL2: Effective as at 1 July 2022
B3: Overhead Rate | C3: 105 | E3: Title | F3: Prof | H3: Super | K3: Accountancy & Finance | L3: DB | M3: 10.DB.A01 | N3: 10.DB.A01 | O3: =$G$33 -> Commerce | S3: 1 | T3: 2 | U3: =T3+1 -> 3 | V3: =U3+1 -> 4 | W3: 5 | X3: 6 | Y3: 7 | Z3: 8 | AA3: 9 | AB3: 10 | AC3: 11 | AD3: 12 | AE3: 13
C4: 124 | F4: A.Prof | H4: Uni | I4: 0.0675 | K4: Anatomy | L4: LA | M4: 10.LA.A01 | N4: 10.LA.C01 | O4: =$G$31 -> Health Sciences | S4: 2017 | T4: 2018 | U4: 2019 | V4: 2020 | W4: 2021 | X4: 2022 | Y4: 2023 | Z4: 2024 | AA4: 2025 | AB4: =AA4+1 -> 2026 | AC4: =AB4+1 -> 2027 | AD4: =AC4+1 -> 2028 | AE4: 2029 | AH4: Num | AI4: Academic | AK4: LEVEL 1 | AN4: LEVEL 2 | AQ4: LEVEL 3 | AT4: LEVEL 4 | AW4: LEVEL 5 | AZ4: LEVEL 6 | BC4: LEVEL 7 | BF4: LEVEL 8
C5: Full | F5: Dr | H5: Gvt | I5: 0.18 | K5: Applied Sciences | L5: IF | M5: 10.IF.A02 | N5: 10.IF.A02 | O5: =$G$32 -> Sciences | Q5: Academic | R5: Assistant Research Fellows (ARF) | S5: ARF01 | T5: 48821 | U5: 48821 | V5: 50041.525 | W5: 50041.525 | X5: 54591 | Y5: =X5+3750 -> 58341 | Z5: =Y5*AnnualSalaryIncrease -> 59945.3775 | AA5: 61593.87538 | AB5: 63287.70695 | AC5: 65028.1189 | AD5: 66816.39217 | AE5: 68653.84295 | AI5: PDF | AK5: 1 | AN5: 2 | AQ5: 3 | AT5: 4 | AW5: 5 | AZ5: 6 | BC5: 7 | BF5: 8
C6: None | F6: Mr | H6: Kiwi | I6: 0.03 | K6: Archaeology | L6: AE | M6: 10.AE.A03 | N6: 10.AE.A12 | O6: =$G$34 -> Humanities | S6: ARF02 | T6: 51292 | U6: 51292 | V6: 52574.3 | W6: 52574.3 | X6: 57124 | Y6: =X6+3750 -> 60874 | Z6: 62548.035 | AA6: 64268.10596 | AB6: 66035.47888 | AC6: 67851.45455 | AD6: 69717.36955 | AE6: 71634.59721 | AI6: ARF01 | AK6: Step | AL6: Salary | AM6: Per Hr | AN6: Step | AO6: Salary | AP6: Per Hr | AQ6: Step | AR6: Salary | AS6: Per Hr | AT6: Step | AU6: Salary | AV6: Per Hr | AW6: Step | AX6: Salary | AY6: Per Hr | AZ6: Step | BA6: Salary | BB6: Per Hr | BC6: Step | BD6: Salary | BE6: Per Hr | BF6: Step | BG6: Salary | BH6: Per Hr
B7: GST Rate | C7: 0.15 | F7: Mrs | H7: None | I7: 0 | K7: Biochemistry | L7: LH | M7: 10.LH.A01 | N7: 10.LH.A04 | O7: =$G$31 -> Health Sciences | S7: ARF03 | T7: 53364 | U7: 53364 | V7: 54698.1 | W7: 54698.1 | X7: 59248 | Y7: 62998 | Z7: 64730.445 | AA7: 66510.53224 | AB7: 68339.57187 | AC7: 70218.9101 | AD7: 72149.93013 | AE7: 74134.05321 | AI7: ARF02
B8: Acc Levy | C8: 0.006 | F8: Ms | K8: Bioethics | L8: OW | M8: 10.OW.C01 | N8: 10.OW.C01 | O8: =$G$31 -> Health Sciences | S8: ARF04 | T8: 56015.225 | U8: 56015.225 | V8: 57415.60562 | W8: 57415.60562 | X8: 61966 | Y8: 65716 | Z8: 67523.19 | AA8: 69380.07773 | AB8: 71288.02986 | AC8: 73248.45068 | AD8: 75262.78308 | AE8: 77332.50961 | AI8: ARF03 | AK8: 5* | AL8: 46476 | AM8: 21.98 | AN8: 3 | AO8: 49477 | AP8: 22.97632825 | AQ8: 1 | AR8: 51788 | AS8: 24.15838644 | AT8: 3 | AU8: 55535 | AV8: 26.07451631 | AW8: 3 | AX8: 61531 | AY8: 29.1409755 | AZ8: 1 | BA8: 66852 | BB8: 31.86219931 | BC8: 1 | BD8: 71630 | BE8: 34.305848 | BF8: 3 | BG8: 83664 | BH8: 40.39075281 | BJ8: =CONCATENATE("PL",TEXT($AK$5,"0")," ",TEXT(AK8,"00")) -> PL1 5* | BK8: =CONCATENATE("PL",TEXT($AN$5,"0")," ",TEXT(AN8,"00")) -> PL2 03 | BL8: =CONCATENATE("PL",TEXT($AQ$5,"0")," ",TEXT(AQ8,"00")) -> PL3 01 | BM8: =CONCATENATE("PL",TEXT($AT$5,"0")," ",TEXT(AT8,"00")) -> PL4 03 | BN8: =CONCATENATE("PL",TEXT($AW$5,"0")," ",TEXT(AW8,"00")) -> PL5 03 | BO8: =CONCATENATE("PL",TEXT($AZ$5,"0")," ",TEXT(AZ8,"00")) -> PL6 01 | BP8: =CONCATENATE("PL",TEXT($BC$5,"0")," ",TEXT(BC8,"00")) -> PL7 01 | BQ8: =CONCATENATE("PL",TEXT($BF$5,"0")," ",TEXT(BF8,"00")) -> PL8 03
B9: Holiday pay rate | C9: 1.08 | F9: Mx | K9: Biostatistics Centre | L9: OR | M9: 10.OR.A01 | N9: 10.OR.A01 | O9: =$G$31 -> Health Sciences | S9: ARF05 | T9: 57342.6 | U9: 57342.6 | V9: 58776.165 | W9: 58776.165 | X9: 63326 | Y9: 67076 | Z9: 68920.59 | AA9: 70815.90623 | AB9: 72763.34365 | AC9: 74764.3356 | AD9: 76820.35483 | AE9: 78932.91458 | AI9: ARF04 | AK9: 6 | AL9: 48658 | AM9: 23.09 | AN9: 6 | AO9: 50567 | AP9: 23.534 | AQ9: 4 | AR9: 52879 | AS9: 24.71616325 | AT9: 7 | AU9: 56990 | AV9: 26.81877906 | AW9: 7 | AX9: 62987 | AY9: 29.8856585 | AZ9: 5 | BA9: 68370 | BB9: 32.63871625 | BC9: 5 | BD9: 73147 | BE9: 35.08173456 | BF9: 7 | BG9: 85233 | BH9: 41.18187344 | BJ9: PL1 06 | BK9: PL2 06 | BL9: PL3 04 | BM9: PL4 07 | BN9: PL5 07 | BO9: PL6 05 | BP9: PL7 05 | BQ9: PL8 07
K10: Botany | L10: FC | M10: 10.FC.A01 | N10: 10.FC.C01 | O10: =$G$32 -> Sciences | S10: ARF06 | T10: 59994.275 | U10: 59994.275 | V10: 61494.13187 | W10: 61494.13187 | X10: 66044 | Y10: 69794 | Z10: 71713.335 | AA10: 73685.45171 | AB10: 75711.80163 | AC10: 77793.87618 | AD10: 79933.20777 | AE10: 82131.37099 | AI10: ARF05 | AK10: 7 | AL10: 49023 | AM10: 23.28 | AN10: 9 | AO10: 51658 | AP10: 24.09177681 | AQ10: 7 | AR10: 53970 | AS10: 25.27436031 | AT10: 11 | AU10: 58446 | AV10: 27.56325194 | AW10: 11 | AX10: 64441 | AY10: 30.62939594 | AZ10: 9 | BA10: 69887 | BB10: 33.41460281 | BC10: 9 | BD10: 74665 | BE10: 35.85730594 | BF10: 11 | BG10: 86802 | BH10: 41.97215356 | BJ10: PL1 07 | BK10: PL2 09 | BL10: PL3 07 | BM10: PL4 11 | BN10: PL5 11 | BO10: PL6 09 | BP10: PL7 09 | BQ10: PL8 11
B11: RA/BDM | F11: National Science Challenges | K11: Centre for Childrens Issues | L11: EA | M11: 10.EA.A01 | N11: 10.EA.A01 | O11: =$G$34 -> Humanities | S11: ARF07 | T11: 60870.65 | U11: 60870.65 | V11: 62392.41625 | W11: 62392.41625 | X11: 66942 | Y11: 70692 | Z11: 72636.03 | AA11: 74633.52082 | AB11: 76685.94265 | AC11: 78794.80607 | AD11: 80961.66324 | AE11: 83188.10898 | AI11: ARF06 | AK11: 8 | AL11: 49388 | AM11: 23.47 | AN11: 10 | AO11: 52020 | AP11: 24.27731719 | AQ11: 10 | AR11: 55062 | AS11: 25.83245231 | AT11: 15 | AU11: 59901 | AV11: 28.30761975 | AW11: 15 | AX11: 65898 | AY11: 31.37460425 | AZ11: 13 | BA11: 71400 | BB11: 34.18828306 | BC11: 13 | BD11: 76205 | BE11: 36.63308744 | BF11: 15 | BG11: 88372 | BH11: 42.7637995 | BJ11: PL1 08 | BK11: PL2 10 | BL11: PL3 10 | BM11: PL4 15 | BN11: PL5 15 | BO11: PL6 13 | BP11: PL7 13 | BQ11: PL8 15
B12: Initial | C12: Name | F12: Not Applicable | K12: Centre For Irish and Scottish Studies | L12: AQ | M12: 10.AQ.A01 | N12: 10.AQ.A01 | O12: =$G$34 -> Humanities | S12: ARF08 | T12: 63287.6 | U12: 63287.6 | V12: 64869.79 | W12: 64869.79 | X12: 69420 | Y12: 73170 | Z12: 75182.175 | AA12: 77249.68481 | AB12: 79374.05114 | AC12: 81556.83755 | AD12: 83799.65058 | AE12: 86104.14098 | AI12: ARF07 | AK12: 9 | AL12: 49751 | AM12: 23.65 | AN12: 11 | AO12: 52385 | AP12: 24.463593 | AQ12: 13 | AR12: 56154 | AS12: 26.39096456 | AT12: 16 | AU12: 60265 | AV12: 28.49337025 | AW12: 16 | AX12: 66269 | AY12: 31.564137 | AZ12: 17 | BA12: 72918 | BB12: 34.96448481 | BC12: 17 | BD12: 77767 | BE12: 37.42032075 | BF12: 19 | BG12: 89944 | BH12: 43.5555505 | BJ12: PL1 09 | BK12: PL2 11 | BL12: PL3 13 | BM12: PL4 16 | BN12: PL5 16 | BO12: PL6 17 | BP12: PL7 17 | BQ12: PL8 19
B13: AC | C13: Ali Cameron | F13: 1 A Better Start | K13: Centre for Materials Science & Technology | L13: IM | M13: 10.IM.A02 | N13: 10.IM.A02 | O13: =$G$32 -> Sciences | S13: ARF09 | T13: 66103.275 | U13: 66103.275 | V13: 67755.85687 | W13: 67755.85687 | X13: 72306 | Y13: 76056 | Z13: 78147.54 | AA13: 80296.59735 | AB13: 82504.75378 | AC13: 84773.63451 | AD13: 87104.90945 | AE13: 89500.29446 | AI13: ARF08 | AK13: 10 | AL13: 50115 | AM13: 23.84 | AN13: 12 | AO13: 52750 | AP13: 24.65007894 | AQ13: 14 | AR13: 56518 | AS13: 26.57734544 | AT13: 17 | AU13: 60628 | AV13: 28.67922581 | AW13: 17 | AX13: 66649 | AY13: 31.75871275 | AZ13: 18 | BA13: 73299 | BB13: 35.15927069 | BC13: 21 | BD13: 79335 | BE13: 38.2099705 | BF13: 23 | BG13: 91513 | BH13: 44.34614581 | BJ13: PL1 10 | BK13: PL2 12 | BL13: PL3 14 | BM13: PL4 17 | BN13: PL5 17 | BO13: PL6 18 | BP13: PL7 21 | BQ13: PL8 23
B14: AT | C14: Amarni Thomas | F14: 2 Ageing Well | K14: Centre for Science Communication | L14: FY | M14: 10.FY.A03 | N14: 10.FY.A03 | O14: =$G$32 -> Sciences | S14: ARF10 | T14: 68515.1 | U14: 68515.1 | V14: 70227.9775 | W14: 70227.9775 | X14: 74781 | Y14: 78531 | Z14: 80690.6025 | AA14: 82909.59407 | AB14: 85189.60791 | AC14: 87532.32212 | AD14: 89939.46098 | AE14: 92412.79616 | AI14: ARF09 | AK14: 11 | AL14: 50478 | AM14: 24.03 | AN14: 13 | AO14: 53113 | AP14: 24.83603956 | AQ14: 15 | AR14: 56882 | AS14: 26.76309594 | AT14: 18 | AU14: 60993 | AV14: 28.86571175 | AW14: 18 | AX14: 67028 | AY14: 31.95213281 | AZ14: 19 | BA14: 73664 | BB14: 35.35269075 | BC14: 25 | BD14: 80906 | BE14: 39.00140631 | BF14: 27 | BG14: 93085 | BH14: 45.13810694 | BJ14: PL1 11 | BK14: PL2 13 | BL14: PL3 15 | BM14: PL4 18 | BN14: PL5 18 | BO14: PL6 19 | BP14: PL7 25 | BQ14: PL8 27
B15: AO | C15: Annie O'Connell | F15: 3 Healthier Lives | K15: Centre for Sustainability | L15: AT | M15: 10.AT.C03 | N15: 10.AT.C03 | O15: =$G$34 -> Humanities | R15: Professional Practice Fellow Scales | S15: PPF1 01 | T15: 60870.65 | U15: 60870.65 | V15: 62392.41625 | W15: 62392.41625 | X15: 66942 | Y15: =X15+3750 -> 70692 | Z15: =Y15*AnnualSalaryIncrease -> 72636.03 | AA15: 74633.52082 | AB15: 76685.94265 | AC15: 78794.80607 | AD15: 80961.66324 | AE15: 83188.10898 | AI15: ARF10 | AK15: 12 | AL15: 50842 | AM15: 24.21 | AN15: 14 | AO15: 53477 | AP15: 25.021685 | AQ15: 16 | AR15: 57245 | AS15: 26.94926669 | AT15: 19 | AU15: 61356 | AV15: 29.05177744 | AW15: 19 | AX15: 67409 | AY15: 32.14712881 | AZ15: 20 | BA15: 74050 | BB15: 35.54716144 | BC15: 26 | BD15: 81298 | BE15: 39.199239 | BF15: 31 | BG15: 94653 | BH15: 45.928282 | BJ15: PL1 12 | BK15: PL2 14 | BL15: PL3 16 | BM15: PL4 19 | BN15: PL5 19 | BO15: PL6 20 | BP15: PL7 26 | BQ15: PL8 31
B16: CL | C16: Carthika Luxmanan | F16: 4 High-Value Nutrition | K16: Centre for International Health | L16: ON | M16: 10.ON.C01 | N16: 10.ON.C01 | O16: Health Sciences | S16: PPF1 02 | T16: 63600.225 | U16: 63600.225 | V16: 65190.23062 | W16: 65190.23062 | X16: 69740 | Y16: =X16+3750 -> 73490 | Z16: =Y16*AnnualSalaryIncrease -> 75510.975 | AA16: 77587.52681 | AB16: 79721.1838 | AC16: 81913.51635 | AD16: 84166.13805 | AE16: 86480.70685 | AI16: LL01/RF01 | AK16: 13 | AL16: 51206 | AM16: 24.4 | AN16: 15 | AO16: 53840 | AP16: 25.20775069 | AQ16: 17 | AR16: 57609 | AS16: 27.13522731 | AT16: 20 | AU16: 61721 | AV16: 29.23805325 | AW16: 20 | AX16: 67785 | AY16: 32.33949825 | AZ16: 21 | BA16: 74434 | BB16: 35.7405815 | BC16: 27 | BD16: 81691 | BE16: 39.39707169 | BF16: 32 | BG16: 95046 | BH16: 46.12621975 | BJ16: PL1 13 | BK16: PL2 15 | BL16: PL3 17 | BM16: PL4 20 | BN16: PL5 20 | BO16: PL6 21 | BP16: PL7 27 | BQ16: PL8 32
B17: CA | C17: Chelvica Ariyanayagam | F17: 5 New Zealand’s Biological Heritage | K17: Chemistry | L17: FE | M17: 10.FE.A50 | N17: 10.FE.C01 | O17: =$G$32 -> Sciences | S17: PPF1 03 | T17: 66329.8 | U17: 66329.8 | V17: 67988.045 | W17: 67988.045 | X17: 72538 | Y17: 76288 | Z17: 78385.92 | AA17: 80541.5328 | AB17: 82756.42495 | AC17: 85032.22664 | AD17: 87370.61287 | AE17: 89773.30472 | AI17: LL02/RF02 | AK17: 14 | AL17: 51569 | AM17: 24.58 | AN17: 16 | AO17: 54206 | AP17: 25.394867 | AQ17: 18 | AR17: 57975 | AS17: 27.32244869 | AT17: 21 | AU17: 62084 | AV17: 29.42390881 | AW17: 21 | AX17: 68166 | AY17: 32.53438919 | AZ17: 22 | BA17: 74820 | BB17: 35.93484206 | BC17: 28 | BD17: 82084 | BE17: 39.59542969 | BF17: 33 | BG17: 95439 | BH17: 46.32426256 | BJ17: PL1 14 | BK17: PL2 16 | BL17: PL3 18 | BM17: PL4 21 | BN17: PL5 21 | BO17: PL6 22 | BP17: PL7 28 | BQ17: PL8 33
B18: XG | C18: Christine Groves | F18: 6 Our Land and Water | K18: Classics | L18: AG | M18: 10.AG.C01 | N18: 10.AG.C01 | O18: =$G$34 -> Humanities | S18: PPF1 04 | T18: 69057.325 | U18: 69057.325 | V18: 70783.75812 | W18: 70783.75812 | X18: 75345 | Y18: 79095 | Z18: 81270.1125 | AA18: 83505.04059 | AB18: 85801.42921 | AC18: 88160.96851 | AD18: 90585.39515 | AE18: 93076.49351 | AI18: LL03/RF03 | AM18: 23.48829781 | AN18: 17 | AO18: 54568 | AP18: 25.58009219 | AQ18: 19 | AR18: 58336 | AS18: 27.50693844 | AT18: 22 | AU18: 62447 | AV18: 29.60944919 | AW18: 22 | AX18: 68545 | AY18: 32.72791431 | AZ18: 23 | BA18: 75204 | BB18: 36.12857731 | BC18: 29 | BD18: 82476 | BE18: 39.79294719 | BF18: 34 | BG18: 95831 | BH18: 46.52178006 | BJ18: PL1 00 | BK18: PL2 17 | BL18: PL3 19 | BM18: PL4 22 | BN18: PL5 22 | BO18: PL6 23 | BP18: PL7 29 | BQ18: PL8 34
B19: DP | C19: David Powell | F19: 7 Resilience to Nature's Challenges | K19: Coastal People: Southern Skies | L19: FD | M19: 10.FD.C02 | N19: 10.FD.C01 | O19: =$G$32 -> Sciences | S19: PPF1 05 | T19: 71816.625 | U19: 71816.625 | V19: 73612.04062 | W19: 73612.04062 | X19: 78258 | Y19: 82008 | Z19: 84263.22 | AA19: 86580.45855 | AB19: 88961.42116 | AC19: 91407.86024 | AD19: 93921.5764 | AE19: 96504.41975 | AI19: LL04/RF04 | AM19: 23.6743635 | AQ19: 20 | AR19: 58700 | AS19: 27.69331931 | AT19: 23 | AU19: 62812 | AV19: 29.79625031 | AW19: 23 | AX19: 68924 | AY19: 32.92164956 | AZ19: 24 | BA19: 75590 | BB19: 36.323048 | BC19: 30 | BD19: 82869 | BE19: 39.99067481 | BF19: 35 | BG19: 96223 | BH19: 46.71929756 | BJ19: PL1 00 | BL19: PL3 20 | BM19: PL4 23 | BN19: PL5 23 | BO19: PL6 24 | BP19: PL7 30 | BQ19: PL8 35
B20: DR | C20: Diana Rothstein | F20: 8 Science for Technological Innovation | K20: Commerce Divisional Office | L20: DE | M20: 10.DE.C01 | N20: =M20 -> 10.DE.C01 | O20: =$G$33 -> Commerce | S20: PPF2 01 | T20: 74601.55 | U20: 74601.55 | V20: 76466.58875 | W20: 76466.58875 | X20: 81773 | Y20: 85523 | Z20: 87874.8825 | AA20: 90291.44177 | AB20: 92774.45642 | AC20: 95325.75397 | AD20: 97947.2122 | AE20: 100640.7605 | AI20: LL05/RF05 | AM20: 23.86063931 | AQ20: 21 | AR20: 59065 | AS20: 27.87991031 | AT20: 24 | AU20: 63175 | AV20: 29.98189575 | AW20: 24 | AX20: 69303 | AY20: 33.11601519 | AZ20: 25 | BA20: 75974 | BB20: 36.51667819 | BC20: 31 | BD20: 83259 | BE20: 40.18735181 | BF20: 36 | BG20: 96616 | BH20: 46.91702519 | BJ20: PL1 00 | BL20: PL3 21 | BM20: PL4 24 | BN20: PL5 24 | BO20: PL6 25 | BP20: PL7 31 | BQ20: PL8 36
B21: EM | C21: Edwin Meijerink | F21: 9 Sustainable Seas | K21: Computer Science | L21: FH | M21: 10.FH.A01 | N21: 10.FH.C01 | O21: =$G$32 -> Sciences | S21: PPF2 02 | T21: 77385.45 | U21: 77385.45 | V21: 79320.08625 | W21: 79320.08625 | X21: 85286 | Y21: 89036 | Z21: 91484.49 | AA21: 94000.31348 | AB21: 96585.3221 | AC21: 99241.41845 | AD21: 101970.5575 | AE21: 104774.7478 | AI21: LL06/RF06 | AM21: 24.04617969 | AQ21: 22 | AR21: 59427 | AS21: 28.0651355 | AT21: 25 | AU21: 63540 | AV21: 30.16880194 | AW21: 25 | AX21: 69683 | AY21: 33.31038081 | AZ21: 26 | BA21: 76356 | BB21: 36.70936281 | BC21: 32 | BD21: 83655 | BE21: 40.38655031 | BF21: 37 | BG21: 97009 | BH21: 47.11538319 | BJ21: PL1 00 | BL21: PL3 22 | BM21: PL4 25 | BN21: PL5 25 | BO21: PL6 26 | BP21: PL7 32 | BQ21: PL8 37
B22: EH | C22: Elizabeth Hogbin | F22: 10 The Deep South | K22: Dental Clinics | L22: JH | M22: 10.JH.A01 | O22: =$G$31 -> Health Sciences | S22: PPF2 03 | T22: 80406.125 | U22: 80406.125 | V22: 82416.27812 | W22: 82416.27812 | X22: 87152 | Y22: 90902 | Z22: 93401.805 | AA22: 95970.35464 | AB22: 98609.53939 | AC22: 101321.3017 | AD22: 104107.6375 | AE22: 106970.5976 | AI22: LL07/RF07 | AQ22: 23 | AR22: 59793 | AS22: 28.25204169 | AT22: 26 | AU22: 63903 | AV22: 30.35392206 | AW22: 26 | AX22: 70060 | AY22: 33.50275025 | AZ22: 27 | BA22: 76745 | BB22: 36.90498919 | BC22: 33 | BD22: 84044 | BE22: 40.58280706 | BF22: 38 | BG22: 97400 | BH22: 47.3125855 | BL22: PL3 23 | BM22: PL4 26 | BN22: PL5 26 | BO22: PL6 27 | BP22: PL7 33 | BQ22: PL8 38
B23: EL | C23: Eric Lord | F23: 11 Building Better Homes, Towns, and Cities | K23: Dental School | L23: JD | M23: 10.JD.A21 | N23: 10.JD.A01 | O23: =$G$31 -> Health Sciences | S23: PPF2 04 | T23: 82884.575 | U23: 82884.575 | V23: 84956.68937 | W23: 84956.68937 | X23: 89731 | Y23: 93481 | Z23: 96051.7275 | AA23: 98693.15001 | AB23: 101407.2116 | AC23: 104195.91 | AD23: 107061.2975 | AE23: 110005.4832 | AI23: SL01 | AQ23: 24 | AR23: 60156 | AS23: 28.43821244 | AT23: 27 | AU23: 64265 | AV23: 30.5395675 | AW23: 27 | AX23: 70440 | AY23: 33.697326 | AZ23: 28 | BA23: 77136 | BB23: 37.1021915 | BC23: 34 | BD23: 84438 | BE23: 40.78106 | BF23: 39 | BG23: 97794 | BH23: 47.51083844 | BL23: PL3 24 | BM23: PL4 27 | BN23: PL5 27 | BO23: PL6 28 | BP23: PL7 34 | BQ23: PL8 39
B24: FM | C24: Fran Munro | K24: Dietetics | L24: FN | O24: =$G$32 -> Sciences | S24: PPF2 05 | T24: 85362 | U24: 85362 | V24: 87496.05 | W24: 87496.05 | X24: 92308 | Y24: 96058 | Z24: 98699.595 | AA24: 101413.8339 | AB24: 104202.7143 | AC24: 107068.2889 | AD24: 110012.6669 | AE24: 113038.0152 | AI24: SL02 | AQ24: 25 | AR24: 60520 | AS24: 28.62396294 | AT24: 28 | AU24: 64631 | AV24: 30.72647369 | AW24: 28 | AX24: 70819 | AY24: 33.89116631 | AZ24: 29 | BA24: 77529 | BB24: 37.30044444 | BC24: 35 | BD24: 84831 | BE24: 40.97910281 | BF24: 40 | BG24: 98186 | BH24: 47.70856606 | BL24: PL3 25 | BM24: PL4 28 | BN24: PL5 28 | BO24: PL6 29 | BP24: PL7 35 | BQ24: PL8 40
B25: IC | C25: Ian Cooke | K25: Dodd-Walls CORE | L25: FQ | M25: 10.FQ.C04 | N25: 10.FQ.C01 | O25: =$G$32 -> Sciences | S25: PPF3 01 | T25: 87842.5 | U25: 87842.5 | V25: 90038.5625 | W25: 90038.5625 | X25: 94890 | Y25: 98640 | Z25: 101352.6 | AA25: 104139.7965 | AB25: 107003.6409 | AC25: 109946.241 | AD25: 112969.7627 | AE25: 116076.4311 | AI25: SL03 | AT25: 29 | AU25: 64994 | AV25: 30.91180394 | AW25: 29 | AX25: 71197 | AY25: 34.08469144 | AZ25: 30 | BA25: 77922 | BB25: 37.498067 | BC25: 36 | BD25: 85220 | BE25: 41.17535956 | BF25: 41 | BG25: 98577 | BH25: 47.905138 | BM25: PL4 29 | BN25: PL5 29 | BO25: PL6 30 | BP25: PL7 36 | BQ25: PL8 41
B26: PF | C26: Paul Foster-Bell | K26: DSM - Dean's Office | L26: NB | M26: 10.NB.A01 | N26: 10.NB.A01 | O26: =$G$31 -> Health Sciences | S26: PPF3 02 | T26: 90319.925 | U26: 90319.925 | V26: 92577.92312 | W26: 92577.92312 | X26: 97467 | Y26: 101217 | Z26: =Y26*AnnualSalaryIncrease -> 104000.4675 | AA26: 106860.4804 | AB26: 109799.1436 | AC26: 112818.62 | AD26: 115921.1321 | AE26: 119108.9632 | AI26: SL04 | AZ26: 31 | BA26: 78314 | BB26: 37.69589969 | BC26: 37 | BD26: 85615 | BE26: 41.37413781 | BF26: 42 | BG26: 98972 | BH26: 48.1043365 | BO26: PL6 31 | BP26: PL7 37 | BQ26: PL8 42
B27: LB | C27: Lesley Brook | F27: Decision | G27: Yes | H27: No | K27: DSM - General Practice and Rural Health | L27: NC | M27: 10.NC.C02 | N27: 10.NC.C10 | O27: Health Sciences | S27: PPF3 03 | T27: 92806.575 | U27: 92806.575 | V27: 95126.73937 | W27: 95126.73937 | X27: 100054 | Y27: 103804 | Z27: 106658.61 | AA27: 109591.7218 | AB27: 112605.4941 | AC27: 115702.1452 | AD27: 118883.9542 | AE27: 122153.2629 | AI27: SL05 | AZ27: 32 | BA27: 78707 | BB27: 37.89362731 | BC27: 38 | BD27: 86007 | BE27: 41.57186544 | BF27: 43 | BG27: 99364 | BH27: 48.30153881 | BO27: PL6 32 | BP27: PL7 38 | BQ27: PL8 43
B28: KB | C28: Kate Berard | G28: No | H28: Yes | K28: DSM - Medicine | L28: NJ | M28: 10.NJ.A01 | N28: 10.NJ.C01 | O28: Health Sciences | S28: PPF3 04 | T28: 96165.5 | U28: 96165.5 | V28: 98569.6375 | W28: 98569.6375 | X28: 103550 | Y28: 107300 | Z28: 110250.75 | AA28: 113282.6456 | AB28: 116397.9184 | AC28: 119598.8611 | AD28: 122887.8298 | AE28: 126267.2451 | AI28: SL06 | AZ28: 33 | BA28: 79099 | BB28: 38.09135494 | BC28: 39 | BD28: 86401 | BE28: 41.77022344 | BF28: 44 | BG28: 99756 | BH28: 48.4993715 | BO28: PL6 33 | BP28: PL7 39 | BQ28: PL8 44
B29: KG | C29: Kerry Galvin | K29: DSM - Pathology | L29: NE | M29: 10.NE.C10 | N29: 10.NE.C10 | O29: Health Sciences | S29: PPF4 01 | T29: 101149.05 | U29: 101149.05 | V29: 103677.7762 | W29: 103677.7762 | X29: 108733 | Y29: 112483 | Z29: 115576.2825 | AA29: 118754.6303 | AB29: 122020.3826 | AC29: 125375.9431 | AD29: 128823.7816 | AE29: 132366.4356 | AI29: SLR01 | BC29: 40 | BD29: 86793 | BE29: 41.96795106 | BF29: 45 | BG29: 100149 | BH29: 48.69720419 | BP29: PL7 40 | BQ29: PL8 45
B30: ES | C30: EJ Sinclair | K30: DSM - Preventive & Social Medicine | L30: NF | M30: 10.NF.A01 | N30: 10.NF.C01 | O30: Health Sciences | S30: PPF4 02 | T30: 103228.775 | U30: 103228.775 | V30: 105809.4944 | W30: 105809.4944 | X30: 110896 | Y30: 114646 | Z30: 117798.765 | AA30: 121038.231 | AB30: 124366.7824 | AC30: 127786.8689 | AD30: 131301.0078 | AE30: 134911.7855 | AI30: SLR02 | BC30: 41 | BD30: 87185 | BE30: 42.16504831 | BF30: 46 | BG30: 100542 | BH30: 48.895247 | BP30: PL7 41 | BQ30: PL8 46
B31: MW | C31: Michelle Walker | F31: Division | G31: Health Sciences | K31: DSM - Psychological Medicine | L31: NG | M31: 10.NG.C01 | N31: 10.NG.C01 | O31: Health Sciences | S31: PPF4 03 | T31: 106510.825 | U31: 106510.825 | V31: 109173.5956 | W31: 109173.5956 | X31: 114312 | Y31: 118062 | Z31: 121308.705 | AA31: 124644.6944 | AB31: 128072.4235 | AC31: 131594.4151 | AD31: 135213.2615 | AE31: 138931.6262 | AI31: SLR03 | BC31: 42 | BD31: 87578 | BE31: 42.36361644 | BF31: 47 | BG31: 100933 | BH31: 49.0927645 | BP31: PL7 42 | BQ31: PL8 47
B32: MG | C32: Mary Gower | G32: Sciences | K32: DSM - Surgical Sciences | L32: NK | M32: 10.NK.A01 | N32: 10.NK.C01 | O32: Health Sciences | S32: PPF4 04 | T32: 109793.9 | U32: 109793.9 | V32: 112538.7475 | W32: 112538.7475 | X32: 117727 | Y32: 121477 | Z32: 124817.6175 | AA32: 128250.102 | AB32: 131776.9798 | AC32: 135400.8467 | AD32: 139124.37 | AE32: 142950.2902 | AI32: AP01 | BC32: 43 | BD32: 87970 | BE32: 42.56113394 | BF32: 48 | BG32: 101327 | BH32: 49.29080731 | BP32: PL7 43 | BQ32: PL8 48
B33: M_R | C33: Melanie Remy | G33: Commerce | K33: DSM - Womens & Child Health | L33: NH | M33: 10.NH.C10 | N33: 10.NH.C10 | O33: Health Sciences | S33: PPF4 05 | T33: 113073.9 | U33: 113073.9 | V33: 115900.7475 | W33: 115900.7475 | X33: 121140 | Y33: 124890 | Z33: 128324.475 | AA33: 131853.3981 | AB33: 135479.3665 | AC33: 139205.0491 | AD33: 143033.1879 | AE33: 146966.6006 | AI33: AP02 | BC33: 44 | BD33: 88364 | BE33: 42.75928181 | BF33: 49 | BG33: 101719 | BH33: 49.48864 | BP33: PL7 44 | BQ33: PL8 49
B34: MX | C34: Natalie Harfoot | G34: Humanities | K34: Economics | L34: DM | M34: 10.DM.A01 | N34: 10.DM.A01 | O34: =$G$33 -> Commerce | S34: PPF4 06 | T34: 116356.975 | U34: 116356.975 | V34: 119265.8994 | W34: 119265.8994 | X34: 124555 | Y34: 128305 | Z34: 131833.3875 | AA34: 135458.8057 | AB34: 139183.9228 | AC34: 143011.4807 | AD34: 146944.2964 | AE34: 150985.2646 | AI34: AP03 | BC34: 45 | BD34: 88756 | BE34: 42.9571145 | BF34: 50 | BG34: 102114 | BH34: 49.68731319 | BP34: PL7 45 | BQ34: PL8 50
B35: NB | C35: Nina Barton | G35: Academic | K35: English and Linguistics | L35: AO | M35: 10.AO.A01 | N35: 10.AO.A01 | O35: =$G$34 -> Humanities | R35: Post Doctoral Fellows (PDF) | S35: PDF | T35: 77034.44 | U35: 77793 | V35: =U35 -> 77793 | W35: 77793 | X35: 82460 | Y35: =X35+3750 -> 86210 | Z35: 88580.775 | AA35: 91016.74631 | AB35: 93519.70684 | AC35: 96091.49877 | AD35: 98734.01499 | AE35: 101449.2004 | AI35: AP04 | BC35: 46 | BD35: 89147 | BE35: 43.15389656 | BF35: 51 | BG35: 102503 | BH35: 49.88335981 | BP35: PL7 46 | BQ35: PL8 51
B36: RE | C36: Rachel Elliot | G36: Research | K36: Executive Programmes | L36: DA | N36: 10.DA.A11 | O36: =$G$33 -> Commerce | R36: Lecturers (L)/ Research Fellows (RF)/ Senior Teaching Fellows(STF)/ Scientific Officers | S36: LL01/RF01 | T36: 80406.125 | U36: 80406.125 | V36: 82416.27812 | W36: 82416.27812 | X36: 87152 | Y36: =X36+3750 -> 90902 | Z36: =Y36*AnnualSalaryIncrease -> 93401.805 | AA36: 95970.35464 | AB36: 98609.53939 | AC36: 101321.3017 | AD36: 104107.6375 | AE36: 106970.5976 | AI36: AP05 | BC36: 47 | BD36: 89541 | BE36: 43.35256975 | BF36: 52 | BG36: 102898 | BH36: 50.08234819 | BP36: PL7 47 | BQ36: PL8 52
B37: DG | C37: David Grimmett | K37: External Engagement - Divisional Office | L37: YS | M37: 10.YS.C10 | N37: 10.YS.C10 | O37: =$G$36 -> Research | S37: LL02/RF02 | T37: 82884.575 | U37: 82884.575 | V37: 84956.68937 | W37: 84956.68937 | X37: 89731 | Y37: =X37+3750 -> 93481 | Z37: 96051.7275 | AA37: 98693.15001 | AB37: 101407.2116 | AC37: 104195.91 | AD37: 107061.2975 | AE37: 110005.4832 | AI37: PF01 | BC37: 48 | BD37: 89934 | BE37: 43.55040244 | BF37: 53 | BG37: 103288 | BH37: 50.27902519 | BP37: PL7 48 | BQ37: PL8 53
B38: SB | C38: Suzanne Benjes | F38: Res_Unit | G38: Anaesthesia | K38: Faculty of Law | L38: EA | M38: 10.EA.A01 | N38: 10.EA.A01 | O38: =$G$34 -> Humanities | S38: LL03/RF03 | T38: 85362 | U38: 85362 | V38: 87496.05 | W38: 87496.05 | X38: 92308 | Y38: 96058 | Z38: 98699.595 | AA38: 101413.8339 | AB38: 104202.7143 | AC38: 107068.2889 | AD38: 110012.6669 | AE38: 113038.0152 | AI38: PF02 | BC38: 49 | BD38: 90325 | BE38: 43.74760475 | BF38: 54 | BG38: 103680 | BH38: 50.47675281 | BP38: PL7 49 | BQ38: PL8 54
B39: SH | C39: Sam Heenan | G39: Bioengineering | K39: Food Science | L39: IC | M39: 10.IC.A06 | N39: 10.IC.A06 | O39: =$G$32 -> Sciences | S39: LL04/RF04 | T39: 87842.5 | U39: 87842.5 | V39: 90038.5625 | W39: 90038.5625 | X39: 94890 | Y39: 98640 | Z39: 101352.6 | AA39: 104139.7965 | AB39: 107003.6409 | AC39: 109946.241 | AD39: 112969.7627 | AE39: 116076.4311 | AI39: PF03 | BF39: 55 | BG39: 104073 | BH39: 50.67448044 | BQ39: PL8 55
B40: TR | C40: Tomas Ribeiro | G40: Brain Health Res Cnt | K40: Geography | L40: AT | M40: 10.AT.A04 | N40: 10.AT.C01 | O40: =$G$34 -> Humanities | S40: LL05/RF05 | T40: 90319.925 | U40: 90319.925 | V40: 92577.92312 | W40: 92577.92312 | X40: 97467 | Y40: 101217 | Z40: 104000.4675 | AA40: 106860.4804 | AB40: 109799.1436 | AC40: 112818.62 | AD40: 115921.1321 | AE40: 119108.9632 | AI40: PF04 | BF40: 56 | BG40: 104466 | BH40: 50.87252325 | BQ40: PL8 56
B41: VB | C41: Val Berry | G41: BRNZ | K41: Geology | L41: FK | M41: 10.FK.A01 | N41: 10.FK.A01 | O41: =$G$32 -> Sciences | S41: LL06/RF06 | T41: 92806.575 | U41: 92806.575 | V41: 95126.73937 | W41: 95126.73937 | X41: 100054 | Y41: 103804 | Z41: 106658.61 | AA41: 109591.7218 | AB41: 112605.4941 | AC41: 115702.1452 | AD41: 118883.9542 | AE41: 122153.2629 | AI41: PF05 | BF41: 57 | BG41: 104858 | BH41: 51.07004075 | BQ41: PL8 57
G42: CCERG | K42: Health Sciences Divisional Office | L42: OZ | M42: 10.OZ.C01 | N42: 10.OZ.C01 | O42: =$G$31 -> Health Sciences | S42: LL07/RF07 | T42: 96166.525 | U42: 96166.525 | V42: 98570.68812 | W42: 98570.68812 | X42: 103550 | Y42: 107300 | Z42: 110250.75 | AA42: 113282.6456 | AB42: 116397.9184 | AC42: 119598.8611 | AD42: 122887.8298 | AE42: 126267.2451 | AI42: PF06 | BF42: 58 | BG42: 105250 | BH42: 51.26766331 | BQ42: PL8 58
G43: Centre Entrepreneur | K43: Health Sciences Pacific | L43: OS | M43: 10.OS.C01 | N43: 10.OS.C01 | O43: =$G$31 -> Health Sciences | R43: Senior Lecturers (SL)/ Senior Research Fellows (SRF) | S43: SL01 | T43: 101149.05 | U43: 101149.05 | V43: 103677.7762 | W43: 103677.7762 | X43: 108732 | Y43: =X43+3750 -> 112482 | Z43: =Y43*AnnualSalaryIncrease -> 115575.255 | AA43: 118753.5745 | AB43: 122019.2978 | AC43: 125374.8285 | AD43: 128822.6363 | AE43: 132365.2588 | AI43: PF07 | BF43: 59 | BG43: 105645 | BH43: 51.4663365 | BQ43: PL8 59
G44: Centre for Int Hlth | K44: Higher Education Development Centre | L44: TF | M44: 10.TF.A01 | N44: 10.TF.A01 | O44: =$G$35 -> Academic | S44: SL02 | T44: 103228.775 | U44: 103228.775 | V44: 105809.4944 | W44: 105809.4944 | X44: 110896 | Y44: =X44+3750 -> 114646 | Z44: 117798.765 | AA44: 121038.231 | AB44: 124366.7824 | AC44: 127786.8689 | AD44: 131301.0078 | AE44: 134911.7855 | AI44: PF08 | BF44: 60 | BG44: 106035 | BH44: 51.66311856 | BQ44: PL8 60
G45: Chair Viral Path | K45: History | L45: BA | M45: 10.BA.A01 | N45: 10.BA.A01 | O45: =$G$34 -> Humanities | S45: SL03 | T45: 106510.825 | U45: 106510.825 | V45: 109173.5956 | W45: 109173.5956 | X45: 114312 | Y45: 118062 | Z45: 121308.705 | AA45: 124644.6944 | AB45: 128072.4235 | AC45: 131594.4151 | AD45: 135213.2615 | AE45: 138931.6262 | AI45: PF09 | BF45: 61 | BG45: 106427 | BH45: 51.86084619 | BQ45: PL8 61
A46: Type of Activity | G46: CKRG | K46: Human Nutrition | L46: FM | M46: 10.FM.C01 | N46: 10.FM.C01 | O46: =$G$32 -> Sciences | S46: SL04 | T46: 109793.9 | U46: 109793.9 | V46: 112538.7475 | W46: 112538.7475 | X46: 117727 | Y46: 121477 | Z46: 124817.6175 | AA46: 128250.102 | AB46: 131776.9798 | AC46: 135400.8467 | AD46: 139124.37 | AE46: 142950.2902 | AI46: PPF1 01
G47: Clothing & Textile | K47: Humanities Divisional Office | L47: AC | O47: =$G$34 -> Humanities | S47: SL05 | T47: 113073.9 | U47: 113073.9 | V47: 115900.7475 | W47: 115900.7475 | X47: 121140 | Y47: 124890 | Z47: 128324.475 | AA47: 131853.3981 | AB47: 135479.3665 | AC47: 139205.0491 | AD47: 143033.1879 | AE47: 146966.6006 | AI47: PPF1 02
G48: Core Department | K48: Information Science | L48: DL | M48: 10.DL.A01 | N48: 10.DL.A01 | O48: =$G$33 -> Commerce | S48: SL06 | T48: 116356.975 | U48: 116356.975 | V48: 119265.8994 | W48: 119265.8994 | X48: 124555 | Y48: 128305 | Z48: 131833.3875 | AA48: 135458.8057 | AB48: 139183.9228 | AC48: 143011.4807 | AD48: 146944.2964 | AE48: 150985.2646 | AI48: PPF1 03
G49: CPSS | K49: Indigenous Science | L49: FI | M49: 10.FI.A01 | N49: 10.FI.C01 | O49: Sciences | S49: SLR01 | T49: 119086.55 | U49: 119086.55 | V49: 122063.7137 | W49: 122063.7137 | X49: 127395 | Y49: 131145 | Z49: 134751.4875 | AA49: 138457.1534 | AB49: 142264.7251 | AC49: 146177.0051 | AD49: 150196.8727 | AE49: 154327.2867 | AI49: PPF1 04
A50: Status | G50: CRCF | K50: Interprofessional Education Centre | L50: OO | M50: OO.C01 | N50: OO.C01 | O50: Health Sciences | S50: SLR02 | T50: 122405.5 | U50: 122405.5 | V50: 125465.6375 | W50: 125465.6375 | X50: 130848 | Y50: 134598 | Z50: 138299.445 | AA50: 142102.6797 | AB50: 146010.5034 | AC50: 150025.7923 | AD50: 154151.5016 | AE50: 158390.6679 | AI50: PPF1 05
A51: Direct | G51: CSAFE | K51: Kōhatu—Centre for Hauora Māori | L51: OV | M51: 10.OV.A03 | N51: 10.OV.A03 | O51: =$G$31 -> Health Sciences | S51: SLR03 | T51: 125850.525 | U51: 125850.525 | V51: 128996.7881 | W51: 128996.7881 | X51: 134432 | Y51: 138182 | Z51: 141982.005 | AA51: 145886.5101 | AB51: 149898.3892 | AC51: 154020.5949 | AD51: 158256.1612 | AE51: 162608.2057 | AI51: PPF2 01
B52: Pure Basic Research | G52: Design Studies | K52: Languages and Cultures | L52: AF | M52: 10.AF.A07 | N52: 10.AF.A07 | O52: =$G$34 -> Humanities | R52: Associate Professors (AP)/Research Associate Professors | S52: AP01 | T52: 131127.225 | U52: 131127.225 | V52: 134405.4056 | W52: 134405.4056 | X52: 139921 | Y52: =X52+3750 -> 143671 | Z52: 147621.9525 | AA52: 151681.5562 | AB52: 155852.799 | AC52: 160138.751 | AD52: 164542.5666 | AE52: 169067.4872 | AI52: PPF2 02
B53: Strategic Basic Research | G53: Diabetes | K53: Management | L53: DG | M53: 10.DG.A01 | N53: 10.DG.A01 | O53: =$G$33 -> Commerce | S53: AP02 | T53: 134407.225 | U53: 134407.225 | V53: 137767.4056 | W53: 137767.4056 | X53: 143334 | Y53: =X53+3750 -> 147084 | Z53: =Y53*AnnualSalaryIncrease -> 151128.81 | AA53: 155284.8523 | AB53: 159555.1857 | AC53: 163942.9533 | AD53: 168451.3845 | AE53: 173083.7976 | AI53: PPF2 03
B54: Applied Research | G54: DMHDRU | K54: Marine Science | L54: FS | M54: 10.FS.A01 | N54: 10.FS.C01 | O54: =$G$32 -> Sciences | S54: AP03 | T54: 137690.3 | U54: 137690.3 | V54: 141132.5575 | W54: 141132.5575 | X54: 146750 | Y54: 150500 | Z54: 154638.75 | AA54: 158891.3156 | AB54: 163260.8268 | AC54: 167750.4995 | AD54: 172363.6383 | AE54: 177103.6383 | AI54: PPF2 04
B55: Experimental Development | G55: Dodd-Walls Ctr CoRE | K55: Marine Science Boats and NZMSC | L55: FT | M55: 10.FT.K05 | N55: 10.FT.A20 | O55: Sciences | S55: AP04 | T55: 140972.35 | U55: 140972.35 | V55: 144496.6587 | W55: 144496.6587 | X55: 150164 | Y55: 153914 | Z55: 158146.635 | AA55: 162495.6675 | AB55: 166964.2983 | AC55: 171555.8165 | AD55: 176273.6015 | AE55: 181121.1255 | AI55: PPF2 05
A56: Indirect | B56: Services Non-PBRF | G56: Educational Support Services | K56: Marketing | L56: DI | M56: 10.DI.A01 | N56: 10.DI.A01 | O56: =$G$33 -> Commerce | S56: AP05 | T56: 144256.45 | U56: 144256.45 | V56: 147862.8612 | W56: 147862.8612 | X56: 153581 | Y56: 157331 | Z56: 161657.6025 | AA56: 166103.1866 | AB56: 170671.0242 | AC56: 175364.4774 | AD56: 180187.0005 | AE56: 185142.143 | AI56: PPF3 01
G57: ELPD Centre | K57: Mathematics | L57: FO | M57: 10.FO.C54 | N57: 10.FO.A01 | O57: =$G$32 -> Sciences | R57: Professors (P)/ Research Professors (RP) | S57: PF01 | T57: 150524.325 | U57: 150524.325 | V57: 154287.4331 | W57: 154287.4331 | X57: 160101 | Y57: =X57+3750 -> 163851 | Z57: 168356.9025 | AA57: 172986.7173 | AB57: 177743.852 | AC57: 182631.808 | AD57: 187654.1827 | AE57: 192814.6727 | AI57: PPF3 02
A58: student | G58: Gastro | K58: Media Film & Communications | L58: AI | M58: 10.AI.A01 | N58: 10.AI.A02 | O58: =$G$34 -> Humanities | S58: PF02 | T58: 154506.45 | U58: 154506.45 | V58: 158369.1112 | W58: 158369.1112 | X58: 164245 | Y58: =X58+3750 -> 167995 | Z58: 172614.8625 | AA58: 177361.7712 | AB58: 182239.2199 | AC58: 187250.7985 | AD58: 192400.1954 | AE58: 197691.2008 | AI58: PPF3 03
B59: 2111 - Direct Academic | C59: 1 | G59: Genomics Aotearoa | K59: Microbiology & Immunology | L59: LI | M59: 10.LI.C01 | N59: 10.LI.C01 | O59: =$G$31 -> Health Sciences | S59: PF03 | T59: 158489.6 | U59: 158489.6 | V59: 162451.84 | W59: 162451.84 | X59: 168389 | Y59: 172139 | Z59: 176872.8225 | AA59: 181736.8251 | AB59: 186734.5878 | AC59: 191869.789 | AD59: 197146.2082 | AE59: 202567.7289 | AI59: PPF3 04
B60: 2121 - Casual Academic | C60: 1.5 | G60: Gerontol | K60: National Centre for Peace and Conflict Studies | L60: AP | M60: 10.AP.C01 | N60: 10.AP.C01 | O60: =$G$34 -> Humanities | S60: PF04 | T60: 162471.725 | U60: 162471.725 | V60: 166533.5181 | W60: 166533.5181 | X60: 172532 | Y60: 176282 | Z60: 181129.755 | AA60: 186110.8233 | AB60: 191228.8709 | AC60: 196487.6649 | AD60: 201891.0756 | AE60: 207443.0802 | AI60: PPF4 01
B61: 2211 - Direct Professional | C61: 2 | G61: HAU | K61: Ngai Tahu Maori Health Research Unit | L61: OM | M61: OM.C01 | N61: OM.C01 | O61: Health Sciences | S61: PF05 | T61: 166454.875 | U61: 166454.875 | V61: 170616.2469 | W61: 170616.2469 | X61: 176675 | Y61: 180425 | Z61: 185386.6875 | AA61: 190484.8214 | AB61: 195723.154 | AC61: 201105.5407 | AD61: 206635.9431 | AE61: 212318.4315 | AI61: PPF4 02
B62: 2221 - Casual Professional | C62: 3 | G62: Injury Prevention | K62: Otago Medical School | L62: OY | N62: 10.OY.C01 | O62: =$G$31 -> Health Sciences | S62: PF06 | T62: 171236.5 | U62: 171236.5 | V62: 175517.4125 | W62: 175517.4125 | X62: 181650 | Y62: 185400 | Z62: 190498.5 | AA62: 195737.2088 | AB62: 201119.982 | AC62: 206650.7815 | AD62: 212333.678 | AE62: 218172.8541 | AI62: PPF4 03
A63: Equip type | G63: LAPBRF | K63: OU College of Education | L63: BP | M63: 10.BP.A12 | N63: 10.BP.C01 | O63: =$G$34 -> Humanities | S63: PF07 | T63: 175225.8 | U63: 175225.8 | V63: 179606.445 | W63: 179606.445 | X63: 185800 | Y63: 189550 | Z63: =Y63*AnnualSalaryIncrease -> 194762.625 | AA63: 200118.5972 | AB63: 205621.8586 | AC63: 211276.4597 | AD63: 217086.5624 | AE63: 223056.4428 | AI63: PPF4 04
B64: 7611 - Indirect Academic | C64: 4 | G64: Legal Issues Centre | K64: Office of Maori Development | L64: VE | M64: 10.VE.C01 | N64: VE.C01 | O64: Vice Chancellor's Office | S64: PF08 | T64: 179199.725 | U64: 179199.725 | V64: 183679.7181 | W64: 183679.7181 | X64: 189935 | Y64: 193685 | Z64: 199011.3375 | AA64: 204484.1493 | AB64: 210107.4634 | AC64: 215885.4186 | AD64: 221822.2676 | AE64: 227922.38 | AI64: PPF4 05
B65: 7612 - Indirect General | C65: 5 | G65: NAC | K65: Pharmacology & Toxicology | L65: LM | M65: 10.LM.A01 | N65: 10.LM.A01 | O65: =$G$31 -> Health Sciences | S65: PF09 | T65: 182920.475 | U65: 182920.475 | V65: 187493.4869 | W65: 187493.4869 | X65: 193805 | Y65: 197555 | Z65: 202987.7625 | AA65: 208569.926 | AB65: 214305.5989 | AC65: 220199.0029 | AD65: 226254.4755 | AE65: 232476.4736 | AI65: PPF4 06
G66: Nat Poisons Centre | K66: Pharmacovigillance | L66: OQ | M66: 10.OQ.C01 | N66: 10.OQ.C01 | O66: =$G$31 -> Health Sciences | R66: School and Early Childhood Education Support Services Staff | S66: ADC01 | T66: =AF66*AnnualSalaryIncrease -> 69036.6975 | U66: =T66*AnnualSalaryIncrease -> 70935.20668 | V66: 72885.92486 | W66: 70674.22196 | X66: 73440 | Y66: =X66+3750 -> 77190 | Z66: 79312.725 | AA66: 81493.82494 | AB66: 83734.90512 | AC66: 86037.61501 | AD66: 88403.64943 | AE66: 90834.74979 | AF66: 67189 | AI66: TF01
G67: Neuro | K67: Pharmacy | L67: LZ | M67: 10.LZ.A02 | N67: 10.LZ.C07 | O67: =$G$31 -> Health Sciences | S67: ADC02 | T67: 72107.895 | U67: 74090.86211 | V67: 76128.36082 | W67: 73818.26711 | X67: 76708 | Y67: =X67+3750 -> 80458 | Z67: 82670.595 | AA67: 84944.03636 | AB67: 87279.99736 | AC67: 89680.19729 | AD67: 92146.40272 | AE67: 94680.42879 | AF67: 70178 | AI67: TF02
B68: PhD | G68: Ngai Tahu Maori Hlth | K68: Philosophy | L68: BM | M68: 10.BM.A01 | N68: 10.BM.A01 | O68: =$G$34 -> Humanities | S68: ADC03 | T68: 75977.46 | U68: 78066.84015 | V68: 80213.67825 | W68: 77779.61673 | X68: 80824 | Y68: 84574 | Z68: 86899.785 | AA68: 89289.52909 | AB68: 91744.99114 | AC68: 94267.97839 | AD68: 96860.3478 | AE68: 99524.00736 | AF68: 73944 | AI68: TF03
B69: Masters | G69: NSCAW Research Centr | K69: Physics | L69: FP | M69: 10.FP.A50 | N69: 10.FP.A50 | O69: =$G$32 -> Sciences | S69: ADC04 | T69: 79847.025 | U69: 82042.81819 | V69: 84298.99569 | W69: 81740.96636 | X69: 84940 | Y69: 88690 | Z69: 91128.975 | AA69: 93635.02181 | AB69: 96209.98491 | AC69: 98855.7595 | AD69: 101574.2929 | AE69: 104367.5859 | AF69: 77710 | AI69: TF04
B70: Hons | G70: NSCHL Research Centr | K70: Physiology | L70: LP | M70: 10.LP.A01 | N70: 10.LP.C01 | O70: =$G$31 -> Health Sciences | S70: ADC05 | T70: 83721.7275 | U70: 86024.07501 | V70: 88389.73707 | W70: 85707.57534 | X70: 89062 | Y70: 92812 | Z70: 95364.33 | AA70: 97986.84908 | AB70: 100681.4874 | AC70: 103450.2283 | AD70: 106295.1096 | AE70: 109218.2251 | AF70: 81481 | AI70: TF05
B71: Summer | G71: NZPhvC | K71: Political Studies | L71: BO | M71: 10.BO.A01 | O71: =$G$34 -> Humanities | S71: ADC06 | T71: 87593.3475 | U71: 90002.16456 | V71: 92477.22408 | W71: 89671.02871 | X71: 93181 | Y71: 96931 | Z71: 99596.6025 | AA71: 102335.5091 | AB71: 105149.7356 | AC71: 108041.3533 | AD71: 111012.4905 | AE71: 114065.334 | AF71: 85249 | AI71: TF06
G72: Orthopaedic Surgery | K72: Psychology | L72: FU | M72: 10.FU.A01 | N72: 10.FU.C01 | O72: =$G$32 -> Sciences | S72: ADC07 | T72: 89916.525 | U72: 92389.22944 | V72: 94929.93325 | W72: 92049.31111 | X72: 95652 | Y72: 99402 | Z72: 102135.555 | AA72: 104944.2828 | AB72: 107830.2505 | AC72: 110795.5824 | AD72: 113842.4609 | AE72: 116973.1286 | AF72: 87510 | AI72: TF07
A73: Start Dates | B73: 8846 | C73: Equipment | G73: Preventive and Socia | K73: Religion | L73: CB | M73: 10.CB.A01 | N73: 10.CB.A01 | O73: =$G$34 -> Humanities | S73: ADC08 | T73: 92081.4675 | U73: 94613.70786 | V73: 97215.58482 | W73: 94265.60523 | X73: 97955 | Y73: 101705 | Z73: 104501.8875 | AA73: 107375.6894 | AB73: 110328.5209 | AC73: 113362.5552 | AD73: 116480.0255 | AE73: 119683.2262 | AF73: 89617 | AI73: TF08
B74: 8848 | C74: Computers | G74: Product Develop | K74: Research Divisional Office | L74: YJ | M74: 10.YJ.C01 | N74: 10.YJ.C01 | O74: =$G$36 -> Research | S74: ADC09 | T74: 94115.9175 | U74: 96704.10523 | V74: 99363.46813 | W74: 96348.31162 | X74: 100119 | Y74: 103869 | Z74: 106725.3975 | AA74: 109660.3459 | AB74: 112676.0054 | AC74: 115774.5956 | AD74: 118958.397 | AE74: 122229.7529 | AF74: 91597 | AI74: TF09
B75: 8851 | C75: Furniture | G75: Psych Med | K75: Research Infrastructure Centre | L75: OX | M75: 10.OX.C02 | N75: 10.OX.C02 | O75: Health Sciences | S75: ADC10 | T75: 96149.34 | U75: 98793.44685 | V75: 101510.2666 | W75: 98429.96613 | X75: 102282 | Y75: 106032 | Z75: 108947.88 | AA75: 111943.9467 | AB75: 115022.4052 | AC75: 118185.5214 | AD75: 121435.6232 | AE75: 124775.1029 | AF75: 93576 | AI75: TEF1 01
G76: Radiology | K76: School of Arts | L76: BB | M76: 10.BB.A01 | N76: 10.BB.A01 | O76: =$G$34 -> Humanities | S76: ADC11 | T76: 98047.1325 | U76: 100743.4286 | V76: 103513.8729 | W76: 100372.7736 | X76: 104302 | Y76: 108052 | Z76: 111023.43 | AA76: 114076.5743 | AB76: 117213.6801 | AC76: 120437.0563 | AD76: 123749.0754 | AE76: 127152.1749 | AF76: 95423 | AI76: TEF1 02
B77: 5141 | G77: Respirat | K77: School of Performing Arts | L77: BI | M77: 10.BI.A01 | N77: 10.BI.A01 | O77: =$G$34 -> Humanities | S77: ADC12 | T77: 99539.0625 | U77: 102276.3867 | V77: 105088.9874 | W77: 101900.0916 | X77: 105888 | Y77: 109638 | Z77: 112653.045 | AA77: 115751.0037 | AB77: 118934.1563 | AC77: 122204.8456 | AD77: 125565.4789 | AE77: 129018.5296 | AF77: 96875 | AI77: TEF1 03
B78: 5151 | G78: Rheumatol | K78: School of Physical Education Sport & Exercise Sciences | L78: HA | M78: 10.HA.A01 | N78: 10.HA.A01 | O78: =$G$32 -> Sciences | S78: ADCSAC01 | T78: 100894.335 | U78: 103668.9292 | V78: 106519.8248 | W78: 103287.5106 | X78: 107330 | Y78: 111080 | Z78: 114134.7 | AA78: 117273.4043 | AB78: 120498.4229 | AC78: 123812.1295 | AD78: 127216.9631 | AE78: 130715.4295 | AF78: 98194 | AI78: TEF1 04
B79: 5171 | G79: Social& Behaviourial | K79: School of Physiotherapy | L79: LX | M79: 10.LX.A01 | N79: 10.LX.A01 | O79: =$G$31 -> Health Sciences | S79: ADCSAC02 | T79: 102250.635 | U79: 105062.5275 | V79: 107951.747 | W79: 104675.9816 | X79: 108773 | Y79: 112523 | Z79: 115617.3825 | AA79: 118796.8605 | AB79: 122063.7742 | AC79: 125420.528 | AD79: 128869.5925 | AE79: 132413.5063 | AF79: 99514 | AI79: TEF1 05
G80: Southern Pacific Arc | K80: School of Social Sciences | L80: AJ | M80: 10.AJ.A01 | N80: 10.AJ.A01 | O80: =$G$34 -> Humanities | R80: Teaching Fellows (TF) | S80: TF01 | T80: 60870.65 | U80: 60870.65 | V80: 62392.41625 | W80: 62392.41625 | X80: 66942 | Y80: =X80+3750 -> 70692 | Z80: =Y80*AnnualSalaryIncrease -> 72636.03 | AA80: 74633.52082 | AB80: 76685.94265 | AC80: 78794.80607 | AD80: 80961.66324 | AE80: 83188.10898 | AI80: TEF1 06
G81: Surgery UoC | K81: Sciences Divisional Office | L81: FA | O81: =$G$32 -> Sciences | S81: TF02 | T81: 63287.6 | U81: 63287.6 | V81: 64869.79 | W81: 64869.79 | X81: 69740 | Y81: =X81+3750 -> 73490 | Z81: 75510.975 | AA81: 77587.52681 | AB81: 79721.1838 | AC81: 81913.51635 | AD81: 84166.13805 | AE81: 86480.70685 | AI81: TEF1 07
G82: Theatre Studies | K82: Social and Community Work | L82: BR | M82: 10.BR.A05 | N82: 10.BR.C01 | O82: =$G$34 -> Humanities | S82: TF03 | T82: 66103.275 | U82: 66103.275 | V82: 67755.85687 | W82: 67755.85687 | X82: 72538 | Y82: 76288 | Z82: 78385.92 | AA82: 80541.5328 | AB82: 82756.42495 | AC82: 85032.22664 | AD82: 87370.61287 | AE82: 89773.30472 | AI82: TEF2 01
B83: 2017-07-01 | G83: US Federally Funded | K83: Social Anthropology | L83: AE | M83: 10.AE.A03 | N83: 10.AE.A12 | O83: =$G$34 -> Humanities | S83: TF04 | T83: 68515.1 | U83: 68515.1 | V83: 70227.9775 | W83: 70227.9775 | X83: 75345 | Y83: 79095 | Z83: 81270.1125 | AA83: 83505.04059 | AB83: 85801.42921 | AC83: 88160.96851 | AD83: 90585.39515 | AE83: 93076.49351 | AI83: TEF2 02
B84: 2018-07-01 | K84: Sociology, Gender Studies and Criminology | L84: BR | M84: 10.BR.A01 | N84: 10.BR.C01 | O84: =$G$34 -> Humanities | S84: TF05 | T84: 71856.6 | U84: 71856.6 | V84: 73653.015 | W84: 73653.015 | X84: 78258 | Y84: 82008 | Z84: 84263.22 | AA84: 86580.45855 | AB84: 88961.42116 | AC84: 91407.86024 | AD84: 93921.5764 | AE84: 96504.41975 | AI84: TEF2 03
B85: 2019-07-01 | K85: ST | L85: ST | M85: 10.ST.C01 | N85: 10.ST.C01 | O85: Academic | S85: TF06 | T85: 75235 | U85: 75235 | V85: 77115.875 | W85: 77115.875 | X85: 81773 | Y85: 85523 | Z85: 87874.8825 | AA85: 90291.44177 | AB85: 92774.45642 | AC85: 95325.75397 | AD85: 97947.2122 | AE85: 100640.7605 | AI85: TEF2 04
B86: 2020-07-01 | K86: Statistics | L86: FB | M86: 10.FB.C54 | N86: 10.FO.A01 | O86: =$G$32 -> Sciences | S86: TF07 | T86: 78611.35 | U86: 78611.35 | V86: 80576.63375 | W86: 80576.63375 | X86: 85286 | Y86: 89036 | Z86: 91484.49 | AA86: 94000.31348 | AB86: 96585.3221 | AC86: 99241.41845 | AD86: 101970.5575 | AE86: 104774.7478 | AI86: TEF2 05
B87: 2021-07-01 | K87: Surveying | L87: FW | M87: Various | N87: 10.FW.C01 | O87: =$G$32 -> Sciences | S87: TF08 | T87: 81989.75 | U87: 81989.75 | V87: 84039.49375 | W87: 84039.49375 | X87: 87152 | Y87: 90902 | Z87: 93401.805 | AA87: 95970.35464 | AB87: 98609.53939 | AC87: 101321.3017 | AD87: 104107.6375 | AE87: 106970.5976 | AI87: TEF2 06
A88: Disections Codes | B88: 2022-07-01 | G88: Unspent Funds | K88: Te Tumu: School of Maori, Pacific & Indigenous Studies | L88: BG | M88: 10.BG.A01 | N88: 10.BG.A01 | O88: =$G$34 -> Humanities | S88: TF09 | T88: 85362 | U88: 85362 | V88: 87496.05 | W88: 87496.05 | X88: 89731 | Y88: 93481 | Z88: 96051.7275 | AA88: 98693.15001 | AB88: 101407.2116 | AC88: 104195.91 | AD88: 107061.2975 | AE88: 110005.4832 | AG88: LLM01/LLD01 | AI88: ADC01
B89: 2023-07-01 | K89: Theology | L89: CA | M89: 10.CA.A01 | N89: 10.CA.A01 | O89: =$G$34 -> Humanities | R89: Teacher Education Fellows (College of Education) | S89: TEF1 01 | T89: 80406.125 | U89: 80406.125 | V89: 82416.27812 | W89: 82416.27812 | X89: 87152 | Y89: =X89+3750 -> 90902 | Z89: 93401.805 | AA89: 95970.35464 | AB89: 98609.53939 | AC89: 101321.3017 | AD89: 104107.6375 | AE89: 106970.5976 | AG89: LLM02/LLD02 | AI89: ADC02
A90: 2311 | B90: 2024-07-01 | F90: RESOFF | G90: <- Check with Research Office | K90: Tourism Department | L90: DT | M90: 10.DT.A03 | N90: 10.DT.A03 | O90: =$G$33 -> Commerce | S90: TEF1 02 | T90: 82884.575 | U90: 82884.575 | V90: 84956.68937 | W90: 84956.68937 | X90: 89731 | Y90: =X90+3750 -> 93481 | Z90: =Y90*AnnualSalaryIncrease -> 96051.7275 | AA90: 98693.15001 | AB90: 101407.2116 | AC90: 104195.91 | AD90: 107061.2975 | AE90: 110005.4832 | AG90: LLM03/LLD03 | AI90: ADC03
A91: 2341 | F91: >$100 | G91: <- Return unspent funds >= $100 | K91: UOC - Centre PG Nursing Studies | L91: PN | M91: 10.PN.A01 | N91: 10.PN.C01 | O91: =$G$31 -> Health Sciences | S91: TEF1 03 | T91: 85360.975 | U91: 85360.975 | V91: 87494.99937 | W91: 87494.99937 | X91: 92308 | Y91: 96058 | Z91: 98699.595 | AA91: 101413.8339 | AB91: 104202.7143 | AC91: 107068.2889 | AD91: 110012.6669 | AE91: 113038.0152 | AG91: LLM04/LLD04 | AI91: ADC04
A92: 2461 | F92: >$10K | G92: <- Return unspent funds >= $10K | K92: UOC - Deans Dept | L92: PI | M92: 10.PI.A01 | N92: 10.PI.C01 | O92: Health Sciences | S92: TEF1 04 | T92: 87842.5 | U92: 87842.5 | V92: 90038.5625 | W92: 90038.5625 | X92: 94890 | Y92: 98640 | Z92: 101352.6 | AA92: 104139.7965 | AB92: 107003.6409 | AC92: 109946.241 | AD92: 112969.7627 | AE92: 116076.4311 | AG92: LLM05/LLD05 | AI92: ADC05
A93: 2471 | B93: Sub-Contractor - Academic Staff | F93: NA | G93: <- Not Applicable | K93: UOC - Dept of Primary Care and Clinical Simulation | L93: PG | M93: 10.PG.A01 | N93: 10.PG.C01 | O93: Health Sciences | S93: TEF1 05 | T93: 90319.925 | U93: 90319.925 | V93: 92577.92312 | W93: 92577.92312 | X93: 97467 | Y93: 101217 | Z93: 104000.4675 | AA93: 106860.4804 | AB93: 109799.1436 | AC93: 112818.62 | AD93: 115921.1321 | AE93: 119108.9632 | AG93: LLM06/LLD06 | AI93: ADC06
A94: 2541 | B94: Sub-Contractor - General Staff | F94: NIL | G94: <- Should be Nil. Invoice on Actuals | K94: UOC - Medicine | L94: PM | M94: 10.PM.A01 | N94: 10.PM.C01 | O94: Health Sciences | S94: TEF1 06 | T94: 92805.55 | U94: 92805.55 | V94: 95125.68875 | W94: 95125.68875 | X94: 100053 | Y94: 103803 | Z94: 106657.5825 | AA94: 109590.666 | AB94: 112604.4093 | AC94: 115701.0306 | AD94: 118882.8089 | AE94: 122152.0862 | AG94: LLM07/LLD07 | AI94: ADC07
A95: 3111 | B95: Membership Fees | F95: RETAIN | G95: <- No funds to return | K95: UOC - Obstetrics & Gynaecology | L95: PP | M95: 10.PP.A01 | N95: 10.PP.C01 | O95: Health Sciences | S95: TEF1 07 | T95: 96166.525 | U95: 96166.525 | V95: 98570.68812 | W95: 98570.68812 | X95: 103550 | Y95: 107300 | Z95: 110250.75 | AA95: 113282.6456 | AB95: 116397.9184 | AC95: 119598.8611 | AD95: 122887.8298 | AE95: 126267.2451 | AG95: SLM01/SLD01 | AI95: ADC08
A96: 3115 | B96: Relocation Expenses | F96: RETURN | G96: <- Return any unspent funds | K96: UOC - Maori Indigenous Health Institute (MIHI) | L96: PS | M96: 10.PS.A01 | N96: 10.PS.C01 | O96: Health Sciences | S96: TEF2 01 | T96: 101149.05 | U96: 101149.05 | V96: 103677.7762 | W96: 103677.7762 | X96: 108733 | Y96: 112483 | Z96: 115576.2825 | AA96: 118754.6303 | AB96: 122020.3826 | AC96: 125375.9431 | AD96: 128823.7816 | AE96: 132366.4356 | AG96: SLM02/SLD02 | AI96: ADC09
A97: 3121 | B97: Conference Registration Fees | K97: UOC - Paediatrics | L97: PX | M97: 10.PX.A01 | N97: 10.PX.C01 | O97: Health Sciences | S97: TEF2 02 | T97: 103228.775 | U97: 103228.775 | V97: 105809.4944 | W97: 105809.4944 | X97: 110896 | Y97: 114646 | Z97: 117798.765 | AA97: 121038.231 | AB97: 124366.7824 | AC97: 127786.8689 | AD97: 131301.0078 | AE97: 134911.7855 | AG97: SLM03/SLD03 | AI97: ADC10
A98: 3125 | B98: Printing | K98: UOC - Pathology & Biomedical Science | L98: PZ | M98: 10.PZ.A01 | N98: 10.PZ.C01 | O98: Health Sciences | S98: TEF2 03 | T98: 106510.825 | U98: 106510.825 | V98: 109173.5956 | W98: 109173.5956 | X98: 114312 | Y98: 118062 | Z98: 121308.705 | AA98: 124644.6944 | AB98: 128072.4235 | AC98: 131594.4151 | AD98: 135213.2615 | AE98: 138931.6262 | AG98: SLM04/SLD04 | AI98: ADC11
A99: 3135 | B99: Photocopier / Printer Supplies | K99: UOC - Population Health | L99: PH | M99: 10.PH.A01 | N99: 10.PH.C01 | O99: Health Sciences | S99: TEF2 04 | T99: 109793.9 | U99: 109793.9 | V99: 112538.7475 | W99: 112538.7475 | X99: 117727 | Y99: 121477 | Z99: 124817.6175 | AA99: 128250.102 | AB99: 131776.9798 | AC99: 135400.8467 | AD99: 139124.37 | AE99: 142950.2902 | AG99: SLM05/SLD05 | AI99: ADC12
A100: 3137 | B100: Postage | F100: Full | K100: UOC - Psychological Medicine | L100: QF | M100: 10.QF.A01 | N100: 10.QF.C01 | O100: Health Sciences | S100: TEF2 05 | T100: 113073.9 | U100: 113073.9 | V100: 115900.7475 | W100: 115900.7475 | X100: 121140 | Y100: 124890 | Z100: =Y100*AnnualSalaryIncrease -> 128324.475 | AA100: 131853.3981 | AB100: 135479.3665 | AC100: 139205.0491 | AD100: 143033.1879 | AE100: 146966.6006 | AG100: SLM06/SLD06 | AI100: ADCSAC01
A101: 3181 | B101: Courier & Freight | F101: None | K101: UOC - Surgery | L101: QN | M101: 10.PI.C16 | N101: 10.PI.C20 | O101: Health Sciences | S101: TEF2 06 | T101: 116356.975 | U101: 116356.975 | V101: 119265.8994 | W101: 119265.8994 | X101: 124555 | Y101: 128305 | Z101: 131833.3875 | AA101: 135458.8057 | AB101: 139183.9228 | AC101: 143011.4807 | AD101: 146944.2964 | AE101: 150985.2646 | AG101: SLMRM01/SLRD01 | AI101: ADCSAC02
A102: 3186 | B102: Mobile Phone/Device Costs | K102: UOC - Surgery, Orthopaedics, Anaesthesia & Radiology | L102: QN | M102: 10.PI.C16 | N102: 10.PI.C20 | O102: Health Sciences | Q102: MedicalDental | R102: Teaching Fellows | S102: TFM01/TFD01 | T102: 65298.65 | U102: 65298.65 | V102: 66931.11625 | W102: 66931.11625 | X102: 71481 | Y102: =X102+3750 -> 75231 | Z102: 77299.8525 | AA102: 79425.59844 | AB102: 81609.8024 | AC102: 83854.07197 | AD102: 86160.05895 | AE102: 88529.46057 | AG102: APM01/APD01
A103: 3211 | B103: Internet Usage | F103: No | K103: UOC - Dept of Orthopaedic Surgery and Musculoskeletal Medicine | L103: QO | M103: 10.QO.A01 | N103: 10.QO.C01 | O103: Health Sciences | S103: TFM02/TFD02 | T103: 70125.375 | U103: 70125.375 | V103: 71878.50937 | W103: 71878.50937 | X103: 76457 | Y103: =X103+3750 -> 80207 | Z103: 82412.6925 | AA103: 84679.04154 | AB103: 87007.71519 | AC103: 89400.42735 | AD103: 91858.93911 | AE103: 94385.05993 | AG103: APM02/APD02
A104: 3213 | B104: Stationery | K104: UOC - Dept of Surgery | L104: QS | M104: 10.QS.A01 | N104: 10.QS.C01 | O104: Health Sciences | S104: TFM03/TFD03 | T104: 75044.35 | U104: 75044.35 | V104: 76920.45875 | W104: 76920.45875 | X104: 81574 | Y104: 85324 | Z104: 87670.41 | AA104: 90081.34628 | AB104: 92558.5833 | AC104: 95103.94434 | AD104: 97719.30281 | AE104: 100406.5836 | AG104: APM03/APD03
A105: 3216 | B105: Sundry Administration Expenses | K105: UOW - Deans Dept | L105: RU | M105: 10.RU.C15 | N105: 10.RU.C11 | O105: Health Sciences | S105: TFM04/TFD04 | T105: 79969.475 | U105: 79969.475 | V105: 81968.71187 | W105: 81968.71187 | X105: 86699 | Y105: 90449 | Z105: 92936.3475 | AA105: 95492.09706 | AB105: 98118.12973 | AC105: 100816.3783 | AD105: 103588.8287 | AE105: 106437.5215 | AG105: APM04/APD04
A106: 3217 | B106: Equipment Maintenance | K106: UOW - Medicine | L106: RZ | M106: 10.RZ.A22 | N106: 10.RZ.C01 | O106: Health Sciences | S106: TFM05/TFD05 | T106: 81487.5 | U106: 81487.5 | V106: 83524.6875 | W106: 83524.6875 | X106: 88278 | Y106: 92028 | Z106: 94558.77 | AA106: 97159.13618 | AB106: 99831.01242 | AC106: 102576.3653 | AD106: 105397.2153 | AE106: 108295.6387 | AG106: APM05/APD05
A107: 3241 | B107: Equipment Rental | K107: UOW - Obstetrics & Gynaecology& Womens health | L107: RF | M107: 10.RF.A32 | N107: 10.RF.C01 | O107: Health Sciences | S107: TFM06/TFD06 | T107: 84767.5 | U107: 84767.5 | V107: 86886.6875 | W107: 86886.6875 | X107: 91690 | Y107: 95440 | Z107: 98064.6 | AA107: 100761.3765 | AB107: 103532.3144 | AC107: 106379.453 | AD107: 109304.888 | AE107: 112310.7724 | AG107: PFM01/PFD01
A108: 3246 | B108: Equipment Purchases (Minor) | K108: UOW - Paediatrics | L108: RJ | M108: 10.RJ.A73 | N108: 10.RJ.C01 | O108: Health Sciences | S108: TFM07/TFD07 | T108: 88051.6 | U108: 88051.6 | V108: 90252.89 | W108: 90252.89 | X108: 95107 | Y108: 98857 | Z108: 101575.5675 | AA108: 104368.8956 | AB108: 107239.0402 | AC108: 110188.1138 | AD108: 113218.287 | AE108: 116331.7899 | AG108: PFM02/PFD02
A109: 3248 | B109: Health & Safety Equipment | K109: UOW - Pathology | L109: RG | M109: 10.RG.A42 | N109: 10.RG.C01 | O109: Health Sciences | R109: Professional Practice Fellows | S109: PPM1/PPD1 01 | T109: 65298.65 | U109: 65298.65 | V109: 66931.11625 | W109: 66931.11625 | X109: 71481 | Y109: =X109+3750 -> 75231 | Z109: =Y109*AnnualSalaryIncrease -> 77299.8525 | AA109: 79425.59844 | AB109: 81609.8024 | AC109: 83854.07197 | AD109: 86160.05895 | AE109: 88529.46057 | AG109: PFM03/PFD03
A110: 3255 | B110: Chemicals | K110: UOW - Primary Health Care & GP | L110: RS | M110: 10.RS.A11 | N110: 10.RS.C01 | O110: Health Sciences | S110: PPM1/PPD1 02 | T110: 70125.375 | U110: 70125.375 | V110: 71878.50937 | W110: 71878.50937 | X110: 76457 | Y110: =X110+3750 -> 80207 | Z110: 82412.6925 | AA110: 84679.04154 | AB110: 87007.71519 | AC110: 89400.42735 | AD110: 91858.93911 | AE110: 94385.05993 | AG110: PFM04/PFD04
A111: 3256 | B111: Gas Cylinders | K111: UOW - Psychological Medicine | L111: RP | M111: 10.RP.A52 | N111: 10.RP.C01 | O111: Health Sciences | S111: PPM1/PPD1 03 | T111: 75044.35 | U111: 75044.35 | V111: 76920.45875 | W111: 76920.45875 | X111: 81574 | Y111: 85324 | Z111: 87670.41 | AA111: 90081.34628 | AB111: 92558.5833 | AC111: 95103.94434 | AD111: 97719.30281 | AE111: 100406.5836 | AG111: PFM05/PFD05
A112: 3257 | B112: Samples Analysis | K112: UOW - Public Health | L112: RL | M112: 10.RL.A14 | N112: 10.RL.C01 | O112: Health Sciences | S112: PPM1/PPD1 04 | T112: 79969.475 | U112: 79969.475 | V112: 81968.71187 | W112: 81968.71187 | X112: 86699 | Y112: 90449 | Z112: 92936.3475 | AA112: 95492.09706 | AB112: 98118.12973 | AC112: 100816.3783 | AD112: 103588.8287 | AE112: 106437.5215 | AG112: PFM06/PFD06
A113: 3259 | B113: Prescription Animal Remedies | K113: UOW - Radiation Therapy | L113: RM | M113: 10.RM.A36 | N113: 10.RM.C01 | O113: Health Sciences | S113: PPM2/PPD2 01 | T113: 81487.5 | U113: 81487.5 | V113: 83524.6875 | W113: 83524.6875 | X113: 88278 | Y113: 92028 | Z113: 94558.77 | AA113: 97159.13618 | AB113: 99831.01242 | AC113: 102576.3653 | AD113: 105397.2153 | AE113: 108295.6387 | AG113: PFM07/PFD07
A114: 3261 | B114: Animals | K114: UOW - Surgery & Anaesthesia | L114: RH | M114: 10.RH.A62 | N114: 10.RH.C01 | O114: Health Sciences | S114: PPM2/PPD2 02 | T114: 84767.5 | U114: 84767.5 | V114: 86886.6875 | W114: 86886.6875 | X114: 91690 | Y114: 95440 | Z114: 98064.6 | AA114: 100761.3765 | AB114: 103532.3144 | AC114: 106379.453 | AD114: 109304.888 | AE114: 112310.7724 | AG114: PPM1/PPD1 01
A115: 3262 | B115: Animal Feed | K115: Zoology | L115: FZ | M115: Various | N115: 10.FZ.C01 | O115: =$G$32 -> Sciences | S115: PPM2/PPD2 03 | T115: 88051.6 | U115: 88051.6 | V115: 90252.89 | W115: 90252.89 | X115: 95107 | Y115: 98857 | Z115: 101575.5675 | AA115: 104368.8956 | AB115: 107239.0402 | AC115: 110188.1138 | AD115: 113218.287 | AE115: 116331.7899 | AG115: PPM1/PPD1 02
A116: 3275 | B116: Surgical Supplies | S116: PPM3/PPD3 01 | T116: 91332.625 | U116: 91332.625 | V116: 93615.94062 | W116: 93615.94062 | X116: 98520 | Y116: 102270 | Z116: 105082.425 | AA116: 107972.1917 | AB116: 110941.427 | AC116: 113992.3162 | AD116: 117127.1049 | AE116: 120348.1003 | AG116: PPM1/PPD1 03
A117: 3279 | B117: Biological Specimen Costs | S117: PPM3/PPD3 02 | T117: 94612.625 | U117: 94612.625 | V117: 96977.94062 | W117: 96977.94062 | X117: 101933 | Y117: 105683 | Z117: 108589.2825 | AA117: 111575.4878 | AB117: 114643.8137 | AC117: 117796.5186 | AD117: 121035.9228 | AE117: 124364.4107 | AG117: PPM1/PPD1 04
A118: 3281 | B118: Antibodies | S118: PPM3/PPD3 03 | T118: 97897.75 | U118: 97897.75 | V118: 100345.1937 | W118: 100345.1937 | X118: 105350 | Y118: 109100 | Z118: 112100.25 | AA118: 115183.0069 | AB118: 118350.5396 | AC118: 121605.1794 | AD118: 124949.3218 | AE118: 128385.4282 | AG118: PPM2/PPD2 01
A119: 3286 | B119: Laboratory Waste Disposal | S119: PPM3/PPD3 04 | T119: 101178.775 | U119: 101178.775 | V119: 103708.2444 | W119: 103708.2444 | X119: 108764 | Y119: 112514 | Z119: =Y119*AnnualSalaryIncrease -> 115608.135 | AA119: 118787.3587 | AB119: 122054.0111 | AC119: 125410.4964 | AD119: 128859.285 | AE119: 132402.9154 | AG119: PPM2/PPD2 02
A120: 3287 | B120: Laboratory Other | S120: PPM4/PPD4 01 | T120: 126201.075 | U120: 126201.075 | V120: 129356.1019 | W120: 129356.1019 | X120: 134796 | Y120: 138546 | Z120: 142356.015 | AA120: 146270.8054 | AB120: 150293.2526 | AC120: 154426.317 | AD120: 158673.0407 | AE120: 163036.5493 | AG120: PPM2/PPD2 03
A121: 3311 | B121: General Materials | S121: PPM4/PPD4 02 | T121: 131125.175 | U121: 131125.175 | V121: 134403.3044 | W121: 134403.3044 | X121: 139919 | Y121: 143669 | Z121: 147619.8975 | AA121: 151679.4447 | AB121: 155850.6294 | AC121: 160136.5217 | AD121: 164540.2761 | AE121: 169065.1337 | AG121: PPM3/PPD3 01
A122: 3316 | B122: Linen Purchases | S122: PPM4/PPD4 03 | T122: 137688.25 | U122: 137688.25 | V122: 141130.4562 | W122: 141130.4562 | X122: 146747 | Y122: 150497 | Z122: 154635.6675 | AA122: 158888.1484 | AB122: 163257.5724 | AC122: 167747.1557 | AD122: 172360.2025 | AE122: 177100.108 | AG122: PPM3/PPD3 02
A123: 3321 | B123: Laundry Services | S123: PPM4/PPD4 04 | T123: 144254.4 | U123: 144254.4 | V123: 147860.76 | W123: 147860.76 | X123: 153579 | Y123: 157329 | Z123: 161655.5475 | AA123: 166101.0751 | AB123: 170668.8546 | AC123: 175362.2481 | AD123: 180184.7099 | AE123: 185139.7895 | AG123: PPM3/PPD3 03
A124: 3326 | B124: Computer Maintenance | S124: PPM4/PPD4 05 | T124: 150817.475 | U124: 150817.475 | V124: 154587.9119 | W124: 154587.9119 | X124: 160407 | Y124: 164157 | Z124: 168671.3175 | AA124: 173309.7787 | AB124: 178075.7976 | AC124: 182972.8821 | AD124: 188004.6363 | AE124: 193174.7638 | AG124: PPM3/PPD3 04
A125: 3329 | B125: Software & Software Maintenance | S125: PPM4/PPD4 06 | T125: 159022.6 | U125: 159022.6 | V125: 162998.165 | W125: 162998.165 | X125: 168943 | Y125: 172693 | Z125: 177442.0575 | AA125: 182321.7141 | AB125: 187335.5612 | AC125: 192487.2892 | AD125: 197780.6896 | AE125: 203219.6586 | AG125: PPM4/PPD4 01
A126: 3331 | B126: Computer Equipment | R126: Lecturers (L) / Research Fellows (RF) / Senior Teaching Fellows (STF) | S126: LLM01/LLD01 | T126: 81487.5 | U126: 81487.5 | V126: 83524.6875 | W126: 83524.6875 | X126: 88278 | Y126: =X126+3750 -> 92028 | Z126: 94558.77 | AA126: 97159.13618 | AB126: 99831.01242 | AC126: 102576.3653 | AD126: 105397.2153 | AE126: 108295.6387 | AG126: PPM4/PPD4 02
A127: 3336 | B127: Computer Leasing Costs | S127: LLM02/LLD02 | T127: 84767.5 | U127: 84767.5 | V127: 86886.6875 | W127: 86886.6875 | X127: 91690 | Y127: =X127+3750 -> 95440 | Z127: 98064.6 | AA127: 100761.3765 | AB127: 103532.3144 | AC127: 106379.453 | AD127: 109304.888 | AE127: 112310.7724 | AG127: PPM4/PPD4 03
A128: 3351 | B128: Computing Costs Other | S128: LLM03/LLD03 | T128: 88052.625 | U128: 88052.625 | V128: 90253.94062 | W128: 90253.94062 | X128: 95108 | Y128: 98858 | Z128: 101576.595 | AA128: 104369.9514 | AB128: 107240.125 | AC128: 110189.2285 | AD128: 113219.4322 | AE128: 116332.9666 | AG128: PPM4/PPD4 04
A129: 3356 | B129: Books & Periodicals | S129: LLM04/LLD04 | T129: 91332.625 | U129: 91332.625 | V129: 93615.94062 | W129: 93615.94062 | X129: 98520 | Y129: 102270 | Z129: =Y129*AnnualSalaryIncrease -> 105082.425 | AA129: 107972.1917 | AB129: 110941.427 | AC129: 113992.3162 | AD129: 117127.1049 | AE129: 120348.1003 | AG129: PPM4/PPD4 05
A130: 3361 | B130: Electronic Resources | S130: LLM05/LLD05 | T130: 94613.65 | U130: 94613.65 | V130: 96978.99125 | W130: 96978.99125 | X130: 101934 | Y130: 105684 | Z130: 108590.31 | AA130: 111576.5435 | AB130: 114644.8985 | AC130: 117797.6332 | AD130: 121037.0681 | AE130: 124365.5875 | AG130: PPM4/PPD4 06
A131: 3371 | B131: Airfares - Domestic | S131: LLM06/LLD06 | T131: 97897.75 | U131: 97897.75 | V131: 100345.1937 | W131: 100345.1937 | X131: 105350 | Y131: 109100 | Z131: 112100.25 | AA131: 115183.0069 | AB131: 118350.5396 | AC131: 121605.1794 | AD131: 124949.3218 | AE131: 128385.4282 | AG131: TFM01/TFD01
A132: 3376 | B132: Airfares - International | S132: LLM07/LLD07 | T132: 101178.775 | U132: 101178.775 | V132: 103708.2444 | W132: 103708.2444 | X132: 108764 | Y132: 112514 | Z132: 115608.135 | AA132: 118787.3587 | AB132: 122054.0111 | AC132: 125410.4964 | AD132: 128859.285 | AE132: 132402.9154 | AG132: TFM02/TFD02
A133: 3395 | B133: Accommodation | R133: Senior Lecturers (SL) / Senior Research Fellows (SRF) | S133: SLM01/SLD01 | T133: 126202.1 | U133: 126202.1 | V133: 129357.1525 | W133: 129357.1525 | X133: 134798 | Y133: =X133+3750 -> 138548 | Z133: 142358.07 | AA133: 146272.9169 | AB133: 150295.4221 | AC133: 154428.5462 | AD133: 158675.3313 | AE133: 163038.9029 | AG133: TFM03/TFD03
A134: 3411 | B134: Mileage Reimbursements | S134: SLM02/SLD02 | T134: 131126.2 | U134: 131126.2 | V134: 134404.355 | W134: 134404.355 | X134: 139920 | Y134: =X134+3750 -> 143670 | Z134: 147620.925 | AA134: 151680.5004 | AB134: 155851.7142 | AC134: 160137.6363 | AD134: 164541.4213 | AE134: 169066.3104 | AG134: TFM04/TFD04
A135: 3416 | B135: Taxi and Car Rentals | S135: SLM03/SLD03 | T135: 137688.25 | U135: 137688.25 | V135: 141130.4562 | W135: 141130.4562 | X135: 146747 | Y135: 150497 | Z135: 154635.6675 | AA135: 158888.1484 | AB135: 163257.5724 | AC135: 167747.1557 | AD135: 172360.2025 | AE135: 177100.108 | AG135: TFM05/TFD05
A136: 3451 | B136: Travel Other | S136: SLM04/SLD04 | T136: 144254.4 | U136: 144254.4 | V136: 147860.76 | W136: 147860.76 | X136: 153579 | Y136: 157329 | Z136: 161655.5475 | AA136: 166101.0751 | AB136: 170668.8546 | AC136: 175362.2481 | AD136: 180184.7099 | AE136: 185139.7895 | AG136: TFM06/TFD06
A137: 3456 | B137: Media | S137: SLM05/SLD05 | T137: 150817.475 | U137: 150817.475 | V137: 154587.9119 | W137: 154587.9119 | X137: 160407 | Y137: 164157 | Z137: 168671.3175 | AA137: 173309.7787 | AB137: 178075.7976 | AC137: 182972.8821 | AD137: 188004.6363 | AE137: 193174.7638 | AG137: TFM07/TFD07
A138: 3461 | B138: Publications | S138: SLM06/SLD06 | T138: 159022.6 | U138: 159022.6 | V138: 162998.165 | W138: 162998.165 | X138: 168943 | Y138: 172693 | Z138: 177442.0575 | AA138: 182321.7141 | AB138: 187335.5612 | AC138: 192487.2892 | AD138: 197780.6896 | AE138: 203219.6586
A139: 3495 | B139: Vehicle Expenses - Fuel | S139: SLMRM01/SLRD01 | T139: 165588.75 | U139: 165588.75 | V139: 169728.4687 | W139: 169728.4687 | X139: 175774 | Y139: 179524 | Z139: =Y139*AnnualSalaryIncrease -> 184460.91 | AA139: 189533.585 | AB139: 194745.7586 | AC139: 200101.267 | AD139: 205604.0518 | AE139: 211258.1632
A140: 3731 | B140: Vehicle Expenses - Other | R140: Associate Professors (AP) / Research Associate Professors (RAP) | S140: APM01/APD01 | T140: 168869.775 | U140: 168869.775 | V140: 173091.5194 | W140: 173091.5194 | X140: 179188 | Y140: =X140+1 -> 179189 | Z140: 184116.6975 | AA140: 189179.9067 | AB140: 194382.3541 | AC140: 199727.8689 | AD140: 205220.3852 | AE140: 210863.9458
A141: 7175 | B141: Catering/Entertainment | S141: APM02/APD02 | T141: 172149.775 | U141: 172149.775 | V141: 176453.5194 | W141: 176453.5194 | X141: 182600 | Y141: =X141+1 -> 182601 | Z141: 187622.5275 | AA141: 192782.147 | AB141: 198083.656 | AC141: 203530.9566 | AD141: 209128.0579 | AE141: 214879.0795
A142: 7575 | B142: Sundry Operating Expenses | S142: APM03/APD03 | T142: 175433.875 | U142: 175433.875 | V142: 179819.7219 | W142: 179819.7219 | X142: 186017 | Y142: 186018 | Z142: 191133.495 | AA142: 196389.6661 | AB142: 201790.3819 | AC142: 207339.6174 | AD142: 213041.4569 | AE142: 218900.097
A143: 7711 | B143: Professional & Consulting Fees | S143: APM04/APD04 | T143: 178714.9 | U143: 178714.9 | V143: 183182.7725 | W143: 183182.7725 | X143: 189431 | Y143: 189432 | Z143: 194641.38 | AA143: 199994.018 | AB143: 205493.8534 | AC143: 211144.9344 | AD143: 216951.4201 | AE143: 222917.5842
A144: 7714 | B144: Research Collaboration Received | S144: APM05/APD05 | T144: 183637.975 | U144: 183637.975 | V144: 188228.9244 | W144: 188228.9244 | X144: 194552 | Y144: 194553 | Z144: 199903.2075 | AA144: 205400.5457 | AB144: 211049.0607 | AC144: 216852.9099 | AD144: 222816.3649 | AE144: 228943.8149
A145: 7717 | B145: Research Collaboration Paid | R145: Professors (P) / Research Professors (RP) | S145: PFM01/PFD01 | T145: 185281.05 | U145: 185281.05 | V145: 189913.0762 | W145: 189913.0762 | X145: 196262 | Y145: =X145+3750 -> 200012 | Z145: 205512.33 | AA145: 211163.9191 | AB145: 216970.9268 | AC145: 222937.6273 | AD145: 229068.4121 | AE145: 235367.7934
A146: 7721 | B146: ITS Phone Rental Charge | S146: PFM02/PFD02 | T146: 188561.05 | U146: 188561.05 | V146: 193275.0762 | W146: 193275.0762 | X146: 199674 | Y146: =X146+3750 -> 203424 | Z146: 209018.16 | AA146: 214766.1594 | AB146: 220672.2288 | AC146: 226740.7151 | AD146: 232976.0847 | AE146: 239382.9271
A147: 7728 | B147: ITS Phone Usage Charge | S147: PFM03/PFD03 | T147: 191843.1 | U147: 191843.1 | V147: 196639.1775 | W147: 196639.1775 | X147: 203089 | Y147: 206839 | Z147: 212527.0725 | AA147: 218371.567 | AB147: 224376.7851 | AC147: 230547.1467 | AD147: 236887.1932 | AE147: 243401.591
A148: 7738 | B148: ITS Network Outlet Rental Charge | S148: PFM04/PFD04 | T148: 195125.15 | U148: 195125.15 | V148: 200003.2787 | W148: 200003.2787 | X148: 206503 | Y148: 210253 | Z148: 216034.9575 | AA148: 221975.9188 | AB148: 228080.2566 | AC148: 234352.4637 | AD148: 240797.1564 | AE148: 247419.0782
A149: 7739 | B149: ITS Internet Usage Charge | S149: PFM05/PFD05 | T149: 198407.2 | U149: 198407.2 | V149: 203367.38 | W149: 203367.38 | X149: 209918 | Y149: 213668 | Z149: =Y149*AnnualSalaryIncrease -> 219543.87 | AA149: 225581.3264 | AB149: 231784.8129 | AC149: 238158.8953 | AD149: 244708.2649 | AE149: 251437.7422
A150: 7756 | B150: ITS Other Communications Charge | S150: PFM06/PFD06 | T150: 201690.275 | U150: 201690.275 | V150: 206732.5319 | W150: 206732.5319 | X150: 213334 | Y150: 217084 | Z150: 223053.81 | AA150: 229187.7898 | AB150: 235490.454 | AC150: 241966.4415 | AD150: 248620.5186 | AE150: 255457.5829
A151: 7761 | B151: ITS Training Charge | S151: PFM07/PFD07 | T151: 205750.3 | U151: 205750.3 | V151: 210894.0575 | W151: 210894.0575 | X151: 217557 | Y151: 221307 | Z151: 227392.9425 | AA151: 233646.2484 | AB151: 240071.5203 | AC151: 246673.4871 | AD151: 253457.008 | AE151: 260427.0757
A152: 7771 | B152: ITS General Charges | Q152: ResearchAssistants | R152: Research Assistants | S152: RAN.01 | T152: 40183 | U152: 40183 | V152: 41187 | W152: 41187 | X152: 46004 | Y152: =X152+3750 -> 49754 | Z152: 51122.235 | AA152: 52528.09646 | AB152: 53972.61912 | AC152: 55456.86614 | AD152: 56981.92996 | AE152: 58548.93303
A153: 7775 | B153: Union Catering General | S153: RAN.02 | T153: 45082.575 | U153: 45082.575 | V153: 46209.63937 | W153: 46209.63937 | X153: 50760 | Y153: =X153+3750 -> 54510 | Z153: 56009.025 | AA153: 57549.27319 | AB153: 59131.8782 | AC153: 60758.00485 | AD153: 62428.84998 | AE153: 64145.64336
A154: 7776 | B154: OU Print - Printing Costs | S154: RAN.03 | T154: 47407.275 | U154: 47407.275 | V154: 48592.45687 | W154: 48592.45687 | X154: 53142 | Y154: 56892 | Z154: 58456.53 | AA154: 60064.08458 | AB154: 61715.8469 | AC154: 63413.03269 | AD154: 65156.89109 | AE154: 66948.70559
A155: 7777 | B155: Postage Expense Internal | S155: RAN.04 | T155: 50444.35 | U155: 50444.35 | V155: 51705.45875 | W155: 51705.45875 | X155: 56255 | Y155: 60005 | Z155: 61655.1375 | AA155: 63350.65378 | AB155: 65092.79676 | AC155: 66882.84867 | AD155: 68722.12701 | AE155: 70611.9855
A156: 7778 | B156: Internal General Expenses Other | Q156: Nursing | R156: Beginning Practice Nurse | S156: BPN01 | T156: 68535 | U156: 68535 | V156: 70248 | W156: 70248 | X156: 76500 | Y156: =X156+3750 -> 80250 | Z156: =Y156*AnnualSalaryIncrease -> 82456.875 | AA156: 84724.43906 | AB156: 87054.36114 | AC156: 89448.35607 | AD156: 91908.18586 | AE156: 94435.66097
A157: 0 | B157: Internal Animal Purchase Internal | S157: BPN02 | T157: 69641 | U157: 69641 | V157: 71382 | W157: 71382 | X157: 78500 | Y157: =X157+3750 -> 82250 | Z157: =Y157*AnnualSalaryIncrease -> 84511.875 | AA157: 86835.95156 | AB157: 89223.94023 | AC157: 91677.59859 | AD157: 94198.73255 | AE157: 96789.19769
B158: Animal Daily Maintenance Internal | R158: Compoetent Practice Nurse | S158: CPN01 | T158: 73389 | U158: 73389 | V158: 75224 | W158: 75224 | X158: 83500 | Y158: =X158+3750 -> 87250 | Z158: =Y158*AnnualSalaryIncrease -> 89649.375 | AA158: 92114.73281 | AB158: 94647.88796 | AC158: 97250.70488 | AD158: 99925.09927 | AE158: 102673.0395
B159: Prescription Animal Remedies Internal | S159: CPN02 | T159: 74543 | U159: 74543 | V159: 76407 | W159: 76407 | X159: 85500 | Y159: =X159+3750 -> 89250 | Z159: =Y159*AnnualSalaryIncrease -> 91704.375 | AA159: 94226.24531 | AB159: 96817.46706 | AC159: 99479.9474 | AD159: 102215.646 | AE159: 105026.5762
B160: Example | S160: CPN03 | T160: 75646 | U160: 75646 | V160: 77537 | W160: 77537 | X160: 87500 | Y160: 91250 | Z160: =Y160*AnnualSalaryIncrease -> 93759.375 | AA160: 96337.75781 | AB160: 98987.04615 | AC160: 101709.1899 | AD160: 104506.1926 | AE160: 107380.1129
S161: CPN04 | T161: 76777 | U161: 76777 | V161: 78696 | W161: 78696 | X161: 88500 | Y161: 92250 | Z161: =Y161*AnnualSalaryIncrease -> 94786.875 | AA161: 97393.51406 | AB161: 100071.8357 | AC161: 102823.8112 | AD161: 105651.466 | AE161: 108556.8813
R162: Proficient Practice Nurse | S162: PPN01 | T162: 77905 | U162: 77905 | V162: 79853 | W162: 79853 | X162: 90500 | Y162: =X162+3750 -> 94250 | Z162: =Y162*AnnualSalaryIncrease -> 96841.875 | AA162: 99505.02656 | AB162: 102241.4148 | AC162: 105053.0537 | AD162: 107942.0127 | AE162: 110910.418
S163: PPN02 | T163: 79033 | U163: 79033 | V163: 81008 | W163: 81008 | X163: 92500 | Y163: =X163+3750 -> 96250 | Z163: =Y163*AnnualSalaryIncrease -> 98896.875 | AA163: 101616.5391 | AB163: 104410.9939 | AC163: 107282.2962 | AD163: 110232.5594 | AE163: 113263.9547
S164: PPN03 | T164: 80473 | U164: 80473 | V164: 82485 | W164: 82485 | X164: 94500 | Y164: 98250 | Z164: =Y164*AnnualSalaryIncrease -> 100951.875 | AA164: 103728.0516 | AB164: 106580.573 | AC164: 109511.5387 | AD164: 112523.1061 | AE164: 115617.4915
S165: PPN04 | T165: 81291 | U165: 81291 | V165: 83323 | W165: 83323 | X165: 95500 | Y165: 99250 | Z165: =Y165*AnnualSalaryIncrease -> 101979.375 | AA165: 104783.8078 | AB165: 107665.3625 | AC165: 110626.16 | AD165: 113668.3794 | AE165: 116794.2598
R166: Expert Practice Nurse | S166: XPN01 | T166: 82420 | U166: 82420 | V166: 84481 | W166: 84481 | X166: 97500 | Y166: =X166+3750 -> 101250 | Z166: =Y166*AnnualSalaryIncrease -> 104034.375 | AA166: 106895.3203 | AB166: 109834.9416 | AC166: 112855.4025 | AD166: 115958.9261 | AE166: 119147.7966
S167: XPN02 | T167: 83550 | U167: 83550 | V167: 85639 | W167: 85639 | X167: 99500 | Y167: =X167+3750 -> 103250 | Z167: =Y167*AnnualSalaryIncrease -> 106089.375 | AA167: 109006.8328 | AB167: 112004.5207 | AC167: 115084.645 | AD167: 118249.4728 | AE167: 121501.3333
S168: XPN03 | T168: 84676 | U168: 84676 | V168: 86793 | W168: 86793 | X168: 101500 | Y168: 105250 | Z168: =Y168*AnnualSalaryIncrease -> 108144.375 | AA168: 111118.3453 | AB168: 114174.0998 | AC168: 117313.8876 | AD168: 120540.0195 | AE168: 123854.87
S169: XPN04 | T169: 85806 | U169: 85806 | V169: 87951 | W169: 87951 | X169: 102500 | Y169: 106250 | Z169: =Y169*AnnualSalaryIncrease -> 109171.875 | AA169: 112174.1016 | AB169: 115258.8894 | AC169: 118428.5088 | AD169: 121685.2928 | AE169: 125031.6384
R170: Entry Level Clinical Research Nurse/Midwife (Band 1) | S170: CRN101 | T170: 68535 | U170: 68535 | V170: 70248 | W170: 70248 | X170: 74802 | Y170: =X170+3750 -> 78552 | Z170: =Y170*AnnualSalaryIncrease -> 80712.18 | AA170: =Z170*AnnualSalaryIncrease -> 82931.76495 | AB170: =AA170*AnnualSalaryIncrease -> 85212.38849 | AC170: =AB170*AnnualSalaryIncrease -> 87555.72917 | AD170: 89963.51172 | AE170: 92437.50829
S171: CRN102 | T171: 69641 | U171: 69641 | V171: 71382 | W171: 71382 | X171: 75953 | Y171: =X171+3750 -> 79703 | Z171: 81894.8325 | AA171: 84146.94039 | AB171: 86460.98125 | AC171: 88838.65824 | AD171: 91281.72134 | AE171: 93791.96868
S172: CRN103 | T172: 70758 | U172: 70758 | V172: 72527 | W172: 72527 | X172: 77115 | Y172: 80865 | Z172: 83088.7875 | AA172: 85373.72916 | AB172: 87721.50671 | AC172: 90133.84814 | AD172: 92612.52897 | AE172: 95159.37351
S173: CRN104 | T173: 72263 | U173: 72263 | V173: 74069 | W173: 74069 | X173: 78680 | Y173: 82430 | Z173: 84696.825 | AA173: 87025.98769 | AB173: 89419.20235 | AC173: 91878.23041 | AD173: 94404.88175 | AE173: 97001.016
R174: Clinical Research Nurse/Midwife (Band 2) | S174: CRN201 | T174: 73389 | U174: 73389 | V174: 75224 | W174: 75224 | X174: 79852 | Y174: 83602 | Z174: 85901.055 | AA174: 88263.33401 | AB174: 90690.5757 | AC174: 93184.56653 | AD174: 95747.14211 | AE174: 98380.18852
S175: CRN202 | T175: 74543 | U175: 74543 | V175: 76407 | W175: 76407 | X175: 81053 | Y175: 84803 | Z175: 87135.0825 | AA175: 89531.29727 | AB175: 91993.40794 | AC175: 94523.22666 | AD175: 97122.6154 | AE175: 99793.48732
S176: CRN203 | T176: 75646 | U176: 75646 | V176: 77537 | W176: 77537 | X176: 82200 | Y176: 85950 | Z176: 88313.625 | AA176: 90742.24969 | AB176: 93237.66155 | AC176: 95801.69725 | AD176: 98436.24392 | AE176: 101143.2406
S177: CRN204 | T177: 76777 | U177: 76777 | V177: 78696 | W177: 78696 | X177: 83376 | Y177: 87126 | Z177: 89521.965 | AA177: 91983.81904 | AB177: 94513.37406 | AC177: 97112.49185 | AD177: 99783.08537 | AE177: 102527.1202
R178: Senior Clinical Research Nurse/Midwife (Band 3) | S178: CRN301 | T178: 77905 | U178: 77905 | V178: 79853 | W178: 79853 | X178: 84551 | Y178: 88301 | Z178: 90729.2775 | AA178: 93224.33263 | AB178: 95788.00178 | AC178: 98422.17183 | AD178: 101128.7816 | AE178: 103909.823
S179: CRN302 | T179: 79033 | U179: 79033 | V179: 81008 | W179: 81008 | X179: 85723 | Y179: 89473 | Z179: 91933.5075 | AA179: 94461.67896 | AB179: 97059.37513 | AC179: 99728.50794 | AD179: 102471.0419 | AE179: 105288.9956
S180: CRN303 | T180: 80473 | U180: 80473 | V180: 82485 | W180: 82485 | X180: 87272 | Y180: 91022 | Z180: 93525.105 | AA180: 96097.04539 | AB180: 98739.71414 | AC180: 101455.0563 | AD180: 104245.0703 | AE180: 107111.8098
S181: CRN304 | T181: 81291 | U181: 81291 | V181: 83323 | W181: 83323 | X181: 88073 | Y181: 91823 | Z181: 94348.1325 | AA181: 96942.70614 | AB181: 99608.63056 | AC181: 102347.8679 | AD181: 105162.4343 | AE181: 108054.4012
Q182: Professional Staff (was General Staff) | R182: Level 1 | S182: =BJ8 -> PL1 5* | T182: 32766.175 | U182: =T182 -> 32766.175 | V182: 33585.32937 | W182: 33585.32937 | X182: 46476 | Y182: =X182+3750 -> 50226 | Z182: 51607.215 | AA182: 53026.41341 | AB182: 54484.63978 | AC182: 55982.96738 | AD182: 57522.49898 | AE182: 59104.3677
S183: PL1 06 | T183: 34514.825 | U183: =T183 -> 34514.825 | V183: 35377.69562 | W183: 35377.69562 | X183: 48658 | Y183: =X183+3750 -> 52408 | Z183: =Y183*AnnualSalaryIncrease -> 53849.22 | AA183: =Z183*AnnualSalaryIncrease -> 55330.07355 | AB183: =AA183*AnnualSalaryIncrease -> 56851.65057 | AC183: =AB183*AnnualSalaryIncrease -> 58415.07096 | AD183: 60021.48541 | AE183: 61672.07626
S184: PL1 07 | T184: 36643.75 | U184: 36643.75 | V184: 37559.84375 | W184: 37559.84375 | X184: 49023 | Y184: 52773 | Z184: 54224.2575 | AA184: 55715.42458 | AB184: 57247.59876 | AC184: 58821.90772 | AD184: 60439.51019 | AE184: 62101.59672
S185: PL1 08 | T185: 38772.675 | U185: 38772.675 | V185: 39741.99187 | W185: 39741.99187 | X185: 49388 | Y185: 53138 | Z185: 54599.295 | AA185: 56100.77561 | AB185: 57643.54694 | AC185: 59228.74448 | AD185: 60857.53496 | AE185: 62531.11717
S186: PL1 09 | T186: 40903.65 | U186: 40903.65 | V186: 41926.24125 | W186: 41926.24125 | X186: 49751 | Y186: 53501 | Z186: 54972.2775 | AA186: 56484.01513 | AB186: 58037.32555 | AC186: 59633.352 | AD186: 61273.26918 | AE186: 62958.28408
S187: PL1 10 | T187: 43032.575 | U187: 43032.575 | V187: 44108.38937 | W187: 44108.38937 | X187: 50115 | Y187: 53865 | Z187: 55346.2875 | AA187: 56868.31041 | AB187: 58432.18894 | AC187: 60039.07414 | AD187: 61690.14868 | AE187: 63386.62777
S188: PL1 11 | T188: 43388.25 | U188: 43388.25 | V188: 44472.95625 | W188: 44472.95625 | X188: 50478 | Y188: 54228 | Z188: 55719.27 | AA188: 57251.54993 | AB188: 58825.96755 | AC188: 60443.68166 | AD188: 62105.8829 | AE188: 63813.79468
S189: PL1 12 | T189: 43743.925 | U189: 43743.925 | V189: 44837.52312 | W189: 44837.52312 | X189: 50842 | Y189: 54592 | Z189: 56093.28 | AA189: 57635.8452 | AB189: 59220.83094 | AC189: 60849.40379 | AD189: 62522.7624 | AE189: 64242.13836
S190: PL1 13 | T190: 44098.575 | U190: 44098.575 | V190: 45201.03937 | W190: 45201.03937 | X190: 51206 | Y190: 54956 | Z190: 56467.29 | AA190: 58020.14048 | AB190: 59615.69434 | AC190: 61255.12593 | AD190: 62939.6419 | AE190: 64670.48205
S191: PL1 14 | T191: 44453.225 | U191: 44453.225 | V191: 45564.55562 | W191: 45564.55562 | X191: 51569 | Y191: 55319 | Z191: 56840.2725 | AA191: 58403.37999 | AB191: 60009.47294 | AC191: 61659.73345 | AD191: 63355.37612 | AE191: 65097.64896
Y192: 3750
Y193: 3750
Y194: 3750
Y195: 3750
R196: Level 2 | S196: =BK8 -> PL2 03 | T196: 43831.05 | U196: =T196 -> 43831.05 | V196: 44926.82625 | W196: 44926.82625 | X196: 49477 | Y196: 53227 | Z196: 54690.7425 | AA196: 56194.73792 | AB196: 57740.09321 | AC196: 59327.94577 | AD196: 60959.46428 | AE196: 62635.84955
S197: PL2 06 | T197: 44895 | U197: =T197 -> 44895 | V197: 46017.375 | W197: 46017.375 | X197: 50567 | Y197: 54317 | Z197: 55810.7175 | AA197: 57345.51223 | AB197: 58922.51382 | AC197: 60542.88295 | AD197: 62207.81223 | AE197: 63918.52706
S198: PL2 09 | T198: 45958.95 | U198: =T198 -> 45958.95 | V198: 47107.92375 | W198: 47107.92375 | X198: 51658 | Y198: 55408 | Z198: 56931.72 | AA198: 58497.3423 | AB198: 60106.01921 | AC198: 61758.93474 | AD198: 63457.30545 | AE198: 65202.38135
S199: PL2 10 | T199: 46312.575 | U199: =T199 -> 46312.575 | V199: 47470.38937 | W199: 47470.38937 | X199: 52020 | Y199: 55770 | Z199: 57303.675 | AA199: 58879.52606 | AB199: 60498.71303 | AC199: 62162.42764 | AD199: 63871.8944 | AE199: 65628.37149
S200: PL2 11 | T200: 46668.25 | U200: =T200 -> 46668.25 | V200: 47834.95625 | W200: 47834.95625 | X200: 52385 | Y200: 56135 | Z200: 57678.7125 | AA200: 59264.87709 | AB200: 60894.66121 | AC200: 62569.2644 | AD200: 64289.91917 | AE200: 66057.89195
... 169 more rows

Sheet Funding Body (hidden)
A1: Funding Body | B1: Notes | C1: Date | D1: Unspent Funds | E1: Overheads | F1: IndirectSalaries
A2: Cancer Society - West Coast | D2: RETURN | H2: =IFERROR(VLOOKUP(Summary!$C$9,Funding_Body_Table,5,FALSE),0) -> 0
A3: Cancer Research Trust New Zealand | E3: None | F3: No
A4: Cancer Society NZ | B4: The Cancer Society of New Zealand Inc. is a charity and therefore does not pay overhead nor indirect Salaries. | E4: None | F4: No | H4: =IF(H2=0,"Full","None") -> Full | I4: = FunderOverheads
A5: Canterbury Medical Research Foundation | B5: Canterbury Medical Research Foundation is a charitable organisation and does not fund overheads or Indirects | C5: 2020-04-08 | E5: None | F5: No
A6: Canterbury Orthopaedic Service | B6: GST Exempt
A7: Deans Bequest Fund | D7: RETURN | H7: =IFERROR(VLOOKUP(Summary!$C$9,Funding_Body_Table,6,FALSE),0) -> 0
A8: Department of Internal Affairs | D8: RETURN | H8: =IF(H7="No",FALSE,TRUE) -> TRUE | I8: = FunderPaysIndirects
A9: Foundation for Orthodontic Research | D9: RETURN
A10: Hawke's Bay Medical Research Fdn | D10: RETURN
A11: Healthcare Otago Trust | D11: RETURN
A12: Hellaby E L Miss | B12: GST exempt | D12: RETURN
A13: HRC | D13: >$10K
A14: Keystone Symposia | D14: RESOFF
A15: Maurice & Phyllis Paykel Trust | D15: RETURN
A16: Ministry of Business, Innovation and Emp | D16: RESOFF
A17: Neurological Foundation NZ | B17: Doesn’t pay overheads or indirect salaries | C17: 2020-04-22 | E17: None | F17: No
A18: Neurological Foundation of NZ | D18: RETURN
A19: New Zealand Dementia Prevention Trust | D19: RETURN
A20: NZ Dental Research Foundation | D20: RETURN
A21: NZ Lottery Grants Board | B21: Does not fund overheads or Indirects | D21: >$100 | E21: None | F21: No
A22: NZ Manipulative Physiotherapists Assn | D22: RETURN
A23: NZ Soc of Physiotherapists Scholarship | D23: RETURN
A24: NZ Society of Physiotherapists Scholar | D24: RETURN
A25: NZ Society of Physiotherapists T/A Physi | D25: RETURN
A26: Oakley Mental Health Research Fdn | D26: RETURN
A27: Otago Medical Research Fdn | D27: RETURN
A28: Royal Society | D28: >$10K
A29: Saunders Robinson Brown | D29: RESOFF
A30: Viscient Biosciences Inc | D30: NIL

Sheet Finances
B1: Financial Summary Information
A2: Price - Yearly
A4: Salaries | C4: Year 1 | D4: Year 2 | E4: Year 3 | F4: Year 4 | G4: Year 5 | H4: Year 6 | I4: Totals
A5: Indirect - Academics | C5: ='Indirect Staff'!F434 -> 0 | D5: ='Indirect Staff'!G434 -> 0 | E5: ='Indirect Staff'!H434 -> 0 | F5: ='Indirect Staff'!I434 -> 0 | G5: ='Indirect Staff'!J434 -> 0 | H5: ='Indirect Staff'!K434 -> 0 | I5: =SUM(C5:H5) -> 0
A6: Indirect - General | C6: ='Indirect Staff'!F437 -> 0 | D6: ='Indirect Staff'!G437 -> 0 | E6: ='Indirect Staff'!H437 -> 0 | F6: ='Indirect Staff'!I437 -> 0 | G6: ='Indirect Staff'!J437 -> 0 | H6: ='Indirect Staff'!K437 -> 0 | I6: =SUM(C6:H6) -> 0
B7: Total Indirect Salaries | C7: =C5+C6 -> 0 | D7: =D5+D6 -> 0 | E7: 0 | F7: 0 | G7: 0 | H7: 0 | I7: 0
A9: Direct -Academics | C9: ='Direct Staff'!E393 -> 0 | D9: ='Direct Staff'!F393 -> 0 | E9: ='Direct Staff'!G393 -> 0 | F9: ='Direct Staff'!H393 -> 0 | G9: ='Direct Staff'!I393 -> 0 | H9: ='Direct Staff'!J393 -> 0 | I9: =SUM(C9:H9) -> 0
B10: Academic-Casual | C10: ='Direct Staff'!E396 -> 0 | D10: ='Direct Staff'!F396 -> 0 | E10: ='Direct Staff'!G396 -> 0 | F10: ='Direct Staff'!H396 -> 0 | G10: ='Direct Staff'!I396 -> 0 | H10: ='Direct Staff'!J396 -> 0 | I10: 0
A11: Direct-General | C11: ='Direct Staff'!E399 -> 0 | D11: ='Direct Staff'!F399 -> 0 | E11: ='Direct Staff'!G399 -> 0 | F11: ='Direct Staff'!H399 -> 0 | G11: ='Direct Staff'!I399 -> 0 | H11: ='Direct Staff'!J399 -> 0 | I11: 0
A12: Direct-Casual | C12: ='Direct Staff'!E402 -> 0 | D12: ='Direct Staff'!F402 -> 0 | E12: ='Direct Staff'!G402 -> 0 | F12: ='Direct Staff'!H402 -> 0 | G12: ='Direct Staff'!I402 -> 0 | H12: ='Direct Staff'!J402 -> 0 | I12: 0
B13: Total Direct Salaries | C13: =SUM(C9:C12) -> 0 | D13: =SUM(D9:D12) -> 0 | E13: 0 | F13: 0 | G13: 0 | H13: 0 | I13: 0
A15: Super
A16: Indirect | C16: ='Indirect Staff'!E382 -> 0 | D16: ='Indirect Staff'!F382 -> 0 | E16: ='Indirect Staff'!G382 -> 0 | F16: ='Indirect Staff'!H382 -> 0 | G16: ='Indirect Staff'!I382 -> 0 | H16: ='Indirect Staff'!J382 -> 0 | I16: 0
A17: Direct | C17: ='Direct Staff'!E382 -> 0 | D17: ='Direct Staff'!F382 -> 0 | E17: ='Direct Staff'!G382 -> 0 | F17: ='Direct Staff'!H382 -> 0 | G17: ='Direct Staff'!I382 -> 0 | H17: ='Direct Staff'!J382 -> 0 | I17: 0
B18: Total Super | C18: =SUM(C16:C17) -> 0 | D18: =SUM(D16:D17) -> 0 | E18: 0 | F18: 0 | G18: 0 | H18: 0 | I18: 0
A19: ACC
A20: Indirect | C20: ='Indirect Staff'!E383 -> 0 | D20: ='Indirect Staff'!F383 -> 0 | E20: ='Indirect Staff'!G383 -> 0 | F20: ='Indirect Staff'!H383 -> 0 | G20: ='Indirect Staff'!I383 -> 0 | H20: ='Indirect Staff'!J383 -> 0 | I20: 0
A21: Direct | C21: ='Direct Staff'!E383 -> 0 | D21: ='Direct Staff'!F383 -> 0 | E21: ='Direct Staff'!G383 -> 0 | F21: ='Direct Staff'!H383 -> 0 | G21: ='Direct Staff'!I383 -> 0 | H21: ='Direct Staff'!J383 -> 0 | I21: 0
B22: Total ACC | C22: =C20+C21 -> 0 | D22: 0 | E22: 0 | F22: 0 | G22: 0 | H22: 0 | I22: 0
A23: Total Super + ACC
B24: Indirect | C24: =C16+C20 -> 0 | D24: 0 | E24: 0 | F24: 0 | G24: 0 | H24: 0 | I24: =SUM(C24:H24) -> 0
A25: Direct | C25: 0 | D25: 0 | E25: 0 | F25: 0 | G25: 0 | H25: 0 | I25: =SUM(C25:H25) -> 0
B26: Total Salary related | C26: =(C18+C22) -> 0 | D26: =(D18+D22) -> 0 | E26: 0 | F26: 0 | G26: 0 | H26: 0 | I26: 0
A27: Expenses
A28: Postgraduate Students | C28: ='Subs-Students'!F201 -> 0 | D28: ='Subs-Students'!G201 -> 0 | E28: ='Subs-Students'!H201 -> 0 | F28: ='Subs-Students'!I201 -> 0 | G28: ='Subs-Students'!J201 -> 0 | H28: ='Subs-Students'!K201 -> 0 | I28: 0
A29: Operating Expenses | C29: ='Op Expenses'!D95 -> 0 | D29: ='Op Expenses'!E95 -> 0 | E29: ='Op Expenses'!F95 -> 0 | F29: ='Op Expenses'!G95 -> 0 | G29: ='Op Expenses'!H95 -> 0 | H29: ='Op Expenses'!I95 -> 0 | I29: 0
A30: Equipment | C30: ='Equipment & Computers'!F13 -> 0 | D30: ='Equipment & Computers'!G13 -> 0 | E30: ='Equipment & Computers'!H13 -> 0 | F30: ='Equipment & Computers'!I13 -> 0 | G30: ='Equipment & Computers'!J13 -> 0 | H30: ='Equipment & Computers'!K13 -> 0 | I30: 0
A31: Depreciation | C31: ='Equipment & Computers'!F46 -> 0 | D31: ='Equipment & Computers'!G46 -> 0 | E31: ='Equipment & Computers'!H46 -> 0 | F31: ='Equipment & Computers'!I46 -> 0 | G31: ='Equipment & Computers'!J46 -> 0 | H31: ='Equipment & Computers'!K46 -> 0 | I31: 0
A32: Sub-Contracting | C32: ='Subs-Students'!F135 -> 0 | D32: ='Subs-Students'!G135 -> 0 | E32: ='Subs-Students'!H135 -> 0 | F32: ='Subs-Students'!I135 -> 0 | G32: ='Subs-Students'!J135 -> 0 | H32: ='Subs-Students'!K135 -> 0 | I32: 0
A33: Overheads | C33: ='Indirect Staff'!E400 -> 0 | D33: ='Indirect Staff'!F400 -> 0 | E33: ='Indirect Staff'!G400 -> 0 | F33: ='Indirect Staff'!H400 -> 0 | G33: ='Indirect Staff'!I400 -> 0 | H33: ='Indirect Staff'!J400 -> 0 | I33: ='Indirect Staff'!K400 -> 0
A34: TOTAL ( EX GST) | C34: =C5+C6+C9+C10+C11+C12+C16+C17+C20+C21+C28+C29+C30+C31+C32+C33 -> 0 | D34: 0 | E34: 0 | F34: 0 | G34: 0 | H34: 0 | I34: 0
B36: GST | C36: =C34*GST_Rate -> 0 | D36: 0 | E36: 0 | F36: 0 | G36: 0 | H36: 0 | I36: 0
B37: TOTAL (INC GST) | C37: =C34+C36 -> 0 | D37: 0 | E37: 0 | F37: 0 | G37: 0 | H37: 0 | I37: 0
A39: Workings
B40: GST Rate | C40: 0.15

Sheet Ethics & Consents
A1: STATUTORY & REGULATORY CONSENTS AND APPROVALS SECTION
A3: Ethical Approval:
A4: Needed? | E4: Human | G4: Animal
A5: Application made | P5: Yes
A6: Approval given and attached | P6: No
A7: Research Location (eg.UoO) | P7: N/A
A8: Ethical Approval Number(s)
A9: Development Approvals (Hazardous Substances and New Organisms (HSNO) Act):
A11: Does this project involve the development of an organism modified
B12: through the use of recombinant DNA techniques (ie, a GMO)?
A13: Is the development approved under HSNO?
A14: Copy of approval is enclosed.
B15: Development Approval Number
A16: Approval to be secured before development is initiated
A17: Importation Approvals (Hazardous Substances and New Organisms (HSNO) Act)
A19: Does this project involve the importation of an organism modified
B20: through the use of recombinant DNA techniques (ie, a GMO)?
A21: Is the importation approved under HSNO?
B22: Approval applied for
B23: Copy of approval attached
A24: Is the importation covered by a valid MPI permit?
B25: Permit applied for
B26: Copy of importation permit attached
A28: Other Regulatory Consents (eg, DoC, MAF, Fish & Game, etc):
A29: Are any other approvals required?
A30: Has application been made for the relevant Approval(s)?
A31: Has the relevant Approval(s) been given?
B32: Copy of approval is enclosed.
A34: NOTE:
A36: The Researcher, under the supervision of the HOD, will be held accountable for ensuring that all ethical
A37: and/or regulatory obligations are met throughout the research and that all appropriate consultation is made.
A38: Evidence of all Approvals must be received by the Research Office before funds can be released.
A39: or before importing organisms.
A40: Māori Consultation:
A41: It is a requirement that all research has appropriate consultation with Māori prior to
A42: commencing http://www.otago.ac.nz/research/maoriconsultation/
A44: Has consultation been initiated/undertaken through the University process?
A45: Has consultation been initiated/undertaken through any other process?
B46: Copy of evidence (eg, correspondence) is enclosed
A47: Has consultation reached a conclusion?

Sheet Indirect Staff
C1: University of Otago Costing and Consents Worksheet
C2: INDIRECT STAFF | H2: Salary Projections updated January 2023 | K2: O/H | L2: =Summary!$E$11 -> 111 | AI2: Checks name has department
A3: 1 | C3: Name | H3: Dept: | K3: =IF(I3>0,VLOOKUP(I3,DepartmentsandDivisions,3,FALSE),"") ->  | AI3: =IF(AND(E3<>"",I3=""),1,0) -> 0 | AJ3: =SUM(AI3:AI365) -> 0 | AK3: IndirectStaffDepartment
C4: Status | D4: 7611 - Indirect Academic | F4: Super | G4: Uni | H4: TA | J4: O/H | K4: =FunderOverheads -> Full | M4: =IF(D4="","",VLOOKUP(D4,Calcs!$B$64:$C$65,2,FALSE)) -> 4 | T4: Print
C6: Salary Group ▼ | E6: Progressed? ► | F6: FALSE | K6: Year 1 = | L6: =+Summary!N9 -> 2024 | U6: 15
F7: TRUE | G7: TRUE | H7: FALSE | I7: FALSE | J7: FALSE
C8: Academic | E8: =CONCATENATE("1 (",TEXT(L6,"@"),")") -> 1 (2024) | F8: 2 | G8: 3 | H8: 4 | I8: 5 | J8: 6
D9: Actual Year | E9: =L6 -> 2024 | F9: =E9+1 -> 2025 | G9: 2026 | H9: 2027 | I9: 2028 | J9: 2029
C10: Year Column Number for VLOOKUP | E10: =M16 -> 8 | F10: =E10+1 -> 9 | G10: =F10+1 -> 10 | H10: 11 | I10: 12 | J10: 13
D11: Grade | F11: =IF(Summary!$O$5<F$8,"",IF(E11="","",IFERROR(IF(F7,INDEX(INDIRECT(CONCATENATE("_",LEFT(E11,3))),MATCH(E11,INDIRECT(CONCATENATE("_",LEFT(E11,3))),0)+1),E11),INDEX(INDIRECT(CONCATENATE("_",LEFT(E11,3))),COUNTA(INDIRECT(CONCATENATE("_",LEFT(E11,3)))))))) ->  | G11: =IF(Summary!$O$5<G$8,"",IF(F11="","",IFERROR(IF(G7,INDEX(INDIRECT(CONCATENATE("_",LEFT(F11,3))),MATCH(F11,INDIRECT(CONCATENATE("_",LEFT(F11,3))),0)+1),F11),INDEX(INDIRECT(CONCATENATE("_",LEFT(F11,3))),COUNTA(INDIRECT(CONCATENATE("_",LEFT(F11,3)))))))) ->  | M11: =CONCATENATE("_",LEFT(E11,3)) -> _ | T11: 1 | U11: Yes | V11: 9 | W11: =IF($M132>0,"Yes","No") -> No | X11: 17 | Y11: =IF($M252>0,"Yes","No") -> No | Z11: =237+$U$6 -> 252
D12: Salary | E12: =IFERROR(IF(E11="","",VLOOKUP(E11,SalaryGrades,E$10,FALSE)),"") ->  | F12: =IFERROR(IF(F11="","",VLOOKUP(F11,SalaryGrades,F$10,FALSE)),"") ->  | G12: =IFERROR(IF(G11="","",VLOOKUP(G11,SalaryGrades,G$10,FALSE)),"") ->  | H12: =IFERROR(IF(H11="","",VLOOKUP(H11,SalaryGrades,H$10,FALSE)),"") ->  | K12: Totals | M12: =SUM(LEN(E11),LEN(F11),LEN(G11),LEN(H11),LEN(I11),LEN(J11)) -> 0 | T12: 2 | U12: =IF(M27>0,"Yes","No") -> No | V12: 10 | W12: =IF($M147>0,"Yes","No") -> No | X12: 18 | Y12: =IF($M267>0,"Yes","No") -> No | Z12: =Z11+$U$6 -> 267
D13: FTE | K13: =SUM(E13:J13) -> 0 | T13: 3 | U13: =IF(M42>0,"Yes","No") -> No | V13: 11 | W13: =IF($M162>0,"Yes","No") -> No | X13: 19 | Y13: =IF($M282>0,"Yes","No") -> No | Z13: =Z12+$U$6 -> 282
D14: Salary cost | E14: =IFERROR(IF(E13>0,E13*(E12+$I4),0),0) -> 0 | F14: =IFERROR(IF(F13>0,F13*(F12+$I4),0),0) -> 0 | G14: 0 | H14: 0 | I14: 0 | J14: 0 | K14: 0 | T14: 4 | U14: =IF(M57>0,"Yes","No") -> No | V14: 12 | W14: =IF(M177>0,"Yes","No") -> No | X14: 20 | Y14: =IF($M297>0,"Yes","No") -> No | Z14: 297
D15: Super | E15: =IF(E13>0,(VLOOKUP(G4,Calcs!$H$4:$I$7,2,FALSE)*E14),0) -> 0 | F15: =IF(F13>0,(VLOOKUP(G4,Calcs!$H$4:$I$7,2,FALSE)*F14),0) -> 0 | G15: =IF(G13>0,(VLOOKUP(G4,Calcs!$H$4:$I$7,2,FALSE)*G14),0) -> 0 | H15: =IF(H13>0,(VLOOKUP(G4,Calcs!$H$4:$I$7,2,FALSE)*H14),0) -> 0 | I15: =IF(I13>0,(VLOOKUP(G4,Calcs!$H$4:$I$7,2,FALSE)*I14),0) -> 0 | J15: =IF(J13>0,(VLOOKUP(G4,Calcs!$H$4:$I$7,2,FALSE)*J14),0) -> 0 | K15: 0 | T15: 5 | U15: =IF(M72>0,"Yes","No") -> No | V15: 13 | W15: =IF(M192>0,"Yes","No") -> No | X15: 21 | Y15: =IF($M312>0,"Yes","No") -> No | Z15: 312
D16: ACC | E16: =E14*Calcs!$C$8 -> 0 | F16: =F14*Calcs!$C$8 -> 0 | G16: =G14*Calcs!$C$8 -> 0 | H16: =H14*Calcs!$C$8 -> 0 | I16: =I14*Calcs!$C$8 -> 0 | J16: =J14*Calcs!$C$8 -> 0 | K16: 0 | M16: =HLOOKUP(E9,Years,2,FALSE) -> 8 | T16: 6 | U16: =IF(M87>0,"Yes","No") -> No | V16: 14 | W16: =IF(M207>0,"Yes","No") -> No | X16: 22 | Y16: =IF($M327>0,"Yes","No") -> No | Z16: 327
D17: Overheads | E17: =IF(K4="Full",E14*($L$2/100),0) -> 0 | F17: =IF(K4="Full",F14*($L$2/100),0) -> 0 | G17: =IF(K4="Full",G14*($L$2/100),0) -> 0 | H17: =IF(K4="Full",H14*($L$2/100),0) -> 0 | I17: =IF(K4="Full",I14*($L$2/100),0) -> 0 | J17: =IF(K4="Full",J14*($L$2/100),0) -> 0 | K17: 0 | N17: =CONCATENATE("$A$1:$L$",TEXT($N$18,"@")) -> $A$1:$L$19 | T17: 7 | U17: =IF(M102>0,"Yes","No") -> No | V17: 15 | W17: =IF(M222>0,"Yes","No") -> No | X17: 23 | Y17: =IF($M342>0,"Yes","No") -> No | Z17: 342
D18: TOTALS | E18: =SUM(E14:E17) -> 0 | F18: 0 | G18: 0 | H18: 0 | I18: 0 | J18: 0 | K18: 0 | M18: =CELL("row",M19) -> 19 | N18: =MAX(Z25:AD29) -> 19 | T18: 8 | U18: =IF($M117>0,"Yes","No") -> No | V18: 16 | W18: =IF(M237>0,"Yes","No") -> No | X18: 24 | Y18: =IF($M357>0,"Yes","No") -> No | Z18: 357
X19: 25 | Y19: =IF($M372>0,"Yes","No") -> No | Z19: 372
A20: =A3+1 -> 2 | C20: Name | H20: Dept: | K20: =IF(I20>0,VLOOKUP(I20,DepartmentsandDivisions,3,FALSE),"") ->  | AI20: =IF(AND(E20<>"",I20=""),1,0) -> 0
C21: Status | D21: =IF(OR(C25<>"",M29<>0),Calcs!$B$64,"") -> 7611 - Indirect Academic | F21: Super | G21: Uni | H21: TA | J21: O/H | K21: =FunderOverheads -> Full | M21: =IF(D21="","",VLOOKUP(D21,Calcs!$B$64:$C$65,2,FALSE)) -> 4
C23: =C$6 -> Salary Group ▼ | E23: =E$6 -> Progressed? ► | F23: FALSE
F24: FALSE | G24: FALSE | H24: FALSE | I24: FALSE | J24: FALSE
C25: Academic | E25: =$E$8 -> 1 (2024) | F25: =F$8 -> 2 | G25: =F25+1 -> 3 | H25: =G25+1 -> 4 | I25: =H25+1 -> 5 | J25: =I25+1 -> 6 | T25: 18 | U25: =T29+$U$6 -> 93 | V25: =U29+$U$6 -> 168 | W25: =V29+$U$6 -> 243 | X25: =W29+$U$6 -> 318 | Z25: =INDIRECT(CONCATENATE("M",T25)) -> 19 | AA25: =INDIRECT(CONCATENATE("M",U25)) -> 0 | AB25: 0 | AC25: 0 | AD25: 0
D26: Grade | F26: =IF(Summary!$O$5<F$8,"",IF(E26="","",IFERROR(IF(F24,INDEX(INDIRECT(CONCATENATE("_",LEFT(E26,3))),MATCH(E26,INDIRECT(CONCATENATE("_",LEFT(E26,3))),0)+1),E26),INDEX(INDIRECT(CONCATENATE("_",LEFT(E26,3))),COUNTA(INDIRECT(CONCATENATE("_",LEFT(E26,3)))))))) ->  | G26: =IF(Summary!$O$5<G$8,"",IF(F26="","",IFERROR(IF(G24,INDEX(INDIRECT(CONCATENATE("_",LEFT(F26,3))),MATCH(F26,INDIRECT(CONCATENATE("_",LEFT(F26,3))),0)+1),F26),INDEX(INDIRECT(CONCATENATE("_",LEFT(F26,3))),COUNTA(INDIRECT(CONCATENATE("_",LEFT(F26,3)))))))) ->  | H26: =IF(Summary!$O$5<H$8,"",IF(G26="","",IFERROR(IF(H24,INDEX(INDIRECT(CONCATENATE("_",LEFT(G26,3))),MATCH(G26,INDIRECT(CONCATENATE("_",LEFT(G26,3))),0)+1),G26),INDEX(INDIRECT(CONCATENATE("_",LEFT(G26,3))),COUNTA(INDIRECT(CONCATENATE("_",LEFT(G26,3)))))))) ->  | I26: =IF(Summary!$O$5<I$8,"",IF(H26="","",IFERROR(IF(I24,INDEX(INDIRECT(CONCATENATE("_",LEFT(H26,3))),MATCH(H26,INDIRECT(CONCATENATE("_",LEFT(H26,3))),0)+1),H26),INDEX(INDIRECT(CONCATENATE("_",LEFT(H26,3))),COUNTA(INDIRECT(CONCATENATE("_",LEFT(H26,3)))))))) ->  | J26: =IF(Summary!$O$5<J$8,"",IF(I26="","",IFERROR(IF(J24,INDEX(INDIRECT(CONCATENATE("_",LEFT(I26,3))),MATCH(I26,INDIRECT(CONCATENATE("_",LEFT(I26,3))),0)+1),I26),INDEX(INDIRECT(CONCATENATE("_",LEFT(I26,3))),COUNTA(INDIRECT(CONCATENATE("_",LEFT(I26,3)))))))) ->  | M26: =CONCATENATE("_",LEFT(E26,3)) -> _ | T26: =T25+$U$6 -> 33 | U26: =U25+$U$6 -> 108 | V26: =V25+$U$6 -> 183 | W26: =W25+$U$6 -> 258 | X26: =X25+$U$6 -> 333 | Z26: =INDIRECT(CONCATENATE("M",T26)) -> 0 | AA26: 0 | AB26: 0 | AC26: 0 | AD26: 0
D27: Salary | E27: =IFERROR(IF(E26="","",VLOOKUP(E26,SalaryGrades,$M$16,FALSE)),"") ->  | F27: =IFERROR(IF(F26="","",VLOOKUP(F26,SalaryGrades,$M$16+1,FALSE)),"") ->  | G27: =IFERROR(IF(G26="","",VLOOKUP(G26,SalaryGrades,$M$16+2,FALSE)),"") ->  | H27: =IFERROR(IF(H26="","",VLOOKUP(H26,SalaryGrades,$M$16+3,FALSE)),"") ->  | I27: =IFERROR(IF(I26="","",VLOOKUP(I26,SalaryGrades,$M$16+4,FALSE)),"") ->  | J27: =IFERROR(IF(J26="","",VLOOKUP(J26,SalaryGrades,$M$16+5,FALSE)),"") ->  | K27: Totals | M27: =SUM(LEN(E26),LEN(F26),LEN(G26),LEN(H26),LEN(I26),LEN(J26)) -> 0 | N27: =IF(M27>0,"Yes","No") -> No | T27: =T26+$U$6 -> 48 | U27: 123 | V27: 198 | W27: 273 | X27: 348 | Z27: 0 | AA27: 0 | AB27: 0 | AC27: 0 | AD27: 0
D28: FTE | K28: =SUM(E28:J28) -> 0 | T28: 63 | U28: 138 | V28: 213 | W28: 288 | X28: 363 | Z28: 0 | AA28: 0 | AB28: 0 | AC28: 0 | AD28: 0
D29: Salary cost | E29: =IFERROR(IF(E28>0,E28*(E27+$I21),0),0) -> 0 | F29: =IFERROR(IF(F28>0,F28*(F27+$I21),0),0) -> 0 | G29: 0 | H29: 0 | I29: 0 | J29: 0 | K29: 0 | T29: 78 | U29: 153 | V29: 228 | W29: 303 | X29: 378 | Z29: 0 | AA29: 0 | AB29: 0 | AC29: 0 | AD29: 0
D30: Super | E30: =IF(E28>0,(VLOOKUP(G21,Calcs!$H$4:$I$7,2,FALSE)*E29),0) -> 0 | F30: =IF(F28>0,(VLOOKUP(G21,Calcs!$H$4:$I$7,2,FALSE)*F29),0) -> 0 | G30: =IF(G28>0,(VLOOKUP(G21,Calcs!$H$4:$I$7,2,FALSE)*G29),0) -> 0 | H30: =IF(H28>0,(VLOOKUP(G21,Calcs!$H$4:$I$7,2,FALSE)*H29),0) -> 0 | I30: =IF(I28>0,(VLOOKUP(G21,Calcs!$H$4:$I$7,2,FALSE)*I29),0) -> 0 | J30: =IF(J28>0,(VLOOKUP(G21,Calcs!$H$4:$I$7,2,FALSE)*J29),0) -> 0 | K30: 0 | P30: Superannuation: For each researcher enter "U" for staff on the University Super Scheme or "G" for Government Super Scheme if applicable, K for KiwiSaver. Sheet will default to U if none selected
D31: ACC | E31: =E29*Calcs!$C$8 -> 0 | F31: =F29*Calcs!$C$8 -> 0 | G31: =G29*Calcs!$C$8 -> 0 | H31: =H29*Calcs!$C$8 -> 0 | I31: =I29*Calcs!$C$8 -> 0 | J31: =J29*Calcs!$C$8 -> 0 | K31: 0
D32: Overheads | E32: =IF(K21="Full",E29*($L$2/100),0) -> 0 | F32: =IF(K21="Full",F29*($L$2/100),0) -> 0 | G32: =IF(K21="Full",G29*($L$2/100),0) -> 0 | H32: =IF(K21="Full",H29*($L$2/100),0) -> 0 | I32: =IF(K21="Full",I29*($L$2/100),0) -> 0 | J32: =IF(K21="Full",J29*($L$2/100),0) -> 0 | K32: 0
D33: TOTALS | E33: =SUM(E29:E32) -> 0 | F33: 0 | G33: 0 | H33: 0 | I33: 0 | J33: 0 | K33: 0 | M33: =IF(M27=0,"0",CELL("row",M33)+1) -> 0
A35: =A20+1 -> 3 | C35: Name | H35: Dept: | K35: =IF(I35>0,VLOOKUP(I35,DepartmentsandDivisions,3,FALSE),"") ->  | AI35: =IF(AND(E35<>"",I35=""),1,0) -> 0
C36: Status | D36: =IF(OR(C40<>"",M42<>0),Calcs!$B$64,"") -> 7611 - Indirect Academic | F36: Super | G36: Uni | H36: TA | J36: O/H | K36: =FunderOverheads -> Full | M36: =IF(D36="","",VLOOKUP(D36,Calcs!$B$64:$C$65,2,FALSE)) -> 4
C38: =C$6 -> Salary Group ▼ | E38: =E$6 -> Progressed? ► | F38: FALSE
F39: FALSE | G39: FALSE | H39: FALSE | I39: FALSE | J39: FALSE
C40: Academic | E40: =$E$8 -> 1 (2024) | F40: =F$8 -> 2 | G40: =F40+1 -> 3 | H40: =G40+1 -> 4 | I40: =H40+1 -> 5 | J40: =I40+1 -> 6
D41: Grade | F41: =IF(Summary!$O$5<F$8,"",IF(E41="","",IFERROR(IF(F39,INDEX(INDIRECT(CONCATENATE("_",LEFT(E41,3))),MATCH(E41,INDIRECT(CONCATENATE("_",LEFT(E41,3))),0)+1),E41),INDEX(INDIRECT(CONCATENATE("_",LEFT(E41,3))),COUNTA(INDIRECT(CONCATENATE("_",LEFT(E41,3)))))))) ->  | G41: =IF(Summary!$O$5<G$8,"",IF(F41="","",IFERROR(IF(G39,INDEX(INDIRECT(CONCATENATE("_",LEFT(F41,3))),MATCH(F41,INDIRECT(CONCATENATE("_",LEFT(F41,3))),0)+1),F41),INDEX(INDIRECT(CONCATENATE("_",LEFT(F41,3))),COUNTA(INDIRECT(CONCATENATE("_",LEFT(F41,3)))))))) ->  | H41: =IF(Summary!$O$5<H$8,"",IF(G41="","",IFERROR(IF(H39,INDEX(INDIRECT(CONCATENATE("_",LEFT(G41,3))),MATCH(G41,INDIRECT(CONCATENATE("_",LEFT(G41,3))),0)+1),G41),INDEX(INDIRECT(CONCATENATE("_",LEFT(G41,3))),COUNTA(INDIRECT(CONCATENATE("_",LEFT(G41,3)))))))) ->  | I41: =IF(Summary!$O$5<I$8,"",IF(H41="","",IFERROR(IF(I39,INDEX(INDIRECT(CONCATENATE("_",LEFT(H41,3))),MATCH(H41,INDIRECT(CONCATENATE("_",LEFT(H41,3))),0)+1),H41),INDEX(INDIRECT(CONCATENATE("_",LEFT(H41,3))),COUNTA(INDIRECT(CONCATENATE("_",LEFT(H41,3)))))))) ->  | J41: =IF(Summary!$O$5<J$8,"",IF(I41="","",IFERROR(IF(J39,INDEX(INDIRECT(CONCATENATE("_",LEFT(I41,3))),MATCH(I41,INDIRECT(CONCATENATE("_",LEFT(I41,3))),0)+1),I41),INDEX(INDIRECT(CONCATENATE("_",LEFT(I41,3))),COUNTA(INDIRECT(CONCATENATE("_",LEFT(I41,3)))))))) ->  | M41: =CONCATENATE("_",LEFT(E41,3)) -> _
D42: Salary | E42: =IFERROR(IF(E41="","",VLOOKUP(E41,SalaryGrades,$M$16,FALSE)),"") ->  | F42: =IFERROR(IF(F41="","",VLOOKUP(F41,SalaryGrades,$M$16+1,FALSE)),"") ->  | G42: =IFERROR(IF(G41="","",VLOOKUP(G41,SalaryGrades,$M$16+2,FALSE)),"") ->  | H42: =IFERROR(IF(H41="","",VLOOKUP(H41,SalaryGrades,$M$16+3,FALSE)),"") ->  | I42: =IFERROR(IF(I41="","",VLOOKUP(I41,SalaryGrades,$M$16+4,FALSE)),"") ->  | J42: =IFERROR(IF(J41="","",VLOOKUP(J41,SalaryGrades,$M$16+5,FALSE)),"") ->  | K42: Totals | M42: =SUM(LEN(E41),LEN(F41),LEN(G41),LEN(H41),LEN(I41),LEN(J41)) -> 0
D43: FTE | K43: =SUM(E43:J43) -> 0
D44: Salary cost | E44: =IFERROR(IF(E43>0,E43*(E42+$I36),0),0) -> 0 | F44: 0 | G44: 0 | H44: 0 | I44: 0 | J44: 0 | K44: 0
D45: Super | E45: =IF(E43>0,(VLOOKUP(G36,Calcs!$H$4:$I$7,2,FALSE)*E44),0) -> 0 | F45: =IF(F43>0,(VLOOKUP(G36,Calcs!$H$4:$I$7,2,FALSE)*F44),0) -> 0 | G45: =IF(G43>0,(VLOOKUP(G36,Calcs!$H$4:$I$7,2,FALSE)*G44),0) -> 0 | H45: =IF(H43>0,(VLOOKUP(G36,Calcs!$H$4:$I$7,2,FALSE)*H44),0) -> 0 | I45: =IF(I43>0,(VLOOKUP(G36,Calcs!$H$4:$I$7,2,FALSE)*I44),0) -> 0 | J45: =IF(J43>0,(VLOOKUP(G36,Calcs!$H$4:$I$7,2,FALSE)*J44),0) -> 0 | K45: 0
D46: ACC | E46: =E44*Calcs!$C$8 -> 0 | F46: =F44*Calcs!$C$8 -> 0 | G46: =G44*Calcs!$C$8 -> 0 | H46: =H44*Calcs!$C$8 -> 0 | I46: =I44*Calcs!$C$8 -> 0 | J46: =J44*Calcs!$C$8 -> 0 | K46: 0
D47: Overheads | E47: =IF(K36="Full",E44*($L$2/100),0) -> 0 | F47: =IF(K36="Full",F44*($L$2/100),0) -> 0 | G47: =IF(K36="Full",G44*($L$2/100),0) -> 0 | H47: =IF(K36="Full",H44*($L$2/100),0) -> 0 | I47: =IF(K36="Full",I44*($L$2/100),0) -> 0 | J47: =IF(K36="Full",J44*($L$2/100),0) -> 0 | K47: 0
D48: TOTALS | E48: =SUM(E44:E47) -> 0 | F48: 0 | G48: 0 | H48: 0 | I48: 0 | J48: 0 | K48: 0 | M48: =IF(M42=0,"0",CELL("row",M48)+1) -> 0
A50: =A35+1 -> 4 | C50: Name | H50: Dept: | K50: =IF(I50>0,VLOOKUP(I50,DepartmentsandDivisions,3,FALSE),"") ->  | AI50: =IF(AND(E50<>"",I50=""),1,0) -> 0
C51: Status | D51: =IF(OR(C55<>"",M57<>0),Calcs!$B$64,"") -> 7611 - Indirect Academic | F51: Super | G51: Uni | H51: TA | J51: O/H | K51: =FunderOverheads -> Full | M51: =IF(D51="","",VLOOKUP(D51,Calcs!$B$64:$C$65,2,FALSE)) -> 4
C53: =C$6 -> Salary Group ▼ | E53: =E$6 -> Progressed? ► | F53: FALSE
F54: FALSE | G54: FALSE | H54: FALSE | I54: FALSE | J54: FALSE
C55: Academic | E55: =$E$8 -> 1 (2024) | F55: =F$8 -> 2 | G55: =F55+1 -> 3 | H55: =G55+1 -> 4 | I55: =H55+1 -> 5 | J55: =I55+1 -> 6
D56: Grade | F56: =IF(Summary!$O$5<F$8,"",IF(E56="","",IFERROR(IF(F54,INDEX(INDIRECT(CONCATENATE("_",LEFT(E56,3))),MATCH(E56,INDIRECT(CONCATENATE("_",LEFT(E56,3))),0)+1),E56),INDEX(INDIRECT(CONCATENATE("_",LEFT(E56,3))),COUNTA(INDIRECT(CONCATENATE("_",LEFT(E56,3)))))))) ->  | G56: =IF(Summary!$O$5<G$8,"",IF(F56="","",IFERROR(IF(G54,INDEX(INDIRECT(CONCATENATE("_",LEFT(F56,3))),MATCH(F56,INDIRECT(CONCATENATE("_",LEFT(F56,3))),0)+1),F56),INDEX(INDIRECT(CONCATENATE("_",LEFT(F56,3))),COUNTA(INDIRECT(CONCATENATE("_",LEFT(F56,3)))))))) ->  | H56: =IF(Summary!$O$5<H$8,"",IF(G56="","",IFERROR(IF(H54,INDEX(INDIRECT(CONCATENATE("_",LEFT(G56,3))),MATCH(G56,INDIRECT(CONCATENATE("_",LEFT(G56,3))),0)+1),G56),INDEX(INDIRECT(CONCATENATE("_",LEFT(G56,3))),COUNTA(INDIRECT(CONCATENATE("_",LEFT(G56,3)))))))) ->  | I56: =IF(Summary!$O$5<I$8,"",IF(H56="","",IFERROR(IF(I54,INDEX(INDIRECT(CONCATENATE("_",LEFT(H56,3))),MATCH(H56,INDIRECT(CONCATENATE("_",LEFT(H56,3))),0)+1),H56),INDEX(INDIRECT(CONCATENATE("_",LEFT(H56,3))),COUNTA(INDIRECT(CONCATENATE("_",LEFT(H56,3)))))))) ->  | J56: =IF(Summary!$O$5<J$8,"",IF(I56="","",IFERROR(IF(J54,INDEX(INDIRECT(CONCATENATE("_",LEFT(I56,3))),MATCH(I56,INDIRECT(CONCATENATE("_",LEFT(I56,3))),0)+1),I56),INDEX(INDIRECT(CONCATENATE("_",LEFT(I56,3))),COUNTA(INDIRECT(CONCATENATE("_",LEFT(I56,3)))))))) ->  | M56: =CONCATENATE("_",LEFT(E56,3)) -> _
D57: Salary | E57: =IFERROR(IF(E56="","",VLOOKUP(E56,SalaryGrades,$M$16,FALSE)),"") ->  | F57: =IFERROR(IF(F56="","",VLOOKUP(F56,SalaryGrades,$M$16+1,FALSE)),"") ->  | G57: =IFERROR(IF(G56="","",VLOOKUP(G56,SalaryGrades,$M$16+2,FALSE)),"") ->  | H57: =IFERROR(IF(H56="","",VLOOKUP(H56,SalaryGrades,$M$16+3,FALSE)),"") ->  | I57: =IFERROR(IF(I56="","",VLOOKUP(I56,SalaryGrades,$M$16+4,FALSE)),"") ->  | J57: =IFERROR(IF(J56="","",VLOOKUP(J56,SalaryGrades,$M$16+5,FALSE)),"") ->  | K57: Totals | M57: =SUM(LEN(E56),LEN(F56),LEN(G56),LEN(H56),LEN(I56),LEN(J56)) -> 0
D58: FTE | K58: =SUM(E58:J58) -> 0
D59: Salary cost | E59: =IFERROR(IF(E58>0,E58*(E57+$I51),0),0) -> 0 | F59: 0 | G59: 0 | H59: 0 | I59: 0 | J59: 0 | K59: 0
D60: Super | E60: =IF(E58>0,(VLOOKUP(G51,Calcs!$H$4:$I$7,2,FALSE)*E59),0) -> 0 | F60: =IF(F58>0,(VLOOKUP(G51,Calcs!$H$4:$I$7,2,FALSE)*F59),0) -> 0 | G60: =IF(G58>0,(VLOOKUP(G51,Calcs!$H$4:$I$7,2,FALSE)*G59),0) -> 0 | H60: =IF(H58>0,(VLOOKUP(G51,Calcs!$H$4:$I$7,2,FALSE)*H59),0) -> 0 | I60: =IF(I58>0,(VLOOKUP(G51,Calcs!$H$4:$I$7,2,FALSE)*I59),0) -> 0 | J60: =IF(J58>0,(VLOOKUP(G51,Calcs!$H$4:$I$7,2,FALSE)*J59),0) -> 0 | K60: 0
D61: ACC | E61: =E59*Calcs!$C$8 -> 0 | F61: =F59*Calcs!$C$8 -> 0 | G61: =G59*Calcs!$C$8 -> 0 | H61: =H59*Calcs!$C$8 -> 0 | I61: =I59*Calcs!$C$8 -> 0 | J61: =J59*Calcs!$C$8 -> 0 | K61: 0
D62: Overheads | E62: =IF(K51="Full",E59*($L$2/100),0) -> 0 | F62: =IF(K51="Full",F59*($L$2/100),0) -> 0 | G62: =IF(K51="Full",G59*($L$2/100),0) -> 0 | H62: =IF(K51="Full",H59*($L$2/100),0) -> 0 | I62: =IF(K51="Full",I59*($L$2/100),0) -> 0 | J62: =IF(K51="Full",J59*($L$2/100),0) -> 0 | K62: 0
D63: TOTALS | E63: =SUM(E59:E62) -> 0 | F63: 0 | G63: 0 | H63: 0 | I63: 0 | J63: 0 | K63: 0 | M63: =IF(M57=0,"0",CELL("row",M63)+1) -> 0
A65: =A50+1 -> 5 | C65: Name | H65: Dept: | K65: =IF(I65>0,VLOOKUP(I65,DepartmentsandDivisions,3,FALSE),"") ->  | AI65: =IF(AND(E65<>"",I65=""),1,0) -> 0
C66: Status | D66: =IF(OR(C70<>"",M72<>0),Calcs!$B$64,"") -> 7611 - Indirect Academic | F66: Super | G66: Uni | H66: TA | J66: O/H | K66: =FunderOverheads -> Full | M66: =IF(D66="","",VLOOKUP(D66,Calcs!$B$64:$C$65,2,FALSE)) -> 4
C68: =C$6 -> Salary Group ▼ | E68: =E$6 -> Progressed? ► | F68: FALSE
F69: FALSE | G69: FALSE | H69: FALSE | I69: FALSE | J69: FALSE
C70: Academic | E70: =$E$8 -> 1 (2024) | F70: =F$8 -> 2 | G70: =F70+1 -> 3 | H70: =G70+1 -> 4 | I70: =H70+1 -> 5 | J70: =I70+1 -> 6
D71: Grade | F71: =IF(Summary!$O$5<F$8,"",IF(E71="","",IFERROR(IF(F69,INDEX(INDIRECT(CONCATENATE("_",LEFT(E71,3))),MATCH(E71,INDIRECT(CONCATENATE("_",LEFT(E71,3))),0)+1),E71),INDEX(INDIRECT(CONCATENATE("_",LEFT(E71,3))),COUNTA(INDIRECT(CONCATENATE("_",LEFT(E71,3)))))))) ->  | G71: =IF(Summary!$O$5<G$8,"",IF(F71="","",IFERROR(IF(G69,INDEX(INDIRECT(CONCATENATE("_",LEFT(F71,3))),MATCH(F71,INDIRECT(CONCATENATE("_",LEFT(F71,3))),0)+1),F71),INDEX(INDIRECT(CONCATENATE("_",LEFT(F71,3))),COUNTA(INDIRECT(CONCATENATE("_",LEFT(F71,3)))))))) ->  | H71: =IF(Summary!$O$5<H$8,"",IF(G71="","",IFERROR(IF(H69,INDEX(INDIRECT(CONCATENATE("_",LEFT(G71,3))),MATCH(G71,INDIRECT(CONCATENATE("_",LEFT(G71,3))),0)+1),G71),INDEX(INDIRECT(CONCATENATE("_",LEFT(G71,3))),COUNTA(INDIRECT(CONCATENATE("_",LEFT(G71,3)))))))) ->  | I71: =IF(Summary!$O$5<I$8,"",IF(H71="","",IFERROR(IF(I69,INDEX(INDIRECT(CONCATENATE("_",LEFT(H71,3))),MATCH(H71,INDIRECT(CONCATENATE("_",LEFT(H71,3))),0)+1),H71),INDEX(INDIRECT(CONCATENATE("_",LEFT(H71,3))),COUNTA(INDIRECT(CONCATENATE("_",LEFT(H71,3)))))))) ->  | J71: =IF(Summary!$O$5<J$8,"",IF(I71="","",IFERROR(IF(J69,INDEX(INDIRECT(CONCATENATE("_",LEFT(I71,3))),MATCH(I71,INDIRECT(CONCATENATE("_",LEFT(I71,3))),0)+1),I71),INDEX(INDIRECT(CONCATENATE("_",LEFT(I71,3))),COUNTA(INDIRECT(CONCATENATE("_",LEFT(I71,3)))))))) ->  | M71: =CONCATENATE("_",LEFT(E71,3)) -> _
D72: Salary | E72: =IFERROR(IF(E71="","",VLOOKUP(E71,SalaryGrades,$M$16,FALSE)),"") ->  | F72: =IFERROR(IF(F71="","",VLOOKUP(F71,SalaryGrades,$M$16+1,FALSE)),"") ->  | G72: =IFERROR(IF(G71="","",VLOOKUP(G71,SalaryGrades,$M$16+2,FALSE)),"") ->  | H72: =IFERROR(IF(H71="","",VLOOKUP(H71,SalaryGrades,$M$16+3,FALSE)),"") ->  | I72: =IFERROR(IF(I71="","",VLOOKUP(I71,SalaryGrades,$M$16+4,FALSE)),"") ->  | J72: =IFERROR(IF(J71="","",VLOOKUP(J71,SalaryGrades,$M$16+5,FALSE)),"") ->  | K72: Totals | M72: =SUM(LEN(E71),LEN(F71),LEN(G71),LEN(H71),LEN(I71),LEN(J71)) -> 0
D73: FTE | K73: =SUM(E73:J73) -> 0
D74: Salary cost | E74: =IFERROR(IF(E73>0,E73*(E72+$I66),0),0) -> 0 | F74: 0 | G74: 0 | H74: 0 | I74: 0 | J74: 0 | K74: 0
D75: Super | E75: =IF(E73>0,(VLOOKUP(G66,Calcs!$H$4:$I$7,2,FALSE)*E74),0) -> 0 | F75: =IF(F73>0,(VLOOKUP(G66,Calcs!$H$4:$I$7,2,FALSE)*F74),0) -> 0 | G75: =IF(G73>0,(VLOOKUP(G66,Calcs!$H$4:$I$7,2,FALSE)*G74),0) -> 0 | H75: =IF(H73>0,(VLOOKUP(G66,Calcs!$H$4:$I$7,2,FALSE)*H74),0) -> 0 | I75: =IF(I73>0,(VLOOKUP(G66,Calcs!$H$4:$I$7,2,FALSE)*I74),0) -> 0 | J75: =IF(J73>0,(VLOOKUP(G66,Calcs!$H$4:$I$7,2,FALSE)*J74),0) -> 0 | K75: 0
D76: ACC | E76: =E74*Calcs!$C$8 -> 0 | F76: =F74*Calcs!$C$8 -> 0 | G76: =G74*Calcs!$C$8 -> 0 | H76: =H74*Calcs!$C$8 -> 0 | I76: =I74*Calcs!$C$8 -> 0 | J76: =J74*Calcs!$C$8 -> 0 | K76: 0
D77: Overheads | E77: =IF(K66="Full",E74*($L$2/100),0) -> 0 | F77: =IF(K66="Full",F74*($L$2/100),0) -> 0 | G77: =IF(K66="Full",G74*($L$2/100),0) -> 0 | H77: =IF(K66="Full",H74*($L$2/100),0) -> 0 | I77: =IF(K66="Full",I74*($L$2/100),0) -> 0 | J77: =IF(K66="Full",J74*($L$2/100),0) -> 0 | K77: 0
D78: TOTALS | E78: =SUM(E74:E77) -> 0 | F78: 0 | G78: 0 | H78: 0 | I78: 0 | J78: 0 | K78: 0 | M78: =IF(M72=0,"0",CELL("row",M78)+1) -> 0
A80: =A65+1 -> 6 | C80: Name | H80: Dept: | K80: =IF(I80>0,VLOOKUP(I80,DepartmentsandDivisions,3,FALSE),"") ->  | AI80: =IF(AND(E80<>"",I80=""),1,0) -> 0
C81: Status | D81: =IF(OR(C85<>"",M87<>0),Calcs!$B$64,"") -> 7611 - Indirect Academic | F81: Super | G81: Uni | H81: TA | J81: O/H | K81: =FunderOverheads -> Full | M81: =IF(D81="","",VLOOKUP(D81,Calcs!$B$64:$C$65,2,FALSE)) -> 4
C83: =C$6 -> Salary Group ▼ | E83: =E$6 -> Progressed? ► | F83: FALSE
F84: FALSE | G84: FALSE | H84: FALSE | I84: FALSE | J84: FALSE
C85: Academic | E85: =$E$8 -> 1 (2024) | F85: =F$8 -> 2 | G85: =F85+1 -> 3 | H85: =G85+1 -> 4 | I85: =H85+1 -> 5 | J85: =I85+1 -> 6
D86: Grade | F86: =IF(Summary!$O$5<F$8,"",IF(E86="","",IFERROR(IF(F84,INDEX(INDIRECT(CONCATENATE("_",LEFT(E86,3))),MATCH(E86,INDIRECT(CONCATENATE("_",LEFT(E86,3))),0)+1),E86),INDEX(INDIRECT(CONCATENATE("_",LEFT(E86,3))),COUNTA(INDIRECT(CONCATENATE("_",LEFT(E86,3)))))))) ->  | G86: =IF(Summary!$O$5<G$8,"",IF(F86="","",IFERROR(IF(G84,INDEX(INDIRECT(CONCATENATE("_",LEFT(F86,3))),MATCH(F86,INDIRECT(CONCATENATE("_",LEFT(F86,3))),0)+1),F86),INDEX(INDIRECT(CONCATENATE("_",LEFT(F86,3))),COUNTA(INDIRECT(CONCATENATE("_",LEFT(F86,3)))))))) ->  | H86: =IF(Summary!$O$5<H$8,"",IF(G86="","",IFERROR(IF(H84,INDEX(INDIRECT(CONCATENATE("_",LEFT(G86,3))),MATCH(G86,INDIRECT(CONCATENATE("_",LEFT(G86,3))),0)+1),G86),INDEX(INDIRECT(CONCATENATE("_",LEFT(G86,3))),COUNTA(INDIRECT(CONCATENATE("_",LEFT(G86,3)))))))) ->  | I86: =IF(Summary!$O$5<I$8,"",IF(H86="","",IFERROR(IF(I84,INDEX(INDIRECT(CONCATENATE("_",LEFT(H86,3))),MATCH(H86,INDIRECT(CONCATENATE("_",LEFT(H86,3))),0)+1),H86),INDEX(INDIRECT(CONCATENATE("_",LEFT(H86,3))),COUNTA(INDIRECT(CONCATENATE("_",LEFT(H86,3)))))))) ->  | J86: =IF(Summary!$O$5<J$8,"",IF(I86="","",IFERROR(IF(J84,INDEX(INDIRECT(CONCATENATE("_",LEFT(I86,3))),MATCH(I86,INDIRECT(CONCATENATE("_",LEFT(I86,3))),0)+1),I86),INDEX(INDIRECT(CONCATENATE("_",LEFT(I86,3))),COUNTA(INDIRECT(CONCATENATE("_",LEFT(I86,3)))))))) ->  | M86: =CONCATENATE("_",LEFT(E86,3)) -> _
D87: Salary | E87: =IFERROR(IF(E86="","",VLOOKUP(E86,SalaryGrades,$M$16,FALSE)),"") ->  | F87: =IFERROR(IF(F86="","",VLOOKUP(F86,SalaryGrades,$M$16+1,FALSE)),"") ->  | G87: =IFERROR(IF(G86="","",VLOOKUP(G86,SalaryGrades,$M$16+2,FALSE)),"") ->  | H87: =IFERROR(IF(H86="","",VLOOKUP(H86,SalaryGrades,$M$16+3,FALSE)),"") ->  | I87: =IFERROR(IF(I86="","",VLOOKUP(I86,SalaryGrades,$M$16+4,FALSE)),"") ->  | J87: =IFERROR(IF(J86="","",VLOOKUP(J86,SalaryGrades,$M$16+5,FALSE)),"") ->  | K87: Totals | M87: =SUM(LEN(E86),LEN(F86),LEN(G86),LEN(H86),LEN(I86),LEN(J86)) -> 0
D88: FTE | K88: =SUM(E88:J88) -> 0
D89: Salary cost | E89: =IFERROR(IF(E88>0,E88*(E87+$I81),0),0) -> 0 | F89: 0 | G89: 0 | H89: 0 | I89: 0 | J89: 0 | K89: 0
D90: Super | E90: =IF(E88>0,(VLOOKUP(G81,Calcs!$H$4:$I$7,2,FALSE)*E89),0) -> 0 | F90: =IF(F88>0,(VLOOKUP(G81,Calcs!$H$4:$I$7,2,FALSE)*F89),0) -> 0 | G90: =IF(G88>0,(VLOOKUP(G81,Calcs!$H$4:$I$7,2,FALSE)*G89),0) -> 0 | H90: =IF(H88>0,(VLOOKUP(G81,Calcs!$H$4:$I$7,2,FALSE)*H89),0) -> 0 | I90: =IF(I88>0,(VLOOKUP(G81,Calcs!$H$4:$I$7,2,FALSE)*I89),0) -> 0 | J90: =IF(J88>0,(VLOOKUP(G81,Calcs!$H$4:$I$7,2,FALSE)*J89),0) -> 0 | K90: 0
D91: ACC | E91: =E89*Calcs!$C$8 -> 0 | F91: =F89*Calcs!$C$8 -> 0 | G91: =G89*Calcs!$C$8 -> 0 | H91: =H89*Calcs!$C$8 -> 0 | I91: =I89*Calcs!$C$8 -> 0 | J91: =J89*Calcs!$C$8 -> 0 | K91: 0
D92: Overheads | E92: =IF(K81="Full",E89*($L$2/100),0) -> 0 | F92: =IF(K81="Full",F89*($L$2/100),0) -> 0 | G92: =IF(K81="Full",G89*($L$2/100),0) -> 0 | H92: =IF(K81="Full",H89*($L$2/100),0) -> 0 | I92: =IF(K81="Full",I89*($L$2/100),0) -> 0 | J92: =IF(K81="Full",J89*($L$2/100),0) -> 0 | K92: 0
D93: TOTALS | E93: =SUM(E89:E92) -> 0 | F93: 0 | G93: 0 | H93: 0 | I93: 0 | J93: 0 | K93: 0 | M93: =IF(M87=0,"0",CELL("row",M93)+1) -> 0
A95: =A80+1 -> 7 | C95: Name | H95: Dept: | K95: =IF(I95>0,VLOOKUP(I95,DepartmentsandDivisions,3,FALSE),"") ->  | AI95: =IF(AND(E95<>"",I95=""),1,0) -> 0
C96: Status | D96: =IF(OR(C100<>"",M102<>0),Calcs!$B$64,"") -> 7611 - Indirect Academic | F96: Super | G96: Uni | H96: TA | J96: O/H | K96: =FunderOverheads -> Full | M96: =IF(D96="","",VLOOKUP(D96,Calcs!$B$64:$C$65,2,FALSE)) -> 4
C98: =C$6 -> Salary Group ▼ | E98: =E$6 -> Progressed? ► | F98: FALSE
F99: FALSE | G99: FALSE | H99: FALSE | I99: FALSE | J99: FALSE
C100: Academic | E100: =$E$8 -> 1 (2024) | F100: =F$8 -> 2 | G100: =F100+1 -> 3 | H100: =G100+1 -> 4 | I100: =H100+1 -> 5 | J100: =I100+1 -> 6
D101: Grade | F101: =IF(Summary!$O$5<F$8,"",IF(E101="","",IFERROR(IF(F99,INDEX(INDIRECT(CONCATENATE("_",LEFT(E101,3))),MATCH(E101,INDIRECT(CONCATENATE("_",LEFT(E101,3))),0)+1),E101),INDEX(INDIRECT(CONCATENATE("_",LEFT(E101,3))),COUNTA(INDIRECT(CONCATENATE("_",LEFT(E101,3)))))))) ->  | G101: =IF(Summary!$O$5<G$8,"",IF(F101="","",IFERROR(IF(G99,INDEX(INDIRECT(CONCATENATE("_",LEFT(F101,3))),MATCH(F101,INDIRECT(CONCATENATE("_",LEFT(F101,3))),0)+1),F101),INDEX(INDIRECT(CONCATENATE("_",LEFT(F101,3))),COUNTA(INDIRECT(CONCATENATE("_",LEFT(F101,3)))))))) ->  | H101: =IF(Summary!$O$5<H$8,"",IF(G101="","",IFERROR(IF(H99,INDEX(INDIRECT(CONCATENATE("_",LEFT(G101,3))),MATCH(G101,INDIRECT(CONCATENATE("_",LEFT(G101,3))),0)+1),G101),INDEX(INDIRECT(CONCATENATE("_",LEFT(G101,3))),COUNTA(INDIRECT(CONCATENATE("_",LEFT(G101,3)))))))) ->  | I101: =IF(Summary!$O$5<I$8,"",IF(H101="","",IFERROR(IF(I99,INDEX(INDIRECT(CONCATENATE("_",LEFT(H101,3))),MATCH(H101,INDIRECT(CONCATENATE("_",LEFT(H101,3))),0)+1),H101),INDEX(INDIRECT(CONCATENATE("_",LEFT(H101,3))),COUNTA(INDIRECT(CONCATENATE("_",LEFT(H101,3)))))))) ->  | J101: =IF(Summary!$O$5<J$8,"",IF(I101="","",IFERROR(IF(J99,INDEX(INDIRECT(CONCATENATE("_",LEFT(I101,3))),MATCH(I101,INDIRECT(CONCATENATE("_",LEFT(I101,3))),0)+1),I101),INDEX(INDIRECT(CONCATENATE("_",LEFT(I101,3))),COUNTA(INDIRECT(CONCATENATE("_",LEFT(I101,3)))))))) ->  | M101: =CONCATENATE("_",LEFT(E101,3)) -> _
D102: Salary | E102: =IFERROR(IF(E101="","",VLOOKUP(E101,SalaryGrades,$M$16,FALSE)),"") ->  | F102: =IFERROR(IF(F101="","",VLOOKUP(F101,SalaryGrades,$M$16+1,FALSE)),"") ->  | G102: =IFERROR(IF(G101="","",VLOOKUP(G101,SalaryGrades,$M$16+2,FALSE)),"") ->  | H102: =IFERROR(IF(H101="","",VLOOKUP(H101,SalaryGrades,$M$16+3,FALSE)),"") ->  | I102: =IFERROR(IF(I101="","",VLOOKUP(I101,SalaryGrades,$M$16+4,FALSE)),"") ->  | J102: =IFERROR(IF(J101="","",VLOOKUP(J101,SalaryGrades,$M$16+5,FALSE)),"") ->  | K102: Totals | M102: =SUM(LEN(E101),LEN(F101),LEN(G101),LEN(H101),LEN(I101),LEN(J101)) -> 0
D103: FTE | K103: =SUM(E103:J103) -> 0
D104: Salary cost | E104: =IFERROR(IF(E103>0,E103*(E102+$I96),0),0) -> 0 | F104: 0 | G104: 0 | H104: 0 | I104: 0 | J104: 0 | K104: 0
D105: Super | E105: =IF(E103>0,(VLOOKUP(G96,Calcs!$H$4:$I$7,2,FALSE)*E104),0) -> 0 | F105: =IF(F103>0,(VLOOKUP(G96,Calcs!$H$4:$I$7,2,FALSE)*F104),0) -> 0 | G105: =IF(G103>0,(VLOOKUP(G96,Calcs!$H$4:$I$7,2,FALSE)*G104),0) -> 0 | H105: =IF(H103>0,(VLOOKUP(G96,Calcs!$H$4:$I$7,2,FALSE)*H104),0) -> 0 | I105: =IF(I103>0,(VLOOKUP(G96,Calcs!$H$4:$I$7,2,FALSE)*I104),0) -> 0 | J105: =IF(J103>0,(VLOOKUP(G96,Calcs!$H$4:$I$7,2,FALSE)*J104),0) -> 0 | K105: 0
D106: ACC | E106: =E104*Calcs!$C$8 -> 0 | F106: =F104*Calcs!$C$8 -> 0 | G106: =G104*Calcs!$C$8 -> 0 | H106: =H104*Calcs!$C$8 -> 0 | I106: =I104*Calcs!$C$8 -> 0 | J106: =J104*Calcs!$C$8 -> 0 | K106: 0
D107: Overheads | E107: =IF(K96="Full",E104*($L$2/100),0) -> 0 | F107: =IF(K96="Full",F104*($L$2/100),0) -> 0 | G107: =IF(K96="Full",G104*($L$2/100),0) -> 0 | H107: =IF(K96="Full",H104*($L$2/100),0) -> 0 | I107: =IF(K96="Full",I104*($L$2/100),0) -> 0 | J107: =IF(K96="Full",J104*($L$2/100),0) -> 0 | K107: 0
D108: TOTALS | E108: =SUM(E104:E107) -> 0 | F108: 0 | G108: 0 | H108: 0 | I108: 0 | J108: 0 | K108: 0 | M108: =IF(M102=0,"0",CELL("row",M108)+1) -> 0
A110: =A95+1 -> 8 | C110: Name | H110: Dept: | K110: =IF(I110>0,VLOOKUP(I110,DepartmentsandDivisions,3,FALSE),"") ->  | AI110: =IF(AND(E110<>"",I110=""),1,0) -> 0
C111: Status | D111: =IF(OR(C115<>"",M117<>0),Calcs!$B$64,"") -> 7611 - Indirect Academic | F111: Super | G111: Uni | H111: TA | J111: O/H | K111: =FunderOverheads -> Full | M111: =IF(D111="","",VLOOKUP(D111,Calcs!$B$64:$C$65,2,FALSE)) -> 4
C113: =C$6 -> Salary Group ▼ | E113: =E$6 -> Progressed? ► | F113: FALSE
F114: FALSE | G114: FALSE | H114: FALSE | I114: FALSE | J114: FALSE
C115: Academic | E115: =$E$8 -> 1 (2024) | F115: =F$8 -> 2 | G115: =F115+1 -> 3 | H115: =G115+1 -> 4 | I115: =H115+1 -> 5 | J115: =I115+1 -> 6
D116: Grade | F116: =IF(Summary!$O$5<F$8,"",IF(E116="","",IFERROR(IF(F114,INDEX(INDIRECT(CONCATENATE("_",LEFT(E116,3))),MATCH(E116,INDIRECT(CONCATENATE("_",LEFT(E116,3))),0)+1),E116),INDEX(INDIRECT(CONCATENATE("_",LEFT(E116,3))),COUNTA(INDIRECT(CONCATENATE("_",LEFT(E116,3)))))))) ->  | G116: =IF(Summary!$O$5<G$8,"",IF(F116="","",IFERROR(IF(G114,INDEX(INDIRECT(CONCATENATE("_",LEFT(F116,3))),MATCH(F116,INDIRECT(CONCATENATE("_",LEFT(F116,3))),0)+1),F116),INDEX(INDIRECT(CONCATENATE("_",LEFT(F116,3))),COUNTA(INDIRECT(CONCATENATE("_",LEFT(F116,3)))))))) ->  | H116: =IF(Summary!$O$5<H$8,"",IF(G116="","",IFERROR(IF(H114,INDEX(INDIRECT(CONCATENATE("_",LEFT(G116,3))),MATCH(G116,INDIRECT(CONCATENATE("_",LEFT(G116,3))),0)+1),G116),INDEX(INDIRECT(CONCATENATE("_",LEFT(G116,3))),COUNTA(INDIRECT(CONCATENATE("_",LEFT(G116,3)))))))) ->  | I116: =IF(Summary!$O$5<I$8,"",IF(H116="","",IFERROR(IF(I114,INDEX(INDIRECT(CONCATENATE("_",LEFT(H116,3))),MATCH(H116,INDIRECT(CONCATENATE("_",LEFT(H116,3))),0)+1),H116),INDEX(INDIRECT(CONCATENATE("_",LEFT(H116,3))),COUNTA(INDIRECT(CONCATENATE("_",LEFT(H116,3)))))))) ->  | J116: =IF(Summary!$O$5<J$8,"",IF(I116="","",IFERROR(IF(J114,INDEX(INDIRECT(CONCATENATE("_",LEFT(I116,3))),MATCH(I116,INDIRECT(CONCATENATE("_",LEFT(I116,3))),0)+1),I116),INDEX(INDIRECT(CONCATENATE("_",LEFT(I116,3))),COUNTA(INDIRECT(CONCATENATE("_",LEFT(I116,3)))))))) ->  | M116: =CONCATENATE("_",LEFT(E116,3)) -> _
D117: Salary | E117: =IFERROR(IF(E116="","",VLOOKUP(E116,SalaryGrades,$M$16,FALSE)),"") ->  | F117: =IFERROR(IF(F116="","",VLOOKUP(F116,SalaryGrades,$M$16+1,FALSE)),"") ->  | G117: =IFERROR(IF(G116="","",VLOOKUP(G116,SalaryGrades,$M$16+2,FALSE)),"") ->  | H117: =IFERROR(IF(H116="","",VLOOKUP(H116,SalaryGrades,$M$16+3,FALSE)),"") ->  | I117: =IFERROR(IF(I116="","",VLOOKUP(I116,SalaryGrades,$M$16+4,FALSE)),"") ->  | J117: =IFERROR(IF(J116="","",VLOOKUP(J116,SalaryGrades,$M$16+5,FALSE)),"") ->  | K117: Totals | M117: =SUM(LEN(E116),LEN(F116),LEN(G116),LEN(H116),LEN(I116),LEN(J116)) -> 0
D118: FTE | K118: =SUM(E118:J118) -> 0
D119: Salary cost | E119: =IFERROR(IF(E118>0,E118*(E117+$I111),0),0) -> 0 | F119: 0 | G119: 0 | H119: 0 | I119: 0 | J119: 0 | K119: 0
D120: Super | E120: =IF(E118>0,(VLOOKUP(G111,Calcs!$H$4:$I$7,2,FALSE)*E119),0) -> 0 | F120: =IF(F118>0,(VLOOKUP(G111,Calcs!$H$4:$I$7,2,FALSE)*F119),0) -> 0 | G120: =IF(G118>0,(VLOOKUP(G111,Calcs!$H$4:$I$7,2,FALSE)*G119),0) -> 0 | H120: =IF(H118>0,(VLOOKUP(G111,Calcs!$H$4:$I$7,2,FALSE)*H119),0) -> 0 | I120: =IF(I118>0,(VLOOKUP(G111,Calcs!$H$4:$I$7,2,FALSE)*I119),0) -> 0 | J120: =IF(J118>0,(VLOOKUP(G111,Calcs!$H$4:$I$7,2,FALSE)*J119),0) -> 0 | K120: 0
D121: ACC | E121: =E119*Calcs!$C$8 -> 0 | F121: =F119*Calcs!$C$8 -> 0 | G121: =G119*Calcs!$C$8 -> 0 | H121: =H119*Calcs!$C$8 -> 0 | I121: =I119*Calcs!$C$8 -> 0 | J121: =J119*Calcs!$C$8 -> 0 | K121: 0
D122: Overheads | E122: =IF(K111="Full",E119*($L$2/100),0) -> 0 | F122: =IF(K111="Full",F119*($L$2/100),0) -> 0 | G122: =IF(K111="Full",G119*($L$2/100),0) -> 0 | H122: =IF(K111="Full",H119*($L$2/100),0) -> 0 | I122: =IF(K111="Full",I119*($L$2/100),0) -> 0 | J122: =IF(K111="Full",J119*($L$2/100),0) -> 0 | K122: 0
D123: TOTALS | E123: =SUM(E119:E122) -> 0 | F123: 0 | G123: 0 | H123: 0 | I123: 0 | J123: 0 | K123: 0 | M123: =IF(M117=0,"0",CELL("row",M123)+1) -> 0
A125: =A110+1 -> 9 | C125: Name | H125: Dept: | K125: =IF(I125>0,VLOOKUP(I125,DepartmentsandDivisions,3,FALSE),"") ->  | P125: =IF(K138<>0,TRUE,FALSE) -> FALSE | AI125: =IF(AND(E125<>"",I125=""),1,0) -> 0
C126: Status | D126: =IF(OR(C130<>"",M132<>0),Calcs!$B$64,"") -> 7611 - Indirect Academic | F126: Super | G126: Uni | H126: TA | J126: O/H | K126: =FunderOverheads -> Full | M126: =IF(D126="","",VLOOKUP(D126,Calcs!$B$64:$C$65,2,FALSE)) -> 4
C128: =C$6 -> Salary Group ▼ | E128: =E$6 -> Progressed? ► | F128: FALSE
F129: FALSE | G129: FALSE | H129: FALSE | I129: FALSE | J129: FALSE
C130: Academic | E130: =$E$8 -> 1 (2024) | F130: =F$8 -> 2 | G130: =F130+1 -> 3 | H130: =G130+1 -> 4 | I130: =H130+1 -> 5 | J130: =I130+1 -> 6
D131: Grade | F131: =IF(Summary!$O$5<F$8,"",IF(E131="","",IFERROR(IF(F129,INDEX(INDIRECT(CONCATENATE("_",LEFT(E131,3))),MATCH(E131,INDIRECT(CONCATENATE("_",LEFT(E131,3))),0)+1),E131),INDEX(INDIRECT(CONCATENATE("_",LEFT(E131,3))),COUNTA(INDIRECT(CONCATENATE("_",LEFT(E131,3)))))))) ->  | G131: =IF(Summary!$O$5<G$8,"",IF(F131="","",IFERROR(IF(G129,INDEX(INDIRECT(CONCATENATE("_",LEFT(F131,3))),MATCH(F131,INDIRECT(CONCATENATE("_",LEFT(F131,3))),0)+1),F131),INDEX(INDIRECT(CONCATENATE("_",LEFT(F131,3))),COUNTA(INDIRECT(CONCATENATE("_",LEFT(F131,3)))))))) ->  | H131: =IF(Summary!$O$5<H$8,"",IF(G131="","",IFERROR(IF(H129,INDEX(INDIRECT(CONCATENATE("_",LEFT(G131,3))),MATCH(G131,INDIRECT(CONCATENATE("_",LEFT(G131,3))),0)+1),G131),INDEX(INDIRECT(CONCATENATE("_",LEFT(G131,3))),COUNTA(INDIRECT(CONCATENATE("_",LEFT(G131,3)))))))) ->  | I131: =IF(Summary!$O$5<I$8,"",IF(H131="","",IFERROR(IF(I129,INDEX(INDIRECT(CONCATENATE("_",LEFT(H131,3))),MATCH(H131,INDIRECT(CONCATENATE("_",LEFT(H131,3))),0)+1),H131),INDEX(INDIRECT(CONCATENATE("_",LEFT(H131,3))),COUNTA(INDIRECT(CONCATENATE("_",LEFT(H131,3)))))))) ->  | J131: =IF(Summary!$O$5<J$8,"",IF(I131="","",IFERROR(IF(J129,INDEX(INDIRECT(CONCATENATE("_",LEFT(I131,3))),MATCH(I131,INDIRECT(CONCATENATE("_",LEFT(I131,3))),0)+1),I131),INDEX(INDIRECT(CONCATENATE("_",LEFT(I131,3))),COUNTA(INDIRECT(CONCATENATE("_",LEFT(I131,3)))))))) ->  | M131: =CONCATENATE("_",LEFT(E131,3)) -> _
D132: Salary | E132: =IFERROR(IF(E131="","",VLOOKUP(E131,SalaryGrades,$M$16,FALSE)),"") ->  | F132: =IFERROR(IF(F131="","",VLOOKUP(F131,SalaryGrades,$M$16+1,FALSE)),"") ->  | G132: =IFERROR(IF(G131="","",VLOOKUP(G131,SalaryGrades,$M$16+2,FALSE)),"") ->  | H132: =IFERROR(IF(H131="","",VLOOKUP(H131,SalaryGrades,$M$16+3,FALSE)),"") ->  | I132: =IFERROR(IF(I131="","",VLOOKUP(I131,SalaryGrades,$M$16+4,FALSE)),"") ->  | J132: =IFERROR(IF(J131="","",VLOOKUP(J131,SalaryGrades,$M$16+5,FALSE)),"") ->  | K132: Totals | M132: =SUM(LEN(E131),LEN(F131),LEN(G131),LEN(H131),LEN(I131),LEN(J131)) -> 0
D133: FTE | K133: =SUM(E133:J133) -> 0
D134: Salary cost | E134: =IFERROR(IF(E133>0,E133*(E132+$I126),0),0) -> 0 | F134: 0 | G134: 0 | H134: 0 | I134: 0 | J134: 0 | K134: 0
D135: Super | E135: =IF(E133>0,(VLOOKUP(G126,Calcs!$H$4:$I$7,2,FALSE)*E134),0) -> 0 | F135: =IF(F133>0,(VLOOKUP(G126,Calcs!$H$4:$I$7,2,FALSE)*F134),0) -> 0 | G135: =IF(G133>0,(VLOOKUP(G126,Calcs!$H$4:$I$7,2,FALSE)*G134),0) -> 0 | H135: =IF(H133>0,(VLOOKUP(G126,Calcs!$H$4:$I$7,2,FALSE)*H134),0) -> 0 | I135: =IF(I133>0,(VLOOKUP(G126,Calcs!$H$4:$I$7,2,FALSE)*I134),0) -> 0 | J135: =IF(J133>0,(VLOOKUP(G126,Calcs!$H$4:$I$7,2,FALSE)*J134),0) -> 0 | K135: 0
D136: ACC | E136: =E134*Calcs!$C$8 -> 0 | F136: =F134*Calcs!$C$8 -> 0 | G136: =G134*Calcs!$C$8 -> 0 | H136: =H134*Calcs!$C$8 -> 0 | I136: =I134*Calcs!$C$8 -> 0 | J136: =J134*Calcs!$C$8 -> 0 | K136: 0
D137: Overheads | E137: =IF(K126="Full",E134*($L$2/100),0) -> 0 | F137: =IF(K126="Full",F134*($L$2/100),0) -> 0 | G137: =IF(K126="Full",G134*($L$2/100),0) -> 0 | H137: =IF(K126="Full",H134*($L$2/100),0) -> 0 | I137: =IF(K126="Full",I134*($L$2/100),0) -> 0 | J137: =IF(K126="Full",J134*($L$2/100),0) -> 0 | K137: 0
D138: TOTALS | E138: =SUM(E134:E137) -> 0 | F138: 0 | G138: 0 | H138: 0 | I138: 0 | J138: 0 | K138: 0 | M138: =IF(M132=0,"0",CELL("row",M138)+1) -> 0
A140: =A125+1 -> 10 | C140: Name | H140: Dept: | K140: =IF(I140>0,VLOOKUP(I140,DepartmentsandDivisions,3,FALSE),"") ->  | AI140: =IF(AND(E140<>"",I140=""),1,0) -> 0
C141: Status | D141: =IF(OR(C145<>"",M147<>0),Calcs!$B$64,"") -> 7611 - Indirect Academic | F141: Super | G141: Uni | H141: TA | J141: O/H | K141: =FunderOverheads -> Full | M141: =IF(D141="","",VLOOKUP(D141,Calcs!$B$64:$C$65,2,FALSE)) -> 4
C143: =C$6 -> Salary Group ▼ | E143: =E$6 -> Progressed? ► | F143: FALSE
F144: FALSE | G144: FALSE | H144: FALSE | I144: FALSE | J144: FALSE
C145: Academic | E145: =$E$8 -> 1 (2024) | F145: =F$8 -> 2 | G145: =F145+1 -> 3 | H145: =G145+1 -> 4 | I145: =H145+1 -> 5 | J145: =I145+1 -> 6
D146: Grade | F146: =IF(Summary!$O$5<F$8,"",IF(E146="","",IFERROR(IF(F144,INDEX(INDIRECT(CONCATENATE("_",LEFT(E146,3))),MATCH(E146,INDIRECT(CONCATENATE("_",LEFT(E146,3))),0)+1),E146),INDEX(INDIRECT(CONCATENATE("_",LEFT(E146,3))),COUNTA(INDIRECT(CONCATENATE("_",LEFT(E146,3)))))))) ->  | G146: =IF(Summary!$O$5<G$8,"",IF(F146="","",IFERROR(IF(G144,INDEX(INDIRECT(CONCATENATE("_",LEFT(F146,3))),MATCH(F146,INDIRECT(CONCATENATE("_",LEFT(F146,3))),0)+1),F146),INDEX(INDIRECT(CONCATENATE("_",LEFT(F146,3))),COUNTA(INDIRECT(CONCATENATE("_",LEFT(F146,3)))))))) ->  | H146: =IF(Summary!$O$5<H$8,"",IF(G146="","",IFERROR(IF(H144,INDEX(INDIRECT(CONCATENATE("_",LEFT(G146,3))),MATCH(G146,INDIRECT(CONCATENATE("_",LEFT(G146,3))),0)+1),G146),INDEX(INDIRECT(CONCATENATE("_",LEFT(G146,3))),COUNTA(INDIRECT(CONCATENATE("_",LEFT(G146,3)))))))) ->  | I146: =IF(Summary!$O$5<I$8,"",IF(H146="","",IFERROR(IF(I144,INDEX(INDIRECT(CONCATENATE("_",LEFT(H146,3))),MATCH(H146,INDIRECT(CONCATENATE("_",LEFT(H146,3))),0)+1),H146),INDEX(INDIRECT(CONCATENATE("_",LEFT(H146,3))),COUNTA(INDIRECT(CONCATENATE("_",LEFT(H146,3)))))))) ->  | J146: =IF(Summary!$O$5<J$8,"",IF(I146="","",IFERROR(IF(J144,INDEX(INDIRECT(CONCATENATE("_",LEFT(I146,3))),MATCH(I146,INDIRECT(CONCATENATE("_",LEFT(I146,3))),0)+1),I146),INDEX(INDIRECT(CONCATENATE("_",LEFT(I146,3))),COUNTA(INDIRECT(CONCATENATE("_",LEFT(I146,3)))))))) ->  | M146: =CONCATENATE("_",LEFT(E146,3)) -> _
D147: Salary | E147: =IFERROR(IF(E146="","",VLOOKUP(E146,SalaryGrades,$M$16,FALSE)),"") ->  | F147: =IFERROR(IF(F146="","",VLOOKUP(F146,SalaryGrades,$M$16+1,FALSE)),"") ->  | G147: =IFERROR(IF(G146="","",VLOOKUP(G146,SalaryGrades,$M$16+2,FALSE)),"") ->  | H147: =IFERROR(IF(H146="","",VLOOKUP(H146,SalaryGrades,$M$16+3,FALSE)),"") ->  | I147: =IFERROR(IF(I146="","",VLOOKUP(I146,SalaryGrades,$M$16+4,FALSE)),"") ->  | J147: =IFERROR(IF(J146="","",VLOOKUP(J146,SalaryGrades,$M$16+5,FALSE)),"") ->  | K147: Totals | M147: =SUM(LEN(E146),LEN(F146),LEN(G146),LEN(H146),LEN(I146),LEN(J146)) -> 0
D148: FTE | K148: =SUM(E148:J148) -> 0
D149: Salary cost | E149: =IFERROR(IF(E148>0,E148*(E147+$I141),0),0) -> 0 | F149: 0 | G149: 0 | H149: 0 | I149: 0 | J149: 0 | K149: 0
D150: Super | E150: =IF(E148>0,(VLOOKUP(G141,Calcs!$H$4:$I$7,2,FALSE)*E149),0) -> 0 | F150: =IF(F148>0,(VLOOKUP(G141,Calcs!$H$4:$I$7,2,FALSE)*F149),0) -> 0 | G150: =IF(G148>0,(VLOOKUP(G141,Calcs!$H$4:$I$7,2,FALSE)*G149),0) -> 0 | H150: =IF(H148>0,(VLOOKUP(G141,Calcs!$H$4:$I$7,2,FALSE)*H149),0) -> 0 | I150: =IF(I148>0,(VLOOKUP(G141,Calcs!$H$4:$I$7,2,FALSE)*I149),0) -> 0 | J150: =IF(J148>0,(VLOOKUP(G141,Calcs!$H$4:$I$7,2,FALSE)*J149),0) -> 0 | K150: 0
D151: ACC | E151: =E149*Calcs!$C$8 -> 0 | F151: =F149*Calcs!$C$8 -> 0 | G151: =G149*Calcs!$C$8 -> 0 | H151: =H149*Calcs!$C$8 -> 0 | I151: =I149*Calcs!$C$8 -> 0 | J151: =J149*Calcs!$C$8 -> 0 | K151: 0
D152: Overheads | E152: =IF(K141="Full",E149*($L$2/100),0) -> 0 | F152: =IF(K141="Full",F149*($L$2/100),0) -> 0 | G152: =IF(K141="Full",G149*($L$2/100),0) -> 0 | H152: =IF(K141="Full",H149*($L$2/100),0) -> 0 | I152: =IF(K141="Full",I149*($L$2/100),0) -> 0 | J152: =IF(K141="Full",J149*($L$2/100),0) -> 0 | K152: 0
D153: TOTALS | E153: =SUM(E149:E152) -> 0 | F153: 0 | G153: 0 | H153: 0 | I153: 0 | J153: 0 | K153: 0 | M153: =IF(M147=0,"0",CELL("row",M153)+1) -> 0
A155: =A140+1 -> 11 | C155: Name | H155: Dept: | K155: =IF(I155>0,VLOOKUP(I155,DepartmentsandDivisions,3,FALSE),"") ->  | AI155: =IF(AND(E155<>"",I155=""),1,0) -> 0
C156: Status | D156: =IF(OR(C160<>"",M162<>0),Calcs!$B$64,"") -> 7611 - Indirect Academic | F156: Super | G156: Uni | H156: TA | J156: O/H | K156: =FunderOverheads -> Full | M156: =IF(D156="","",VLOOKUP(D156,Calcs!$B$64:$C$65,2,FALSE)) -> 4
C158: =C$6 -> Salary Group ▼ | E158: =E$6 -> Progressed? ► | F158: FALSE
F159: FALSE | G159: FALSE | H159: FALSE | I159: FALSE | J159: FALSE
C160: Academic | E160: =$E$8 -> 1 (2024) | F160: =F$8 -> 2 | G160: =F160+1 -> 3 | H160: =G160+1 -> 4 | I160: =H160+1 -> 5 | J160: =I160+1 -> 6
D161: Grade | F161: =IF(Summary!$O$5<F$8,"",IF(E161="","",IFERROR(IF(F159,INDEX(INDIRECT(CONCATENATE("_",LEFT(E161,3))),MATCH(E161,INDIRECT(CONCATENATE("_",LEFT(E161,3))),0)+1),E161),INDEX(INDIRECT(CONCATENATE("_",LEFT(E161,3))),COUNTA(INDIRECT(CONCATENATE("_",LEFT(E161,3)))))))) ->  | G161: =IF(Summary!$O$5<G$8,"",IF(F161="","",IFERROR(IF(G159,INDEX(INDIRECT(CONCATENATE("_",LEFT(F161,3))),MATCH(F161,INDIRECT(CONCATENATE("_",LEFT(F161,3))),0)+1),F161),INDEX(INDIRECT(CONCATENATE("_",LEFT(F161,3))),COUNTA(INDIRECT(CONCATENATE("_",LEFT(F161,3)))))))) ->  | H161: =IF(Summary!$O$5<H$8,"",IF(G161="","",IFERROR(IF(H159,INDEX(INDIRECT(CONCATENATE("_",LEFT(G161,3))),MATCH(G161,INDIRECT(CONCATENATE("_",LEFT(G161,3))),0)+1),G161),INDEX(INDIRECT(CONCATENATE("_",LEFT(G161,3))),COUNTA(INDIRECT(CONCATENATE("_",LEFT(G161,3)))))))) ->  | I161: =IF(Summary!$O$5<I$8,"",IF(H161="","",IFERROR(IF(I159,INDEX(INDIRECT(CONCATENATE("_",LEFT(H161,3))),MATCH(H161,INDIRECT(CONCATENATE("_",LEFT(H161,3))),0)+1),H161),INDEX(INDIRECT(CONCATENATE("_",LEFT(H161,3))),COUNTA(INDIRECT(CONCATENATE("_",LEFT(H161,3)))))))) ->  | J161: =IF(Summary!$O$5<J$8,"",IF(I161="","",IFERROR(IF(J159,INDEX(INDIRECT(CONCATENATE("_",LEFT(I161,3))),MATCH(I161,INDIRECT(CONCATENATE("_",LEFT(I161,3))),0)+1),I161),INDEX(INDIRECT(CONCATENATE("_",LEFT(I161,3))),COUNTA(INDIRECT(CONCATENATE("_",LEFT(I161,3)))))))) ->  | M161: =CONCATENATE("_",LEFT(E161,3)) -> _
D162: Salary | E162: =IFERROR(IF(E161="","",VLOOKUP(E161,SalaryGrades,$M$16,FALSE)),"") ->  | F162: =IFERROR(IF(F161="","",VLOOKUP(F161,SalaryGrades,$M$16+1,FALSE)),"") ->  | G162: =IFERROR(IF(G161="","",VLOOKUP(G161,SalaryGrades,$M$16+2,FALSE)),"") ->  | H162: =IFERROR(IF(H161="","",VLOOKUP(H161,SalaryGrades,$M$16+3,FALSE)),"") ->  | I162: =IFERROR(IF(I161="","",VLOOKUP(I161,SalaryGrades,$M$16+4,FALSE)),"") ->  | J162: =IFERROR(IF(J161="","",VLOOKUP(J161,SalaryGrades,$M$16+5,FALSE)),"") ->  | K162: Totals | M162: =SUM(LEN(E161),LEN(F161),LEN(G161),LEN(H161),LEN(I161),LEN(J161)) -> 0
D163: FTE | K163: =SUM(E163:J163) -> 0
D164: Salary cost | E164: =IFERROR(IF(E163>0,E163*(E162+$I156),0),0) -> 0 | F164: 0 | G164: 0 | H164: 0 | I164: 0 | J164: 0 | K164: 0
D165: Super | E165: =IF(E163>0,(VLOOKUP(G156,Calcs!$H$4:$I$7,2,FALSE)*E164),0) -> 0 | F165: =IF(F163>0,(VLOOKUP(G156,Calcs!$H$4:$I$7,2,FALSE)*F164),0) -> 0 | G165: =IF(G163>0,(VLOOKUP(G156,Calcs!$H$4:$I$7,2,FALSE)*G164),0) -> 0 | H165: =IF(H163>0,(VLOOKUP(G156,Calcs!$H$4:$I$7,2,FALSE)*H164),0) -> 0 | I165: =IF(I163>0,(VLOOKUP(G156,Calcs!$H$4:$I$7,2,FALSE)*I164),0) -> 0 | J165: =IF(J163>0,(VLOOKUP(G156,Calcs!$H$4:$I$7,2,FALSE)*J164),0) -> 0 | K165: 0
D166: ACC | E166: =E164*Calcs!$C$8 -> 0 | F166: =F164*Calcs!$C$8 -> 0 | G166: =G164*Calcs!$C$8 -> 0 | H166: =H164*Calcs!$C$8 -> 0 | I166: =I164*Calcs!$C$8 -> 0 | J166: =J164*Calcs!$C$8 -> 0 | K166: 0
D167: Overheads | E167: =IF(K156="Full",E164*($L$2/100),0) -> 0 | F167: =IF(K156="Full",F164*($L$2/100),0) -> 0 | G167: =IF(K156="Full",G164*($L$2/100),0) -> 0 | H167: =IF(K156="Full",H164*($L$2/100),0) -> 0 | I167: =IF(K156="Full",I164*($L$2/100),0) -> 0 | J167: =IF(K156="Full",J164*($L$2/100),0) -> 0 | K167: 0
D168: TOTALS | E168: =SUM(E164:E167) -> 0 | F168: 0 | G168: 0 | H168: 0 | I168: 0 | J168: 0 | K168: 0 | M168: =IF(M162=0,"0",CELL("row",M168)+1) -> 0
A170: =A155+1 -> 12 | C170: Name | H170: Dept: | K170: =IF(I170>0,VLOOKUP(I170,DepartmentsandDivisions,3,FALSE),"") ->  | AI170: =IF(AND(E170<>"",I170=""),1,0) -> 0
C171: Status | D171: =IF(OR(C175<>"",M177<>0),Calcs!$B$64,"") -> 7611 - Indirect Academic | F171: Super | G171: Uni | H171: TA | J171: O/H | K171: =FunderOverheads -> Full | M171: =IF(D171="","",VLOOKUP(D171,Calcs!$B$64:$C$65,2,FALSE)) -> 4
C173: =C$6 -> Salary Group ▼ | E173: =E$6 -> Progressed? ► | F173: FALSE
F174: FALSE | G174: FALSE | H174: FALSE | I174: FALSE | J174: FALSE
C175: Academic | E175: =$E$8 -> 1 (2024) | F175: =F$8 -> 2 | G175: =F175+1 -> 3 | H175: =G175+1 -> 4 | I175: =H175+1 -> 5 | J175: =I175+1 -> 6
D176: Grade | F176: =IF(Summary!$O$5<F$8,"",IF(E176="","",IFERROR(IF(F174,INDEX(INDIRECT(CONCATENATE("_",LEFT(E176,3))),MATCH(E176,INDIRECT(CONCATENATE("_",LEFT(E176,3))),0)+1),E176),INDEX(INDIRECT(CONCATENATE("_",LEFT(E176,3))),COUNTA(INDIRECT(CONCATENATE("_",LEFT(E176,3)))))))) ->  | G176: =IF(Summary!$O$5<G$8,"",IF(F176="","",IFERROR(IF(G174,INDEX(INDIRECT(CONCATENATE("_",LEFT(F176,3))),MATCH(F176,INDIRECT(CONCATENATE("_",LEFT(F176,3))),0)+1),F176),INDEX(INDIRECT(CONCATENATE("_",LEFT(F176,3))),COUNTA(INDIRECT(CONCATENATE("_",LEFT(F176,3)))))))) ->  | H176: =IF(Summary!$O$5<H$8,"",IF(G176="","",IFERROR(IF(H174,INDEX(INDIRECT(CONCATENATE("_",LEFT(G176,3))),MATCH(G176,INDIRECT(CONCATENATE("_",LEFT(G176,3))),0)+1),G176),INDEX(INDIRECT(CONCATENATE("_",LEFT(G176,3))),COUNTA(INDIRECT(CONCATENATE("_",LEFT(G176,3)))))))) ->  | I176: =IF(Summary!$O$5<I$8,"",IF(H176="","",IFERROR(IF(I174,INDEX(INDIRECT(CONCATENATE("_",LEFT(H176,3))),MATCH(H176,INDIRECT(CONCATENATE("_",LEFT(H176,3))),0)+1),H176),INDEX(INDIRECT(CONCATENATE("_",LEFT(H176,3))),COUNTA(INDIRECT(CONCATENATE("_",LEFT(H176,3)))))))) ->  | J176: =IF(Summary!$O$5<J$8,"",IF(I176="","",IFERROR(IF(J174,INDEX(INDIRECT(CONCATENATE("_",LEFT(I176,3))),MATCH(I176,INDIRECT(CONCATENATE("_",LEFT(I176,3))),0)+1),I176),INDEX(INDIRECT(CONCATENATE("_",LEFT(I176,3))),COUNTA(INDIRECT(CONCATENATE("_",LEFT(I176,3)))))))) ->  | M176: =CONCATENATE("_",LEFT(E176,3)) -> _
D177: Salary | E177: =IFERROR(IF(E176="","",VLOOKUP(E176,SalaryGrades,$M$16,FALSE)),"") ->  | F177: =IFERROR(IF(F176="","",VLOOKUP(F176,SalaryGrades,$M$16+1,FALSE)),"") ->  | G177: =IFERROR(IF(G176="","",VLOOKUP(G176,SalaryGrades,$M$16+2,FALSE)),"") ->  | H177: =IFERROR(IF(H176="","",VLOOKUP(H176,SalaryGrades,$M$16+3,FALSE)),"") ->  | I177: =IFERROR(IF(I176="","",VLOOKUP(I176,SalaryGrades,$M$16+4,FALSE)),"") ->  | J177: =IFERROR(IF(J176="","",VLOOKUP(J176,SalaryGrades,$M$16+5,FALSE)),"") ->  | K177: Totals | M177: =SUM(LEN(E176),LEN(F176),LEN(G176),LEN(H176),LEN(I176),LEN(J176)) -> 0
D178: FTE | K178: =SUM(E178:J178) -> 0
D179: Salary cost | E179: =IFERROR(IF(E178>0,E178*(E177+$I171),0),0) -> 0 | F179: 0 | G179: 0 | H179: 0 | I179: 0 | J179: 0 | K179: 0
D180: Super | E180: =IF(E178>0,(VLOOKUP(G171,Calcs!$H$4:$I$7,2,FALSE)*E179),0) -> 0 | F180: =IF(F178>0,(VLOOKUP(G171,Calcs!$H$4:$I$7,2,FALSE)*F179),0) -> 0 | G180: =IF(G178>0,(VLOOKUP(G171,Calcs!$H$4:$I$7,2,FALSE)*G179),0) -> 0 | H180: =IF(H178>0,(VLOOKUP(G171,Calcs!$H$4:$I$7,2,FALSE)*H179),0) -> 0 | I180: =IF(I178>0,(VLOOKUP(G171,Calcs!$H$4:$I$7,2,FALSE)*I179),0) -> 0 | J180: =IF(J178>0,(VLOOKUP(G171,Calcs!$H$4:$I$7,2,FALSE)*J179),0) -> 0 | K180: 0
D181: ACC | E181: =E179*Calcs!$C$8 -> 0 | F181: =F179*Calcs!$C$8 -> 0 | G181: =G179*Calcs!$C$8 -> 0 | H181: =H179*Calcs!$C$8 -> 0 | I181: =I179*Calcs!$C$8 -> 0 | J181: =J179*Calcs!$C$8 -> 0 | K181: 0
D182: Overheads | E182: =IF(K171="Full",E179*($L$2/100),0) -> 0 | F182: =IF(K171="Full",F179*($L$2/100),0) -> 0 | G182: =IF(K171="Full",G179*($L$2/100),0) -> 0 | H182: =IF(K171="Full",H179*($L$2/100),0) -> 0 | I182: =IF(K171="Full",I179*($L$2/100),0) -> 0 | J182: =IF(K171="Full",J179*($L$2/100),0) -> 0 | K182: 0
D183: TOTALS | E183: =SUM(E179:E182) -> 0 | F183: 0 | G183: 0 | H183: 0 | I183: 0 | J183: 0 | K183: 0 | M183: =IF(M177=0,"0",CELL("row",M183)+1) -> 0
A185: =A170+1 -> 13 | C185: Name | H185: Dept: | K185: =IF(I185>0,VLOOKUP(I185,DepartmentsandDivisions,3,FALSE),"") ->  | AI185: =IF(AND(E185<>"",I185=""),1,0) -> 0
C186: Status | D186: =IF(OR(C190<>"",M192<>0),Calcs!$B$64,"") -> 7611 - Indirect Academic | F186: Super | G186: Uni | H186: TA | J186: O/H | K186: =FunderOverheads -> Full | M186: =IF(D186="","",VLOOKUP(D186,Calcs!$B$64:$C$65,2,FALSE)) -> 4
C188: =C$6 -> Salary Group ▼ | E188: =E$6 -> Progressed? ► | F188: FALSE
F189: FALSE | G189: FALSE | H189: FALSE | I189: FALSE | J189: FALSE
C190: Academic | E190: =$E$8 -> 1 (2024) | F190: =F$8 -> 2 | G190: =F190+1 -> 3 | H190: =G190+1 -> 4 | I190: =H190+1 -> 5 | J190: =I190+1 -> 6
D191: Grade | F191: =IF(Summary!$O$5<F$8,"",IF(E191="","",IFERROR(IF(F189,INDEX(INDIRECT(CONCATENATE("_",LEFT(E191,3))),MATCH(E191,INDIRECT(CONCATENATE("_",LEFT(E191,3))),0)+1),E191),INDEX(INDIRECT(CONCATENATE("_",LEFT(E191,3))),COUNTA(INDIRECT(CONCATENATE("_",LEFT(E191,3)))))))) ->  | G191: =IF(Summary!$O$5<G$8,"",IF(F191="","",IFERROR(IF(G189,INDEX(INDIRECT(CONCATENATE("_",LEFT(F191,3))),MATCH(F191,INDIRECT(CONCATENATE("_",LEFT(F191,3))),0)+1),F191),INDEX(INDIRECT(CONCATENATE("_",LEFT(F191,3))),COUNTA(INDIRECT(CONCATENATE("_",LEFT(F191,3)))))))) ->  | H191: =IF(Summary!$O$5<H$8,"",IF(G191="","",IFERROR(IF(H189,INDEX(INDIRECT(CONCATENATE("_",LEFT(G191,3))),MATCH(G191,INDIRECT(CONCATENATE("_",LEFT(G191,3))),0)+1),G191),INDEX(INDIRECT(CONCATENATE("_",LEFT(G191,3))),COUNTA(INDIRECT(CONCATENATE("_",LEFT(G191,3)))))))) ->  | I191: =IF(Summary!$O$5<I$8,"",IF(H191="","",IFERROR(IF(I189,INDEX(INDIRECT(CONCATENATE("_",LEFT(H191,3))),MATCH(H191,INDIRECT(CONCATENATE("_",LEFT(H191,3))),0)+1),H191),INDEX(INDIRECT(CONCATENATE("_",LEFT(H191,3))),COUNTA(INDIRECT(CONCATENATE("_",LEFT(H191,3)))))))) ->  | J191: =IF(Summary!$O$5<J$8,"",IF(I191="","",IFERROR(IF(J189,INDEX(INDIRECT(CONCATENATE("_",LEFT(I191,3))),MATCH(I191,INDIRECT(CONCATENATE("_",LEFT(I191,3))),0)+1),I191),INDEX(INDIRECT(CONCATENATE("_",LEFT(I191,3))),COUNTA(INDIRECT(CONCATENATE("_",LEFT(I191,3)))))))) ->  | M191: =CONCATENATE("_",LEFT(E191,3)) -> _
D192: Salary | E192: =IFERROR(IF(E191="","",VLOOKUP(E191,SalaryGrades,$M$16,FALSE)),"") ->  | F192: =IFERROR(IF(F191="","",VLOOKUP(F191,SalaryGrades,$M$16+1,FALSE)),"") ->  | G192: =IFERROR(IF(G191="","",VLOOKUP(G191,SalaryGrades,$M$16+2,FALSE)),"") ->  | H192: =IFERROR(IF(H191="","",VLOOKUP(H191,SalaryGrades,$M$16+3,FALSE)),"") ->  | I192: =IFERROR(IF(I191="","",VLOOKUP(I191,SalaryGrades,$M$16+4,FALSE)),"") ->  | J192: =IFERROR(IF(J191="","",VLOOKUP(J191,SalaryGrades,$M$16+5,FALSE)),"") ->  | K192: Totals | M192: =SUM(LEN(E191),LEN(F191),LEN(G191),LEN(H191),LEN(I191),LEN(J191)) -> 0
D193: FTE | K193: =SUM(E193:J193) -> 0
D194: Salary cost | E194: =IFERROR(IF(E193>0,E193*(E192+$I186),0),0) -> 0 | F194: 0 | G194: 0 | H194: 0 | I194: 0 | J194: 0 | K194: 0
D195: Super | E195: =IF(E193>0,(VLOOKUP(G186,Calcs!$H$4:$I$7,2,FALSE)*E194),0) -> 0 | F195: =IF(F193>0,(VLOOKUP(G186,Calcs!$H$4:$I$7,2,FALSE)*F194),0) -> 0 | G195: =IF(G193>0,(VLOOKUP(G186,Calcs!$H$4:$I$7,2,FALSE)*G194),0) -> 0 | H195: =IF(H193>0,(VLOOKUP(G186,Calcs!$H$4:$I$7,2,FALSE)*H194),0) -> 0 | I195: =IF(I193>0,(VLOOKUP(G186,Calcs!$H$4:$I$7,2,FALSE)*I194),0) -> 0 | J195: =IF(J193>0,(VLOOKUP(G186,Calcs!$H$4:$I$7,2,FALSE)*J194),0) -> 0 | K195: 0
D196: ACC | E196: =E194*Calcs!$C$8 -> 0 | F196: =F194*Calcs!$C$8 -> 0 | G196: =G194*Calcs!$C$8 -> 0 | H196: =H194*Calcs!$C$8 -> 0 | I196: =I194*Calcs!$C$8 -> 0 | J196: =J194*Calcs!$C$8 -> 0 | K196: 0
D197: Overheads | E197: =IF(K186="Full",E194*($L$2/100),0) -> 0 | F197: =IF(K186="Full",F194*($L$2/100),0) -> 0 | G197: =IF(K186="Full",G194*($L$2/100),0) -> 0 | H197: =IF(K186="Full",H194*($L$2/100),0) -> 0 | I197: =IF(K186="Full",I194*($L$2/100),0) -> 0 | J197: =IF(K186="Full",J194*($L$2/100),0) -> 0 | K197: 0
D198: TOTALS | E198: =SUM(E194:E197) -> 0 | F198: 0 | G198: 0 | H198: 0 | I198: 0 | J198: 0 | K198: 0 | M198: =IF(M192=0,"0",CELL("row",M198)+1) -> 0
A200: =A185+1 -> 14 | C200: Name | H200: Dept: | K200: =IF(I200>0,VLOOKUP(I200,DepartmentsandDivisions,3,FALSE),"") ->  | AI200: =IF(AND(E200<>"",I200=""),1,0) -> 0
C201: Status | D201: =IF(OR(C205<>"",M207<>0),Calcs!$B$64,"") -> 7611 - Indirect Academic | F201: Super | G201: Uni | H201: TA | J201: O/H | K201: =FunderOverheads -> Full | M201: =IF(D201="","",VLOOKUP(D201,Calcs!$B$64:$C$65,2,FALSE)) -> 4
C203: =C$6 -> Salary Group ▼ | E203: =E$6 -> Progressed? ► | F203: FALSE
F204: FALSE | G204: FALSE | H204: FALSE | I204: FALSE | J204: FALSE
C205: Academic | E205: =$E$8 -> 1 (2024) | F205: =F$8 -> 2 | G205: =F205+1 -> 3 | H205: =G205+1 -> 4 | I205: =H205+1 -> 5 | J205: =I205+1 -> 6
D206: Grade | F206: =IF(Summary!$O$5<F$8,"",IF(E206="","",IFERROR(IF(F204,INDEX(INDIRECT(CONCATENATE("_",LEFT(E206,3))),MATCH(E206,INDIRECT(CONCATENATE("_",LEFT(E206,3))),0)+1),E206),INDEX(INDIRECT(CONCATENATE("_",LEFT(E206,3))),COUNTA(INDIRECT(CONCATENATE("_",LEFT(E206,3)))))))) ->  | G206: =IF(Summary!$O$5<G$8,"",IF(F206="","",IFERROR(IF(G204,INDEX(INDIRECT(CONCATENATE("_",LEFT(F206,3))),MATCH(F206,INDIRECT(CONCATENATE("_",LEFT(F206,3))),0)+1),F206),INDEX(INDIRECT(CONCATENATE("_",LEFT(F206,3))),COUNTA(INDIRECT(CONCATENATE("_",LEFT(F206,3)))))))) ->  | H206: =IF(Summary!$O$5<H$8,"",IF(G206="","",IFERROR(IF(H204,INDEX(INDIRECT(CONCATENATE("_",LEFT(G206,3))),MATCH(G206,INDIRECT(CONCATENATE("_",LEFT(G206,3))),0)+1),G206),INDEX(INDIRECT(CONCATENATE("_",LEFT(G206,3))),COUNTA(INDIRECT(CONCATENATE("_",LEFT(G206,3)))))))) ->  | I206: =IF(Summary!$O$5<I$8,"",IF(H206="","",IFERROR(IF(I204,INDEX(INDIRECT(CONCATENATE("_",LEFT(H206,3))),MATCH(H206,INDIRECT(CONCATENATE("_",LEFT(H206,3))),0)+1),H206),INDEX(INDIRECT(CONCATENATE("_",LEFT(H206,3))),COUNTA(INDIRECT(CONCATENATE("_",LEFT(H206,3)))))))) ->  | J206: =IF(Summary!$O$5<J$8,"",IF(I206="","",IFERROR(IF(J204,INDEX(INDIRECT(CONCATENATE("_",LEFT(I206,3))),MATCH(I206,INDIRECT(CONCATENATE("_",LEFT(I206,3))),0)+1),I206),INDEX(INDIRECT(CONCATENATE("_",LEFT(I206,3))),COUNTA(INDIRECT(CONCATENATE("_",LEFT(I206,3)))))))) ->  | M206: =CONCATENATE("_",LEFT(E206,3)) -> _
D207: Salary | E207: =IFERROR(IF(E206="","",VLOOKUP(E206,SalaryGrades,$M$16,FALSE)),"") ->  | F207: =IFERROR(IF(F206="","",VLOOKUP(F206,SalaryGrades,$M$16+1,FALSE)),"") ->  | G207: =IFERROR(IF(G206="","",VLOOKUP(G206,SalaryGrades,$M$16+2,FALSE)),"") ->  | H207: =IFERROR(IF(H206="","",VLOOKUP(H206,SalaryGrades,$M$16+3,FALSE)),"") ->  | I207: =IFERROR(IF(I206="","",VLOOKUP(I206,SalaryGrades,$M$16+4,FALSE)),"") ->  | J207: =IFERROR(IF(J206="","",VLOOKUP(J206,SalaryGrades,$M$16+5,FALSE)),"") ->  | K207: Totals | M207: =SUM(LEN(E206),LEN(F206),LEN(G206),LEN(H206),LEN(I206),LEN(J206)) -> 0
D208: FTE | K208: =SUM(E208:J208) -> 0
D209: Salary cost | E209: =IFERROR(IF(E208>0,E208*(E207+$I201),0),0) -> 0 | F209: 0 | G209: 0 | H209: 0 | I209: 0 | J209: 0 | K209: 0
D210: Super | E210: =IF(E208>0,(VLOOKUP(G201,Calcs!$H$4:$I$7,2,FALSE)*E209),0) -> 0 | F210: =IF(F208>0,(VLOOKUP(G201,Calcs!$H$4:$I$7,2,FALSE)*F209),0) -> 0 | G210: =IF(G208>0,(VLOOKUP(G201,Calcs!$H$4:$I$7,2,FALSE)*G209),0) -> 0 | H210: =IF(H208>0,(VLOOKUP(G201,Calcs!$H$4:$I$7,2,FALSE)*H209),0) -> 0 | I210: =IF(I208>0,(VLOOKUP(G201,Calcs!$H$4:$I$7,2,FALSE)*I209),0) -> 0 | J210: =IF(J208>0,(VLOOKUP(G201,Calcs!$H$4:$I$7,2,FALSE)*J209),0) -> 0 | K210: 0
D211: ACC | E211: =E209*Calcs!$C$8 -> 0 | F211: =F209*Calcs!$C$8 -> 0 | G211: =G209*Calcs!$C$8 -> 0 | H211: =H209*Calcs!$C$8 -> 0 | I211: =I209*Calcs!$C$8 -> 0 | J211: =J209*Calcs!$C$8 -> 0 | K211: 0
D212: Overheads | E212: =IF(K201="Full",E209*($L$2/100),0) -> 0 | F212: =IF(K201="Full",F209*($L$2/100),0) -> 0 | G212: =IF(K201="Full",G209*($L$2/100),0) -> 0 | H212: =IF(K201="Full",H209*($L$2/100),0) -> 0 | I212: =IF(K201="Full",I209*($L$2/100),0) -> 0 | J212: =IF(K201="Full",J209*($L$2/100),0) -> 0 | K212: 0
D213: TOTALS | E213: =SUM(E209:E212) -> 0 | F213: 0 | G213: 0 | H213: 0 | I213: 0 | J213: 0 | K213: 0 | M213: =IF(M207=0,"0",CELL("row",M213)+1) -> 0
A215: =A200+1 -> 15 | C215: Name | H215: Dept: | K215: =IF(I215>0,VLOOKUP(I215,DepartmentsandDivisions,3,FALSE),"") ->  | AI215: =IF(AND(E215<>"",I215=""),1,0) -> 0
C216: Status | D216: =IF(OR(C220<>"",M222<>0),Calcs!$B$64,"") -> 7611 - Indirect Academic | F216: Super | G216: Uni | H216: TA | J216: O/H | K216: =FunderOverheads -> Full | M216: =IF(D216="","",VLOOKUP(D216,Calcs!$B$64:$C$65,2,FALSE)) -> 4
C218: =C$6 -> Salary Group ▼ | E218: =E$6 -> Progressed? ► | F218: FALSE
F219: FALSE | G219: FALSE | H219: FALSE | I219: FALSE | J219: FALSE
C220: Academic | E220: =$E$8 -> 1 (2024) | F220: =F$8 -> 2 | G220: =F220+1 -> 3 | H220: =G220+1 -> 4 | I220: =H220+1 -> 5 | J220: =I220+1 -> 6
D221: Grade | F221: =IF(Summary!$O$5<F$8,"",IF(E221="","",IFERROR(IF(F219,INDEX(INDIRECT(CONCATENATE("_",LEFT(E221,3))),MATCH(E221,INDIRECT(CONCATENATE("_",LEFT(E221,3))),0)+1),E221),INDEX(INDIRECT(CONCATENATE("_",LEFT(E221,3))),COUNTA(INDIRECT(CONCATENATE("_",LEFT(E221,3)))))))) ->  | G221: =IF(Summary!$O$5<G$8,"",IF(F221="","",IFERROR(IF(G219,INDEX(INDIRECT(CONCATENATE("_",LEFT(F221,3))),MATCH(F221,INDIRECT(CONCATENATE("_",LEFT(F221,3))),0)+1),F221),INDEX(INDIRECT(CONCATENATE("_",LEFT(F221,3))),COUNTA(INDIRECT(CONCATENATE("_",LEFT(F221,3)))))))) ->  | H221: =IF(Summary!$O$5<H$8,"",IF(G221="","",IFERROR(IF(H219,INDEX(INDIRECT(CONCATENATE("_",LEFT(G221,3))),MATCH(G221,INDIRECT(CONCATENATE("_",LEFT(G221,3))),0)+1),G221),INDEX(INDIRECT(CONCATENATE("_",LEFT(G221,3))),COUNTA(INDIRECT(CONCATENATE("_",LEFT(G221,3)))))))) ->  | I221: =IF(Summary!$O$5<I$8,"",IF(H221="","",IFERROR(IF(I219,INDEX(INDIRECT(CONCATENATE("_",LEFT(H221,3))),MATCH(H221,INDIRECT(CONCATENATE("_",LEFT(H221,3))),0)+1),H221),INDEX(INDIRECT(CONCATENATE("_",LEFT(H221,3))),COUNTA(INDIRECT(CONCATENATE("_",LEFT(H221,3)))))))) ->  | J221: =IF(Summary!$O$5<J$8,"",IF(I221="","",IFERROR(IF(J219,INDEX(INDIRECT(CONCATENATE("_",LEFT(I221,3))),MATCH(I221,INDIRECT(CONCATENATE("_",LEFT(I221,3))),0)+1),I221),INDEX(INDIRECT(CONCATENATE("_",LEFT(I221,3))),COUNTA(INDIRECT(CONCATENATE("_",LEFT(I221,3)))))))) ->  | M221: =CONCATENATE("_",LEFT(E221,3)) -> _
D222: Salary | E222: =IFERROR(IF(E221="","",VLOOKUP(E221,SalaryGrades,$M$16,FALSE)),"") ->  | F222: =IFERROR(IF(F221="","",VLOOKUP(F221,SalaryGrades,$M$16+1,FALSE)),"") ->  | G222: =IFERROR(IF(G221="","",VLOOKUP(G221,SalaryGrades,$M$16+2,FALSE)),"") ->  | H222: =IFERROR(IF(H221="","",VLOOKUP(H221,SalaryGrades,$M$16+3,FALSE)),"") ->  | I222: =IFERROR(IF(I221="","",VLOOKUP(I221,SalaryGrades,$M$16+4,FALSE)),"") ->  | J222: =IFERROR(IF(J221="","",VLOOKUP(J221,SalaryGrades,$M$16+5,FALSE)),"") ->  | K222: Totals | M222: =SUM(LEN(E221),LEN(F221),LEN(G221),LEN(H221),LEN(I221),LEN(J221)) -> 0
D223: FTE | K223: =SUM(E223:J223) -> 0
D224: Salary cost | E224: =IFERROR(IF(E223>0,E223*(E222+$I216),0),0) -> 0 | F224: 0 | G224: 0 | H224: 0 | I224: 0 | J224: 0 | K224: 0
D225: Super | E225: =IF(E223>0,(VLOOKUP(G216,Calcs!$H$4:$I$7,2,FALSE)*E224),0) -> 0 | F225: =IF(F223>0,(VLOOKUP(G216,Calcs!$H$4:$I$7,2,FALSE)*F224),0) -> 0 | G225: =IF(G223>0,(VLOOKUP(G216,Calcs!$H$4:$I$7,2,FALSE)*G224),0) -> 0 | H225: =IF(H223>0,(VLOOKUP(G216,Calcs!$H$4:$I$7,2,FALSE)*H224),0) -> 0 | I225: =IF(I223>0,(VLOOKUP(G216,Calcs!$H$4:$I$7,2,FALSE)*I224),0) -> 0 | J225: =IF(J223>0,(VLOOKUP(G216,Calcs!$H$4:$I$7,2,FALSE)*J224),0) -> 0 | K225: 0
D226: ACC | E226: =E224*Calcs!$C$8 -> 0 | F226: =F224*Calcs!$C$8 -> 0 | G226: =G224*Calcs!$C$8 -> 0 | H226: =H224*Calcs!$C$8 -> 0 | I226: =I224*Calcs!$C$8 -> 0 | J226: =J224*Calcs!$C$8 -> 0 | K226: 0
D227: Overheads | E227: =IF(K216="Full",E224*($L$2/100),0) -> 0 | F227: =IF(K216="Full",F224*($L$2/100),0) -> 0 | G227: =IF(K216="Full",G224*($L$2/100),0) -> 0 | H227: =IF(K216="Full",H224*($L$2/100),0) -> 0 | I227: =IF(K216="Full",I224*($L$2/100),0) -> 0 | J227: =IF(K216="Full",J224*($L$2/100),0) -> 0 | K227: 0
D228: TOTALS | E228: =SUM(E224:E227) -> 0 | F228: 0 | G228: 0 | H228: 0 | I228: 0 | J228: 0 | K228: 0 | M228: =IF(M222=0,"0",CELL("row",M228)+1) -> 0
... 184 more rows

Sheet Direct Staff
C1: University of Otago Costing and Consents Worksheet
C2: DIRECT STAFF | H2: Salary Projections updated January 2023 | K2: O/H | L2: =Summary!$E$11 -> 111 | AL2: Checks name has a department
A3: 1 | C3: Name | H3: Dept: | AL3: =IF(AND(E3<>"",I3=""),1,0) -> 0 | AM3: =SUM(AL3:AL365) -> 0 | AN3: DirectStaffDepartment
C4: Status | D4: =IF(AND(C8="",E12=""),"",IF(OR(C8=Calcs!$Q$353, C8=Calcs!$Q$354),Calcs!$B$59,Calcs!$B$61)) -> 2111 - Direct Academic | F4: Super | G4: Uni | H4: TA | J4: O/H | K4: =FunderOverheads -> Full | M4: =VLOOKUP(D4,Calcs!$B$59:$C$62,2,) -> 1
C6: Salary Group ▼ | E6: Progressed? ► | F6: FALSE | K6: Year 1 = | L6: =+Summary!N9 -> 2024
F7: FALSE | G7: FALSE | H7: FALSE | I7: FALSE | J7: FALSE
C8: Academic | E8: =CONCATENATE("1 (",TEXT(L6,"@"),")") -> 1 (2024) | F8: 2 | G8: =F8+1 -> 3 | H8: =G8+1 -> 4 | I8: =H8+1 -> 5 | J8: =I8+1 -> 6
D9: Actual Year | E9: =L6 -> 2024 | F9: =E9+1 -> 2025 | G9: 2026 | H9: 2027 | I9: 2028 | J9: 2029
C10: Year Column Number for VLOOKUP | E10: =M16 -> 8 | F10: =E10+1 -> 9 | G10: 10 | H10: 11 | I10: 12 | J10: 13
D11: Grade | F11: =IF(Summary!$O$5<2,"",IF(E11="","",IFERROR(IF(F7,INDEX(INDIRECT($M11),MATCH(E11,INDIRECT($M11),0)+1),E11),INDEX(INDIRECT($M11),COUNTA(INDIRECT($M11)))))) ->  | G11: =IF(Summary!$O$5<3,"",IF(F11="","",IFERROR(IF(G7,INDEX(INDIRECT($M11),MATCH(F11,INDIRECT($M11),0)+1),F11),INDEX(INDIRECT($M11),COUNTA(INDIRECT($M11)))))) ->  | M11: =CONCATENATE("_",LEFT(E11,3)) -> _ | R11: FTE Calculator: Use for part-time staff or short term contracts | AC11: 1 | AD11: Yes | AE11: 9 | AF11: =IF($M132>0,"Yes","No") -> No | AG11: 19 | AH11: =AG18+15 -> 139
D12: Salary | E12: =IFERROR(IF(E11="","",VLOOKUP(E11,SalaryGrades,E$10,FALSE)),"") ->  | F12: =IFERROR(IF(F11="","",VLOOKUP(F11,SalaryGrades,F$10,FALSE)),"") ->  | G12: =IFERROR(IF(F11="","",VLOOKUP(G11,SalaryGrades,G$10,FALSE)),"") ->  | K12: Totals | M12: =SUM(LEN(E11),LEN(F11),LEN(G11),LEN(H11),LEN(I11),LEN(J11)) -> 0 | R12: To work out what FTE to use by entering how many weeks (min= 1) | AC12: 2 | AD12: =IF(M27>0,"Yes","No") -> No | AE12: 10 | AF12: =IF($M147>0,"Yes","No") -> No | AG12: 34 | AH12: =AH11+15 -> 154
D13: FTE | K13: =SUM(E13:J13) -> 0 | R13: the staff member is working and for how many hours | AC13: 3 | AD13: =IF(M42>0,"Yes","No") -> No | AE13: 11 | AF13: =IF($M162>0,"Yes","No") -> No | AG13: 49 | AH13: =AH12+15 -> 169
D14: Salary cost | E14: =(IF(E13>0,IF(OR($M4=3,$M4=1.5),(E13*(E12+$I4))*HolidayPayRate,(E13*(E12+$I4))),0)) -> 0 | F14: =(IF(F13>0,IF(OR($M4=3,$M4=1.5),(F13*(F12+$I4))*HolidayPayRate,(F13*(F12+$I4))),0)) -> 0 | G14: 0 | H14: 0 | I14: 0 | J14: 0 | K14: 0 | AC14: 4 | AD14: =IF(M57>0,"Yes","No") -> No | AE14: 12 | AF14: =IF(M177>0,"Yes","No") -> No | AG14: =AG13+15 -> 64 | AH14: 184
D15: Super | E15: =(VLOOKUP(G4,Calcs!$H$4:$I$7,2,FALSE)*E14) -> 0 | F15: =(VLOOKUP(G4,Calcs!$H$4:$I$7,2,FALSE)*F14) -> 0 | G15: =(VLOOKUP(G4,Calcs!$H$4:$I$7,2,FALSE)*G14) -> 0 | H15: =(VLOOKUP(G4,Calcs!$H$4:$I$7,2,FALSE)*H14) -> 0 | I15: =(VLOOKUP(G4,Calcs!$H$4:$I$7,2,FALSE)*I14) -> 0 | J15: =(VLOOKUP($G4,Calcs!$H$4:$I$7,2,FALSE)*J14) -> 0 | K15: 0 | R15: FTE Calculator | W15: FTE to | AC15: 5 | AD15: =IF(M72>0,"Yes","No") -> No | AE15: 13 | AF15: =IF(M192>0,"Yes","No") -> No | AG15: =AG14+15 -> 79 | AH15: 199
D16: ACC | E16: =E14*Calcs!$C$8 -> 0 | F16: =F14*Calcs!$C$8 -> 0 | G16: =G14*Calcs!$C$8 -> 0 | H16: =H14*Calcs!$C$8 -> 0 | I16: =I14*Calcs!$C$8 -> 0 | J16: =J14*Calcs!$C$8 -> 0 | K16: 0 | M16: ='Indirect Staff'!$M$16 -> 8 | S16: Weeks | U16: Hours/week | W16: be used | AC16: 6 | AD16: =IF(M87>0,"Yes","No") -> No | AE16: 14 | AF16: =IF(M207>0,"Yes","No") -> No | AG16: 94 | AH16: 214
D17: Overheads | E17: =IF($K$4="Full",E14*($L$2/100),0) -> 0 | F17: =IF(K4="Full",F14*($L$2/100),0) -> 0 | G17: =IF(K4="Full",G14*($L$2/100),0) -> 0 | H17: =IF(K4="Full",H14*($L$2/100),0) -> 0 | I17: =IF(K4="Full",I14*($L$2/100),0) -> 0 | J17: =IF(K4="Full",J14*($L$2/100),0) -> 0 | K17: 0 | N17: =CONCATENATE("$A$1:$L$",TEXT($N$18,"@")) -> $A$1:$L$19 | T17: @ | V17: = | W17: =(S17*U17)/1950 -> 0 | AC17: 7 | AD17: =IF(M102>0,"Yes","No") -> No | AE17: 15 | AF17: =IF(M222>0,"Yes","No") -> No | AG17: 109 | AH17: 229
D18: TOTALS | E18: =SUM(E14:E17) -> 0 | F18: 0 | G18: 0 | H18: 0 | I18: 0 | J18: 0 | K18: 0 | M18: =CELL("row",M19) -> 19 | N18: =MAX(AC32:AG36) -> 19 | AC18: 8 | AD18: =IF($M117>0,"Yes","No") -> No | AE18: 16 | AF18: =IF(M237>0,"Yes","No") -> No | AG18: 124 | AH18: 244
A20: =A3+1 -> 2 | C20: Name | H20: Dept: | AL20: =IF(AND(E20<>"",I20=""),1,0) -> 0
C21: Status | D21: =IF(AND(C25="",E27=""),"",IF(OR(C25=Calcs!$Q$353, C25=Calcs!$Q$354),Calcs!$B$59,Calcs!$B$61)) -> 2111 - Direct Academic | F21: Super | G21: Uni | H21: TA | J21: O/H | K21: =FunderOverheads -> Full | M21: =VLOOKUP(D21,Calcs!$B$59:$C$62,2,) -> 1
C23: Salary Group ▼ | E23: Progressed? ► | F23: FALSE | AC23: 15
F24: FALSE | G24: FALSE | H24: FALSE | I24: FALSE | J24: FALSE | R24: Superannuation: For each researcher enter "U" for staff on the University Super Scheme or "G" for Government Super Scheme if applicable, K for KiwiSaver. Sheet will default to U if none selected
C25: Academic | E25: =$E$8 -> 1 (2024) | F25: =F$8 -> 2 | G25: =G$8 -> 3 | H25: 4 | I25: 5 | J25: 6
D26: Grade | F26: =IF(Summary!$O$5<3,"",IF(E26="","",IFERROR(IF(F24,INDEX(INDIRECT($M26),MATCH(E26,INDIRECT($M26),0)+1),E26),INDEX(INDIRECT($M26),COUNTA(INDIRECT($M26)))))) ->  | G26: =IF(Summary!$O$5<3,"",IF(F26="","",IFERROR(IF(G24,INDEX(INDIRECT($M26),MATCH(F26,INDIRECT($M26),0)+1),F26),INDEX(INDIRECT($M26),COUNTA(INDIRECT($M26)))))) ->  | H26: =IF(Summary!$O$5<4,"",IF(G26="","",IFERROR(IF(H24,INDEX(INDIRECT($M26),MATCH(G26,INDIRECT($M26),0)+1),G26),INDEX(INDIRECT($M26),COUNTA(INDIRECT($M26)))))) ->  | I26: =IF(Summary!$O$5<5,"",IF(H26="","",IFERROR(IF(I24,INDEX(INDIRECT($M26),MATCH(H26,INDIRECT($M26),0)+1),H26),INDEX(INDIRECT($M26),COUNTA(INDIRECT($M26)))))) ->  | J26: =IF(Summary!$O$5<6,"",IF(I26="","",IFERROR(IF(J24,INDEX(INDIRECT($M26),MATCH(I26,INDIRECT($M26),0)+1),I26),INDEX(INDIRECT($M26),COUNTA(INDIRECT($M26)))))) ->  | M26: =CONCATENATE("_",LEFT(E26,3)) -> _ | Z26: Dissections | AC26: 18 | AD26: =AC30+$AC$23 -> 93 | AE26: =AD30+$AC$23 -> 168 | AF26: =AE30+$AC$23 -> 243 | AG26: =AF30+$AC$23 -> 318
D27: Salary | E27: =IFERROR(IF(E26="","",VLOOKUP(E26,SalaryGrades,$M$16,FALSE)),"") ->  | F27: =IFERROR(IF(F26="","",VLOOKUP(F26,SalaryGrades,$M$16+1,FALSE)),"") ->  | G27: =IFERROR(IF(G26="","",VLOOKUP(G26,SalaryGrades,$M$16+2,FALSE)),"") ->  | H27: =IFERROR(IF(H26="","",VLOOKUP(H26,SalaryGrades,$M$16+3,FALSE)),"") ->  | I27: =IFERROR(IF(I26="","",VLOOKUP(I26,SalaryGrades,$M$16+4,FALSE)),"") ->  | J27: =IFERROR(IF(J26="","",VLOOKUP(J26,SalaryGrades,$M$16+5,FALSE)),"") ->  | K27: Totals | M27: =SUM(LEN(E26),LEN(F26),LEN(G26),LEN(H26),LEN(I26),LEN(J26)) -> 0 | Z27: 2441 | AC27: =AC26+$AC$23 -> 33 | AD27: =AD26+$AC$23 -> 108 | AE27: =AE26+$AC$23 -> 183 | AF27: =AF26+$AC$23 -> 258 | AG27: =AG26+$AC$23 -> 333
D28: FTE | K28: =SUM(E28:J28) -> 0 | AC28: =AC27+$AC$23 -> 48 | AD28: 123 | AE28: 198 | AF28: 273 | AG28: 348
D29: Salary cost | E29: =(IF(E28>0,IF(OR($M21=3,$M21=1.5),(E28*(E27+$I21))*HolidayPayRate,(E28*(E27+$I21))),0)) -> 0 | F29: 0 | G29: 0 | H29: 0 | I29: 0 | J29: 0 | K29: 0 | R29: Staff Employment status | AC29: 63 | AD29: 138 | AE29: 213 | AF29: 288 | AG29: 363
D30: Super | E30: =(VLOOKUP(G21,Calcs!$H$4:$I$7,2,FALSE)*E29) -> 0 | F30: =(VLOOKUP(G21,Calcs!$H$4:$I$7,2,FALSE)*F29) -> 0 | G30: =(VLOOKUP(G21,Calcs!$H$4:$I$7,2,FALSE)*G29) -> 0 | H30: =(VLOOKUP(G21,Calcs!$H$4:$I$7,2,FALSE)*H29) -> 0 | I30: =(VLOOKUP(G21,Calcs!$H$4:$I$7,2,FALSE)*I29) -> 0 | J30: =(VLOOKUP($G21,Calcs!$H$4:$I$7,2,FALSE)*J29) -> 0 | K30: 0 | R30: Indirect - Academic | T30: Funded by Academic block grant- salary costs to Dept as ISR | AC30: 78 | AD30: 153 | AE30: 228 | AF30: 303 | AG30: 378
D31: ACC | E31: =E29*Calcs!$C$8 -> 0 | F31: =F29*Calcs!$C$8 -> 0 | G31: =G29*Calcs!$C$8 -> 0 | H31: =H29*Calcs!$C$8 -> 0 | I31: =I29*Calcs!$C$8 -> 0 | J31: =J29*Calcs!$C$8 -> 0 | K31: 0
D32: Overheads | E32: =IF(K21="Full",E29*($L$2/100),0) -> 0 | F32: =IF(K21="Full",F29*($L$2/100),0) -> 0 | G32: =IF(K21="Full",G29*($L$2/100),0) -> 0 | H32: =IF(K21="Full",H29*($L$2/100),0) -> 0 | I32: =IF(K21="Full",I29*($L$2/100),0) -> 0 | J32: =IF(K21="Full",J29*($L$2/100),0) -> 0 | K32: 0 | R32: Direct - Academic | T32: Salary Costs to Dept through project account | AC32: =INDIRECT(CONCATENATE("M",AC26)) -> 19 | AD32: =INDIRECT(CONCATENATE("M",AD26)) -> 0 | AE32: 0 | AF32: 0 | AG32: 0
D33: TOTALS | E33: =SUM(E29:E32) -> 0 | F33: 0 | G33: 0 | H33: 0 | I33: 0 | J33: 0 | K33: 0 | M33: =IF(M27=0,0,CELL("row",M33)+1) -> 0 | R33: Direct - General** | T33: Salary Costs to Dept through project account | Z33: 7611 | AC33: =INDIRECT(CONCATENATE("M",AC27)) -> 0 | AD33: 0 | AE33: 0 | AF33: 0 | AG33: 0
R34: Direct - Casual | T34: Salary Costs to Dept through project account | AC34: 0 | AD34: 0 | AE34: 0 | AF34: 0 | AG34: 0
A35: =A20+1 -> 3 | C35: Name | H35: Dept: | Z35: 2111 | AC35: 0 | AD35: 0 | AE35: 0 | AF35: 0 | AG35: 0 | AL35: =IF(AND(E35<>"",I35=""),1,0) -> 0
C36: Status | D36: =IF(AND(C40="",E42=""),"",IF(OR(C40=Calcs!$Q$353, C40=Calcs!$Q$354),Calcs!$B$59,Calcs!$B$61)) -> 2111 - Direct Academic | F36: Super | G36: Uni | H36: TA | J36: O/H | K36: =FunderOverheads -> Full | M36: =VLOOKUP(D36,Calcs!$B$59:$C$62,2,) -> 1 | R36: ** Includes research assistant, research nurse, research coordinator, technician, Administrators, Project/research Managers, database managers | Z36: 2211 | AC36: 0 | AD36: 0 | AE36: 0 | AF36: 0 | AG36: 0
Z37: 2221
C38: Salary Group ▼ | E38: Progressed? ► | F38: FALSE
F39: FALSE | G39: FALSE | H39: FALSE | I39: FALSE | J39: FALSE
C40: Academic | E40: =$E$8 -> 1 (2024) | F40: =F$8 -> 2 | G40: =G$8 -> 3 | H40: 4 | I40: 5 | J40: 6
D41: Grade | F41: =IF(Summary!$O$5<3,"",IF(E41="","",IFERROR(IF(F39,INDEX(INDIRECT($M41),MATCH(E41,INDIRECT($M41),0)+1),E41),INDEX(INDIRECT($M41),COUNTA(INDIRECT($M41)))))) ->  | G41: =IF(Summary!$O$5<3,"",IF(F41="","",IFERROR(IF(G39,INDEX(INDIRECT($M41),MATCH(F41,INDIRECT($M41),0)+1),F41),INDEX(INDIRECT($M41),COUNTA(INDIRECT($M41)))))) ->  | H41: =IF(Summary!$O$5<4,"",IF(G41="","",IFERROR(IF(H39,INDEX(INDIRECT($M41),MATCH(G41,INDIRECT($M41),0)+1),G41),INDEX(INDIRECT($M41),COUNTA(INDIRECT($M41)))))) ->  | I41: =IF(Summary!$O$5<5,"",IF(H41="","",IFERROR(IF(I39,INDEX(INDIRECT($M41),MATCH(H41,INDIRECT($M41),0)+1),H41),INDEX(INDIRECT($M41),COUNTA(INDIRECT($M41)))))) ->  | J41: =IF(Summary!$O$5<6,"",IF(I41="","",IFERROR(IF(J39,INDEX(INDIRECT($M41),MATCH(I41,INDIRECT($M41),0)+1),I41),INDEX(INDIRECT($M41),COUNTA(INDIRECT($M41)))))) ->  | M41: =CONCATENATE("_",LEFT(E41,3)) -> _
D42: Salary | E42: =IFERROR(IF(E41="","",VLOOKUP(E41,SalaryGrades,$M$16,FALSE)),"") ->  | F42: =IFERROR(IF(F41="","",VLOOKUP(F41,SalaryGrades,$M$16+1,FALSE)),"") ->  | G42: =IFERROR(IF(G41="","",VLOOKUP(G41,SalaryGrades,$M$16+2,FALSE)),"") ->  | H42: =IFERROR(IF(H41="","",VLOOKUP(H41,SalaryGrades,$M$16+3,FALSE)),"") ->  | I42: =IFERROR(IF(I41="","",VLOOKUP(I41,SalaryGrades,$M$16+4,FALSE)),"") ->  | J42: =IFERROR(IF(J41="","",VLOOKUP(J41,SalaryGrades,$M$16+5,FALSE)),"") ->  | K42: Totals | M42: =SUM(LEN(E41),LEN(F41),LEN(G41),LEN(H41),LEN(I41),LEN(J41)) -> 0
D43: FTE | K43: =SUM(E43:J43) -> 0
D44: Salary cost | E44: =(IF(E43>0,IF(OR($M36=3,$M36=1.5),(E43*(E42+$I36))*HolidayPayRate,(E43*(E42+$I36))),0)) -> 0 | F44: 0 | G44: 0 | H44: 0 | I44: 0 | J44: 0 | K44: 0
D45: Super | E45: =(VLOOKUP(G36,Calcs!$H$4:$I$7,2,FALSE)*E44) -> 0 | F45: =(VLOOKUP(G36,Calcs!$H$4:$I$7,2,FALSE)*F44) -> 0 | G45: =(VLOOKUP(G36,Calcs!$H$4:$I$7,2,FALSE)*G44) -> 0 | H45: =(VLOOKUP(G36,Calcs!$H$4:$I$7,2,FALSE)*H44) -> 0 | I45: =(VLOOKUP(G36,Calcs!$H$4:$I$7,2,FALSE)*I44) -> 0 | J45: =(VLOOKUP($G36,Calcs!$H$4:$I$7,2,FALSE)*J44) -> 0 | K45: 0
D46: ACC | E46: =E44*Calcs!$C$8 -> 0 | F46: =F44*Calcs!$C$8 -> 0 | G46: =G44*Calcs!$C$8 -> 0 | H46: =H44*Calcs!$C$8 -> 0 | I46: =I44*Calcs!$C$8 -> 0 | J46: =J44*Calcs!$C$8 -> 0 | K46: 0
D47: Overheads | E47: =IF(K36="Full",E44*($L$2/100),0) -> 0 | F47: =IF(K36="Full",F44*($L$2/100),0) -> 0 | G47: =IF(K36="Full",G44*($L$2/100),0) -> 0 | H47: =IF(K36="Full",H44*($L$2/100),0) -> 0 | I47: =IF(K36="Full",I44*($L$2/100),0) -> 0 | J47: =IF(K36="Full",J44*($L$2/100),0) -> 0 | K47: 0
D48: TOTALS | E48: =SUM(E44:E47) -> 0 | F48: 0 | G48: 0 | H48: 0 | I48: 0 | J48: 0 | K48: 0 | M48: =IF(M42=0,0,CELL("row",M48)+1) -> 0
A50: =A35+1 -> 4 | C50: Name | H50: Dept: | AL50: =IF(AND(E50<>"",I50=""),1,0) -> 0
C51: Status | D51: =IF(AND(C55="",E57=""),"",IF(OR(C55=Calcs!$Q$353, C55=Calcs!$Q$354),Calcs!$B$59,Calcs!$B$61)) -> 2111 - Direct Academic | F51: Super | G51: Uni | H51: TA | J51: O/H | K51: =FunderOverheads -> Full | M51: =VLOOKUP(D51,Calcs!$B$59:$C$62,2,) -> 1
C53: Salary Group ▼ | E53: Progressed? ► | F53: FALSE
F54: FALSE | G54: FALSE | H54: FALSE | I54: FALSE | J54: FALSE
C55: Academic | E55: =$E$8 -> 1 (2024) | F55: =F$8 -> 2 | G55: =G$8 -> 3 | H55: 4 | I55: 5 | J55: 6
D56: Grade | F56: =IF(Summary!$O$5<2,"",IF(E56="","",IFERROR(IF(F54,INDEX(INDIRECT($M56),MATCH(E56,INDIRECT($M56),0)+1),E56),INDEX(INDIRECT($M56),COUNTA(INDIRECT($M56)))))) ->  | G56: =IF(Summary!$O$5<3,"",IF(F56="","",IFERROR(IF(G54,INDEX(INDIRECT($M56),MATCH(F56,INDIRECT($M56),0)+1),F56),INDEX(INDIRECT($M56),COUNTA(INDIRECT($M56)))))) ->  | H56: =IF(Summary!$O$5<4,"",IF(G56="","",IFERROR(IF(H54,INDEX(INDIRECT($M56),MATCH(G56,INDIRECT($M56),0)+1),G56),INDEX(INDIRECT($M56),COUNTA(INDIRECT($M56)))))) ->  | I56: =IF(Summary!$O$5<5,"",IF(H56="","",IFERROR(IF(I54,INDEX(INDIRECT($M56),MATCH(H56,INDIRECT($M56),0)+1),H56),INDEX(INDIRECT($M56),COUNTA(INDIRECT($M56)))))) ->  | J56: =IF(Summary!$O$5<6,"",IF(I56="","",IFERROR(IF(J54,INDEX(INDIRECT($M56),MATCH(I56,INDIRECT($M56),0)+1),I56),INDEX(INDIRECT($M56),COUNTA(INDIRECT($M56)))))) ->  | M56: =CONCATENATE("_",LEFT(E56,3)) -> _
D57: Salary | E57: =IFERROR(IF(E56="","",VLOOKUP(E56,SalaryGrades,$M$16,FALSE)),"") ->  | F57: =IFERROR(IF(F56="","",VLOOKUP(F56,SalaryGrades,$M$16+1,FALSE)),"") ->  | G57: =IFERROR(IF(G56="","",VLOOKUP(G56,SalaryGrades,$M$16+2,FALSE)),"") ->  | H57: =IFERROR(IF(H56="","",VLOOKUP(H56,SalaryGrades,$M$16+3,FALSE)),"") ->  | I57: =IFERROR(IF(I56="","",VLOOKUP(I56,SalaryGrades,$M$16+4,FALSE)),"") ->  | J57: =IFERROR(IF(J56="","",VLOOKUP(J56,SalaryGrades,$M$16+5,FALSE)),"") ->  | K57: Totals | M57: =SUM(LEN(E56),LEN(F56),LEN(G56),LEN(H56),LEN(I56),LEN(J56)) -> 0
D58: FTE | K58: =SUM(E58:J58) -> 0
D59: Salary cost | E59: =(IF(E58>0,IF(OR($M51=3,$M51=1.5),(E58*(E57+$I51))*HolidayPayRate,(E58*(E57+$I51))),0)) -> 0 | F59: 0 | G59: 0 | H59: 0 | I59: 0 | J59: 0 | K59: 0
D60: Super | E60: =(VLOOKUP(G51,Calcs!$H$4:$I$7,2,FALSE)*E59) -> 0 | F60: =(VLOOKUP(G51,Calcs!$H$4:$I$7,2,FALSE)*F59) -> 0 | G60: =(VLOOKUP(G51,Calcs!$H$4:$I$7,2,FALSE)*G59) -> 0 | H60: =(VLOOKUP(G51,Calcs!$H$4:$I$7,2,FALSE)*H59) -> 0 | I60: =(VLOOKUP(G51,Calcs!$H$4:$I$7,2,FALSE)*I59) -> 0 | J60: =(VLOOKUP($G51,Calcs!$H$4:$I$7,2,FALSE)*J59) -> 0 | K60: 0
D61: ACC | E61: =E59*Calcs!$C$8 -> 0 | F61: =F59*Calcs!$C$8 -> 0 | G61: =G59*Calcs!$C$8 -> 0 | H61: =H59*Calcs!$C$8 -> 0 | I61: =I59*Calcs!$C$8 -> 0 | J61: =J59*Calcs!$C$8 -> 0 | K61: 0
D62: Overheads | E62: =IF(K51="Full",E59*($L$2/100),0) -> 0 | F62: =IF(K51="Full",F59*($L$2/100),0) -> 0 | G62: =IF(K51="Full",G59*($L$2/100),0) -> 0 | H62: =IF(K51="Full",H59*($L$2/100),0) -> 0 | I62: =IF(K51="Full",I59*($L$2/100),0) -> 0 | J62: =IF(K51="Full",J59*($L$2/100),0) -> 0 | K62: 0
D63: TOTALS | E63: =SUM(E59:E62) -> 0 | F63: 0 | G63: 0 | H63: 0 | I63: 0 | J63: 0 | K63: 0 | M63: =IF(M57=0,0,CELL("row",M63)+1) -> 0
A65: =A50+1 -> 5 | C65: Name | H65: Dept: | AL65: =IF(AND(E65<>"",I65=""),1,0) -> 0
C66: Status | D66: =IF(AND(C70="",E72=""),"",IF(OR(C70=Calcs!$Q$353, C70=Calcs!$Q$354),Calcs!$B$59,Calcs!$B$61)) -> 2111 - Direct Academic | F66: Super | G66: Uni | H66: TA | J66: O/H | K66: =FunderOverheads -> Full | M66: =VLOOKUP(D66,Calcs!$B$59:$C$62,2,) -> 1
C68: Salary Group ▼ | E68: Progressed? ► | F68: FALSE
F69: FALSE | G69: FALSE | H69: FALSE | I69: FALSE | J69: FALSE | M69: =VLOOKUP(D81,Calcs!$B$60:$C$62,2,) -> 
C70: Academic | E70: =$E$8 -> 1 (2024) | F70: =F$8 -> 2 | G70: =G$8 -> 3 | H70: 4 | I70: 5 | J70: 6
D71: Grade | F71: =IF(Summary!$O$5<3,"",IF(E71="","",IFERROR(IF(F69,INDEX(INDIRECT($M71),MATCH(E71,INDIRECT($M71),0)+1),E71),INDEX(INDIRECT($M71),COUNTA(INDIRECT($M71)))))) ->  | G71: =IF(Summary!$O$5<3,"",IF(F71="","",IFERROR(IF(G69,INDEX(INDIRECT($M71),MATCH(F71,INDIRECT($M71),0)+1),F71),INDEX(INDIRECT($M71),COUNTA(INDIRECT($M71)))))) ->  | H71: =IF(Summary!$O$5<4,"",IF(G71="","",IFERROR(IF(H69,INDEX(INDIRECT($M71),MATCH(G71,INDIRECT($M71),0)+1),G71),INDEX(INDIRECT($M71),COUNTA(INDIRECT($M71)))))) ->  | I71: =IF(Summary!$O$5<5,"",IF(H71="","",IFERROR(IF(I69,INDEX(INDIRECT($M71),MATCH(H71,INDIRECT($M71),0)+1),H71),INDEX(INDIRECT($M71),COUNTA(INDIRECT($M71)))))) ->  | J71: =IF(Summary!$O$5<6,"",IF(I71="","",IFERROR(IF(J69,INDEX(INDIRECT($M71),MATCH(I71,INDIRECT($M71),0)+1),I71),INDEX(INDIRECT($M71),COUNTA(INDIRECT($M71)))))) ->  | M71: =CONCATENATE("_",LEFT(E71,3)) -> _
D72: Salary | E72: =IFERROR(IF(E71="","",VLOOKUP(E71,SalaryGrades,$M$16,FALSE)),"") ->  | F72: =IFERROR(IF(F71="","",VLOOKUP(F71,SalaryGrades,$M$16+1,FALSE)),"") ->  | G72: =IFERROR(IF(G71="","",VLOOKUP(G71,SalaryGrades,$M$16+2,FALSE)),"") ->  | H72: =IFERROR(IF(H71="","",VLOOKUP(H71,SalaryGrades,$M$16+3,FALSE)),"") ->  | I72: =IFERROR(IF(I71="","",VLOOKUP(I71,SalaryGrades,$M$16+4,FALSE)),"") ->  | J72: =IFERROR(IF(J71="","",VLOOKUP(J71,SalaryGrades,$M$16+5,FALSE)),"") ->  | K72: Totals | M72: =SUM(LEN(E71),LEN(F71),LEN(G71),LEN(H71),LEN(I71),LEN(J71)) -> 0
D73: FTE | K73: =SUM(E73:J73) -> 0
D74: Salary cost | E74: =(IF(E73>0,IF(OR($M66=3,$M66=1.5),(E73*(E72+$I66))*HolidayPayRate,(E73*(E72+$I66))),0)) -> 0 | F74: 0 | G74: 0 | H74: 0 | I74: 0 | J74: 0 | K74: 0
D75: Super | E75: =(VLOOKUP(G66,Calcs!$H$4:$I$7,2,FALSE)*E74) -> 0 | F75: =(VLOOKUP(G66,Calcs!$H$4:$I$7,2,FALSE)*F74) -> 0 | G75: =(VLOOKUP(G66,Calcs!$H$4:$I$7,2,FALSE)*G74) -> 0 | H75: =(VLOOKUP(G66,Calcs!$H$4:$I$7,2,FALSE)*H74) -> 0 | I75: =(VLOOKUP(G66,Calcs!$H$4:$I$7,2,FALSE)*I74) -> 0 | J75: =(VLOOKUP($G66,Calcs!$H$4:$I$7,2,FALSE)*J74) -> 0 | K75: 0
D76: ACC | E76: =E74*Calcs!$C$8 -> 0 | F76: =F74*Calcs!$C$8 -> 0 | G76: =G74*Calcs!$C$8 -> 0 | H76: =H74*Calcs!$C$8 -> 0 | I76: =I74*Calcs!$C$8 -> 0 | J76: =J74*Calcs!$C$8 -> 0 | K76: 0
D77: Overheads | E77: =IF(K66="Full",E74*($L$2/100),0) -> 0 | F77: =IF(K66="Full",F74*($L$2/100),0) -> 0 | G77: =IF(K66="Full",G74*($L$2/100),0) -> 0 | H77: =IF(K66="Full",H74*($L$2/100),0) -> 0 | I77: =IF(K66="Full",I74*($L$2/100),0) -> 0 | J77: =IF(K66="Full",J74*($L$2/100),0) -> 0 | K77: 0
D78: TOTALS | E78: =SUM(E74:E77) -> 0 | F78: 0 | G78: 0 | H78: 0 | I78: 0 | J78: 0 | K78: 0 | M78: =IF(M72=0,0,CELL("row",M78)+1) -> 0
A80: =A65+1 -> 6 | C80: Name | H80: Dept: | AL80: =IF(AND(E80<>"",I80=""),1,0) -> 0
C81: Status | D81: =IF(AND(C85="",E87=""),"",IF(OR(C85=Calcs!$Q$353, C85=Calcs!$Q$354),Calcs!$B$59,Calcs!$B$61)) -> 2111 - Direct Academic | F81: Super | G81: Uni | H81: TA | J81: O/H | K81: =FunderOverheads -> Full | M81: =VLOOKUP(D81,Calcs!$B$59:$C$62,2,) -> 1
C83: Salary Group ▼ | E83: Progressed? ► | F83: FALSE
F84: FALSE | G84: FALSE | H84: FALSE | I84: FALSE | J84: FALSE
C85: Academic | E85: =$E$8 -> 1 (2024) | F85: =F$8 -> 2 | G85: =G$8 -> 3 | H85: 4 | I85: 5 | J85: 6
D86: Grade | F86: =IF(Summary!$O$5<3,"",IF(E86="","",IFERROR(IF(F84,INDEX(INDIRECT($M86),MATCH(E86,INDIRECT($M86),0)+1),E86),INDEX(INDIRECT($M86),COUNTA(INDIRECT($M86)))))) ->  | G86: =IF(Summary!$O$5<3,"",IF(F86="","",IFERROR(IF(G84,INDEX(INDIRECT($M86),MATCH(F86,INDIRECT($M86),0)+1),F86),INDEX(INDIRECT($M86),COUNTA(INDIRECT($M86)))))) ->  | H86: =IF(Summary!$O$5<4,"",IF(G86="","",IFERROR(IF(H84,INDEX(INDIRECT($M86),MATCH(G86,INDIRECT($M86),0)+1),G86),INDEX(INDIRECT($M86),COUNTA(INDIRECT($M86)))))) ->  | I86: =IF(Summary!$O$5<5,"",IF(H86="","",IFERROR(IF(I84,INDEX(INDIRECT($M86),MATCH(H86,INDIRECT($M86),0)+1),H86),INDEX(INDIRECT($M86),COUNTA(INDIRECT($M86)))))) ->  | J86: =IF(Summary!$O$5<6,"",IF(I86="","",IFERROR(IF(J84,INDEX(INDIRECT($M86),MATCH(I86,INDIRECT($M86),0)+1),I86),INDEX(INDIRECT($M86),COUNTA(INDIRECT($M86)))))) ->  | M86: =CONCATENATE("_",LEFT(E86,3)) -> _
D87: Salary | E87: =IFERROR(IF(E86="","",VLOOKUP(E86,SalaryGrades,$M$16,FALSE)),"") ->  | F87: =IFERROR(IF(F86="","",VLOOKUP(F86,SalaryGrades,$M$16+1,FALSE)),"") ->  | G87: =IFERROR(IF(G86="","",VLOOKUP(G86,SalaryGrades,$M$16+2,FALSE)),"") ->  | H87: =IFERROR(IF(H86="","",VLOOKUP(H86,SalaryGrades,$M$16+3,FALSE)),"") ->  | I87: =IFERROR(IF(I86="","",VLOOKUP(I86,SalaryGrades,$M$16+4,FALSE)),"") ->  | J87: =IFERROR(IF(J86="","",VLOOKUP(J86,SalaryGrades,$M$16+5,FALSE)),"") ->  | K87: Totals | M87: =SUM(LEN(E86),LEN(F86),LEN(G86),LEN(H86),LEN(I86),LEN(J86)) -> 0
D88: FTE | K88: =SUM(E88:J88) -> 0
D89: Salary cost | E89: =(IF(E88>0,IF(OR($M81=3,$M81=1.5),(E88*(E87+$I81))*HolidayPayRate,(E88*(E87+$I81))),0)) -> 0 | F89: 0 | G89: 0 | H89: 0 | I89: 0 | J89: 0 | K89: 0
D90: Super | E90: =(VLOOKUP(G81,Calcs!$H$4:$I$7,2,FALSE)*E89) -> 0 | F90: =(VLOOKUP(G81,Calcs!$H$4:$I$7,2,FALSE)*F89) -> 0 | G90: =(VLOOKUP(G81,Calcs!$H$4:$I$7,2,FALSE)*G89) -> 0 | H90: =(VLOOKUP(G81,Calcs!$H$4:$I$7,2,FALSE)*H89) -> 0 | I90: =(VLOOKUP(G81,Calcs!$H$4:$I$7,2,FALSE)*I89) -> 0 | J90: =(VLOOKUP($G81,Calcs!$H$4:$I$7,2,FALSE)*J89) -> 0 | K90: 0
D91: ACC | E91: =E89*Calcs!$C$8 -> 0 | F91: =F89*Calcs!$C$8 -> 0 | G91: =G89*Calcs!$C$8 -> 0 | H91: =H89*Calcs!$C$8 -> 0 | I91: =I89*Calcs!$C$8 -> 0 | J91: =J89*Calcs!$C$8 -> 0 | K91: 0
D92: Overheads | E92: =IF(K81="Full",E89*($L$2/100),0) -> 0 | F92: =IF(K81="Full",F89*($L$2/100),0) -> 0 | G92: =IF(K81="Full",G89*($L$2/100),0) -> 0 | H92: =IF(K81="Full",H89*($L$2/100),0) -> 0 | I92: =IF(K81="Full",I89*($L$2/100),0) -> 0 | J92: =IF(K81="Full",J89*($L$2/100),0) -> 0 | K92: 0
D93: TOTALS | E93: =SUM(E89:E92) -> 0 | F93: 0 | G93: 0 | H93: 0 | I93: 0 | J93: 0 | K93: 0 | M93: =IF(M87=0,0,CELL("row",M93)+1) -> 0
A95: =A80+1 -> 7 | C95: Name | H95: Dept: | AL95: =IF(AND(E95<>"",I95=""),1,0) -> 0
C96: Status | D96: =IF(AND(C100="",E102=""),"",IF(OR(C100=Calcs!$Q$353, C100=Calcs!$Q$354),Calcs!$B$59,Calcs!$B$61)) -> 2111 - Direct Academic | F96: Super | G96: Uni | H96: TA | J96: O/H | K96: =FunderOverheads -> Full | M96: =VLOOKUP(D96,Calcs!$B$59:$C$62,2,) -> 1
C98: Salary Group ▼ | E98: Progressed? ► | F98: FALSE
F99: FALSE | G99: FALSE | H99: FALSE | I99: FALSE | J99: FALSE
C100: Academic | E100: =$E$8 -> 1 (2024) | F100: =F$8 -> 2 | G100: =G$8 -> 3 | H100: 4 | I100: 5 | J100: 6
D101: Grade | F101: =IF(Summary!$O$5<2,"",IF(E101="","",IFERROR(IF(F99,INDEX(INDIRECT($M101),MATCH(E101,INDIRECT($M101),0)+1),E101),INDEX(INDIRECT($M101),COUNTA(INDIRECT($M101)))))) ->  | G101: =IF(Summary!$O$5<3,"",IF(F101="","",IFERROR(IF(G99,INDEX(INDIRECT($M101),MATCH(F101,INDIRECT($M101),0)+1),F101),INDEX(INDIRECT($M101),COUNTA(INDIRECT($M101)))))) ->  | H101: =IF(Summary!$O$5<4,"",IF(G101="","",IFERROR(IF(H99,INDEX(INDIRECT($M101),MATCH(G101,INDIRECT($M101),0)+1),G101),INDEX(INDIRECT($M101),COUNTA(INDIRECT($M101)))))) ->  | I101: =IF(Summary!$O$5<5,"",IF(H101="","",IFERROR(IF(I99,INDEX(INDIRECT($M101),MATCH(H101,INDIRECT($M101),0)+1),H101),INDEX(INDIRECT($M101),COUNTA(INDIRECT($M101)))))) ->  | J101: =IF(Summary!$O$5<6,"",IF(I101="","",IFERROR(IF(J99,INDEX(INDIRECT($M101),MATCH(I101,INDIRECT($M101),0)+1),I101),INDEX(INDIRECT($M101),COUNTA(INDIRECT($M101)))))) ->  | M101: =CONCATENATE("_",LEFT(E101,3)) -> _
D102: Salary | E102: =IFERROR(IF(E101="","",VLOOKUP(E101,SalaryGrades,$M$16,FALSE)),"") ->  | F102: =IFERROR(IF(F101="","",VLOOKUP(F101,SalaryGrades,$M$16+1,FALSE)),"") ->  | G102: =IFERROR(IF(G101="","",VLOOKUP(G101,SalaryGrades,$M$16+2,FALSE)),"") ->  | H102: =IFERROR(IF(H101="","",VLOOKUP(H101,SalaryGrades,$M$16+3,FALSE)),"") ->  | I102: =IFERROR(IF(I101="","",VLOOKUP(I101,SalaryGrades,$M$16+4,FALSE)),"") ->  | J102: =IFERROR(IF(J101="","",VLOOKUP(J101,SalaryGrades,$M$16+5,FALSE)),"") ->  | K102: Totals | M102: =SUM(LEN(E101),LEN(F101),LEN(G101),LEN(H101),LEN(I101),LEN(J101)) -> 0
D103: FTE | K103: =SUM(E103:J103) -> 0
D104: Salary cost | E104: =(IF(E103>0,IF(OR($M96=3,$M96=1.5),(E103*(E102+$I96))*HolidayPayRate,(E103*(E102+$I96))),0)) -> 0 | F104: 0 | G104: 0 | H104: 0 | I104: 0 | J104: 0 | K104: 0
D105: Super | E105: =(VLOOKUP(G96,Calcs!$H$4:$I$7,2,FALSE)*E104) -> 0 | F105: =(VLOOKUP(G96,Calcs!$H$4:$I$7,2,FALSE)*F104) -> 0 | G105: =(VLOOKUP(G96,Calcs!$H$4:$I$7,2,FALSE)*G104) -> 0 | H105: =(VLOOKUP(G96,Calcs!$H$4:$I$7,2,FALSE)*H104) -> 0 | I105: =(VLOOKUP(G96,Calcs!$H$4:$I$7,2,FALSE)*I104) -> 0 | J105: =(VLOOKUP($G96,Calcs!$H$4:$I$7,2,FALSE)*J104) -> 0 | K105: 0
D106: ACC | E106: =E104*Calcs!$C$8 -> 0 | F106: =F104*Calcs!$C$8 -> 0 | G106: =G104*Calcs!$C$8 -> 0 | H106: =H104*Calcs!$C$8 -> 0 | I106: =I104*Calcs!$C$8 -> 0 | J106: =J104*Calcs!$C$8 -> 0 | K106: 0
D107: Overheads | E107: =IF(K96="Full",E104*($L$2/100),0) -> 0 | F107: =IF(K96="Full",F104*($L$2/100),0) -> 0 | G107: =IF(K96="Full",G104*($L$2/100),0) -> 0 | H107: =IF(K96="Full",H104*($L$2/100),0) -> 0 | I107: =IF(K96="Full",I104*($L$2/100),0) -> 0 | J107: =IF(K96="Full",J104*($L$2/100),0) -> 0 | K107: 0
D108: TOTALS | E108: =SUM(E104:E107) -> 0 | F108: 0 | G108: 0 | H108: 0 | I108: 0 | J108: 0 | K108: 0 | M108: =IF(M102=0,0,CELL("row",M108)+1) -> 0
A110: =A95+1 -> 8 | C110: Name | H110: Dept: | AL110: =IF(AND(E110<>"",I110=""),1,0) -> 0
C111: Status | D111: =IF(AND(C115="",E117=""),"",IF(OR(C115=Calcs!$Q$353, C115=Calcs!$Q$354),Calcs!$B$59,Calcs!$B$61)) -> 2111 - Direct Academic | F111: Super | G111: Uni | H111: TA | J111: O/H | K111: =FunderOverheads -> Full | M111: =VLOOKUP(D111,Calcs!$B$59:$C$62,2,) -> 1
C113: Salary Group ▼ | E113: Progressed? ► | F113: FALSE
F114: FALSE | G114: FALSE | H114: FALSE | I114: FALSE | J114: FALSE | M114: =OR(K126="Full",K126="No Central") -> TRUE
C115: Academic | E115: =$E$8 -> 1 (2024) | F115: =F$8 -> 2 | G115: =G$8 -> 3 | H115: 4 | I115: 5 | J115: 6
D116: Grade | F116: =IF(Summary!$O$5<2,"",IF(E116="","",IFERROR(IF(F114,INDEX(INDIRECT($M116),MATCH(E116,INDIRECT($M116),0)+1),E116),INDEX(INDIRECT($M116),COUNTA(INDIRECT($M116)))))) ->  | G116: =IF(Summary!$O$5<3,"",IF(F116="","",IFERROR(IF(G114,INDEX(INDIRECT($M116),MATCH(F116,INDIRECT($M116),0)+1),F116),INDEX(INDIRECT($M116),COUNTA(INDIRECT($M116)))))) ->  | H116: =IF(Summary!$O$5<4,"",IF(G116="","",IFERROR(IF(H114,INDEX(INDIRECT($M116),MATCH(G116,INDIRECT($M116),0)+1),G116),INDEX(INDIRECT($M116),COUNTA(INDIRECT($M116)))))) ->  | I116: =IF(Summary!$O$5<5,"",IF(H116="","",IFERROR(IF(I114,INDEX(INDIRECT($M116),MATCH(H116,INDIRECT($M116),0)+1),H116),INDEX(INDIRECT($M116),COUNTA(INDIRECT($M116)))))) ->  | J116: =IF(Summary!$O$5<6,"",IF(I116="","",IFERROR(IF(J114,INDEX(INDIRECT($M116),MATCH(I116,INDIRECT($M116),0)+1),I116),INDEX(INDIRECT($M116),COUNTA(INDIRECT($M116)))))) ->  | M116: =CONCATENATE("_",LEFT(E116,3)) -> _
D117: Salary | E117: =IFERROR(IF(E116="","",VLOOKUP(E116,SalaryGrades,$M$16,FALSE)),"") ->  | F117: =IFERROR(IF(F116="","",VLOOKUP(F116,SalaryGrades,$M$16+1,FALSE)),"") ->  | G117: =IFERROR(IF(G116="","",VLOOKUP(G116,SalaryGrades,$M$16+2,FALSE)),"") ->  | H117: =IFERROR(IF(H116="","",VLOOKUP(H116,SalaryGrades,$M$16+3,FALSE)),"") ->  | I117: =IFERROR(IF(I116="","",VLOOKUP(I116,SalaryGrades,$M$16+4,FALSE)),"") ->  | J117: =IFERROR(IF(J116="","",VLOOKUP(J116,SalaryGrades,$M$16+5,FALSE)),"") ->  | K117: Totals | M117: =SUM(LEN(E116),LEN(F116),LEN(G116),LEN(H116),LEN(I116),LEN(J116)) -> 0
D118: FTE | K118: =SUM(E118:J118) -> 0 | M118: =VLOOKUP(D141,Calcs!$B$60:$C$62,2,) -> 
D119: Salary cost | E119: =(IF(E118>0,IF(OR($M111=3,$M111=1.5),(E118*(E117+$I111))*HolidayPayRate,(E118*(E117+$I111))),0)) -> 0 | F119: 0 | G119: 0 | H119: 0 | I119: 0 | J119: 0 | K119: 0
D120: Super | E120: =(VLOOKUP(G111,Calcs!$H$4:$I$7,2,FALSE)*E119) -> 0 | F120: =(VLOOKUP(G111,Calcs!$H$4:$I$7,2,FALSE)*F119) -> 0 | G120: =(VLOOKUP(G111,Calcs!$H$4:$I$7,2,FALSE)*G119) -> 0 | H120: =(VLOOKUP(G111,Calcs!$H$4:$I$7,2,FALSE)*H119) -> 0 | I120: =(VLOOKUP(G111,Calcs!$H$4:$I$7,2,FALSE)*I119) -> 0 | J120: =(VLOOKUP($G111,Calcs!$H$4:$I$7,2,FALSE)*J119) -> 0 | K120: 0
D121: ACC | E121: =E119*Calcs!$C$8 -> 0 | F121: =F119*Calcs!$C$8 -> 0 | G121: =G119*Calcs!$C$8 -> 0 | H121: =H119*Calcs!$C$8 -> 0 | I121: =I119*Calcs!$C$8 -> 0 | J121: =J119*Calcs!$C$8 -> 0 | K121: 0
D122: Overheads | E122: =IF(K111="Full",E119*($L$2/100),0) -> 0 | F122: =IF(K111="Full",F119*($L$2/100),0) -> 0 | G122: =IF(K111="Full",G119*($L$2/100),0) -> 0 | H122: =IF(K111="Full",H119*($L$2/100),0) -> 0 | I122: =IF(K111="Full",I119*($L$2/100),0) -> 0 | J122: =IF(K111="Full",J119*($L$2/100),0) -> 0 | K122: 0
D123: TOTALS | E123: =SUM(E119:E122) -> 0 | F123: 0 | G123: 0 | H123: 0 | I123: 0 | J123: 0 | K123: 0 | M123: =IF(M117=0,0,CELL("row",M123)+1) -> 0
A125: =A110+1 -> 9 | C125: Name | H125: Dept: | R125: =IF(K138<>0,TRUE,FALSE) -> FALSE | AL125: =IF(AND(E125<>"",I125=""),1,0) -> 0
C126: Status | D126: =IF(AND(C130="",E132=""),"",IF(OR(C130=Calcs!$Q$353, C130=Calcs!$Q$354),Calcs!$B$59,Calcs!$B$61)) -> 2111 - Direct Academic | F126: Super | G126: Uni | H126: TA | J126: O/H | K126: =FunderOverheads -> Full | M126: =VLOOKUP(D126,Calcs!$B$59:$C$62,2,) -> 1
C128: Salary Group ▼ | E128: Progressed? ► | F128: FALSE | H128: FALSE
F129: FALSE | G129: FALSE | H129: FALSE | I129: FALSE | J129: FALSE | M129: =VLOOKUP(D156,Calcs!$B$60:$C$62,2,) -> 
C130: Academic | E130: =$E$8 -> 1 (2024) | F130: =F$8 -> 2 | G130: =G$8 -> 3 | H130: 4 | I130: 5 | J130: 6
D131: Grade | F131: =IF(Summary!$O$5<2,"",IF(E131="","",IFERROR(IF(F129,INDEX(INDIRECT($M131),MATCH(E131,INDIRECT($M131),0)+1),E131),INDEX(INDIRECT($M131),COUNTA(INDIRECT($M131)))))) ->  | G131: =IF(Summary!$O$5<3,"",IF(F131="","",IFERROR(IF(G129,INDEX(INDIRECT($M131),MATCH(F131,INDIRECT($M131),0)+1),F131),INDEX(INDIRECT($M131),COUNTA(INDIRECT($M131)))))) ->  | H131: =IF(Summary!$O$5<4,"",IF(G131="","",IFERROR(IF(H129,INDEX(INDIRECT($M131),MATCH(G131,INDIRECT($M131),0)+1),G131),INDEX(INDIRECT($M131),COUNTA(INDIRECT($M131)))))) ->  | I131: =IF(Summary!$O$5<5,"",IF(H131="","",IFERROR(IF(I129,INDEX(INDIRECT($M131),MATCH(H131,INDIRECT($M131),0)+1),H131),INDEX(INDIRECT($M131),COUNTA(INDIRECT($M131)))))) ->  | J131: =IF(Summary!$O$5<6,"",IF(I131="","",IFERROR(IF(J129,INDEX(INDIRECT($M131),MATCH(I131,INDIRECT($M131),0)+1),I131),INDEX(INDIRECT($M131),COUNTA(INDIRECT($M131)))))) ->  | M131: =CONCATENATE("_",LEFT(E131,3)) -> _
D132: Salary | E132: =IFERROR(IF(E131="","",VLOOKUP(E131,SalaryGrades,$M$16,FALSE)),"") ->  | F132: =IFERROR(IF(F131="","",VLOOKUP(F131,SalaryGrades,$M$16+1,FALSE)),"") ->  | G132: =IFERROR(IF(G131="","",VLOOKUP(G131,SalaryGrades,$M$16+2,FALSE)),"") ->  | H132: =IFERROR(IF(H131="","",VLOOKUP(H131,SalaryGrades,$M$16+3,FALSE)),"") ->  | I132: =IFERROR(IF(I131="","",VLOOKUP(I131,SalaryGrades,$M$16+4,FALSE)),"") ->  | J132: =IFERROR(IF(J131="","",VLOOKUP(J131,SalaryGrades,$M$16+5,FALSE)),"") ->  | K132: Totals | M132: =SUM(LEN(E131),LEN(F131),LEN(G131),LEN(H131),LEN(I131),LEN(J131)) -> 0
D133: FTE | K133: =SUM(E133:J133) -> 0
D134: Salary cost | E134: =(IF(E133>0,IF(OR($M126=3,$M126=1.5),(E133*(E132+$I126))*HolidayPayRate,(E133*(E132+$I126))),0)) -> 0 | F134: 0 | G134: 0 | H134: 0 | I134: 0 | J134: 0 | K134: 0
D135: Super | E135: =(VLOOKUP(G126,Calcs!$H$4:$I$7,2,FALSE)*E134) -> 0 | F135: =(VLOOKUP(G126,Calcs!$H$4:$I$7,2,FALSE)*F134) -> 0 | G135: =(VLOOKUP(G126,Calcs!$H$4:$I$7,2,FALSE)*G134) -> 0 | H135: =(VLOOKUP(G126,Calcs!$H$4:$I$7,2,FALSE)*H134) -> 0 | I135: =(VLOOKUP(G126,Calcs!$H$4:$I$7,2,FALSE)*I134) -> 0 | J135: =(VLOOKUP($G126,Calcs!$H$4:$I$7,2,FALSE)*J134) -> 0 | K135: 0
D136: ACC | E136: =E134*Calcs!$C$8 -> 0 | F136: =F134*Calcs!$C$8 -> 0 | G136: =G134*Calcs!$C$8 -> 0 | H136: =H134*Calcs!$C$8 -> 0 | I136: =I134*Calcs!$C$8 -> 0 | J136: =J134*Calcs!$C$8 -> 0 | K136: 0
D137: Overheads | E137: =IF(K126="Full",E134*($L$2/100),0) -> 0 | F137: =IF(K126="Full",F134*($L$2/100),0) -> 0 | G137: =IF(K126="Full",G134*($L$2/100),0) -> 0 | H137: =IF(K126="Full",H134*($L$2/100),0) -> 0 | I137: =IF(K126="Full",I134*($L$2/100),0) -> 0 | J137: =IF(K126="Full",J134*($L$2/100),0) -> 0 | K137: 0
D138: TOTALS | E138: =SUM(E134:E137) -> 0 | F138: 0 | G138: 0 | H138: 0 | I138: 0 | J138: 0 | K138: 0 | M138: =IF(M132=0,0,CELL("row",M138)+1) -> 0
A140: =A125+1 -> 10 | C140: Name | H140: Dept: | AL140: =IF(AND(E140<>"",I140=""),1,0) -> 0
C141: Status | D141: =IF(AND(C145="",E147=""),"",IF(OR(C145=Calcs!$Q$353, C145=Calcs!$Q$354),Calcs!$B$59,Calcs!$B$61)) -> 2111 - Direct Academic | F141: Super | G141: Uni | H141: TA | J141: O/H | K141: =FunderOverheads -> Full | M141: =VLOOKUP(D141,Calcs!$B$59:$C$62,2,) -> 1
C143: Salary Group ▼ | E143: Progressed? ► | F143: FALSE
F144: FALSE | G144: FALSE | H144: FALSE | I144: FALSE | J144: FALSE
C145: Academic | E145: =$E$8 -> 1 (2024) | F145: =F$8 -> 2 | G145: =G$8 -> 3 | H145: 4 | I145: 5 | J145: 6
D146: Grade | F146: =IF(Summary!$O$5<2,"",IF(E146="","",IFERROR(IF(F144,INDEX(INDIRECT($M146),MATCH(E146,INDIRECT($M146),0)+1),E146),INDEX(INDIRECT($M146),COUNTA(INDIRECT($M146)))))) ->  | G146: =IF(Summary!$O$5<3,"",IF(F146="","",IFERROR(IF(G144,INDEX(INDIRECT($M146),MATCH(F146,INDIRECT($M146),0)+1),F146),INDEX(INDIRECT($M146),COUNTA(INDIRECT($M146)))))) ->  | H146: =IF(Summary!$O$5<4,"",IF(G146="","",IFERROR(IF(H144,INDEX(INDIRECT($M146),MATCH(G146,INDIRECT($M146),0)+1),G146),INDEX(INDIRECT($M146),COUNTA(INDIRECT($M146)))))) ->  | I146: =IF(Summary!$O$5<5,"",IF(H146="","",IFERROR(IF(I144,INDEX(INDIRECT($M146),MATCH(H146,INDIRECT($M146),0)+1),H146),INDEX(INDIRECT($M146),COUNTA(INDIRECT($M146)))))) ->  | J146: =IF(Summary!$O$5<6,"",IF(I146="","",IFERROR(IF(J144,INDEX(INDIRECT($M146),MATCH(I146,INDIRECT($M146),0)+1),I146),INDEX(INDIRECT($M146),COUNTA(INDIRECT($M146)))))) ->  | M146: =CONCATENATE("_",LEFT(E146,3)) -> _
D147: Salary | E147: =IFERROR(IF(E146="","",VLOOKUP(E146,SalaryGrades,$M$16,FALSE)),"") ->  | F147: =IFERROR(IF(F146="","",VLOOKUP(F146,SalaryGrades,$M$16+1,FALSE)),"") ->  | G147: =IFERROR(IF(G146="","",VLOOKUP(G146,SalaryGrades,$M$16+2,FALSE)),"") ->  | H147: =IFERROR(IF(H146="","",VLOOKUP(H146,SalaryGrades,$M$16+3,FALSE)),"") ->  | I147: =IFERROR(IF(I146="","",VLOOKUP(I146,SalaryGrades,$M$16+4,FALSE)),"") ->  | J147: =IFERROR(IF(J146="","",VLOOKUP(J146,SalaryGrades,$M$16+5,FALSE)),"") ->  | K147: Totals | M147: =SUM(LEN(E146),LEN(F146),LEN(G146),LEN(H146),LEN(I146),LEN(J146)) -> 0
D148: FTE | K148: =SUM(E148:J148) -> 0
D149: Salary cost | E149: =(IF(E148>0,IF(OR($M141=3,$M141=1.5),(E148*(E147+$I141))*HolidayPayRate,(E148*(E147+$I141))),0)) -> 0 | F149: 0 | G149: 0 | H149: 0 | I149: 0 | J149: 0 | K149: 0
D150: Super | E150: =(VLOOKUP(G141,Calcs!$H$4:$I$7,2,FALSE)*E149) -> 0 | F150: =(VLOOKUP(G141,Calcs!$H$4:$I$7,2,FALSE)*F149) -> 0 | G150: =(VLOOKUP(G141,Calcs!$H$4:$I$7,2,FALSE)*G149) -> 0 | H150: =(VLOOKUP(G141,Calcs!$H$4:$I$7,2,FALSE)*H149) -> 0 | I150: =(VLOOKUP(G141,Calcs!$H$4:$I$7,2,FALSE)*I149) -> 0 | J150: =(VLOOKUP($G141,Calcs!$H$4:$I$7,2,FALSE)*J149) -> 0 | K150: 0
D151: ACC | E151: =E149*Calcs!$C$8 -> 0 | F151: =F149*Calcs!$C$8 -> 0 | G151: =G149*Calcs!$C$8 -> 0 | H151: =H149*Calcs!$C$8 -> 0 | I151: =I149*Calcs!$C$8 -> 0 | J151: =J149*Calcs!$C$8 -> 0 | K151: 0
D152: Overheads | E152: =IF(K141="Full",E149*($L$2/100),0) -> 0 | F152: =IF(K141="Full",F149*($L$2/100),0) -> 0 | G152: =IF(K141="Full",G149*($L$2/100),0) -> 0 | H152: =IF(K141="Full",H149*($L$2/100),0) -> 0 | I152: =IF(K141="Full",I149*($L$2/100),0) -> 0 | J152: =IF(K141="Full",J149*($L$2/100),0) -> 0 | K152: 0
D153: TOTALS | E153: =SUM(E149:E152) -> 0 | F153: 0 | G153: 0 | H153: 0 | I153: 0 | J153: 0 | K153: 0 | M153: =IF(M147=0,0,CELL("row",M153)+1) -> 0
A155: =A140+1 -> 11 | C155: Name | H155: Dept: | AL155: =IF(AND(E155<>"",I155=""),1,0) -> 0
C156: Status | D156: =IF(AND(C160="",E162=""),"",IF(OR(C160=Calcs!$Q$353, C160=Calcs!$Q$354),Calcs!$B$59,Calcs!$B$61)) -> 2111 - Direct Academic | F156: Super | G156: Uni | H156: TA | J156: O/H | K156: =FunderOverheads -> Full | M156: =VLOOKUP(D156,Calcs!$B$59:$C$62,2,) -> 1
C158: Salary Group ▼ | E158: Progressed? ► | F158: FALSE
F159: FALSE | G159: FALSE | H159: FALSE | I159: FALSE | J159: FALSE
C160: Academic | E160: =$E$8 -> 1 (2024) | F160: =F$8 -> 2 | G160: =G$8 -> 3 | H160: 4 | I160: 5 | J160: 6
D161: Grade | F161: =IF(Summary!$O$5<3,"",IF(E161="","",IFERROR(IF(F159,INDEX(INDIRECT($M161),MATCH(E161,INDIRECT($M161),0)+1),E161),INDEX(INDIRECT($M161),COUNTA(INDIRECT($M161)))))) ->  | G161: =IF(Summary!$O$5<3,"",IF(F161="","",IFERROR(IF(G159,INDEX(INDIRECT($M161),MATCH(F161,INDIRECT($M161),0)+1),F161),INDEX(INDIRECT($M161),COUNTA(INDIRECT($M161)))))) ->  | H161: =IF(Summary!$O$5<4,"",IF(G161="","",IFERROR(IF(H159,INDEX(INDIRECT($M161),MATCH(G161,INDIRECT($M161),0)+1),G161),INDEX(INDIRECT($M161),COUNTA(INDIRECT($M161)))))) ->  | I161: =IF(Summary!$O$5<5,"",IF(H161="","",IFERROR(IF(I159,INDEX(INDIRECT($M161),MATCH(H161,INDIRECT($M161),0)+1),H161),INDEX(INDIRECT($M161),COUNTA(INDIRECT($M161)))))) ->  | J161: =IF(Summary!$O$5<6,"",IF(I161="","",IFERROR(IF(J159,INDEX(INDIRECT($M161),MATCH(I161,INDIRECT($M161),0)+1),I161),INDEX(INDIRECT($M161),COUNTA(INDIRECT($M161)))))) ->  | M161: =CONCATENATE("_",LEFT(E161,3)) -> _
D162: Salary | E162: =IFERROR(IF(E161="","",VLOOKUP(E161,SalaryGrades,$M$16,FALSE)),"") ->  | F162: =IFERROR(IF(F161="","",VLOOKUP(F161,SalaryGrades,$M$16+1,FALSE)),"") ->  | G162: =IFERROR(IF(G161="","",VLOOKUP(G161,SalaryGrades,$M$16+2,FALSE)),"") ->  | H162: =IFERROR(IF(H161="","",VLOOKUP(H161,SalaryGrades,$M$16+3,FALSE)),"") ->  | I162: =IFERROR(IF(I161="","",VLOOKUP(I161,SalaryGrades,$M$16+4,FALSE)),"") ->  | J162: =IFERROR(IF(J161="","",VLOOKUP(J161,SalaryGrades,$M$16+5,FALSE)),"") ->  | K162: Totals | M162: =SUM(LEN(E161),LEN(F161),LEN(G161),LEN(H161),LEN(I161),LEN(J161)) -> 0
D163: FTE | K163: =SUM(E163:J163) -> 0
D164: Salary cost | E164: =(IF(E163>0,IF(OR($M156=3,$M156=1.5),(E163*(E162+$I156))*HolidayPayRate,(E163*(E162+$I156))),0)) -> 0 | F164: 0 | G164: 0 | H164: 0 | I164: 0 | J164: 0 | K164: 0
D165: Super | E165: =(VLOOKUP(G156,Calcs!$H$4:$I$7,2,FALSE)*E164) -> 0 | F165: =(VLOOKUP(G156,Calcs!$H$4:$I$7,2,FALSE)*F164) -> 0 | G165: =(VLOOKUP(G156,Calcs!$H$4:$I$7,2,FALSE)*G164) -> 0 | H165: =(VLOOKUP(G156,Calcs!$H$4:$I$7,2,FALSE)*H164) -> 0 | I165: =(VLOOKUP(G156,Calcs!$H$4:$I$7,2,FALSE)*I164) -> 0 | J165: =(VLOOKUP($G156,Calcs!$H$4:$I$7,2,FALSE)*J164) -> 0 | K165: 0
D166: ACC | E166: =E164*Calcs!$C$8 -> 0 | F166: =F164*Calcs!$C$8 -> 0 | G166: =G164*Calcs!$C$8 -> 0 | H166: =H164*Calcs!$C$8 -> 0 | I166: =I164*Calcs!$C$8 -> 0 | J166: =J164*Calcs!$C$8 -> 0 | K166: 0
D167: Overheads | E167: =IF(K156="Full",E164*($L$2/100),0) -> 0 | F167: =IF(K156="Full",F164*($L$2/100),0) -> 0 | G167: =IF(K156="Full",G164*($L$2/100),0) -> 0 | H167: =IF(K156="Full",H164*($L$2/100),0) -> 0 | I167: =IF(K156="Full",I164*($L$2/100),0) -> 0 | J167: =IF(K156="Full",J164*($L$2/100),0) -> 0 | K167: 0
D168: TOTALS | E168: =SUM(E164:E167) -> 0 | F168: 0 | G168: 0 | H168: 0 | I168: 0 | J168: 0 | K168: 0 | M168: =IF(M162=0,0,CELL("row",M168)+1) -> 0
A170: =A155+1 -> 12 | C170: Name | H170: Dept: | AL170: =IF(AND(E170<>"",I170=""),1,0) -> 0
C171: Status | D171: =IF(AND(C175="",E177=""),"",IF(OR(C175=Calcs!$Q$353, C175=Calcs!$Q$354),Calcs!$B$59,Calcs!$B$61)) -> 2111 - Direct Academic | F171: Super | G171: Uni | H171: TA | J171: O/H | K171: =FunderOverheads -> Full | M171: =VLOOKUP(D171,Calcs!$B$59:$C$62,2,) -> 1
C173: Salary Group ▼ | E173: Progressed? ► | F173: FALSE
F174: FALSE | G174: FALSE | H174: FALSE | I174: FALSE | J174: FALSE | M174: =OR(K201="Full",K201="No Central") -> TRUE
C175: Academic | E175: =$E$8 -> 1 (2024) | F175: =F$8 -> 2 | G175: =G$8 -> 3 | H175: 4 | I175: 5 | J175: 6
D176: Grade | F176: =IF(Summary!$O$5<3,"",IF(E176="","",IFERROR(IF(F174,INDEX(INDIRECT($M176),MATCH(E176,INDIRECT($M176),0)+1),E176),INDEX(INDIRECT($M176),COUNTA(INDIRECT($M176)))))) ->  | G176: =IF(Summary!$O$5<3,"",IF(F176="","",IFERROR(IF(G174,INDEX(INDIRECT($M176),MATCH(F176,INDIRECT($M176),0)+1),F176),INDEX(INDIRECT($M176),COUNTA(INDIRECT($M176)))))) ->  | H176: =IF(Summary!$O$5<4,"",IF(G176="","",IFERROR(IF(H174,INDEX(INDIRECT($M176),MATCH(G176,INDIRECT($M176),0)+1),G176),INDEX(INDIRECT($M176),COUNTA(INDIRECT($M176)))))) ->  | I176: =IF(Summary!$O$5<5,"",IF(H176="","",IFERROR(IF(I174,INDEX(INDIRECT($M176),MATCH(H176,INDIRECT($M176),0)+1),H176),INDEX(INDIRECT($M176),COUNTA(INDIRECT($M176)))))) ->  | J176: =IF(Summary!$O$5<6,"",IF(I176="","",IFERROR(IF(J174,INDEX(INDIRECT($M176),MATCH(I176,INDIRECT($M176),0)+1),I176),INDEX(INDIRECT($M176),COUNTA(INDIRECT($M176)))))) ->  | M176: =CONCATENATE("_",LEFT(E176,3)) -> _
D177: Salary | E177: =IFERROR(IF(E176="","",VLOOKUP(E176,SalaryGrades,$M$16,FALSE)),"") ->  | F177: =IFERROR(IF(F176="","",VLOOKUP(F176,SalaryGrades,$M$16+1,FALSE)),"") ->  | G177: =IFERROR(IF(G176="","",VLOOKUP(G176,SalaryGrades,$M$16+2,FALSE)),"") ->  | H177: =IFERROR(IF(H176="","",VLOOKUP(H176,SalaryGrades,$M$16+3,FALSE)),"") ->  | I177: =IFERROR(IF(I176="","",VLOOKUP(I176,SalaryGrades,$M$16+4,FALSE)),"") ->  | J177: =IFERROR(IF(J176="","",VLOOKUP(J176,SalaryGrades,$M$16+5,FALSE)),"") ->  | K177: Totals | M177: =SUM(LEN(E176),LEN(F176),LEN(G176),LEN(H176),LEN(I176),LEN(J176)) -> 0
D178: FTE | K178: =SUM(E178:J178) -> 0
D179: Salary cost | E179: =(IF(E178>0,IF(OR($M171=3,$M171=1.5),(E178*(E177+$I171))*HolidayPayRate,(E178*(E177+$I171))),0)) -> 0 | F179: 0 | G179: 0 | H179: 0 | I179: 0 | J179: 0 | K179: 0
D180: Super | E180: =(VLOOKUP(G171,Calcs!$H$4:$I$7,2,FALSE)*E179) -> 0 | F180: =(VLOOKUP(G171,Calcs!$H$4:$I$7,2,FALSE)*F179) -> 0 | G180: =(VLOOKUP(G171,Calcs!$H$4:$I$7,2,FALSE)*G179) -> 0 | H180: =(VLOOKUP(G171,Calcs!$H$4:$I$7,2,FALSE)*H179) -> 0 | I180: =(VLOOKUP(G171,Calcs!$H$4:$I$7,2,FALSE)*I179) -> 0 | J180: =(VLOOKUP($G171,Calcs!$H$4:$I$7,2,FALSE)*J179) -> 0 | K180: 0
D181: ACC | E181: =E179*Calcs!$C$8 -> 0 | F181: =F179*Calcs!$C$8 -> 0 | G181: =G179*Calcs!$C$8 -> 0 | H181: =H179*Calcs!$C$8 -> 0 | I181: =I179*Calcs!$C$8 -> 0 | J181: =J179*Calcs!$C$8 -> 0 | K181: 0
D182: Overheads | E182: =IF(K171="Full",E179*($L$2/100),0) -> 0 | F182: =IF(K171="Full",F179*($L$2/100),0) -> 0 | G182: =IF(K171="Full",G179*($L$2/100),0) -> 0 | H182: =IF(K171="Full",H179*($L$2/100),0) -> 0 | I182: =IF(K171="Full",I179*($L$2/100),0) -> 0 | J182: =IF(K171="Full",J179*($L$2/100),0) -> 0 | K182: 0
D183: TOTALS | E183: =SUM(E179:E182) -> 0 | F183: 0 | G183: 0 | H183: 0 | I183: 0 | J183: 0 | K183: 0 | M183: =IF(M177=0,0,CELL("row",M183)+1) -> 0
A185: =A170+1 -> 13 | C185: Name | H185: Dept: | AL185: =IF(AND(E185<>"",I185=""),1,0) -> 0
C186: Status | D186: =IF(AND(C190="",E192=""),"",IF(OR(C190=Calcs!$Q$353, C190=Calcs!$Q$354),Calcs!$B$59,Calcs!$B$61)) -> 2111 - Direct Academic | F186: Super | G186: Uni | H186: TA | J186: O/H | K186: =FunderOverheads -> Full | M186: =VLOOKUP(D186,Calcs!$B$59:$C$62,2,) -> 1
C188: Salary Group ▼ | E188: Progressed? ► | F188: FALSE
F189: FALSE | G189: FALSE | H189: FALSE | I189: FALSE | J189: FALSE
C190: Academic | E190: =$E$8 -> 1 (2024) | F190: =F$8 -> 2 | G190: =G$8 -> 3 | H190: 4 | I190: 5 | J190: 6
D191: Grade | F191: =IF(Summary!$O$5<2,"",IF(E191="","",IFERROR(IF(F189,INDEX(INDIRECT($M191),MATCH(E191,INDIRECT($M191),0)+1),E191),INDEX(INDIRECT($M191),COUNTA(INDIRECT($M191)))))) ->  | G191: =IF(Summary!$O$5<3,"",IF(F191="","",IFERROR(IF(G189,INDEX(INDIRECT($M191),MATCH(F191,INDIRECT($M191),0)+1),F191),INDEX(INDIRECT($M191),COUNTA(INDIRECT($M191)))))) ->  | H191: =IF(Summary!$O$5<4,"",IF(G191="","",IFERROR(IF(H189,INDEX(INDIRECT($M191),MATCH(G191,INDIRECT($M191),0)+1),G191),INDEX(INDIRECT($M191),COUNTA(INDIRECT($M191)))))) ->  | I191: =IF(Summary!$O$5<5,"",IF(H191="","",IFERROR(IF(I189,INDEX(INDIRECT($M191),MATCH(H191,INDIRECT($M191),0)+1),H191),INDEX(INDIRECT($M191),COUNTA(INDIRECT($M191)))))) ->  | J191: =IF(Summary!$O$5<6,"",IF(I191="","",IFERROR(IF(J189,INDEX(INDIRECT($M191),MATCH(I191,INDIRECT($M191),0)+1),I191),INDEX(INDIRECT($M191),COUNTA(INDIRECT($M191)))))) ->  | M191: =CONCATENATE("_",LEFT(E191,3)) -> _
D192: Salary | E192: =IFERROR(IF(E191="","",VLOOKUP(E191,SalaryGrades,$M$16,FALSE)),"") ->  | F192: =IFERROR(IF(F191="","",VLOOKUP(F191,SalaryGrades,$M$16+1,FALSE)),"") ->  | G192: =IFERROR(IF(G191="","",VLOOKUP(G191,SalaryGrades,$M$16+2,FALSE)),"") ->  | H192: =IFERROR(IF(H191="","",VLOOKUP(H191,SalaryGrades,$M$16+3,FALSE)),"") ->  | I192: =IFERROR(IF(I191="","",VLOOKUP(I191,SalaryGrades,$M$16+4,FALSE)),"") ->  | J192: =IFERROR(IF(J191="","",VLOOKUP(J191,SalaryGrades,$M$16+5,FALSE)),"") ->  | K192: Totals | M192: =SUM(LEN(E191),LEN(F191),LEN(G191),LEN(H191),LEN(I191),LEN(J191)) -> 0
D193: FTE | K193: =SUM(E193:J193) -> 0
D194: Salary cost | E194: =(IF(E193>0,IF(OR($M186=3,$M186=1.5),(E193*(E192+$I186))*HolidayPayRate,(E193*(E192+$I186))),0)) -> 0 | F194: 0 | G194: 0 | H194: 0 | I194: 0 | J194: 0 | K194: 0
D195: Super | E195: =(VLOOKUP(G186,Calcs!$H$4:$I$7,2,FALSE)*E194) -> 0 | F195: =(VLOOKUP(G186,Calcs!$H$4:$I$7,2,FALSE)*F194) -> 0 | G195: =(VLOOKUP(G186,Calcs!$H$4:$I$7,2,FALSE)*G194) -> 0 | H195: =(VLOOKUP(G186,Calcs!$H$4:$I$7,2,FALSE)*H194) -> 0 | I195: =(VLOOKUP(G186,Calcs!$H$4:$I$7,2,FALSE)*I194) -> 0 | J195: =(VLOOKUP($G186,Calcs!$H$4:$I$7,2,FALSE)*J194) -> 0 | K195: 0
D196: ACC | E196: =E194*Calcs!$C$8 -> 0 | F196: =F194*Calcs!$C$8 -> 0 | G196: =G194*Calcs!$C$8 -> 0 | H196: =H194*Calcs!$C$8 -> 0 | I196: =I194*Calcs!$C$8 -> 0 | J196: =J194*Calcs!$C$8 -> 0 | K196: 0
D197: Overheads | E197: =IF(K186="Full",E194*($L$2/100),0) -> 0 | F197: =IF(K186="Full",F194*($L$2/100),0) -> 0 | G197: =IF(K186="Full",G194*($L$2/100),0) -> 0 | H197: =IF(K186="Full",H194*($L$2/100),0) -> 0 | I197: =IF(K186="Full",I194*($L$2/100),0) -> 0 | J197: =IF(K186="Full",J194*($L$2/100),0) -> 0 | K197: 0
D198: TOTALS | E198: =SUM(E194:E197) -> 0 | F198: 0 | G198: 0 | H198: 0 | I198: 0 | J198: 0 | K198: 0 | M198: =IF(M192=0,0,CELL("row",M198)+1) -> 0
A200: =A185+1 -> 14 | C200: Name | H200: Dept: | AL200: =IF(AND(E200<>"",I200=""),1,0) -> 0
C201: Status | D201: =IF(AND(C205="",E207=""),"",IF(OR(C205=Calcs!$Q$353, C205=Calcs!$Q$354),Calcs!$B$59,Calcs!$B$61)) -> 2111 - Direct Academic | F201: Super | G201: Uni | H201: TA | J201: O/H | K201: =FunderOverheads -> Full | M201: =VLOOKUP(D201,Calcs!$B$59:$C$62,2,) -> 1
C203: Salary Group ▼ | E203: Progressed? ► | F203: FALSE
F204: FALSE | G204: FALSE | H204: FALSE | I204: FALSE | J204: FALSE
C205: Academic | E205: =$E$8 -> 1 (2024) | F205: =F$8 -> 2 | G205: =G$8 -> 3 | H205: 4 | I205: 5 | J205: 6
D206: Grade | F206: =IF(Summary!$O$5<2,"",IF(E206="","",IFERROR(IF(F204,INDEX(INDIRECT($M206),MATCH(E206,INDIRECT($M206),0)+1),E206),INDEX(INDIRECT($M206),COUNTA(INDIRECT($M206)))))) ->  | G206: =IF(Summary!$O$5<3,"",IF(F206="","",IFERROR(IF(G204,INDEX(INDIRECT($M206),MATCH(F206,INDIRECT($M206),0)+1),F206),INDEX(INDIRECT($M206),COUNTA(INDIRECT($M206)))))) ->  | H206: =IF(Summary!$O$5<4,"",IF(G206="","",IFERROR(IF(H204,INDEX(INDIRECT($M206),MATCH(G206,INDIRECT($M206),0)+1),G206),INDEX(INDIRECT($M206),COUNTA(INDIRECT($M206)))))) ->  | I206: =IF(Summary!$O$5<5,"",IF(H206="","",IFERROR(IF(I204,INDEX(INDIRECT($M206),MATCH(H206,INDIRECT($M206),0)+1),H206),INDEX(INDIRECT($M206),COUNTA(INDIRECT($M206)))))) ->  | J206: =IF(Summary!$O$5<6,"",IF(I206="","",IFERROR(IF(J204,INDEX(INDIRECT($M206),MATCH(I206,INDIRECT($M206),0)+1),I206),INDEX(INDIRECT($M206),COUNTA(INDIRECT($M206)))))) ->  | M206: =CONCATENATE("_",LEFT(E206,3)) -> _
D207: Salary | E207: =IFERROR(IF(E206="","",VLOOKUP(E206,SalaryGrades,$M$16,FALSE)),"") ->  | F207: =IFERROR(IF(F206="","",VLOOKUP(F206,SalaryGrades,$M$16+1,FALSE)),"") ->  | G207: =IFERROR(IF(G206="","",VLOOKUP(G206,SalaryGrades,$M$16+2,FALSE)),"") ->  | H207: =IFERROR(IF(H206="","",VLOOKUP(H206,SalaryGrades,$M$16+3,FALSE)),"") ->  | I207: =IFERROR(IF(I206="","",VLOOKUP(I206,SalaryGrades,$M$16+4,FALSE)),"") ->  | J207: =IFERROR(IF(J206="","",VLOOKUP(J206,SalaryGrades,$M$16+5,FALSE)),"") ->  | K207: Totals | M207: =SUM(LEN(E206),LEN(F206),LEN(G206),LEN(H206),LEN(I206),LEN(J206)) -> 0
D208: FTE | K208: =SUM(E208:J208) -> 0
D209: Salary cost | E209: =(IF(E208>0,IF(OR($M201=3,$M201=1.5),(E208*(E207+$I201))*HolidayPayRate,(E208*(E207+$I201))),0)) -> 0 | F209: 0 | G209: 0 | H209: 0 | I209: 0 | J209: 0 | K209: 0
D210: Super | E210: =(VLOOKUP(G201,Calcs!$H$4:$I$7,2,FALSE)*E209) -> 0 | F210: =(VLOOKUP(G201,Calcs!$H$4:$I$7,2,FALSE)*F209) -> 0 | G210: =(VLOOKUP(G201,Calcs!$H$4:$I$7,2,FALSE)*G209) -> 0 | H210: =(VLOOKUP(G201,Calcs!$H$4:$I$7,2,FALSE)*H209) -> 0 | I210: =(VLOOKUP(G201,Calcs!$H$4:$I$7,2,FALSE)*I209) -> 0 | J210: =(VLOOKUP($G201,Calcs!$H$4:$I$7,2,FALSE)*J209) -> 0 | K210: 0
D211: ACC | E211: =E209*Calcs!$C$8 -> 0 | F211: =F209*Calcs!$C$8 -> 0 | G211: =G209*Calcs!$C$8 -> 0 | H211: =H209*Calcs!$C$8 -> 0 | I211: =I209*Calcs!$C$8 -> 0 | J211: =J209*Calcs!$C$8 -> 0 | K211: 0
D212: Overheads | E212: =IF(K201="Full",E209*($L$2/100),0) -> 0 | F212: =IF(K201="Full",F209*($L$2/100),0) -> 0 | G212: =IF(K201="Full",G209*($L$2/100),0) -> 0 | H212: =IF(K201="Full",H209*($L$2/100),0) -> 0 | I212: =IF(K201="Full",I209*($L$2/100),0) -> 0 | J212: =IF(K201="Full",J209*($L$2/100),0) -> 0 | K212: 0
D213: TOTALS | E213: =SUM(E209:E212) -> 0 | F213: 0 | G213: 0 | H213: 0 | I213: 0 | J213: 0 | K213: 0 | M213: =IF(M207=0,0,CELL("row",M213)+1) -> 0
A215: =A200+1 -> 15 | C215: Name | H215: Dept: | AL215: =IF(AND(E215<>"",I215=""),1,0) -> 0
C216: Status | D216: =IF(AND(C220="",E222=""),"",IF(OR(C220=Calcs!$Q$353, C220=Calcs!$Q$354),Calcs!$B$59,Calcs!$B$61)) -> 2111 - Direct Academic | F216: Super | G216: Uni | H216: TA | J216: O/H | K216: =FunderOverheads -> Full | M216: =VLOOKUP(D216,Calcs!$B$59:$C$62,2,) -> 1
C218: Salary Group ▼ | E218: Progressed? ► | F218: FALSE
F219: FALSE | G219: FALSE | H219: FALSE | I219: FALSE | J219: FALSE | M219: =OR(#REF!="Full",#REF!="No Central") -> 
C220: Academic | E220: =$E$8 -> 1 (2024) | F220: =F$8 -> 2 | G220: =G$8 -> 3 | H220: 4 | I220: 5 | J220: 6
D221: Grade | F221: =IF(Summary!$O$5<2,"",IF(E221="","",IFERROR(IF(F219,INDEX(INDIRECT($M221),MATCH(E221,INDIRECT($M221),0)+1),E221),INDEX(INDIRECT($M221),COUNTA(INDIRECT($M221)))))) ->  | G221: =IF(Summary!$O$5<3,"",IF(F221="","",IFERROR(IF(G219,INDEX(INDIRECT($M221),MATCH(F221,INDIRECT($M221),0)+1),F221),INDEX(INDIRECT($M221),COUNTA(INDIRECT($M221)))))) ->  | H221: =IF(Summary!$O$5<4,"",IF(G221="","",IFERROR(IF(H219,INDEX(INDIRECT($M221),MATCH(G221,INDIRECT($M221),0)+1),G221),INDEX(INDIRECT($M221),COUNTA(INDIRECT($M221)))))) ->  | I221: =IF(Summary!$O$5<5,"",IF(H221="","",IFERROR(IF(I219,INDEX(INDIRECT($M221),MATCH(H221,INDIRECT($M221),0)+1),H221),INDEX(INDIRECT($M221),COUNTA(INDIRECT($M221)))))) ->  | J221: =IF(Summary!$O$5<6,"",IF(I221="","",IFERROR(IF(J219,INDEX(INDIRECT($M221),MATCH(I221,INDIRECT($M221),0)+1),I221),INDEX(INDIRECT($M221),COUNTA(INDIRECT($M221)))))) ->  | M221: =CONCATENATE("_",LEFT(E221,3)) -> _
D222: Salary | E222: =IFERROR(IF(E221="","",VLOOKUP(E221,SalaryGrades,$M$16,FALSE)),"") ->  | F222: =IFERROR(IF(F221="","",VLOOKUP(F221,SalaryGrades,$M$16+1,FALSE)),"") ->  | G222: =IFERROR(IF(G221="","",VLOOKUP(G221,SalaryGrades,$M$16+2,FALSE)),"") ->  | H222: =IFERROR(IF(H221="","",VLOOKUP(H221,SalaryGrades,$M$16+3,FALSE)),"") ->  | I222: =IFERROR(IF(I221="","",VLOOKUP(I221,SalaryGrades,$M$16+4,FALSE)),"") ->  | J222: =IFERROR(IF(J221="","",VLOOKUP(J221,SalaryGrades,$M$16+5,FALSE)),"") ->  | K222: Totals | M222: =SUM(LEN(E221),LEN(F221),LEN(G221),LEN(H221),LEN(I221),LEN(J221)) -> 0
D223: FTE | K223: =SUM(E223:J223) -> 0
D224: Salary cost | E224: =(IF(E223>0,IF(OR($M216=3,$M216=1.5),(E223*(E222+$I216))*HolidayPayRate,(E223*(E222+$I216))),0)) -> 0 | F224: 0 | G224: 0 | H224: 0 | I224: 0 | J224: 0 | K224: 0
D225: Super | E225: =(VLOOKUP(G216,Calcs!$H$4:$I$7,2,FALSE)*E224) -> 0 | F225: =(VLOOKUP(G216,Calcs!$H$4:$I$7,2,FALSE)*F224) -> 0 | G225: =(VLOOKUP(G216,Calcs!$H$4:$I$7,2,FALSE)*G224) -> 0 | H225: =(VLOOKUP(G216,Calcs!$H$4:$I$7,2,FALSE)*H224) -> 0 | I225: =(VLOOKUP(G216,Calcs!$H$4:$I$7,2,FALSE)*I224) -> 0 | J225: =(VLOOKUP($G216,Calcs!$H$4:$I$7,2,FALSE)*J224) -> 0 | K225: 0
D226: ACC | E226: =E224*Calcs!$C$8 -> 0 | F226: =F224*Calcs!$C$8 -> 0 | G226: =G224*Calcs!$C$8 -> 0 | H226: =H224*Calcs!$C$8 -> 0 | I226: =I224*Calcs!$C$8 -> 0 | J226: =J224*Calcs!$C$8 -> 0 | K226: 0
D227: Overheads | E227: =IF(K216="Full",E224*($L$2/100),0) -> 0 | F227: =IF(K216="Full",F224*($L$2/100),0) -> 0 | G227: =IF(K216="Full",G224*($L$2/100),0) -> 0 | H227: =IF(K216="Full",H224*($L$2/100),0) -> 0 | I227: =IF(K216="Full",I224*($L$2/100),0) -> 0 | J227: =IF(K216="Full",J224*($L$2/100),0) -> 0 | K227: 0
... 182 more rows

Sheet Op Expenses
A1: University of Otago Costing and Consents Worksheet | T1: 96
A2: Operating Expenses | C2: SUNDRY | T2: =CONCATENATE("$A$1:$J",T1) -> $A$1:$J96
C3: Laboratory | D3: 1 | E3: 2 | F3: 3 | G3: 4 | H3: 5 | I3: 6 | N3: NOTES ( Non-Printing) | T3: =CONCATENATE("$A$1:$S",T1) -> $A$1:$S96
A4: 3241 | C4: Chemicals | M4: Laboratory other ( details) | N4: 1 | O4: 2 | P4: 3 | Q4: 4 | R4: 5 | S4: 6
A5: 3246 | C5: Gas Cylinders
A6: 3255 | C6: Prescription Animal Remedies
A7: 3256 | C7: Animals
A8: 3257 | C8: Animal Feed
A9: 3259 | C9: Surgical Supplies
A10: 3261 | C10: Biological Specimen Costs
A11: 3275 | C11: Laboratory Waste Disposal
A12: 3286 | C12: Linen Purchases
A13: 3279 | C13: Laboratory Other | D13: =N13 -> 0 | E13: 0 | F13: 0 | G13: 0 | H13: 0 | I13: 0 | K13: E | N13: =SUM(N5:N12) -> 0 | O13: 0 | P13: 0 | Q13: 0 | R13: 0 | S13: 0
D14: =SUM(D4:D13) -> 0 | E14: 0 | F14: 0 | G14: 0 | H14: 0 | I14: 0
C15: Printing/Stationery | M15: Budget working (non-Printing) | N15: 1 | O15: 2 | P15: 3 | Q15: 4 | R15: 5 | S15: 6
A16: 3111 | C16: Printing
A17: 3115 | C17: Photocopier/ Printer supplies
A18: 3181 | C18: Stationery
A19: 7761 | C19: OU Print - Printing Costs
D20: =SUM(D16:D19) -> 0 | E20: 0 | F20: 0 | G20: 0 | H20: 0 | I20: 0
C21: Postage
A22: 3121 | C22: Postage
A23: 3125 | C23: Courier & Freight
D24: =SUM(D22:D23) -> 0 | E24: 0 | F24: 0 | G24: 0 | H24: 0 | I24: 0
M25: Sundry Operating Expenses ( Non-Printing)
C26: Other Material Costs | M26: Other | N26: 1 | O26: 2 | P26: 3 | Q26: 4 | R26: 5 | S26: 6
A27: 3281 | C27: General Materials
A28: 3495 | C28: Sundry Operating Expenses | D28: =N35 -> 0 | E28: 0 | F28: 0 | G28: 0 | H28: 0 | I28: 0 | K28: E
A29: 7775 | C29: Internal General Expenses Other
D30: =SUM(D27:D29) -> 0 | E30: 0 | F30: 0 | G30: 0 | H30: 0 | I30: 0
C31: Equipment (Running Costs)
A32: 3211 | C32: Equip. Maintenance
A33: 3213 | C33: Equip. Rental
A34: 3216 | C34: Equip. Purchase (minor)
C35: Minor is <2000 (<5000 Marsden Fund) | D35: =SUM(D32:D34) -> 0 | E35: 0 | F35: 0 | G35: 0 | H35: 0 | I35: 0 | N35: =SUM(N27:N34) -> 0 | O35: 0 | P35: 0 | Q35: 0 | R35: 0 | S35: 0
C37: Travel & Accommodation | M37: Budget working (non-Printing)
A38: 3351 | C38: Airfares - Domestic
A39: 3356 | C39: Airfares - International
A40: 3361 | C40: Accommodation
A41: 3371 | C41: Mileage Reimbursements
A42: 3376 | C42: Taxi and Car Rentals
A43: 3395 | C43: Travel Other
A44: 3451 | C44: Vehicle Expenses - Fuel
A45: 3456 | C45: Vehicle Expenses - Other
D46: =SUM(D38:D45) -> 0 | E46: 0 | F46: 0 | G46: 0 | H46: 0 | I46: 0
C47: Communications
A48: 3131 | C48: Land Line rental
A49: 3133 | C49: Land line call costs
A50: 3135 | C50: Mobile phone/ device costs
A51: 3137 | C51: Internet Usage
A52: 3139 | C52: Electronic Comms
A53: 7711 | C53: ITS Phone Rental Charge
A54: 7714 | C54: ITS Phone Usage Charge
A55: 7717 | C55: ITS Network Outlet Rental Charge
A56: 7721 | C56: ITS Internet Usage Charge
A57: 7728 | C57: ITS Other Communications Charge
D58: =SUM(D48:D57) -> 0 | E58: 0 | F58: 0 | G58: 0 | H58: 0 | I58: 0
C59: Computing Costs - PURCHASE OF COMPUTERS IS BUDGETED ON THE EQUIPMENT PAGE
A60: 3311 | C60: Computer Maintenance
A61: 3316 | C61: Software & SW Maintenance
A62: 3321 | C62: Computer Equipment
A63: 3326 | C63: Computer Leasing Costs
A64: 3329 | C64: Computing Costs Other
D65: =SUM(D60:D64) -> 0 | E65: 0 | F65: 0 | G65: 0 | H65: 0 | I65: 0
C66: Reference Material Costs
A67: 3331 | C67: Books & Periodicals
A68: 3336 | C68: Electonic Resources
D69: =SUM(D67:D68) -> 0 | E69: 0 | F69: 0 | G69: 0 | H69: 0 | I69: 0
C70: Advertising & Promotion
A71: 3411 | C71: Media
A72: 3416 | C72: Publications
D73: =SUM(D71:D72) -> 0 | E73: 0 | F73: 0 | G73: 0 | H73: 0 | I73: 0
C74: Other Operational Expenses
A75: 3461 | C75: Catering/Entertainment
A76: 7756 | C76: Union catering
A77: 3731 | C77: Professional & Consulting charges
A78: 4132 | C78: Venue Hire
D79: =SUM(D75:D78) -> 0 | E79: 0 | F79: 0 | G79: 0 | H79: 0 | I79: 0
C80: People Costs
A81: 2311 | C81: Subcontractor- Academic Staff
A82: 2341 | C82: Subcontractor- General Staff
A83: 2471 | C83: Relocation Expenses
A84: 2531 | C84: Other Staff Training Course Costs
A85: 2541 | C85: Conference Registration Fees
A86: 7738 | C86: ITS Training Charge
D87: =SUM(D81:D86) -> 0 | E87: 0 | F87: 0 | G87: 0 | H87: 0 | I87: 0
C88: Other Expenses (Insert Code & Text will populate)
A89: 0 | B89: 0 | C89: =IF(A89="","",VLOOKUP(A89,Disections,2,FALSE)) -> Example | V89: =IF(AND(SUM(D89:I89)>0,OR(A89=0,A89="")),1,0) -> 0
C90: =IF(A90="","",VLOOKUP(A90,Disections,2,FALSE)) ->  | V90: =IF(AND(SUM(D90:I90)>0,OR(A90=0,A90="")),1,0) -> 0
C91: =IF(A91="","",VLOOKUP(A91,Disections,2,FALSE)) ->  | K91: =SUM(D95:I95) -> 0 | V91: 0
C92: =IF(A92="","",VLOOKUP(A92,Disections,2,FALSE)) ->  | V92: 0
C93: =IF(A93="","",VLOOKUP(A93,Disections,2,FALSE)) ->  | V93: 0
D94: =SUM(D89:D93) -> 0 | E94: =SUM(E89:E93) -> 0 | F94: 0 | G94: 0 | H94: 0 | I94: 0 | V94: =SUM(V89:V93) -> 0 | W94: OpExpensesCode
C95: Totals | D95: =D94+D87+D79+D73+D69+D58+D35+D65+D46+D24+D20+D30+D14 -> 0 | E95: 0 | F95: 0 | G95: 0 | H95: 0 | I95: 0

Sheet Dissection Codes (hidden)
A1: Dissections Codes for Operating Expenses | C1: Description
A2: 2311 | B2: Sub-Contractor - Academic Staff | C2: =IFERROR(VLOOKUP(A2,DissectionDescription,3,FALSE),"") -> Where teaching or research has been sub contracted out to a third party to perform a service that would have otherwise have been performed by a University Staff staff member and paid by HR, such as backfilling a position or performing a service staff member would normally perform.
A3: 2341 | B3: Sub-Contractor - General Staff | C3: Where general work has been sub contracted out to a third party to perform service that would otherwise have been performed by a University staff member and paid by HR, such as backfilling a staff position or performing a service a staff member would normally perform.
A4: 2461 | B4: Membership Fees | C4: Individual expenses eg: Professional bodies, Koru club
A5: 2471 | B5: Relocation Expenses | C5: Includes relocation costs for both Academic and General Staff as per HR Policy.
A6: 2541 | B6: Conference Registration Fees | C6: Note that travel & accommodation to go to 335* range.
A7: 3111 | B7: Printing | C7: External printing charges - for OU Print use "7761"
A8: 3115 | B8: Photocopier / Printer Supplies | C8: Includes photocopying paper, toner and the per page usage charge.
A9: 3121 | B9: Postage | C9: NZ Post Charges. Does not include mail room charges
A10: 3125 | B10: Courier & Freight | C10: Use of courier and freight companies for outwards freight
A11: 3135 | B11: Mobile Phone/Device Costs | C11: Includes plans and calls - note the purchase of cell phones is minor equipment "3216"
A12: 3137 | B12: Internet Usage | C12: Internet usage costs ex external providers
A13: 3181 | B13: Stationery | C13: Stationery supplies - note photocopying use "3115" and minor equipment use "3216"
A14: 3186 | B14: Sundry Administration Expenses | C14: Administration costs not listed above eg: white board cleaner
A15: 3211 | B15: Equipment Maintenance | C15: Equipment maintenance costs
A16: 3213 | B16: Equipment Rental | C16: Equipment rental charges - note photocopy usage use "3115"
A17: 3216 | B17: Equipment Purchases (Minor) | C17: Equipment under $2,000 (excl. GST). Note computer purchases should be fixed assets
A18: 3217 | B18: Health & Safety Equipment | C18: 0
A19: 3241 | B19: Chemicals | C19: 0
A20: 3246 | B20: Gas Cylinders | C20: Gas cylinders including rental and filling
A21: 3248 | B21: Samples Analysis | C21: 0
A22: 3255 | B22: Prescription Animal Remedies | C22: =IFERROR(VLOOKUP(#REF!,DissectionDescription,3,FALSE),"") -> 
A23: 3256 | B23: Animals | C23: =IFERROR(VLOOKUP(A22,DissectionDescription,3,FALSE),"") -> 0
A24: 3257 | B24: Animal Feed | C24: =IFERROR(VLOOKUP(A23,DissectionDescription,3,FALSE),"") -> 0
A25: 3259 | B25: Surgical Supplies | C25: =IFERROR(VLOOKUP(A25,DissectionDescription,3,FALSE),"") -> 0
A26: 3261 | B26: Biological Specimen Costs | C26: Cost of preparing biological specimens for research/teaching purposes
A27: 3262 | B27: Antibodies | C27: 0
A28: 3275 | B28: Laboratory Waste Disposal | C28: 0
A29: 3279 | B29: Laboratory Other | C29: Expenses not listed above - laboratory safety equipment, radio isotopes
A30: 3281 | B30: General Materials | C30: Other opertational material costs not included in the above
A31: 3286 | B31: Linen Purchases | C31: =IFERROR(VLOOKUP(A31,DissectionDescription,3,FALSE),"") -> Purchase of linen, primarily in relation to Residential Colleges and University owned flats, and Uniforms
A32: 3287 | B32: Laundry Services | C32: 0
A33: 3311 | B33: Computer Maintenance | C33: Computer maintenance costs - fixing, repairs
A34: 3316 | B34: Software & Software Maintenance | C34: Includes the cost of software applications under $2000 and the cost of changes to those applications
A35: 3321 | B35: Computer Equipment | C35: Purchase of sundry computer equipment eg: mouse, keyboard, screen. Note that the purchase of complete computers should be charged to asset additions "8848"
A36: 3326 | B36: Computer Leasing Costs | C36: 0
A37: 3329 | B37: Computing Costs Other | C37: Other computing costs not included in computing costs above
A38: 3331 | B38: Books & Periodicals | C38: Hardcopy versions of journals including subscriptions
A39: 3336 | B39: Electronic Resources | C39: Includes online journals - e journals, subscriptions, digital repository charges etc.
A40: 3351 | B40: Airfares - Domestic | C40: Airfares paid for travel within New Zealand. Note that where that travel is part of an international flight, they should be coded to "3356".
A41: 3356 | B41: Airfares - International | C41: Includes the NZ sector airfares if the intention of travel is international
A42: 3361 | B42: Accommodation | C42: Cost of accommodation
A43: 3371 | B43: Mileage Reimbursements | C43: Payment of an allowance to staff members for the use of their own motor vehicles in relation to University business.
A44: 3376 | B44: Taxi and Car Rentals | C44: 0
A45: 3395 | B45: Travel Other | C45: Includes travel insurance, sustenance etc
A46: 3411 | B46: Media | C46: Advertising & Promotion not included in "3416". Includes radio,TV and Web
A47: 3416 | B47: Publications | C47: All costs associated with production of advertising/promotion material including design.
A48: 3451 | B48: Vehicle Expenses - Fuel | C48: Fuel purchases for University owned vehicles.
A49: 3456 | B49: Vehicle Expenses - Other | C49: Other costs associated with the running of University owned vehicles eg: road user charges, registration. The cost of insuring University owned vehicles should be coded to "3481".
A50: 3461 | B50: Catering/Entertainment | C50: Including morning & afternoon teas from External Caterers/Supermarkets/Restaurants/Cafes. Also includes tea,coffee milk etc. Includes Pcard purchases at Union outlets. For Union catering use "7756"
A51: 3495 | B51: Sundry Operating Expenses | C51: Other expenditure not included in operational expenditure above
A52: 3731 | B52: Professional & Consulting Fees | C52: Where a third party is engaged to perform a one off service for the University such as legal/accounting advice and proof reading.
A53: 4132 | B53: Venue Hire
A54: 7175 | B54: Research Collaboration Received
A55: 7575 | B55: Research Collaboration Paid
A56: 7711 | B56: ITS Phone Rental Charge
A57: 7714 | B57: ITS Phone Usage Charge
A58: 7717 | B58: ITS Network Outlet Rental Charge
A59: 7721 | B59: ITS Internet Usage Charge
A60: 7728 | B60: ITS Other Communications Charge
A61: 7738 | B61: ITS Training Charge
A62: 7739 | B62: ITS General Charges
A63: 7756 | B63: Union Catering General
A64: 7761 | B64: OU Print - Printing Costs | C64: =IFERROR(VLOOKUP(A64,DissectionDescription,3,FALSE),"") -> 
A65: 7771 | B65: Postage Expense Internal
A66: 7775 | B66: Internal General Expenses Other
A67: 7776 | B67: Internal Animal Purchase Internal
A68: 7777 | B68: Animal Daily Maintenance Internal
A69: 7778 | B69: Prescription Animal Remedies Internal
A70: 0 | B70: Example
C92: =IFERROR(VLOOKUP(A92,DissectionDescription,3,FALSE),"") -> 

Sheet Dissection List (hidden)
A1: Code | B1: Name | C1: Description
A2: 2111 | B2: Academic Salaries | C2: Staff employed in academic roles on either a permanent or fixed term basis
A3: 2121 | B3: Casual Academic Salaries | C3: Staff employed in academic roles, working as and when required, on an hourly basis. Includes Tutors & Demonstrators. Holiday pay paid each period.
A4: 2141 | B4: Retiring Gratuities - Academic Staff | C4: Includes retiring allowances & early retirement allowances as per University policy.
A5: 2191 | B5: Academic Staff Leave Movement | C5: Movements in leave balances owed to staff employed in academic roles
A6: 2211 | B6: General Salaries | C6: Staff employed in general roles on either a permanent or fixed term basis
A7: 2221 | B7: Casual General Salaries | C7: Staff employed in general roles, working as and when required, on an hourly basis. Holiday pay paid each period.
A8: 2241 | B8: Retiring Gratuities - General Staff | C8: Includes retiring allowances & early retirement allowances as per University policy.
A9: 2291 | B9: General Staff Leave Movement | C9: Movements in leave balances owed to staff employed in general roles
A10: 2311 | B10: Sub-Contractor - Academic Staff | C10: Where teaching or research has been sub contracted out to a third party to perform a service that would have otherwise have been performed by a University Staff staff member and paid by HR, such as backfilling a position or performing a service staff member would normally perform.
A11: 2341 | B11: Sub-Contractor - General Staff | C11: Where general work has been sub contracted out to a third party to perform service that would otherwise have been performed by a University staff member and paid by HR, such as backfilling a staff position or performing a service a staff member would normally perform.
A12: 2411 | B12: ACC Levy | C12: Accident Compensation Levies
A13: 2414 | B13: ACC Levy - Professional Staff
A14: 2421 | B14: Staff Health & Safety | C14: Personal items eg: prescription safety glasses, overalls, safety shoes, flu vacinations, staff laundry costs and eye tests.
A15: 2431 | B15: Fringe Benefit Tax | C15: Fringe Benefit tax paid to the IRD on non-monetary benefits given to employees
A16: 2441 | B16: Superannuation | C16: Subsidy paid by the University to approved superannuation schemes. Includes the charge for withholding tax paid to the Inland Revenue.
A17: 2442 | B17: Employer Superannuation Tax Credit
A18: 2451 | B18: Superannuation - Professional Staff
A19: 2452 | B19: Staff IP Entitlements | C19: FSD Use Only
A20: 2461 | B20: Membership Fees | C20: Individual expenses eg: Professional bodies, Koru club
A21: 2471 | B21: Relocation Expenses | C21: Includes relocation costs for both Academic and General Staff as per HR Policy.
A22: 2495 | B22: Actuarial Adjustment to Leave Balances | C22: Should only be used by Financial Services Division
A23: 2511 | B23: Staff Study Assistance - Internal | C23: Fee rebates on study at the University of Otago in relation to staff members.
A24: 2521 | B24: Staff Study Assistance - External | C24: Fee payment to other tertiary institutions in relation to staff members.
A25: 2531 | B25: Other Staff Training Course Costs | C25: Externally provided staff training not included in "2521". Internal ITS courses to be charged to "7738", while other internal courses should be charged to "7775"
A26: 2541 | B26: Conference Registration Fees | C26: Note that travel & accommodation to go to 335* range.
A27: 3111 | B27: Printing | C27: External printing charges - for OU Print use "7761"
A28: 3115 | B28: Photocopier / Printer Supplies | C28: Includes photocopying paper, toner and the per page usage charge.
A29: 3121 | B29: Postage | C29: NZ Post Charges. Does not include mail room charges
A30: 3125 | B30: Courier & Freight | C30: Use of courier and freight companies for outwards freight
A31: 3128 | B31: System Only - Miscellaneous Charges
A32: 3131 | B32: Land Line Rental Costs | C32: Land line rental costs ex external providers
A33: 3133 | B33: Land Line Call Costs | C33: Land line call costs ex external providers
A34: 3135 | B34: Mobile Phone/Device Costs | C34: Includes plans and calls - note the purchase of cell phones is minor equipment "3216"
A35: 3137 | B35: Internet Usage | C35: Internet usage costs ex external providers
A36: 3139 | B36: Electronic Comms/Network Maint | C36: Mainly for ITS use only but can be used by others.
A37: 3181 | B37: Stationery | C37: Stationery supplies - note photocopying use "3115" and minor equipment use "3216"
A38: 3186 | B38: Sundry Administration Expenses | C38: Administration costs not listed above eg: white board cleaner
A39: 3211 | B39: Equipment Maintenance | C39: Equipment maintenance costs
A40: 3213 | B40: Equipment Rental | C40: Equipment rental charges - note photocopy usage use "3115"
A41: 3216 | B41: Equipment Purchases (Minor) | C41: Equipment under $2,000 (excl. GST). Note computer purchases should be fixed assets
A42: 3217 | B42: Health & Safety Equipment
A43: 3241 | B43: Chemicals
A44: 3246 | B44: Gas Cylinders | C44: Gas cylinders including rental and filling
A45: 3248 | B45: Samples Analysis
A46: 3255 | B46: Prescription Animal Remedies
A47: 3256 | B47: Animals
A48: 3257 | B48: Animal Feed
A49: 3259 | B49: Surgical Supplies
A50: 3261 | B50: Biological Specimen Costs | C50: Cost of preparing biological specimens for research/teaching purposes
A51: 3262 | B51: Antibodies
A52: 3265 | B52: Laboratory Registration/Compliance Costs
A53: 3275 | B53: Laboratory Waste Disposal
A54: 3279 | B54: Laboratory Other | C54: Expenses not listed above - laboratory safety equipment, radio isotopes
A55: 3281 | B55: General Materials | C55: Other opertational material costs not included in the above
A56: 3282 | B56: Project Overspend
A57: 3286 | B57: Linen & Uniform Purchases | C57: Purchase of linen, primarily in relation to Residential Colleges and University owned flats, and Uniforms
A58: 3287 | B58: Laundry Services
A59: 3311 | B59: Computer Maintenance | C59: Computer maintenance costs - fixing, repairs
A60: 3316 | B60: Software & Software Maintenance | C60: Includes the cost of software applications under $2000 and the cost of changes to those applications
A61: 3321 | B61: Computer Equipment | C61: Purchase of sundry computer equipment eg: mouse, keyboard, screen. Note that the purchase of complete computers should be charged to asset additions "8848"
A62: 3326 | B62: Computer Leasing Costs
A63: 3329 | B63: Computing Costs Other | C63: Other computing costs not included in computing costs above
A64: 3331 | B64: Books & Periodicals | C64: Hardcopy versions of journals including subscriptions
A65: 3336 | B65: Electronic Resources | C65: Includes online journals - e journals, subscriptions, digital repository charges etc.
A66: 3341 | B66: Open Access Publication Fee
A67: 3351 | B67: Airfares - Domestic | C67: Airfares paid for travel within New Zealand. Note that where that travel is part of an international flight, they should be coded to "3356".
A68: 3356 | B68: Airfares - International | C68: Includes the NZ sector airfares if the intention of travel is international
A69: 3361 | B69: Accommodation | C69: Cost of accommodation
A70: 3371 | B70: Mileage Reimbursements | C70: Payment of an allowance to staff members for the use of their own motor vehicles in relation to University business.
A71: 3376 | B71: Taxi and Car Rentals
A72: 3395 | B72: Travel Other | C72: Includes travel insurance, sustenance etc
A73: 3411 | B73: Media | C73: Advertising & Promotion not included in "3416". Includes radio,TV and Web
A74: 3416 | B74: Publications | C74: All costs associated with production of advertising/promotion material including design.
A75: 3451 | B75: Vehicle Expenses - Fuel | C75: Fuel purchases for University owned vehicles.
A76: 3453 | B76: Vehicle Expenses - Repairs & Maintenance | C76: Repair & maintenance costs associated with University owned vehicles. This includes the cost of obtaining a WOF.
A77: 3456 | B77: Vehicle Expenses - Other | C77: Other costs associated with the running of University owned vehicles eg: road user charges, registration. The cost of insuring University owned vehicles should be coded to "3481".
A78: 3461 | B78: Catering/Entertainment | C78: Including morning & afternoon teas from External Caterers/Supermarkets/Restaurants/Cafes. Also includes tea,coffee milk etc. Includes Pcard purchases at Union outlets. For Union catering use "7756"
A79: 3471 | B79: External Grants Paid
A80: 3475 | B80: Subcontracted Services | C80: Where a service is contracted out to a third party to conduct that service on behalf of the University.
A81: 3481 | B81: Insurance - Non Building | C81: Note that travel insurance should be coded to "3395" and property insurance should be coded to "4121".
A82: 3491 | B82: Staff Gifts
A83: 3495 | B83: Sundry Operating Expenses | C83: Other expenditure not included in operational expenditure above
A84: 3496 | B84: Expenditure Recoveries | C84: This dissection should be used where the University has previously paid for goods or services on behalf of an organisation or person, and is recovering this expenditure. The recovery is recorded as negative expenditure. This dissection should NOT be used for a recovery that has an element of profit margin or mark up. Such a recovery should be treated as income and recorded using the appropriate income dissection. | D84: Added 30 May 2017
A85: 3611 | B85: Scholarships - Tuition Fee Rebates | C85: The cost of tuition fee rebates offered as part of an overall scholarship. These charges will be generated from the Student Fees system.
A86: 3616 | B86: Scholarships - Other | C86: Scholarships other than "3611".
A87: 3621 | B87: Student Association Purchases | C87: Students association activities run through the University - primarily for Residential Colleges
A88: 3631 | B88: Clinical Access Costs | C88: Patient access costs paid to the District Health Boards
A89: 3641 | B89: Commissions Paid - Student Recruitment | C89: Commissions paid to agents involved in international student recruitment on behalf on the University.
A90: 3651 | B90: Discounts provided to Students
A91: 3691 | B91: Student Other | C91: Other student related costs not included above
A92: 3721 | B92: Legal Fees
A93: 3731 | B93: Professional & Consulting Fees | C93: Where a third party is engaged to perform a one off service for the University such as legal/accounting advice and proof reading.

Sheet Op Expense Sorted (hidden)
C1: Year
A2: Expense Code | B2: Description | C2: 1 | D2: 2 | E2: 3 | F2: 4 | G2: 5 | H2: 6 | I2: Total
A3: ='Op Expenses'!$A$81 -> 2311 | B3: =VLOOKUP($A3,OperatingExpenses,3,FALSE) -> Subcontractor- Academic Staff | C3: =VLOOKUP($A3,OperatingExpenses,C$2+3,FALSE) -> 0 | D3: 0 | E3: 0 | F3: 0 | G3: 0 | H3: 0 | I3: =SUM(C3:H3) -> 0
A4: ='Op Expenses'!$A$82 -> 2341 | B4: Subcontractor- General Staff | C4: 0 | D4: 0 | E4: 0 | F4: 0 | G4: 0 | H4: 0 | I4: 0
A5: ='Op Expenses'!$A$16 -> 3111 | B5: Printing | C5: 0 | D5: 0 | E5: 0 | F5: 0 | G5: 0 | H5: 0 | I5: 0
A6: ='Op Expenses'!$A$17 -> 3115 | B6: Photocopier/ Printer supplies | C6: 0 | D6: 0 | E6: 0 | F6: 0 | G6: 0 | H6: 0 | I6: 0
A7: ='Op Expenses'!$A$22 -> 3121 | B7: Postage | C7: 0 | D7: 0 | E7: 0 | F7: 0 | G7: 0 | H7: 0 | I7: 0
A8: ='Op Expenses'!$A$23 -> 3125 | B8: Courier & Freight | C8: 0 | D8: 0 | E8: 0 | F8: 0 | G8: 0 | H8: 0 | I8: 0
A9: ='Op Expenses'!$A$48 -> 3131 | B9: Land Line rental | C9: 0 | D9: 0 | E9: 0 | F9: 0 | G9: 0 | H9: 0 | I9: 0
A10: ='Op Expenses'!$A$49 -> 3133 | B10: Land line call costs | C10: 0 | D10: 0 | E10: 0 | F10: 0 | G10: 0 | H10: 0 | I10: 0
A11: ='Op Expenses'!$A$50 -> 3135 | B11: Mobile phone/ device costs | C11: 0 | D11: 0 | E11: 0 | F11: 0 | G11: 0 | H11: 0 | I11: 0
A12: ='Op Expenses'!$A$51 -> 3137 | B12: Internet Usage | C12: 0 | D12: 0 | E12: 0 | F12: 0 | G12: 0 | H12: 0 | I12: 0
A13: ='Op Expenses'!$A$52 -> 3139 | B13: Electronic Comms | C13: =VLOOKUP($A13,OperatingExpenses,C$2+3,FALSE) -> 0 | D13: 0 | E13: 0 | F13: 0 | G13: 0 | H13: 0 | I13: 0
A14: ='Op Expenses'!$A$18 -> 3181 | B14: Stationery | C14: 0 | D14: 0 | E14: 0 | F14: 0 | G14: 0 | H14: 0 | I14: 0
A15: ='Op Expenses'!$A$32 -> 3211 | B15: Equip. Maintenance | C15: 0 | D15: 0 | E15: 0 | F15: 0 | G15: 0 | H15: 0 | I15: 0
A16: ='Op Expenses'!$A$33 -> 3213 | B16: Equip. Rental | C16: 0 | D16: 0 | E16: 0 | F16: 0 | G16: 0 | H16: 0 | I16: 0
A17: ='Op Expenses'!$A$34 -> 3216 | B17: Equip. Purchase (minor) | C17: 0 | D17: 0 | E17: 0 | F17: 0 | G17: 0 | H17: 0 | I17: 0
A18: ='Op Expenses'!$A$4 -> 3241 | B18: Chemicals | C18: 0 | D18: 0 | E18: 0 | F18: 0 | G18: 0 | H18: 0 | I18: 0
A19: ='Op Expenses'!$A$5 -> 3246 | B19: Gas Cylinders | C19: 0 | D19: 0 | E19: 0 | F19: 0 | G19: 0 | H19: 0 | I19: 0
A20: ='Op Expenses'!#REF! -> 
A21: ='Op Expenses'!$A$6 -> 3255 | B21: Prescription Animal Remedies | C21: 0 | D21: 0 | E21: 0 | F21: 0 | G21: 0 | H21: 0 | I21: 0
A22: ='Op Expenses'!$A$7 -> 3256 | B22: Animals | C22: 0 | D22: 0 | E22: 0 | F22: 0 | G22: 0 | H22: 0 | I22: 0
A23: ='Op Expenses'!$A$8 -> 3257 | B23: Animal Feed | C23: =VLOOKUP($A23,OperatingExpenses,C$2+3,FALSE) -> 0 | D23: 0 | E23: 0 | F23: 0 | G23: 0 | H23: 0 | I23: 0
A24: ='Op Expenses'!#REF! -> 
A25: ='Op Expenses'!$A$9 -> 3259 | B25: Surgical Supplies | C25: 0 | D25: 0 | E25: 0 | F25: 0 | G25: 0 | H25: 0 | I25: 0
A26: ='Op Expenses'!$A$10 -> 3261 | B26: Biological Specimen Costs | C26: 0 | D26: 0 | E26: 0 | F26: 0 | G26: 0 | H26: 0 | I26: 0
A27: ='Op Expenses'!#REF! -> 
A28: ='Op Expenses'!$A$11 -> 3275 | B28: Laboratory Waste Disposal | C28: 0 | D28: 0 | E28: 0 | F28: 0 | G28: 0 | H28: 0 | I28: 0
A29: ='Op Expenses'!$A$13 -> 3279 | B29: Laboratory Other | C29: 0 | D29: 0 | E29: 0 | F29: 0 | G29: 0 | H29: 0 | I29: 0
A30: ='Op Expenses'!$A$27 -> 3281 | B30: General Materials | C30: 0 | D30: 0 | E30: 0 | F30: 0 | G30: 0 | H30: 0 | I30: 0
A31: ='Op Expenses'!$A$12 -> 3286 | B31: Linen Purchases | C31: 0 | D31: 0 | E31: 0 | F31: 0 | G31: 0 | H31: 0 | I31: 0
A32: ='Op Expenses'!$A$60 -> 3311 | B32: Computer Maintenance | C32: 0 | D32: 0 | E32: 0 | F32: 0 | G32: 0 | H32: 0 | I32: 0
A33: ='Op Expenses'!$A$61 -> 3316 | B33: Software & SW Maintenance | C33: =VLOOKUP($A33,OperatingExpenses,C$2+3,FALSE) -> 0 | D33: 0 | E33: 0 | F33: 0 | G33: 0 | H33: 0 | I33: 0
A34: ='Op Expenses'!$A$62 -> 3321 | B34: Computer Equipment | C34: 0 | D34: 0 | E34: 0 | F34: 0 | G34: 0 | H34: 0 | I34: 0
A35: ='Op Expenses'!$A$63 -> 3326 | B35: =VLOOKUP($A35,OperatingExpenses,3,FALSE) -> Computer Leasing Costs | C35: 0 | D35: 0 | E35: 0 | F35: 0 | G35: 0 | H35: 0 | I35: =SUM(C35:H35) -> 0
A36: ='Op Expenses'!$A$64 -> 3329 | B36: Computing Costs Other | C36: 0 | D36: 0 | E36: 0 | F36: 0 | G36: 0 | H36: 0 | I36: 0
A37: ='Op Expenses'!A$67 -> 3331 | B37: Books & Periodicals | C37: 0 | D37: 0 | E37: 0 | F37: 0 | G37: 0 | H37: 0 | I37: 0
A38: ='Op Expenses'!$A$68 -> 3336 | B38: Electonic Resources | C38: 0 | D38: 0 | E38: 0 | F38: 0 | G38: 0 | H38: 0 | I38: 0
A39: ='Op Expenses'!$A$38 -> 3351 | B39: Airfares - Domestic | C39: 0 | D39: 0 | E39: 0 | F39: 0 | G39: 0 | H39: 0 | I39: 0
A40: ='Op Expenses'!$A$39 -> 3356 | B40: Airfares - International | C40: 0 | D40: 0 | E40: 0 | F40: 0 | G40: 0 | H40: 0 | I40: 0
A41: ='Op Expenses'!$A$40 -> 3361 | B41: Accommodation | C41: 0 | D41: 0 | E41: 0 | F41: 0 | G41: 0 | H41: 0 | I41: 0
A42: ='Op Expenses'!$A$41 -> 3371 | B42: Mileage Reimbursements | C42: 0 | D42: 0 | E42: 0 | F42: 0 | G42: 0 | H42: 0 | I42: 0
A43: ='Op Expenses'!$A$42 -> 3376 | B43: Taxi and Car Rentals | C43: =VLOOKUP($A43,OperatingExpenses,C$2+3,FALSE) -> 0 | D43: 0 | E43: 0 | F43: 0 | G43: 0 | H43: 0 | I43: 0
A44: ='Op Expenses'!$A$43 -> 3395 | B44: Travel Other | C44: 0 | D44: 0 | E44: 0 | F44: 0 | G44: 0 | H44: 0 | I44: 0
A45: ='Op Expenses'!$A$71 -> 3411 | B45: Media | C45: 0 | D45: 0 | E45: 0 | F45: 0 | G45: 0 | H45: 0 | I45: 0
A46: ='Op Expenses'!$A$72 -> 3416 | B46: Publications | C46: 0 | D46: 0 | E46: 0 | F46: 0 | G46: 0 | H46: 0 | I46: 0
A47: ='Op Expenses'!$A$44 -> 3451 | B47: Vehicle Expenses - Fuel | C47: 0 | D47: 0 | E47: 0 | F47: 0 | G47: 0 | H47: 0 | I47: 0
A48: ='Op Expenses'!$A$45 -> 3456 | B48: Vehicle Expenses - Other | C48: 0 | D48: 0 | E48: 0 | F48: 0 | G48: 0 | H48: 0 | I48: 0
A49: ='Op Expenses'!$A$75 -> 3461 | B49: Catering/Entertainment | C49: 0 | D49: 0 | E49: 0 | F49: 0 | G49: 0 | H49: 0 | I49: 0
A50: ='Op Expenses'!$A$28 -> 3495 | B50: Sundry Operating Expenses | C50: 0 | D50: 0 | E50: 0 | F50: 0 | G50: 0 | H50: 0 | I50: 0
A51: ='Op Expenses'!$A$77 -> 3731 | B51: Professional & Consulting charges | C51: 0 | D51: 0 | E51: 0 | F51: 0 | G51: 0 | H51: 0 | I51: 0
A52: ='Op Expenses'!$A$76 -> 7756 | B52: Union catering | C52: 0 | D52: 0 | E52: 0 | F52: 0 | G52: 0 | H52: 0 | I52: 0
A53: ='Op Expenses'!$A$83 -> 2471 | B53: Relocation Expenses | C53: =VLOOKUP($A53,OperatingExpenses,C$2+3,FALSE) -> 0 | D53: 0 | E53: 0 | F53: 0 | G53: 0 | H53: 0 | I53: 0
A54: ='Op Expenses'!$A$84 -> 2531 | B54: Other Staff Training Course Costs | C54: 0 | D54: 0 | E54: 0 | F54: 0 | G54: 0 | H54: 0 | I54: 0
A55: ='Op Expenses'!$A$85 -> 2541 | B55: Conference Registration Fees | C55: 0 | D55: 0 | E55: 0 | F55: 0 | G55: 0 | H55: 0 | I55: 0
A56: ='Op Expenses'!$A$53 -> 7711 | B56: ITS Phone Rental Charge | C56: 0 | D56: 0 | E56: 0 | F56: 0 | G56: 0 | H56: 0 | I56: 0
A57: ='Op Expenses'!$A$54 -> 7714 | B57: ITS Phone Usage Charge | C57: 0 | D57: 0 | E57: 0 | F57: 0 | G57: 0 | H57: 0 | I57: 0
A58: ='Op Expenses'!$A$55 -> 7717 | B58: ITS Network Outlet Rental Charge | C58: 0 | D58: 0 | E58: 0 | F58: 0 | G58: 0 | H58: 0 | I58: 0
A59: ='Op Expenses'!$A$56 -> 7721 | B59: ITS Internet Usage Charge | C59: 0 | D59: 0 | E59: 0 | F59: 0 | G59: 0 | H59: 0 | I59: 0
A60: ='Op Expenses'!$A$57 -> 7728 | B60: ITS Other Communications Charge | C60: 0 | D60: 0 | E60: 0 | F60: 0 | G60: 0 | H60: 0 | I60: 0
A61: ='Op Expenses'!$A$86 -> 7738 | B61: ITS Training Charge | C61: 0 | D61: 0 | E61: 0 | F61: 0 | G61: 0 | H61: 0 | I61: 0
A62: ='Op Expenses'!$A$19 -> 7761 | B62: OU Print - Printing Costs | C62: 0 | D62: 0 | E62: 0 | F62: 0 | G62: 0 | H62: 0 | I62: 0
A63: ='Op Expenses'!$A$29 -> 7775 | B63: Internal General Expenses Other | C63: 0 | D63: 0 | E63: 0 | F63: 0 | G63: 0 | H63: 0 | I63: 0
A65: ='Op Expenses'!$C$88 -> Other Expenses (Insert Code & Text will populate)
A66: ='Op Expenses'!$A$89 -> 0 | B66: ='Op Expenses'!$C$89 -> Example | C66: =IFERROR(VLOOKUP($A66,OtherExpenses,C$2+3,FALSE),) -> 0 | D66: 0 | E66: 0 | F66: 0 | G66: 0 | H66: 0 | I66: 0
A67: =IF('Op Expenses'!$A$90="","",'Op Expenses'!$A$90) ->  | B67: ='Op Expenses'!$C$90 ->  | C67: 0 | D67: 0 | E67: 0 | F67: 0 | G67: 0 | H67: 0 | I67: 0
A68: =IF('Op Expenses'!$A$91="","",'Op Expenses'!$A$91) ->  | B68: ='Op Expenses'!$C$91 ->  | C68: 0 | D68: 0 | E68: 0 | F68: 0 | G68: 0 | H68: 0 | I68: 0
A69: =IF('Op Expenses'!$A$92="","",'Op Expenses'!$A$92) ->  | B69: ='Op Expenses'!$C$92 ->  | C69: 0 | D69: 0 | E69: 0 | F69: 0 | G69: 0 | H69: 0 | I69: 0
A70: =IF('Op Expenses'!$A$93="","",'Op Expenses'!$A$93) ->  | B70: ='Op Expenses'!$C$93 ->  | C70: 0 | D70: 0 | E70: 0 | F70: 0 | G70: 0 | H70: 0 | I70: 0
A72: Totals | C72: =SUM(C3:C71) ->  | D72: =SUM(D3:D71) -> 

Sheet Subs-Students
B1: University of Otago Costing and Consents Worksheet | L1: Note | R1: PhD | S1: y
B2: Subcontractors (GST Registered) | R2: Masters | S2: n
B3: 3475 Organisation & Key Personnel | R3: Hons
E4: Sub # | J4: TEO? | K4: y | L4: Total | N4: Total ex GST | O4: Total +GST | R4: Summer
L5: =SUM(F5:K5) -> 0 | N5: =SUM(F5:K5) -> 0 | O5: =N5*(1+GST_Rate) -> 0
F6: Y1 | G6: Y2 | H6: Y3 | I6: Y4 | J6: Y5 | K6: Y6
B7: 3475 Organisation & Key Personnel
E8: Sub # | J8: TEO? | K8: y | L8: Total | N8: Total ex GST | O8: Total +GST
L9: =SUM(F9:K9) -> 0 | N9: =SUM(F9:K9) -> 0 | O9: =N9*(1+GST_Rate) -> 0
F10: Y1 | G10: Y2 | H10: Y3 | I10: Y4 | J10: Y5 | K10: Y6
B11: 3475 Organisation & Key Personnel
E12: Sub # | J12: TEO? | K12: y | L12: Total | N12: Total ex GST | O12: Total +GST
L13: =SUM(F13:K13) -> 0 | N13: =SUM(F13:K13) -> 0 | O13: =N13*(1+GST_Rate) -> 0
F14: Y1 | G14: Y2 | H14: Y3 | I14: Y4 | J14: Y5 | K14: Y6
B15: 3475 Organisation & Key Personnel
E16: Sub # | J16: TEO? | K16: y | L16: Total | N16: Total ex GST | O16: Total +GST
L17: =SUM(F17:K17) -> 0 | N17: =SUM(F17:K17) -> 0 | O17: =N17*(1+GST_Rate) -> 0
F18: Y1 | G18: Y2 | H18: Y3 | I18: Y4 | J18: Y5 | K18: Y6
B19: 3475 Organisation & Key Personnel
E20: Sub # | J20: TEO? | K20: y | L20: Total | N20: Total ex GST | O20: Total +GST
L21: =SUM(F21:K21) -> 0 | N21: =SUM(F21:K21) -> 0 | O21: =N21*(1+GST_Rate) -> 0
F22: Y2 | G22: Y3 | H22: Y4 | I22: Y5 | J22: Y6
B23: 3475 Organisation & Key Personnel
E24: Sub # | J24: TEO? | K24: y | L24: Total | N24: Total ex GST | O24: Total +GST
L25: =SUM(F25:K25) -> 0 | N25: =SUM(F25:K25) -> 0 | O25: =N25*(1+GST_Rate) -> 0
F26: Y1 | G26: Y2 | H26: Y3 | I26: Y4 | J26: Y5 | K26: Y6
B27: 3475 Organisation & Key Personnel
E28: Sub # | J28: TEO? | K28: y | L28: Total | N28: Total ex GST | O28: Total +GST
L29: =SUM(F29:K29) -> 0 | N29: =SUM(F29:K29) -> 0 | O29: =N29*(1+GST_Rate) -> 0
F30: Y1 | G30: Y2 | H30: Y3 | I30: Y4 | J30: Y5 | K30: Y6
B31: 3475 Organisation & Key Personnel
E32: Sub # | J32: TEO? | K32: y | L32: Total | N32: Total ex GST | O32: Total +GST
L33: =SUM(F33:K33) -> 0 | N33: =SUM(F33:K33) -> 0 | O33: =N33*(1+GST_Rate) -> 0
F34: Y1 | G34: Y2 | H34: Y3 | I34: Y4 | J34: Y5 | K34: Y6
B35: 3475 Organisation & Key Personnel
E36: Sub # | J36: TEO? | K36: y | L36: Total | N36: Total ex GST | O36: Total +GST
L37: =SUM(F37:K37) -> 0 | N37: =SUM(F37:K37) -> 0 | O37: =N37*(1+GST_Rate) -> 0
F38: Y1 | G38: Y2 | H38: Y3 | I38: Y4 | J38: Y5 | K38: Y6
B39: 3475 Organisation & Key Personnel
E40: Sub # | J40: TEO? | K40: y | L40: Total | N40: Total ex GST | O40: Total +GST
L41: =SUM(F41:K41) -> 0 | N41: =SUM(F41:K41) -> 0 | O41: =N41*(1+GST_Rate) -> 0
B43: 3475 Organisation & Key Personnel
E44: Sub # | J44: TEO? | K44: y | L44: Total | N44: Total ex GST | O44: Total +GST
L45: =SUM(F45:K45) -> 0 | N45: =SUM(F45:K45) -> 0 | O45: =N45*(1+GST_Rate) -> 0
F46: Y1 | G46: Y2 | H46: Y3 | I46: Y4 | J46: Y5 | K46: Y6
B47: 3475 Organisation & Key Personnel
E48: Sub # | J48: TEO? | K48: y | L48: Total | N48: Total ex GST | O48: Total +GST
L49: =SUM(F49:K49) -> 0 | N49: =SUM(F49:K49) -> 0 | O49: =N49*(1+GST_Rate) -> 0
F50: Y1 | G50: Y2 | H50: Y3 | I50: Y4 | J50: Y5 | K50: Y6
B51: 3475 Organisation & Key Personnel
E52: Sub # | J52: TEO? | K52: y | L52: Total | N52: Total ex GST | O52: Total +GST
L53: =M48 -> 0 | N53: =SUM(F53:K53) -> 0 | O53: =N53*(1+GST_Rate) -> 0
F54: Y1 | G54: Y2 | H54: Y3 | I54: Y4 | J54: Y5 | K54: Y6
B55: 3475 Organisation & Key Personnel
E56: Sub # | J56: TEO? | K56: y | L56: Total | N56: Total ex GST | O56: Total +GST
L57: =SUM(F57:K57) -> 0 | N57: =SUM(F57:K57) -> 0 | O57: =N57*(1+GST_Rate) -> 0
F58: Y1 | G58: Y2 | H58: Y3 | I58: Y4 | J58: Y5 | K58: Y6
B59: 3475 Organisation & Key Personnel
E60: Sub # | J60: TEO? | K60: y | L60: Total | N60: Total ex GST | O60: Total +GST
L61: =SUM(F61:K61) -> 0 | N61: =SUM(F61:K61) -> 0 | O61: =N61*(1+GST_Rate) -> 0
B63: 3475 Organisation & Key Personnel
E64: Sub # | J64: TEO? | K64: y | L64: Total | N64: Total ex GST | O64: Total +GST
L65: =SUM(F65:K65) -> 0 | N65: =SUM(F65:K65) -> 0 | O65: =N65*(1+GST_Rate) -> 0
F66: Y1 | G66: Y2 | H66: Y3 | I66: Y4 | J66: Y5 | K66: Y6
B67: 3475 Organisation & Key Personnel
E68: Sub # | J68: TEO? | K68: y | L68: Total | N68: Total ex GST | O68: Total +GST
L69: =SUM(F69:K69) -> 0 | N69: =SUM(F69:K69) -> 0 | O69: =N69*(1+GST_Rate) -> 0
F70: Y1 | G70: Y2 | H70: Y3 | I70: Y4 | J70: Y5 | K70: Y6
B71: 3475 Organisation & Key Personnel
E72: Sub # | J72: TEO? | K72: y | L72: Total | N72: Total ex GST | O72: Total +GST
L73: =M68 -> 0 | N73: =SUM(F73:K73) -> 0 | O73: =N73*(1+GST_Rate) -> 0
F74: Y1 | G74: Y2 | H74: Y3 | I74: Y4 | J74: Y5 | K74: Y6
B75: 3475 Organisation & Key Personnel
E76: Sub # | J76: TEO? | K76: y | L76: Total | N76: Total ex GST | O76: Total +GST
L77: =SUM(F77:K77) -> 0 | N77: =SUM(F77:K77) -> 0 | O77: =N77*(1+GST_Rate) -> 0
F78: Y1 | G78: Y2 | H78: Y3 | I78: Y4 | J78: Y5 | K78: Y6
B79: 3475 Organisation & Key Personnel
E80: Sub # | J80: TEO? | K80: y | L80: Total | N80: Total ex GST | O80: Total +GST
L81: =SUM(F81:K81) -> 0 | N81: =SUM(F81:K81) -> 0 | O81: =N81*(1+GST_Rate) -> 0
B83: 3475 Organisation & Key Personnel
E84: Sub # | J84: TEO? | K84: y | L84: Total | N84: Total ex GST | O84: Total +GST
L85: =SUM(F85:K85) -> 0 | N85: =SUM(F85:K85) -> 0 | O85: =N85*(1+GST_Rate) -> 0
F86: Y1 | G86: Y2 | H86: Y3 | I86: Y4 | J86: Y5 | K86: Y6
B87: 3475 Organisation & Key Personnel
E88: Sub # | J88: TEO? | K88: y | L88: Total | N88: Total ex GST | O88: Total +GST
L89: =SUM(F89:K89) -> 0 | N89: =SUM(F89:K89) -> 0 | O89: =N89*(1+GST_Rate) -> 0
F90: Y1 | G90: Y2 | H90: Y3 | I90: Y4 | J90: Y5 | K90: Y6
B91: 3475 Organisation & Key Personnel
E92: Sub # | J92: TEO? | K92: y | L92: Total | N92: Total ex GST | O92: Total +GST
L93: =M88 -> 0 | N93: =SUM(F93:K93) -> 0 | O93: =N93*(1+GST_Rate) -> 0
F94: Y1 | G94: Y2 | H94: Y3 | I94: Y4 | J94: Y5 | K94: Y6
B95: 3475 Organisation & Key Personnel
E96: Sub # | J96: TEO? | K96: y | L96: Total | N96: Total ex GST | O96: Total +GST
L97: =SUM(F97:K97) -> 0 | N97: =SUM(F97:K97) -> 0 | O97: =N97*(1+GST_Rate) -> 0
F98: Y1 | G98: Y2 | H98: Y3 | I98: Y4 | J98: Y5 | K98: Y6
B99: 3475 Organisation & Key Personnel
E100: Sub # | J100: TEO? | K100: y | L100: Total | N100: Total ex GST | O100: Total +GST
L101: =SUM(F101:K101) -> 0 | N101: =SUM(F101:K101) -> 0 | O101: =N101*(1+GST_Rate) -> 0
B103: 3475 Organisation & Key Personnel
E104: Sub # | J104: TEO? | K104: y | L104: Total | N104: Total ex GST | O104: Total +GST
L105: =SUM(F105:K105) -> 0 | N105: =SUM(F105:K105) -> 0 | O105: =N105*(1+GST_Rate) -> 0
F106: Y1 | G106: Y2 | H106: Y3 | I106: Y4 | J106: Y5 | K106: Y6
B107: 3475 Organisation & Key Personnel
E108: Sub # | J108: TEO? | K108: y | L108: Total | N108: Total ex GST | O108: Total +GST
L109: =SUM(F109:K109) -> 0 | N109: =SUM(F109:K109) -> 0 | O109: =N109*(1+GST_Rate) -> 0
F110: Y1 | G110: Y2 | H110: Y3 | I110: Y4 | J110: Y5 | K110: Y6
B111: 3475 Organisation & Key Personnel
E112: Sub # | J112: TEO? | K112: y | L112: Total | N112: Total ex GST | O112: Total +GST
L113: =M108 -> 0 | N113: =SUM(F113:K113) -> 0 | O113: =N113*(1+GST_Rate) -> 0
F114: Y1 | G114: Y2 | H114: Y3 | I114: Y4 | J114: Y5 | K114: Y6
B115: 3475 Organisation & Key Personnel
E116: Sub # | J116: TEO? | K116: y | L116: Total | N116: Total ex GST | O116: Total +GST
L117: =SUM(F117:K117) -> 0 | N117: =SUM(F117:K117) -> 0 | O117: =N117*(1+GST_Rate) -> 0
F118: Y1 | G118: Y2 | H118: Y3 | I118: Y4 | J118: Y5 | K118: Y6
B119: 3475 Organisation & Key Personnel
E120: Sub # | J120: TEO? | K120: y | L120: Total | N120: Total ex GST | O120: Total +GST
L121: =SUM(F121:K121) -> 0 | N121: =SUM(F121:K121) -> 0 | O121: =N121*(1+GST_Rate) -> 0
B123: 3475 Organisation & Key Personnel
E124: Sub # | J124: TEO? | K124: y | L124: Total | N124: Total ex GST | O124: Total +GST
L125: =SUM(F125:K125) -> 0 | N125: =SUM(F125:K125) -> 0 | O125: =N125*(1+GST_Rate) -> 0
F126: Y1 | G126: Y2 | H126: Y3 | I126: Y4 | J126: Y5 | K126: Y6
B127: 3475 Organisation & Key Personnel
E128: Sub # | J128: TEO? | K128: y | L128: Total | N128: Total ex GST | O128: Total +GST
L129: =SUM(F129:K129) -> 0 | N129: =SUM(F129:K129) -> 0 | O129: =N129*(1+GST_Rate) -> 0
F130: Y1 | G130: Y2 | H130: Y3 | I130: Y4 | J130: Y5 | K130: Y6
B131: 3475 Organisation & Key Personnel
E132: Sub # | J132: TEO? | K132: y | L132: Total | N132: Total ex GST | O132: Total +GST
L133: =SUM(F133:K133) -> 0 | N133: =SUM(F133:K133) -> 0 | O133: =N133*(1+GST_Rate) -> 0
F134: Y1 | G134: Y2 | H134: Y3 | I134: Y4 | J134: Y5 | K134: Y6
E135: Total | F135: =F5+F9+F13+F17+F21+F25+F29+F33+F37+F41+F45+F49+F53+F57+F61+F65+F69+F73+F77+F81+F85+F89+F93+F97+F101+F105+F109+F113+F117+F121+F125+F129+F133 -> 0 | G135: =G5+G9+G13+G17+G21+G25+G29+G33+G37+G41+G45+G49+G53+G57+G61+G65+G69+G73+G77+G81+G85+G89+G93+G97+G101+G105+G109+G113+G117+G121+G125+G129+G133 -> 0 | H135: 0 | I135: 0 | J135: 0 | K135: 0 | N135: =F135+G135+H135+I135+J135+K135 -> 0 | O135: =(G135+H135+I135+J135+K135+L135)*(1+GST_Rate) -> 0 | R135: =SUM(F135:K135) -> 0
B136: Post Graduate Students | F136: Y1 | G136: Y2 | H136: Y3 | I136: Y4 | J136: Y5 | K136: Y6
D137: 3616 | E137: Stipend | N137: =SUM(F137:K137) -> 0
D138: 3611 | E138: Fees | N138: =SUM(F138:K138) -> 0
D139: 3691 | E139: Thesis | N139: =SUM(F139:K139) -> 0
D141: 3616 | E141: Stipend | N141: =SUM(F141:K141) -> 0
D142: 3611 | E142: Fees | N142: =SUM(F142:K142) -> 0
D143: 3691 | E143: Thesis | N143: =SUM(F143:K143) -> 0
D145: 3616 | E145: Stipend | N145: =SUM(F145:K145) -> 0
D146: 3611 | E146: Fees | N146: =SUM(F146:K146) -> 0
D147: 3691 | E147: Thesis | N147: =SUM(F147:K147) -> 0
D149: 3616 | E149: Stipend | N149: =SUM(F149:K149) -> 0
D150: 3611 | E150: Fees | N150: =SUM(F150:K150) -> 0
D151: 3691 | E151: Thesis | N151: =SUM(F151:K151) -> 0
D153: 3616 | E153: Stipend | N153: =SUM(F153:K153) -> 0
D154: 3611 | E154: Fees | N154: =SUM(F154:K154) -> 0
D155: 3691 | E155: Thesis | N155: =SUM(F155:K155) -> 0
D157: 3616 | E157: Stipend | N157: =SUM(F157:K157) -> 0
D158: 3611 | E158: Fees | N158: =SUM(F158:K158) -> 0
D159: 3691 | E159: Thesis | N159: =SUM(F159:K159) -> 0
D161: 3616 | E161: Stipend | N161: =SUM(F161:K161) -> 0
D162: 3611 | E162: Fees | N162: =SUM(F162:K162) -> 0
D163: 3691 | E163: Thesis | N163: =SUM(F163:K163) -> 0
D165: 3616 | E165: Stipend | N165: =SUM(F165:K165) -> 0
D166: 3611 | E166: Fees | N166: =SUM(F166:K166) -> 0
D167: 3691 | E167: Thesis | N167: =SUM(F167:K167) -> 0
D169: 3616 | E169: Stipend | N169: =SUM(F169:K169) -> 0
D170: 3611 | E170: Fees | N170: =SUM(F170:K170) -> 0
D171: 3691 | E171: Thesis | N171: =SUM(F171:K171) -> 0
D173: 3616 | E173: Stipend | N173: =SUM(F173:K173) -> 0
D174: 3611 | E174: Fees | N174: =SUM(F174:K174) -> 0
D175: 3691 | E175: Thesis | N175: =SUM(F175:K175) -> 0
D177: 3616 | E177: Stipend | N177: =SUM(F177:K177) -> 0
D178: 3611 | E178: Fees | N178: =SUM(F178:K178) -> 0
D179: 3691 | E179: Thesis | N179: =SUM(F179:K179) -> 0
D181: 3616 | E181: Stipend | N181: =SUM(F181:K181) -> 0
D182: 3611 | E182: Fees | N182: =SUM(F182:K182) -> 0
D183: 3691 | E183: Thesis | N183: =SUM(F183:K183) -> 0
D185: 3616 | E185: Stipend | N185: =SUM(F185:K185) -> 0
D186: 3611 | E186: Fees | N186: =SUM(F186:K186) -> 0
D187: 3691 | E187: Thesis | N187: =SUM(F187:K187) -> 0
D189: 3616 | E189: Stipend | N189: =SUM(F189:K189) -> 0
D190: 3611 | E190: Fees | N190: =SUM(F190:K190) -> 0
D191: 3691 | E191: Thesis | N191: =SUM(F191:K191) -> 0
D193: 3616 | E193: Stipend | N193: =SUM(F193:K193) -> 0
D194: 3611 | E194: Fees | N194: =SUM(F194:K194) -> 0
D195: 3691 | E195: Thesis | N195: =SUM(F195:K195) -> 0
D197: 3616 | E197: Stipend | N197: =SUM(F197:K197) -> 0
D198: 3611 | E198: Fees | N198: =SUM(F198:K198) -> 0
D199: 3691 | E199: Thesis | N199: =SUM(F199:K199) -> 0
E201: Total | F201: =SUM(F137:F200) -> 0 | G201: =SUM(G137:G200) -> 0 | H201: 0 | I201: 0 | J201: 0 | K201: 0 | N201: =SUM(F201:K201) -> 0 | R201: =SUM(F201:K201) -> 0
R202: =R135+R201 -> 0

Sheet Equipment & Computers
B1: University of Otago Costing and Consents Worksheet
B3: EQUIPMENT - Major Purchases & All Computers
B4: >$2,000 (or $5,000 for Marsden) per item OR any computers/laptops | D4: and any computer purchases
A6: ­ | B6: Equipment | F6: 1 | G6: 2 | H6: 3 | I6: 4 | J6: 5 | K6: 6 | N6: ­ | O6: PLEASE USE CORRECT DISSECTION CODE
A7: 8846 | N7: 8846 | O7: Equipment
A8: 8846 | N8: 8848 | O8: Computers
A9: 8846 | N9: 8851 | O9: Furniture
A10: 8846
A11: 8846
A12: 8846
E13: Total | F13: =SUM(F7:F12) -> 0 | G13: 0 | H13: 0 | I13: 0 | J13: 0 | K13: 0 | N13: =SUM(F13:K13) -> 0 | R13: =SUM(F13:K13) -> 0
B15: EQUIPMENT DEPRECIATION | N15: 5141 | O15: Equipment depreciation
N16: 5151 | O16: Computers
B17: Asset description | N17: 5171 | O17: Furniture
F18: 1 | G18: 2 | H18: 3 | I18: 4 | J18: 5 | K18: 6
B19: Replacement Cost (no GST)
B20: Depreciation Rate * | N20: * Depreciation Rate
B21: Expected usage (FTE) | N21: Motor vehicles | P21: 0.1 - 0.333
F22: =F19*F20*F21 -> 0 | G22: 0 | H22: 0 | I22: 0 | J22: 0 | K22: 0 | N22: Furniture and fittings | P22: 0.1-0.2
N23: Plant and Equip | P23: 0.1
B24: Asset description | N24: Video equipment | P24: 0.25
F25: 1 | G25: 2 | H25: 3 | I25: 4 | J25: 5 | K25: 6 | N25: Computers | P25: 0.2
B26: Replacement Cost (no GST) | N26: Library collections | P26: 0.1-0.2
B27: Depreciation Rate
B28: Expected usage (FTE)
F29: =F26*F27*F28 -> 0 | G29: 0 | H29: 0 | I29: 0 | J29: 0 | K29: 0
B31: Asset description
F32: 1 | G32: 2 | H32: 3 | I32: 4 | J32: 5 | K32: 6
B33: Replacement Cost (no GST)
B34: Depreciation Rate
B35: Expected usage (FTE)
F36: =F33*F34*F35 -> 0 | G36: 0 | H36: 0 | I36: 0 | J36: 0 | K36: 0
B38: Asset description
F39: 1 | G39: 2 | H39: 3 | I39: 4 | J39: 5 | K39: 6
B40: Replacement Cost (no GST)
B41: Depreciation Rate
B42: Expected usage (FTE)
F43: =F40*F41*F42 -> 0 | G43: 0 | H43: 0 | I43: 0 | J43: 0 | K43: 0
E46: Totals | F46: =SUM(F22+F29+F36+F43) -> 0 | G46: 0 | H46: 0 | I46: 0 | J46: 0 | K46: 0 | N46: =SUM(F46:K46) -> 0 | R46: =SUM(F46:K46) -> 0
R47: =R13+R46 -> 0

Sheet ISR
A1: Indirect Salary Recovery Relief Agreement (ISR) | L1: Indirect Salary Recovery Relief Agreement (ISR) Summary Table
K2: 1
B3: Staff Member Name: | C3: =IF(VLOOKUP($K$2,$K$4:$S$19,2)=0,"",VLOOKUP($K$2,$K$4:$S$19,2)) ->  | L3: Staff member | M3: Department | N3: Y1 | O3: Y2 | P3: Y3 | Q3: Y4 | R3: Y5 | S3: Y6 | U3: Total
K4: 1 | L4: ='Indirect Staff'!$E$3 -> 0 | M4: ='Indirect Staff'!$I$3 -> 0 | N4: ='Indirect Staff'!E14 -> 0 | O4: ='Indirect Staff'!F14 -> 0 | P4: ='Indirect Staff'!G14 -> 0 | Q4: ='Indirect Staff'!H14 -> 0 | R4: ='Indirect Staff'!I14 -> 0 | S4: ='Indirect Staff'!J14 -> 0 | U4: =SUM(N4:S4) -> 0
B5: Department | C5: =IF(VLOOKUP($K$2,$K$4:$S$19,3)=0,"",VLOOKUP($K$2,$K$4:$S$19,3)) ->  | F5: =IF(C5="","",VLOOKUP(C5,DepartmentsandDivisions,3,FALSE)) ->  | K5: =IF(M5<>"",K4+1,"") ->  | L5: =IF('Indirect Staff'!$E$20="","",'Indirect Staff'!$E$20) ->  | M5: =IF('Indirect Staff'!$I$20="","",'Indirect Staff'!$I$20) ->  | N5: ='Indirect Staff'!E29 -> 0 | O5: ='Indirect Staff'!F29 -> 0 | P5: ='Indirect Staff'!G29 -> 0 | Q5: ='Indirect Staff'!H29 -> 0 | R5: ='Indirect Staff'!I29 -> 0 | S5: ='Indirect Staff'!J29 -> 0 | U5: =SUM(N5:S5) -> 0
K6: =IF(M6<>"",K5+1,"") ->  | L6: =IF('Indirect Staff'!$E$35="","",'Indirect Staff'!$E$35) ->  | M6: =IF('Indirect Staff'!$I$35="","",'Indirect Staff'!$I$35) ->  | N6: ='Indirect Staff'!E44 -> 0 | O6: ='Indirect Staff'!F44 -> 0 | P6: ='Indirect Staff'!G44 -> 0 | Q6: ='Indirect Staff'!H44 -> 0 | R6: ='Indirect Staff'!I44 -> 0 | S6: ='Indirect Staff'!J44 -> 0 | U6: 0
B7: Project Title | C7: =IF(Summary!$C$6="","",Summary!$C$6) ->  | L7: =IF('Indirect Staff'!$E$50="","",'Indirect Staff'!$E$50) ->  | M7: =IF('Indirect Staff'!$I$50="","",'Indirect Staff'!$I$50) ->  | N7: ='Indirect Staff'!E59 -> 0 | O7: ='Indirect Staff'!F59 -> 0 | P7: ='Indirect Staff'!G59 -> 0 | Q7: ='Indirect Staff'!H59 -> 0 | R7: ='Indirect Staff'!I59 -> 0 | S7: ='Indirect Staff'!J59 -> 0 | U7: 0
L8: =IF('Indirect Staff'!$E$65="","",'Indirect Staff'!$E$65) ->  | M8: =IF('Indirect Staff'!$I$65="","",'Indirect Staff'!$I$65) ->  | N8: ='Indirect Staff'!E74 -> 0 | O8: ='Indirect Staff'!F74 -> 0 | P8: ='Indirect Staff'!G74 -> 0 | Q8: ='Indirect Staff'!H74 -> 0 | R8: ='Indirect Staff'!I74 -> 0 | S8: ='Indirect Staff'!J74 -> 0 | U8: 0
B9: Funder | C9: =IF(Summary!$C$9="","",Summary!$C$9) ->  | L9: =IF('Indirect Staff'!$E$80="","",'Indirect Staff'!$E$80) ->  | M9: =IF('Indirect Staff'!$I$80="","",'Indirect Staff'!$I$80) ->  | N9: ='Indirect Staff'!E89 -> 0 | O9: ='Indirect Staff'!F89 -> 0 | P9: ='Indirect Staff'!G89 -> 0 | Q9: ='Indirect Staff'!H89 -> 0 | R9: ='Indirect Staff'!I89 -> 0 | S9: ='Indirect Staff'!J89 -> 0 | U9: 0
L10: =IF('Indirect Staff'!$E$95="","",'Indirect Staff'!$E$95) ->  | M10: =IF('Indirect Staff'!$I$95="","",'Indirect Staff'!$I$95) ->  | N10: ='Indirect Staff'!E104 -> 0 | O10: ='Indirect Staff'!F104 -> 0 | P10: ='Indirect Staff'!G104 -> 0 | Q10: ='Indirect Staff'!H104 -> 0 | R10: ='Indirect Staff'!I104 -> 0 | S10: ='Indirect Staff'!J104 -> 0 | U10: 0
B11: ISR Accrued | C11: Y1 | D11: Y2 | E11: Y3 | F11: Y4 | G11: Y5 | H11: Y6 | L11: =IF('Indirect Staff'!$E$110="","",'Indirect Staff'!$E$110) ->  | M11: =IF('Indirect Staff'!$I$110="","",'Indirect Staff'!$I$110) ->  | N11: ='Indirect Staff'!E119 -> 0 | O11: ='Indirect Staff'!F119 -> 0 | P11: ='Indirect Staff'!G119 -> 0 | Q11: ='Indirect Staff'!H119 -> 0 | R11: ='Indirect Staff'!I119 -> 0 | S11: ='Indirect Staff'!J119 -> 0 | U11: 0
L12: =IF('Indirect Staff'!$E$125="","",'Indirect Staff'!$E$125) ->  | M12: =IF('Indirect Staff'!$I$125="","",'Indirect Staff'!$I$125) ->  | N12: ='Indirect Staff'!E134 -> 0 | O12: ='Indirect Staff'!F134 -> 0 | P12: ='Indirect Staff'!G134 -> 0 | Q12: ='Indirect Staff'!H134 -> 0 | R12: ='Indirect Staff'!I134 -> 0 | S12: ='Indirect Staff'!J134 -> 0 | U12: =SUM(N12:S12) -> 0
C13: =VLOOKUP($K$2,$K$4:$S$19,4) -> 0 | D13: =VLOOKUP($K$2,$K$4:$S$19,5) -> 0 | E13: =VLOOKUP($K$2,$K$4:$S$19,6) -> 0 | F13: =VLOOKUP($K$2,$K$4:$S$19,7) -> 0 | G13: =VLOOKUP($K$2,$K$4:$S$19,8) -> 0 | H13: =VLOOKUP($K$2,$K$4:$S$19,9) -> 0 | L13: =IF('Indirect Staff'!$E$140="","",'Indirect Staff'!$E$140) ->  | M13: =IF('Indirect Staff'!$I$140="","",'Indirect Staff'!$I$140) ->  | N13: ='Indirect Staff'!E149 -> 0 | O13: ='Indirect Staff'!F149 -> 0 | P13: ='Indirect Staff'!G149 -> 0 | Q13: ='Indirect Staff'!H149 -> 0 | R13: ='Indirect Staff'!I149 -> 0 | S13: ='Indirect Staff'!J149 -> 0 | U13: 0
B14: Total over all years | C14: =SUM(C13:H13) -> 0 | D14: =VLOOKUP($K$2,$K$4:$S$15,9) -> 0 | E14: =VLOOKUP($K$2,$K$4:$S$15,9) -> 0 | F14: =VLOOKUP($K$2,$K$4:$S$15,9) -> 0 | G14: =VLOOKUP($K$2,$K$4:$S$15,9) -> 0 | H14: =VLOOKUP($K$2,$K$4:$S$15,9) -> 0 | L14: =IF('Indirect Staff'!$E$155="","",'Indirect Staff'!$E$155) ->  | M14: =IF('Indirect Staff'!$I$155="","",'Indirect Staff'!$I$155) ->  | N14: ='Indirect Staff'!E164 -> 0 | O14: ='Indirect Staff'!F164 -> 0 | P14: ='Indirect Staff'!G164 -> 0 | Q14: ='Indirect Staff'!H164 -> 0 | R14: ='Indirect Staff'!I164 -> 0 | S14: ='Indirect Staff'!J164 -> 0 | U14: 0
B15: Agreed relief | L15: =IF('Indirect Staff'!$E$170="","",'Indirect Staff'!$E$170) ->  | M15: =IF('Indirect Staff'!$I$170="","",'Indirect Staff'!$I$170) ->  | N15: ='Indirect Staff'!E179 -> 0 | O15: ='Indirect Staff'!F179 -> 0 | P15: ='Indirect Staff'!G179 -> 0 | Q15: ='Indirect Staff'!H179 -> 0 | R15: ='Indirect Staff'!I179 -> 0 | S15: ='Indirect Staff'!J179 -> 0 | U15: 0
L16: =IF('Indirect Staff'!$E$185="","",'Indirect Staff'!$E$185) ->  | M16: =IF('Indirect Staff'!$I$185="","",'Indirect Staff'!$I$185) ->  | N16: ='Indirect Staff'!E194 -> 0 | O16: ='Indirect Staff'!F194 -> 0 | P16: ='Indirect Staff'!G194 -> 0 | Q16: ='Indirect Staff'!H194 -> 0 | R16: ='Indirect Staff'!I194 -> 0 | S16: ='Indirect Staff'!J194 -> 0 | U16: 0
L17: =IF('Indirect Staff'!$E$200="","",'Indirect Staff'!$E$200) ->  | M17: =IF('Indirect Staff'!$I$200="","",'Indirect Staff'!$I$200) ->  | N17: ='Indirect Staff'!E209 -> 0 | O17: ='Indirect Staff'!F209 -> 0 | P17: ='Indirect Staff'!G209 -> 0 | Q17: ='Indirect Staff'!H209 -> 0 | R17: ='Indirect Staff'!I209 -> 0 | S17: ='Indirect Staff'!J209 -> 0 | U17: 0
L18: =IF('Indirect Staff'!$E$215="","",'Indirect Staff'!$E$215) ->  | M18: =IF('Indirect Staff'!$I$215="","",'Indirect Staff'!$I$215) ->  | N18: ='Indirect Staff'!E224 -> 0 | O18: ='Indirect Staff'!F224 -> 0 | P18: ='Indirect Staff'!G224 -> 0 | Q18: ='Indirect Staff'!H224 -> 0 | R18: ='Indirect Staff'!I224 -> 0 | S18: ='Indirect Staff'!J224 -> 0 | U18: 0
L19: =IF('Indirect Staff'!$E$230="","",'Indirect Staff'!$E$230) ->  | M19: =IF('Indirect Staff'!$I$230="","",'Indirect Staff'!$I$230) ->  | N19: ='Indirect Staff'!E239 -> 0 | O19: ='Indirect Staff'!F239 -> 0 | P19: ='Indirect Staff'!G239 -> 0 | Q19: ='Indirect Staff'!H239 -> 0 | R19: ='Indirect Staff'!I239 -> 0 | S19: ='Indirect Staff'!J239 -> 0 | U19: 0
K21: =MAX(K4:K19) -> 1
M22: =SUMPRODUCT(1/COUNTIF(M4:M19,M4:M19)) -> 2
K23: =K21+3 -> 4
K24: =CONCATENATE("$K$4:$K$",TEXT($K23,"@")) -> $K$4:$K$4 | L24: =CONCATENATE("$L$1:$U$",TEXT($K23,"@")) -> $L$1:$U$4
B37: Staff member signature:
B40: HOD Signature:

Sheet Multi-Dept Split
A1: Multi-Department split
A2: Department | B2: Total | C2: % | D2: Staff Member | G2: Rank | H2: Sorted Department | L2: Number
A3: =ISR!M4 -> 0 | B3: ='Indirect Staff'!$K$17 -> 0 | C3: =IF(B3>0,(B3/$B$35)*100,0) -> 0 | D3: =ISR!L4 -> 0 | G3: =COUNTIF(MultiDepartSplitDepartments,"<" & A3) + (COUNT(MultiDepartSplitDepartments) * ISTEXT(A3)) + COUNTIF($A$3:A3,A3) -> 1 | H3: =INDEX(MultiDepartSplitDepartments,MATCH(ROWS($H$3:H3),MDSRank,0)) -> 0 | I3: =IF(H3>0,1,0) -> 0 | J3: =IF(ISTEXT(H3),COUNTIF($H$3:H3,H3),) -> 0 | K3: =IF(J3=1,H3,"") ->  | L3: 1 | M3: =IFERROR(INDEX($K$3:$K$34,_xlfn.AGGREGATE(15,6,(ROW($K$3:$K$34)-ROW($K$3)+1)/($K$3:$K$34<>""),ROWS(M$3:M3))),"") -> 
A4: =ISR!M5 ->  | B4: ='Indirect Staff'!$K$32 -> 0 | C4: 0 | D4: =ISR!L5 ->  | G4: =COUNTIF(MultiDepartSplitDepartments,"<" & A4) + (COUNT(MultiDepartSplitDepartments) * ISTEXT(A4)) + COUNTIF($A$3:A4,A4) -> 2 | H4: =INDEX(MultiDepartSplitDepartments,MATCH(ROWS($H$3:H4),MDSRank,0)) ->  | I4: =IF(H4>0,I3+1,0) -> 1 | J4: =IF(ISTEXT(H4),COUNTIF($H$3:H4,H4),) -> 1 | L4: =L3+1 -> 2 | M4: =IFERROR(INDEX($K$3:$K$34,_xlfn.AGGREGATE(15,6,(ROW($K$3:$K$34)-ROW($K$3)+1)/($K$3:$K$34<>""),ROWS(M$3:M4))),"") -> 
A5: =ISR!M6 ->  | B5: ='Indirect Staff'!$K$47 -> 0 | C5: 0 | D5: =ISR!L6 ->  | G5: =COUNTIF(MultiDepartSplitDepartments,"<" & A5) + (COUNT(MultiDepartSplitDepartments) * ISTEXT(A5)) + COUNTIF($A$3:A5,A5) -> 3 | H5: =INDEX(MultiDepartSplitDepartments,MATCH(ROWS($H$3:H5),MDSRank,0)) ->  | I5: =IF(H5>0,I4+1,0) -> 2 | J5: =IF(ISTEXT(H5),COUNTIF($H$3:H5,H5),) -> 2 | L5: =L4+1 -> 3 | M5: =IFERROR(INDEX($K$3:$K$34,_xlfn.AGGREGATE(15,6,(ROW($K$3:$K$34)-ROW($K$3)+1)/($K$3:$K$34<>""),ROWS(M$3:M5))),"") -> 
A6: =ISR!M7 ->  | B6: ='Indirect Staff'!$K$62 -> 0 | C6: 0 | D6: =ISR!L7 ->  | G6: =COUNTIF(MultiDepartSplitDepartments,"<" & A6) + (COUNT(MultiDepartSplitDepartments) * ISTEXT(A6)) + COUNTIF($A$3:A6,A6) -> 4 | H6: =INDEX(MultiDepartSplitDepartments,MATCH(ROWS($H$3:H6),MDSRank,0)) ->  | I6: 3 | J6: =IF(ISTEXT(H6),COUNTIF($H$3:H6,H6),) -> 3 | L6: 4 | M6: =IFERROR(INDEX($K$3:$K$34,_xlfn.AGGREGATE(15,6,(ROW($K$3:$K$34)-ROW($K$3)+1)/($K$3:$K$34<>""),ROWS(M$3:M6))),"") -> 
A7: =ISR!M8 ->  | B7: ='Indirect Staff'!$K$77 -> 0 | C7: 0 | D7: =ISR!L8 ->  | G7: =COUNTIF(MultiDepartSplitDepartments,"<" & A7) + (COUNT(MultiDepartSplitDepartments) * ISTEXT(A7)) + COUNTIF($A$3:A7,A7) -> 5 | H7: =INDEX(MultiDepartSplitDepartments,MATCH(ROWS($H$3:H7),MDSRank,0)) ->  | I7: 4 | J7: =IF(ISTEXT(H7),COUNTIF($H$3:H7,H7),) -> 4 | L7: 5 | M7: =IFERROR(INDEX($K$3:$K$34,_xlfn.AGGREGATE(15,6,(ROW($K$3:$K$34)-ROW($K$3)+1)/($K$3:$K$34<>""),ROWS(M$3:M7))),"") -> 
A8: =ISR!M9 ->  | B8: ='Indirect Staff'!$K$92 -> 0 | C8: 0 | D8: =ISR!L9 ->  | G8: =COUNTIF(MultiDepartSplitDepartments,"<" & A8) + (COUNT(MultiDepartSplitDepartments) * ISTEXT(A8)) + COUNTIF($A$3:A8,A8) -> 6 | H8: =INDEX(MultiDepartSplitDepartments,MATCH(ROWS($H$3:H8),MDSRank,0)) ->  | I8: 5 | J8: =IF(ISTEXT(H8),COUNTIF($H$3:H8,H8),) -> 5 | L8: 6 | M8: =IFERROR(INDEX($K$3:$K$34,_xlfn.AGGREGATE(15,6,(ROW($K$3:$K$34)-ROW($K$3)+1)/($K$3:$K$34<>""),ROWS(M$3:M8))),"") -> 
A9: =ISR!M10 ->  | B9: ='Indirect Staff'!$K$107 -> 0 | C9: 0 | D9: =ISR!L10 ->  | G9: =COUNTIF(MultiDepartSplitDepartments,"<" & A9) + (COUNT(MultiDepartSplitDepartments) * ISTEXT(A9)) + COUNTIF($A$3:A9,A9) -> 7 | H9: =INDEX(MultiDepartSplitDepartments,MATCH(ROWS($H$3:H9),MDSRank,0)) ->  | I9: 6 | J9: =IF(ISTEXT(H9),COUNTIF($H$3:H9,H9),) -> 6 | L9: 7 | M9: =IFERROR(INDEX($K$3:$K$34,_xlfn.AGGREGATE(15,6,(ROW($K$3:$K$34)-ROW($K$3)+1)/($K$3:$K$34<>""),ROWS(M$3:M9))),"") -> 
A10: =ISR!M11 ->  | B10: ='Indirect Staff'!$K$122 -> 0 | C10: 0 | D10: =ISR!L11 ->  | G10: =COUNTIF(MultiDepartSplitDepartments,"<" & A10) + (COUNT(MultiDepartSplitDepartments) * ISTEXT(A10)) + COUNTIF($A$3:A10,A10) -> 8 | H10: =INDEX(MultiDepartSplitDepartments,MATCH(ROWS($H$3:H10),MDSRank,0)) ->  | I10: 7 | J10: =IF(ISTEXT(H10),COUNTIF($H$3:H10,H10),) -> 7 | L10: 8 | M10: =IFERROR(INDEX($K$3:$K$34,_xlfn.AGGREGATE(15,6,(ROW($K$3:$K$34)-ROW($K$3)+1)/($K$3:$K$34<>""),ROWS(M$3:M10))),"") -> 
A11: =ISR!M12 ->  | B11: ='Indirect Staff'!$K$137 -> 0 | C11: 0 | D11: =ISR!L12 ->  | G11: =COUNTIF(MultiDepartSplitDepartments,"<" & A11) + (COUNT(MultiDepartSplitDepartments) * ISTEXT(A11)) + COUNTIF($A$3:A11,A11) -> 9 | H11: =INDEX(MultiDepartSplitDepartments,MATCH(ROWS($H$3:H11),MDSRank,0)) ->  | I11: 8 | J11: =IF(ISTEXT(H11),COUNTIF($H$3:H11,H11),) -> 8 | L11: 9
A12: =ISR!M13 ->  | B12: ='Indirect Staff'!$K$152 -> 0 | C12: 0 | D12: =ISR!L13 ->  | G12: =COUNTIF(MultiDepartSplitDepartments,"<" & A12) + (COUNT(MultiDepartSplitDepartments) * ISTEXT(A12)) + COUNTIF($A$3:A12,A12) -> 10 | H12: =INDEX(MultiDepartSplitDepartments,MATCH(ROWS($H$3:H12),MDSRank,0)) ->  | I12: 9 | J12: =IF(ISTEXT(H12),COUNTIF($H$3:H12,H12),) -> 9
A13: =ISR!M14 ->  | B13: ='Indirect Staff'!$K$167 -> 0 | C13: 0 | D13: =ISR!L14 ->  | G13: =COUNTIF(MultiDepartSplitDepartments,"<" & A13) + (COUNT(MultiDepartSplitDepartments) * ISTEXT(A13)) + COUNTIF($A$3:A13,A13) -> 11 | H13: =INDEX(MultiDepartSplitDepartments,MATCH(ROWS($H$3:H13),MDSRank,0)) ->  | I13: 10 | J13: =IF(ISTEXT(H13),COUNTIF($H$3:H13,H13),) -> 10 | M13: Yes
A14: =ISR!M15 ->  | B14: ='Indirect Staff'!$K$182 -> 0 | C14: 0 | D14: =ISR!L15 ->  | G14: =COUNTIF(MultiDepartSplitDepartments,"<" & A14) + (COUNT(MultiDepartSplitDepartments) * ISTEXT(A14)) + COUNTIF($A$3:A14,A14) -> 12 | H14: =INDEX(MultiDepartSplitDepartments,MATCH(ROWS($H$3:H14),MDSRank,0)) ->  | I14: 11 | J14: =IF(ISTEXT(H14),COUNTIF($H$3:H14,H14),) -> 11
A15: =ISR!M16 ->  | B15: ='Indirect Staff'!$K$197 -> 0 | C15: 0 | D15: =ISR!L16 ->  | G15: =COUNTIF(MultiDepartSplitDepartments,"<" & A15) + (COUNT(MultiDepartSplitDepartments) * ISTEXT(A15)) + COUNTIF($A$3:A15,A15) -> 13 | H15: =INDEX(MultiDepartSplitDepartments,MATCH(ROWS($H$3:H15),MDSRank,0)) ->  | I15: 12 | J15: =IF(ISTEXT(H15),COUNTIF($H$3:H15,H15),) -> 12
A16: =ISR!M17 ->  | B16: ='Indirect Staff'!$K$212 -> 0 | C16: 0 | D16: =ISR!L17 ->  | G16: =COUNTIF(MultiDepartSplitDepartments,"<" & A16) + (COUNT(MultiDepartSplitDepartments) * ISTEXT(A16)) + COUNTIF($A$3:A16,A16) -> 14 | H16: =INDEX(MultiDepartSplitDepartments,MATCH(ROWS($H$3:H16),MDSRank,0)) ->  | I16: 13 | J16: =IF(ISTEXT(H16),COUNTIF($H$3:H16,H16),) -> 13
A17: =ISR!M18 ->  | B17: ='Indirect Staff'!$K$227 -> 0 | C17: 0 | D17: =ISR!L18 ->  | G17: =COUNTIF(MultiDepartSplitDepartments,"<" & A17) + (COUNT(MultiDepartSplitDepartments) * ISTEXT(A17)) + COUNTIF($A$3:A17,A17) -> 15 | H17: =INDEX(MultiDepartSplitDepartments,MATCH(ROWS($H$3:H17),MDSRank,0)) ->  | I17: 14 | J17: =IF(ISTEXT(H17),COUNTIF($H$3:H17,H17),) -> 14
A18: =ISR!M19 ->  | B18: ='Indirect Staff'!$K$242 -> 0 | C18: 0 | D18: =ISR!L19 ->  | G18: =COUNTIF(MultiDepartSplitDepartments,"<" & A18) + (COUNT(MultiDepartSplitDepartments) * ISTEXT(A18)) + COUNTIF($A$3:A18,A18) -> 16 | H18: =INDEX(MultiDepartSplitDepartments,MATCH(ROWS($H$3:H18),MDSRank,0)) ->  | I18: 15 | J18: =IF(ISTEXT(H18),COUNTIF($H$3:H18,H18),) -> 15
A19: =IF('Direct Staff'!$I$3="","",'Direct Staff'!$I$3) ->  | B19: ='Direct Staff'!$K$17 -> 0 | C19: 0 | D19: ='Direct Staff'!$E$3 -> 0 | G19: =COUNTIF(MultiDepartSplitDepartments,"<" & A19) + (COUNT(MultiDepartSplitDepartments) * ISTEXT(A19)) + COUNTIF($A$3:A19,A19) -> 17 | H19: =INDEX(MultiDepartSplitDepartments,MATCH(ROWS($H$3:H19),MDSRank,0)) ->  | I19: =IF(H19>0,I18+1,0) -> 16 | J19: =IF(ISTEXT(H19),COUNTIF($H$3:H19,H19),) -> 16
A20: =IF('Direct Staff'!$I$20="","",'Direct Staff'!$I$20) ->  | B20: ='Direct Staff'!$K$32 -> 0 | C20: 0 | D20: ='Direct Staff'!$E$20 -> 0 | G20: =COUNTIF(MultiDepartSplitDepartments,"<" & A20) + (COUNT(MultiDepartSplitDepartments) * ISTEXT(A20)) + COUNTIF($A$3:A20,A20) -> 18 | H20: =INDEX(MultiDepartSplitDepartments,MATCH(ROWS($H$3:H20),MDSRank,0)) ->  | I20: 17 | J20: =IF(ISTEXT(H20),COUNTIF($H$3:H20,H20),) -> 17
A21: =IF('Direct Staff'!$I$35="","",'Direct Staff'!$I$35) ->  | B21: ='Direct Staff'!$K$47 -> 0 | C21: 0 | D21: ='Direct Staff'!$E$35 -> 0 | G21: =COUNTIF(MultiDepartSplitDepartments,"<" & A21) + (COUNT(MultiDepartSplitDepartments) * ISTEXT(A21)) + COUNTIF($A$3:A21,A21) -> 19 | H21: =INDEX(MultiDepartSplitDepartments,MATCH(ROWS($H$3:H21),MDSRank,0)) ->  | I21: 18 | J21: =IF(ISTEXT(H21),COUNTIF($H$3:H21,H21),) -> 18
A22: =IF('Direct Staff'!$I$50="","",'Direct Staff'!$I$50) ->  | B22: ='Direct Staff'!$K$62 -> 0 | C22: 0 | D22: ='Direct Staff'!$E$50 -> 0 | G22: =COUNTIF(MultiDepartSplitDepartments,"<" & A22) + (COUNT(MultiDepartSplitDepartments) * ISTEXT(A22)) + COUNTIF($A$3:A22,A22) -> 20 | H22: =INDEX(MultiDepartSplitDepartments,MATCH(ROWS($H$3:H22),MDSRank,0)) ->  | I22: 19 | J22: =IF(ISTEXT(H22),COUNTIF($H$3:H22,H22),) -> 19
A23: =IF('Direct Staff'!$I$65="","",'Direct Staff'!$I$65) ->  | B23: ='Direct Staff'!$K$77 -> 0 | C23: 0 | D23: ='Direct Staff'!$E$65 -> 0 | G23: =COUNTIF(MultiDepartSplitDepartments,"<" & A23) + (COUNT(MultiDepartSplitDepartments) * ISTEXT(A23)) + COUNTIF($A$3:A23,A23) -> 21 | H23: =INDEX(MultiDepartSplitDepartments,MATCH(ROWS($H$3:H23),MDSRank,0)) ->  | I23: 20 | J23: =IF(ISTEXT(H23),COUNTIF($H$3:H23,H23),) -> 20
A24: =IF('Direct Staff'!$I$80="","",'Direct Staff'!$I$80) ->  | B24: ='Direct Staff'!$K$92 -> 0 | C24: 0 | D24: ='Direct Staff'!$E$80 -> 0 | G24: =COUNTIF(MultiDepartSplitDepartments,"<" & A24) + (COUNT(MultiDepartSplitDepartments) * ISTEXT(A24)) + COUNTIF($A$3:A24,A24) -> 22 | H24: =INDEX(MultiDepartSplitDepartments,MATCH(ROWS($H$3:H24),MDSRank,0)) ->  | I24: 21 | J24: =IF(ISTEXT(H24),COUNTIF($H$3:H24,H24),) -> 21
A25: =IF('Direct Staff'!$I$95="","",'Direct Staff'!$I$95) ->  | B25: ='Direct Staff'!$K$107 -> 0 | C25: 0 | D25: ='Direct Staff'!$E$95 -> 0 | G25: =COUNTIF(MultiDepartSplitDepartments,"<" & A25) + (COUNT(MultiDepartSplitDepartments) * ISTEXT(A25)) + COUNTIF($A$3:A25,A25) -> 23 | H25: =INDEX(MultiDepartSplitDepartments,MATCH(ROWS($H$3:H25),MDSRank,0)) ->  | I25: 22 | J25: =IF(ISTEXT(H25),COUNTIF($H$3:H25,H25),) -> 22
A26: =IF('Direct Staff'!$I$110="","",'Direct Staff'!$I$110) ->  | B26: ='Direct Staff'!$K$122 -> 0 | C26: 0 | D26: ='Direct Staff'!$E$110 -> 0 | G26: =COUNTIF(MultiDepartSplitDepartments,"<" & A26) + (COUNT(MultiDepartSplitDepartments) * ISTEXT(A26)) + COUNTIF($A$3:A26,A26) -> 24 | H26: =INDEX(MultiDepartSplitDepartments,MATCH(ROWS($H$3:H26),MDSRank,0)) ->  | I26: 23 | J26: =IF(ISTEXT(H26),COUNTIF($H$3:H26,H26),) -> 23
A27: =IF('Direct Staff'!$I$125="","",'Direct Staff'!$I$125) ->  | B27: ='Direct Staff'!$K$137 -> 0 | C27: 0 | D27: ='Direct Staff'!$E$125 -> 0 | G27: =COUNTIF(MultiDepartSplitDepartments,"<" & A27) + (COUNT(MultiDepartSplitDepartments) * ISTEXT(A27)) + COUNTIF($A$3:A27,A27) -> 25 | H27: =INDEX(MultiDepartSplitDepartments,MATCH(ROWS($H$3:H27),MDSRank,0)) ->  | I27: 24 | J27: =IF(ISTEXT(H27),COUNTIF($H$3:H27,H27),) -> 24
A28: =IF('Direct Staff'!$I$140="","",'Direct Staff'!$I$140) ->  | B28: ='Direct Staff'!$K$152 -> 0 | C28: 0 | D28: ='Direct Staff'!$E$140 -> 0 | G28: =COUNTIF(MultiDepartSplitDepartments,"<" & A28) + (COUNT(MultiDepartSplitDepartments) * ISTEXT(A28)) + COUNTIF($A$3:A28,A28) -> 26 | H28: =INDEX(MultiDepartSplitDepartments,MATCH(ROWS($H$3:H28),MDSRank,0)) ->  | I28: 25 | J28: =IF(ISTEXT(H28),COUNTIF($H$3:H28,H28),) -> 25
A29: =IF('Direct Staff'!$I$155="","",'Direct Staff'!$I$155) ->  | B29: ='Direct Staff'!$K$167 -> 0 | C29: 0 | D29: ='Direct Staff'!$E$155 -> 0 | G29: =COUNTIF(MultiDepartSplitDepartments,"<" & A29) + (COUNT(MultiDepartSplitDepartments) * ISTEXT(A29)) + COUNTIF($A$3:A29,A29) -> 27 | H29: =INDEX(MultiDepartSplitDepartments,MATCH(ROWS($H$3:H29),MDSRank,0)) ->  | I29: 26 | J29: =IF(ISTEXT(H29),COUNTIF($H$3:H29,H29),) -> 26
A30: =IF('Direct Staff'!$I$170="","",'Direct Staff'!$I$170) ->  | B30: ='Direct Staff'!$K$182 -> 0 | C30: 0 | D30: ='Direct Staff'!$E$170 -> 0 | G30: =COUNTIF(MultiDepartSplitDepartments,"<" & A30) + (COUNT(MultiDepartSplitDepartments) * ISTEXT(A30)) + COUNTIF($A$3:A30,A30) -> 28 | H30: =INDEX(MultiDepartSplitDepartments,MATCH(ROWS($H$3:H30),MDSRank,0)) ->  | I30: 27 | J30: =IF(ISTEXT(H30),COUNTIF($H$3:H30,H30),) -> 27
A31: =IF('Direct Staff'!$I$185="","",'Direct Staff'!$I$185) ->  | B31: ='Direct Staff'!$K$197 -> 0 | C31: 0 | D31: ='Direct Staff'!$E$185 -> 0 | G31: =COUNTIF(MultiDepartSplitDepartments,"<" & A31) + (COUNT(MultiDepartSplitDepartments) * ISTEXT(A31)) + COUNTIF($A$3:A31,A31) -> 29 | H31: =INDEX(MultiDepartSplitDepartments,MATCH(ROWS($H$3:H31),MDSRank,0)) ->  | I31: 28 | J31: =IF(ISTEXT(H31),COUNTIF($H$3:H31,H31),) -> 28
A32: =IF('Direct Staff'!$I$200="","",'Direct Staff'!$I$200) ->  | B32: ='Direct Staff'!$K$212 -> 0 | C32: 0 | D32: ='Direct Staff'!$E$200 -> 0 | G32: =COUNTIF(MultiDepartSplitDepartments,"<" & A32) + (COUNT(MultiDepartSplitDepartments) * ISTEXT(A32)) + COUNTIF($A$3:A32,A32) -> 30 | H32: =INDEX(MultiDepartSplitDepartments,MATCH(ROWS($H$3:H32),MDSRank,0)) ->  | I32: 29 | J32: =IF(ISTEXT(H32),COUNTIF($H$3:H32,H32),) -> 29
A33: =IF('Direct Staff'!$I$215="","",'Direct Staff'!$I$215) ->  | B33: ='Direct Staff'!$K$227 -> 0 | C33: 0 | D33: ='Direct Staff'!$E$215 -> 0 | G33: =COUNTIF(MultiDepartSplitDepartments,"<" & A33) + (COUNT(MultiDepartSplitDepartments) * ISTEXT(A33)) + COUNTIF($A$3:A33,A33) -> 31 | H33: =INDEX(MultiDepartSplitDepartments,MATCH(ROWS($H$3:H33),MDSRank,0)) ->  | I33: 30 | J33: =IF(ISTEXT(H33),COUNTIF($H$3:H33,H33),) -> 30
A34: =IF('Direct Staff'!$I$230="","",'Direct Staff'!$I$230) ->  | B34: ='Direct Staff'!$K$242 -> 0 | C34: 0 | D34: ='Direct Staff'!$E$230 -> 0 | G34: =COUNTIF(MultiDepartSplitDepartments,"<" & A34) + (COUNT(MultiDepartSplitDepartments) * ISTEXT(A34)) + COUNTIF($A$3:A34,A34) -> 32 | H34: =INDEX(MultiDepartSplitDepartments,MATCH(ROWS($H$3:H34),MDSRank,0)) ->  | I34: 31 | J34: =IF(ISTEXT(H34),COUNTIF($H$3:H34,H34),) -> 31
A35: Overheads | B35: =SUM(B3:B34) -> 0 | C35: =SUM(C3:C34) -> 0
A37: Department | B37: $ O/H | C37: % O/H | D37: HOD Signature | E37: F1 | F37: O/H Acc.
A38: =IF(M13="No","",M3) ->  | B38: =IF($A38="","",SUMIF(MultiDepartSplitDepartments,"=" & $A38,B$3:B$34)) ->  | E38: =IF(C38="","",(C38*Summary!$I$33)/100) ->  | F38: =IFERROR(VLOOKUP(A38,DepartmentsandDivisions,4,FALSE),"") -> 
A39: =IF(M4="","",M4) ->  | E39: =IF(C39="","",(C39*Summary!$I$33)/100) -> 
E40: =IF(C40="","",(C40*Summary!$I$33)/100) -> 
E41: =IF(C41="","",(C41*Summary!$I$33)/100) -> 
E42: =IF(C42="","",(C42*Summary!$I$33)/100) -> 
E43: =IF(C43="","",(C43*Summary!$I$33)/100) -> 
E44: =IF(C44="","",(C44*Summary!$I$33)/100) -> 
E45: =IF(C45="","",(C45*Summary!$I$33)/100) -> 
E46: =IF(C46="","",(C46*Summary!$I$33)/100) -> 
A47: Totals | B47: =SUM(B38:B46) -> 0 | C47: =SUM(C38:C46) -> 0 | E47: =SUM(E38:E46) -> 0

Sheet Foreign $
B1: University of Otago Costing and Consents Worksheet
B2: RA/EM: | C2: =Summary!$C$2 -> 0 | E2: Date of creation/change: | H2: =Summary!$I$2 -> 00:00:00
B3: PI: | C3: =Summary!C3 -> 0 | D3: =Summary!D3 -> 0
B4: Department: | C4: =Summary!$C$4 -> 0
B5: Research Unit: | C5: =Summary!$C$5 -> 0 | F5: Division: | G5: =Summary!$H$5 -> 0
B6: Project title: | C6: =Summary!$C$6 -> 0
B7: Start Date: | C7: =Summary!$C$7 -> 2024-07-01 | D7: End Date: | E7: =Summary!$E$7 -> 00:00:00 | G7: REDS Contract # | H7: =Summary!I7 -> 0
B8: Funding Body: | C8: =Summary!$C$9 -> 0 | G8: Funder Contract # | H8: =Summary!I9 -> 0
B9: New project: | C9: =Summary!C10 -> Yes | D9: Variation: | E9: =Summary!E10 -> No | F9: Finance 1 Acc # | H9: =Summary!$I$9 -> 0
B10: PBRF? | C10: =Summary!C11 -> Yes | F10: Linked Acc # | H10: =Summary!I10 -> No
B12: Exchange Rate | C12: 1 | E12: To determine correct exchange rate to use
B13: Currency | C13: NZ$ | E13: https://www.anz.co.nz/content/dam/anzconz/documents/economics-and-market-research/Latest-forecasts.xlsx
E15: https://www.westpac.co.nz/assets/Business/tools-rates-fees/documents/economic-updates/Forecasts/Economic-and-Financial-Forecasts_Economics_report_06Jun23.xlsx
B16: All Years | D16: =_xlfn.CONCAT(C13," Amount") -> NZ$ Amount | G16: NZ$ Amount | N16: =Summary!B14 -> All Years
D17: Full | E17: Price | G17: =D17 -> Full | H17: =E17 -> Price | P17: =Summary!D14 -> Full Cost | Q17: =Summary!E14 -> Price
B18: Salaries Indirect | D18: =P18*Exchange_Rate -> 0 | E18: 0 | G18: =P18 -> 0 | H18: 0 | N18: =Summary!B15 -> Salaries Indirect | P18: =Summary!D15 -> 0 | Q18: =Summary!E15 -> 0
B19: Salaries Direct | D19: 0 | E19: 0 | G19: 0 | H19: 0 | N19: =Summary!B16 -> Salaries Direct | P19: =Summary!D16 -> 0 | Q19: =Summary!E16 -> 0
B20: Salary-Related - Indirect | D20: 0 | E20: 0 | G20: 0 | H20: 0 | N20: =Summary!B17 -> Salary-Related - Indirect | P20: =Summary!D17 -> 0 | Q20: =Summary!E17 -> 0
B21: Salary-Related - Direct | D21: 0 | E21: 0 | G21: 0 | H21: 0 | N21: =Summary!B18 -> Salary-Related - Direct | P21: =Summary!D18 -> 0 | Q21: =Summary!E18 -> 0
B22: Postgraduate Students | D22: 0 | E22: =Q22*Exchange_Rate -> 0 | G22: 0 | H22: =Q22 -> 0 | N22: =Summary!B19 -> Postgraduate Students | P22: =Summary!D19 -> 0 | Q22: =Summary!E19 -> 0
B23: General Expenses | D23: 0 | E23: 0 | G23: 0 | H23: 0 | N23: =Summary!B20 -> Operating Expenses | P23: =Summary!D20 -> 0 | Q23: =Summary!E20 -> 0
B24: Equipment | D24: 0 | E24: 0 | G24: 0 | H24: 0 | N24: =Summary!B21 -> Equipment | P24: =Summary!D21 -> 0 | Q24: =Summary!E21 -> 0
B25: Depreciation | D25: 0 | E25: =Q25*Exchange_Rate -> 0 | G25: 0 | H25: 0 | N25: =Summary!B22 -> Depreciation | P25: =Summary!D22 -> 0 | Q25: =Summary!E22 -> 0
B26: Sub-Contracting | D26: 0 | E26: 0 | G26: 0 | H26: 0 | N26: =Summary!B23 -> Sub-Contracting | P26: =Summary!D23 -> 0 | Q26: =Summary!E23 -> 0
B27: Overheads | D27: =P27*Exchange_Rate -> 0 | E27: =Q27*Exchange_Rate -> 0 | G27: 0 | H27: 0 | N27: =Summary!B24 -> Overheads | P27: =Summary!D24 -> 0 | Q27: =Summary!E24 -> 0
B28: Profit | D28: =P28*Exchange_Rate -> 0 | E28: =Q28*Exchange_Rate -> 0 | G28: 0 | H28: 0 | N28: =Summary!B25 -> Profit | P28: =Summary!D25 -> 0 | Q28: =Summary!E25 -> 0
B29: TOTAL | D29: =SUM(D18:D28) -> 0 | E29: =SUM(E18:E28) -> 0 | G29: =SUM(G18:G28) -> 0 | H29: =SUM(H18:H28) -> 0
B31: Cost/Price Difference (ex GST) | E31: =E29-D29 -> 0 | H31: Agreed Overhead rate | J31: %
C33: R&E notes

Sheet SUB Coversheet
A1: Cover Sheet for Subcontracts Issued by University of Otago
K2: Subcontract choice?
A3: Prime Contract Details: | K3: Choose Subcontract è | L3: 1 | W3: =CONCATENATE("SUB ",TEXT(L3,"@")) -> SUB 1
A4: Principal Investigator | B4: =CONCATENATE(Summary!C3," ",Summary!D3) ->  | F4: REDS Contract # | G4: =Summary!$I$7 -> 0 | K4: Org | L4: Person | M4: Sub # | N4: 1 | O4: 2 | P4: 3 | Q4: 4 | R4: 5 | S4: 6
J5: 1 | K5: ='Subs-Students'!$B$4 -> 0 | L5: ='Subs-Students'!B5 -> 0 | M5: ='Subs-Students'!$F$4 -> 0 | N5: ='Subs-Students'!F5 -> 0 | O5: ='Subs-Students'!G5 -> 0 | P5: ='Subs-Students'!H5 -> 0 | Q5: ='Subs-Students'!I5 -> 0 | R5: ='Subs-Students'!J5 -> 0 | S5: ='Subs-Students'!K5 -> 0 | U5: =SUM(N5:S5) -> 0
A6: Department | B6: =IF(Summary!C4="","",Summary!C4) ->  | J6: =IF(K6>0,J5+1,"") ->  | K6: ='Subs-Students'!$B$8 -> 0 | L6: ='Subs-Students'!B9 -> 0 | M6: ='Subs-Students'!$F$8 -> 0 | N6: ='Subs-Students'!F9 -> 0 | O6: ='Subs-Students'!G9 -> 0 | P6: ='Subs-Students'!H9 -> 0 | Q6: ='Subs-Students'!I9 -> 0 | R6: ='Subs-Students'!J9 -> 0 | S6: ='Subs-Students'!K9 -> 0 | U6: =SUM(N6:S6) -> 0
J7: =IF(K7>0,J6+1,"") ->  | K7: ='Subs-Students'!$B$12 -> 0 | L7: ='Subs-Students'!B13 -> 0 | M7: ='Subs-Students'!$F$12 -> 0 | N7: ='Subs-Students'!F13 -> 0 | O7: ='Subs-Students'!G13 -> 0 | P7: ='Subs-Students'!H13 -> 0 | Q7: ='Subs-Students'!I13 -> 0 | R7: ='Subs-Students'!J13 -> 0 | S7: ='Subs-Students'!K13 -> 0 | U7: =SUM(N7:S7) -> 0
A8: Project Title: | B8: =IF(Summary!$C$6="","",Summary!$C$6) ->  | K8: ='Subs-Students'!$B$16 -> 0 | L8: ='Subs-Students'!B17 -> 0 | M8: ='Subs-Students'!$F$16 -> 0 | N8: ='Subs-Students'!F17 -> 0 | O8: ='Subs-Students'!G17 -> 0 | P8: ='Subs-Students'!H17 -> 0 | Q8: ='Subs-Students'!I17 -> 0 | R8: ='Subs-Students'!J17 -> 0 | S8: ='Subs-Students'!K17 -> 0 | U8: =SUM(N8:S8) -> 0
K9: ='Subs-Students'!$B$20 -> 0 | L9: ='Subs-Students'!B21 -> 0 | M9: ='Subs-Students'!$F$20 -> 0 | N9: ='Subs-Students'!F21 -> 0 | O9: ='Subs-Students'!G21 -> 0 | P9: ='Subs-Students'!H21 -> 0 | Q9: ='Subs-Students'!I21 -> 0 | R9: ='Subs-Students'!J21 -> 0 | S9: ='Subs-Students'!K21 -> 0 | U9: =SUM(N9:S9) -> 0
A10: Contracting Body: | B10: =IF(Summary!C9="","",Summary!C9) ->  | K10: ='Subs-Students'!$B$24 -> 0 | L10: ='Subs-Students'!$B$25 -> 0 | M10: ='Subs-Students'!$F$24 -> 0 | N10: ='Subs-Students'!F25 -> 0 | O10: ='Subs-Students'!G25 -> 0 | P10: ='Subs-Students'!H25 -> 0 | Q10: ='Subs-Students'!I25 -> 0 | R10: ='Subs-Students'!J25 -> 0 | S10: ='Subs-Students'!K25 -> 0 | U10: ='Subs-Students'!N25 -> 0
K11: ='Subs-Students'!$B$28 -> 0 | L11: ='Subs-Students'!$B$29 -> 0 | M11: ='Subs-Students'!$F$28 -> 0 | N11: ='Subs-Students'!F29 -> 0 | O11: ='Subs-Students'!G29 -> 0 | P11: ='Subs-Students'!H29 -> 0 | Q11: ='Subs-Students'!I29 -> 0 | R11: ='Subs-Students'!J29 -> 0 | S11: ='Subs-Students'!K29 -> 0 | U11: ='Subs-Students'!N29 -> 0
A12: Contract Timeframe: | B12: =IF(Summary!$C$7="","",Summary!$C$7) -> 2024-07-01 | D12: to | E12: =IF(Summary!$E$7="","",Summary!$E$7) ->  | K12: ='Subs-Students'!$B$32 -> 0 | L12: ='Subs-Students'!$B$33 -> 0 | M12: ='Subs-Students'!$F$32 -> 0 | N12: ='Subs-Students'!F33 -> 0 | O12: ='Subs-Students'!G33 -> 0 | P12: ='Subs-Students'!H33 -> 0 | Q12: ='Subs-Students'!I33 -> 0 | R12: ='Subs-Students'!J33 -> 0 | S12: ='Subs-Students'!K33 -> 0 | U12: ='Subs-Students'!N33 -> 0
K13: ='Subs-Students'!$B$36 -> 0 | L13: ='Subs-Students'!$B$37 -> 0 | M13: ='Subs-Students'!$F$36 -> 0 | N13: ='Subs-Students'!F37 -> 0 | O13: ='Subs-Students'!G37 -> 0 | P13: ='Subs-Students'!H37 -> 0 | Q13: ='Subs-Students'!I37 -> 0 | R13: ='Subs-Students'!J37 -> 0 | S13: ='Subs-Students'!K37 -> 0 | U13: ='Subs-Students'!N37 -> 0
A14: Subcontract Details: | K14: ='Subs-Students'!$B$40 -> 0 | L14: ='Subs-Students'!$B$41 -> 0 | M14: ='Subs-Students'!$F$40 -> 0 | N14: ='Subs-Students'!F41 -> 0 | O14: ='Subs-Students'!G41 -> 0 | P14: ='Subs-Students'!H41 -> 0 | Q14: ='Subs-Students'!I41 -> 0 | R14: ='Subs-Students'!J41 -> 0 | S14: ='Subs-Students'!K41 -> 0 | U14: ='Subs-Students'!N41 -> 0
K15: ='Subs-Students'!$B$44 -> 0 | L15: ='Subs-Students'!B45 -> 0 | M15: ='Subs-Students'!$F$44 -> 0 | N15: ='Subs-Students'!F45 -> 0 | O15: ='Subs-Students'!G45 -> 0 | P15: ='Subs-Students'!H45 -> 0 | Q15: ='Subs-Students'!I45 -> 0 | R15: ='Subs-Students'!J45 -> 0 | S15: ='Subs-Students'!K45 -> 0 | U15: =SUM(N15:S15) -> 0
A16: Subcontractor: | B16: =IF(VLOOKUP(L3,J5:K17,2)=0,"",VLOOKUP(L3,J5:K17,2)) ->  | F16: Sub # | G16: =IF(VLOOKUP(L3,J5:S12,4)=0,"",VLOOKUP(L3,J5:S12,4)) ->  | K16: ='Subs-Students'!$B$48 -> 0 | L16: ='Subs-Students'!B49 -> 0 | M16: ='Subs-Students'!$F$48 -> 0 | N16: ='Subs-Students'!F49 -> 0 | O16: ='Subs-Students'!G49 -> 0 | P16: ='Subs-Students'!H49 -> 0 | Q16: ='Subs-Students'!I49 -> 0 | R16: ='Subs-Students'!J49 -> 0 | S16: ='Subs-Students'!K49 -> 0 | U16: =SUM(N16:S16) -> 0
K17: ='Subs-Students'!$B$52 -> 0 | L17: ='Subs-Students'!B53 -> 0 | M17: ='Subs-Students'!$F$52 -> 0 | N17: ='Subs-Students'!F53 -> 0 | O17: ='Subs-Students'!G53 -> 0 | P17: ='Subs-Students'!H53 -> 0 | Q17: ='Subs-Students'!I53 -> 0 | R17: ='Subs-Students'!J53 -> 0 | S17: ='Subs-Students'!K53 -> 0 | U17: =SUM(N17:S17) -> 0
A18: Subcontractor Key Personnel: | B18: =IF(VLOOKUP(L3,J5:L17,3)=0,"",VLOOKUP(L3,J5:L17,3)) -> 
J19: =MAX(J5:J17) -> 1
J20: =J19+4 -> 5
J21: =CONCATENATE("$J$5:$J$",TEXT(J20,"@")) -> $J$5:$J$5
A23: Subcontract Project Title: | B23: =IF(Summary!$C$6="","",Summary!$C$6) -> 
A25: Subcontract Timeframe: | B25: =IF(Summary!$C$7="","",Summary!$C$7) -> 2024-07-01 | D25: to | E25: =IF(Summary!E7="","",Summary!E7) -> 
A27: Payment Schedule:
B28: Year 1 | C28: Year 2 | D28: Year 3 | E28: Year 4 | F28: Year 5 | G28: Year 6 | H28: Totals
A29: Sub Total | B29: =VLOOKUP($L$3,$J$5:$S$17,5) -> 0 | C29: =VLOOKUP($L$3,$J$5:$S$17,6) -> 0 | D29: =VLOOKUP($L$3,$J$5:$S$17,7) -> 0 | E29: =VLOOKUP($L$3,$J$5:$S$17,8) -> 0 | F29: =VLOOKUP($L$3,$J$5:$S$17,9) -> 0 | G29: =VLOOKUP($L$3,$J$5:$S$17,10) -> 0 | H29: =SUM(B29:G29) -> 0
A30: GST? | B30: =B29*GST -> 0 | C30: 0 | D30: 0 | E30: 0 | F30: 0 | G30: 0 | H30: =SUM(B30:G30) -> 0
A31: Yearly Total | B31: =B29+B30 -> 0 | C31: 0 | D31: 0 | E31: 0 | F31: 0 | G31: 0 | H31: =SUM(B31:G31) -> 0
A32: Comments:
A37: Recommended By
A39: Research & Enterprise | B39: =IF(Summary!$C$2="","",Summary!$C$2) -> 
B40: Name | F40: Date
A42: Approved By
A43: =IF($H$29<50000,"Dr Martin Gagnon","Prof. Richard Blaikie") -> Dr Martin Gagnon
A44: Name | C44: Signature | F44: Date

Sheet Sheet1

Sheet MOU info
D2: Memorandum of Understanding
A4: 1 | B4: Parties to the Memorandum: | J4: 1 | K4: ç Select MOU to generate | M4: =CONCATENATE("MOU ",TEXT($J4,"@")) -> MOU 1
B5: University: | D5: University of Otago
B7: Subcontractor: | D7: =VLOOKUP(J4,J8:L20,2) ->  | J7: MOU | K7: Subcontracted staff | L7: Institution
J8: 1 | K8: =IF('Subs-Students'!$B$4="","",'Subs-Students'!$B$4) ->  | L8: =IF('Subs-Students'!$B$5="","",'Subs-Students'!$B$5) -> 
A9: 2 | B9: Short Title of Project | D9: =IF(Summary!$C$6="","",Summary!$C$6) ->  | J9: =IF(K9="","",J8+1) ->  | K9: =IF('Subs-Students'!$B$8="","",'Subs-Students'!$B$8) ->  | L9: =IF('Subs-Students'!$B$9="","",'Subs-Students'!$B$9) -> 
J10: =IF(K10="","",J9+1) ->  | K10: =IF('Subs-Students'!$B$12="","",'Subs-Students'!$B$12) ->  | L10: =IF('Subs-Students'!$B$13="","",'Subs-Students'!$B$13) -> 
A11: 3 | B11: Research Project Funding Body: | D11: =IF(Summary!$C$9="","",Summary!$C$9) ->  | K11: =IF('Subs-Students'!$B$16="","",'Subs-Students'!$B$16) ->  | L11: =IF('Subs-Students'!$B$17="","",'Subs-Students'!$B$17) -> 
K12: =IF('Subs-Students'!$B$20="","",'Subs-Students'!$B$20) ->  | L12: =IF('Subs-Students'!$B$21="","",'Subs-Students'!$B$21) -> 
A13: 4 | B13: Term of Research Project: | D13: =IF(Summary!$C$7="","",Summary!$C$7) -> 2024-07-01 | E13: to | F13: =IF(Summary!$E$7="","",Summary!$E$7) ->  | K13: =IF('Subs-Students'!$B$24="","",'Subs-Students'!$B$24) ->  | L13: =IF('Subs-Students'!$B$25="","",'Subs-Students'!$B$25) -> 
K14: =IF('Subs-Students'!$B$28="","",'Subs-Students'!$B$28) ->  | L14: =IF('Subs-Students'!$B$29="","",'Subs-Students'!$B$29) -> 
K15: =IF('Subs-Students'!$B$32="","",'Subs-Students'!$B$32) ->  | L15: =IF('Subs-Students'!$B$33="","",'Subs-Students'!$B$33) -> 
A16: 5 | B16: Principal Investigator, University: | D16: =CONCATENATE(K32," ",K33) ->  | K16: =IF('Subs-Students'!$B$36="","",'Subs-Students'!$B$36) ->  | L16: =IF('Subs-Students'!$B$37="","",'Subs-Students'!$B$37) -> 
K17: =IF('Subs-Students'!$B$40="","",'Subs-Students'!$B$40) ->  | L17: =IF('Subs-Students'!$B$41="","",'Subs-Students'!$B$41) -> 
A18: 6 | B18: Key Personnel, Subcontractor: | D18: =IF(VLOOKUP($J$4,$J$8:$L$20,3)="","",VLOOKUP($J$4,$J$8:$L$20,3)) ->  | K18: =IF('Subs-Students'!$B$44="","",'Subs-Students'!$B$44) ->  | L18: =IF('Subs-Students'!$B$45="","",'Subs-Students'!$B$45) -> 
K19: =IF('Subs-Students'!$B$48="","",'Subs-Students'!$B$48) ->  | L19: =IF('Subs-Students'!$B$49="","",'Subs-Students'!$B$49) -> 
K20: =IF('Subs-Students'!$B$52="","",'Subs-Students'!$B$52) ->  | L20: =IF('Subs-Students'!$B$53="","",'Subs-Students'!$B$53) -> 
J21: =MAX(J8:J20) -> 1
J22: =J21+7 -> 8
J23: =CONCATENATE("$J$8:$J$",TEXT(J22,"@")) -> $J$8:$J$8
A24: 7 | B24: Contact Details, Subcontractor:
B25: Address:
B28: Phone:
B30: Email:
A32: 8 | B32: Brief Description of Research Subcontractors to Supply: | K32: =IF(Summary!C3="","",Summary!C3) -> 
K33: =IF(Summary!D3="","",Summary!D3) -> 
A40: 9 | B40: Intended Level of Funding:
B41: The University will pay the Subcontractor a maximum value of | F41: =SUM(C54:H54) -> 0 | G41: (Inc GST)
B42: for the total period of the grant (subject to funding provided by the Sponsor).
B44: OH rate used | D44: %
C45: Year 1 | D45: Year 2 | E45: Year 3 | F45: Year 4 | G45: Year 5
B46: Name(s) | C46: FTE | D46: FTE | E46: FTE | F46: FTE | G46: FTE
C47: % | D47: % | E47: % | F47: % | G47: %
B48: Salary cost
B49: Overheads | C49: =IF(C48="","",(C48*$C$44)/100) ->  | D49: =IF(D48="","",(D48*$C$44)/100) -> 
B50: Salary costs
B51: Consumables
B52: Sub Total | C52: =SUM(C48:C51) -> 0 | D52: =SUM(D48:D51) -> 0 | E52: =SUM(E48:E51) -> 0 | F52: =SUM(F48:F51) -> 0 | G52: =SUM(G48:G51) -> 0 | J52: =SUM(C52:G52) -> 0
B53: GST | C53: =C52*GST_Rate -> 0 | D53: =D52*GST_Rate -> 0 | E53: =E52*GST_Rate -> 0 | F53: =F52*GST_Rate -> 0 | G53: =G52*GST_Rate -> 0
B54: TOTAL (incl GST) | C54: =SUM(C52:C53) -> 0 | D54: =SUM(D52:D53) -> 0 | E54: =SUM(E52:E53) -> 0 | F54: =SUM(F52:F53) -> 0 | G54: =SUM(G52:G53) -> 0
A57: 10 | B57: Agreement
B58: This Memorandum formalises the intention of the parties to collaborate in the research
B59: project outlined above and to enter into a sub-contract.
B60: Commencement of the research project is subject to the parties reaching a mutually
B61: satisfactory final agreement on the terms and conditions of the sub-contract following
B62: confirmation of the final funding level allocated by the Sponsor and agreement on
B63: intellectual property matters.
B64: Should the requested Level of Funding be reduced by the Funding Body, then the University
B65: in discussion with the Subcontractor) will determine the re-allocation funds based on the
B66: Funding Bodies decision in a manner which maintains equity in the funding of the project.
B68: If the subcontractor is a Tertiary Education Organisation (TEO), the allocation of funding
B69: recognised for Performance Based Researched Funding (PBRF) assessment purposes, will be
B70: negotiated between the parties upon entering into a sub-contract
B73: Signed by:
B74: Authorised signatory of the University | G74: Date
B78: Signed by:
B79: Authorised signatory of the Subcontractor | G79: Date
